Workbook

Sheet Carátula
B6: GERENCIA DE REGULACIÓN Y ESTUDIOS ECONÓMICOS
B9: MODELO DE LA PROPUESTA TARIFARIA DE LOS SERVICIOS DE NAVEGACIÓN AÉREA BRINDADOS POR CORPAC S.A.
B13: 2022

Sheet Índice
B2: Contenido
B4: Propuesta Tarifaria del Ositrán
B6: I. Flujos de Caja
B7: Modelo 1: SNAR y Sobrevuelo
B8: Modelo 2: Aproximación
B10: II. Ingresos de los servicios de aeronavegación
B11: a. Proyección de demanda
B12: SNAR Nacional
B13: SNAR Internacional
B14: Aproximación
B15: Sobrevuelo
B16: Tasas de crecimiento de la demanda
B17: b. Tarifas de los servicios de aeronavegación
B18: c. Ingresos proyectados (usuarios atribuibles)
B20: III. Egresos de los servicios de aeronavegación
B21: a. Costos operativos - OPEX (usuarios atribuibles)
B22: Gastos de Personal
B23: OPEX incremental
B24: b. Gastos de Capital - CAPEX
B25: Base de activos existentes
B26: Inversiones programadas
B27: Inversiones ejecutadas (2017 - 2021)
B28: BD Activos de aeronavegación al 2020
B29: Consumo de capital fijo no ejecutado
B31: IV. Otros Ingresos y Egresos
B32: Pago de contribuciones
B33: Ingresos y Costos por usuarios no atribuibles
B34: Transferencias del AIJCh
B36: V. Tasa de descuento
B37: Costo Promedio Ponderado del Capital (WACC) al 2021
B39: VI. Información complementaria
B40: Variables macroeconómicas y supuestos generales
B41: BD Variables macroeconómicas

Sheet Propuesta
B1: Servicios Regulados de Aeronavegación de CORPAC | F1: Índice
B2: Revisión tarifaria 2022
B4: Servicio / Peso Máximo de Despegue (PMD) | C4: Unidad de cobro | D4: Tarifa 10/11/2021 | E4: Propuesta Ositrán | F4: Var%
B5: A. SNAR Nacional
B6: (En soles)
B7: - Por rango de PMD:
B8: Hasta 5,7TM | C8: Por kilómetro recorrido | D8: =+'2. Tarifas'!H9 -> 0.17 | E8: =+'2. Tarifas'!R9 -> 0.1062874788 | F8: =+E8/D8-1 -> -0.3747795362
B9: Más de 5,7TM a 10TM | C9: Por kilómetro recorrido | D9: =+'2. Tarifas'!H10 -> 0.33 | E9: =+'2. Tarifas'!R10 -> 0.2063227531 | F9: =+E9/D9-1 -> -0.3747795362
B10: Más de 10TM a 35TM | C10: Por kilómetro recorrido | D10: =+'2. Tarifas'!H11 -> 0.36 | E10: =+'2. Tarifas'!R11 -> 0.225079367 | F10: -0.3747795362
B11: Más de 35TM a 70TM | C11: Por kilómetro recorrido | D11: =+'2. Tarifas'!H12 -> 0.48 | E11: =+'2. Tarifas'!R12 -> 0.3001058226 | F11: -0.3747795362
B12: Más de 70TM a 105TM | C12: Por kilómetro recorrido | D12: =+'2. Tarifas'!H13 -> 0.73 | E12: =+'2. Tarifas'!R13 -> 0.4564109386 | F12: -0.3747795362
B13: Más de 105TM | C13: Por kilómetro recorrido | D13: =+'2. Tarifas'!H14 -> 0.96 | E13: =+'2. Tarifas'!R14 -> 0.6002116453 | F13: -0.3747795362
B14: - Cargo mínimo: | C14: Por operación | D14: =+'2. Tarifas'!H15 -> 15.97 | E14: =+'2. Tarifas'!R15 -> 9.984770807 | F14: -0.3747795362
B16: B. SNAR Internacional
B17: (En dólares)
B18: - Por rango de PMD:
B19: Hasta 5,7TM | C19: Por kilómetro recorrido | D19: =+'2. Tarifas'!H20 -> 0.07 | E19: =+'2. Tarifas'!R20 -> 0.04312816203 | F19: =+E19/D19-1 -> -0.3838833996
B20: Más de 5,7TM a 10TM | C20: Por kilómetro recorrido | D20: =+'2. Tarifas'!H21 -> 0.14 | E20: =+'2. Tarifas'!R21 -> 0.08625632406 | F20: -0.3838833996
B21: Más de 10TM a 35TM | C21: Por kilómetro recorrido | D21: =+'2. Tarifas'!H22 -> 0.15 | E21: =+'2. Tarifas'!R22 -> 0.09241749006 | F21: -0.3838833996
B22: Más de 35TM a 70TM | C22: Por kilómetro recorrido | D22: =+'2. Tarifas'!H23 -> 0.2 | E22: =+'2. Tarifas'!R23 -> 0.1232233201 | F22: -0.3838833996
B23: Más de 70TM a 105TM | C23: Por kilómetro recorrido | D23: =+'2. Tarifas'!H24 -> 0.31 | E23: =+'2. Tarifas'!R24 -> 0.1909961461 | F23: -0.3838833996
B24: Más de 105TM | C24: Por kilómetro recorrido | D24: =+'2. Tarifas'!H25 -> 0.43 | E24: =+'2. Tarifas'!R25 -> 0.2649301382 | F24: -0.3838833996
B25: - Cargo mínimo: | C25: Por operación | D25: =+'2. Tarifas'!H26 -> 7.43 | E25: =+'2. Tarifas'!R26 -> 4.577746341 | F25: -0.3838833996
B27: C. Aproximación
B28: (En soles)
B29: - Por rango de PMD:
B30: Hasta 10TM | C30: Por Tonelada (PMD) | D30: =+'2. Tarifas'!H31 -> 3.37 | E30: =+'2. Tarifas'!R31 -> 4.004718954 | F30: 0.1883439032
B31: Más de 10TM a 35TM | C31: Por Tonelada (PMD) | D31: =+'2. Tarifas'!H32 -> 3.76 | E31: =+'2. Tarifas'!R32 -> 4.468173076 | F31: 0.1883439032
B32: Más de 35TM a 70TM | C32: Por Tonelada (PMD) | D32: =+'2. Tarifas'!H33 -> 4.19 | E32: =+'2. Tarifas'!R33 -> 4.979160954 | F32: 0.1883439032
B33: Más de 70TM a 105TM | C33: Por Tonelada (PMD) | D33: =+'2. Tarifas'!H34 -> 4.61 | E33: =+'2. Tarifas'!R34 -> 5.478265394 | F33: 0.1883439032
B34: Más de 105TM | C34: Por Tonelada (PMD) | D34: =+'2. Tarifas'!H35 -> 5.05 | E34: =+'2. Tarifas'!R35 -> 6.001136711 | F34: 0.1883439032
B35: - Cargo mínimo: | C35: Por operación | D35: =+'2. Tarifas'!H36 -> 8.4 | E35: =+'2. Tarifas'!R36 -> 9.982088787 | F35: 0.1883439032
B37: D. Sobrevuelo
B38: (En dólares)
B39: - Por rango de PMD:
B40: Hasta 55TM | C40: Por kilómetro recorrido | D40: =+'2. Tarifas'!H41 -> 0.19 | E40: =+'2. Tarifas'!R41 -> 0.1170621541 | F40: -0.3838833996
B41: Más de 55TM a 115TM | C41: Por kilómetro recorrido | D41: =+'2. Tarifas'!H42 -> 0.3 | E41: =+'2. Tarifas'!R42 -> 0.1848349801 | F41: -0.3838833996
B42: Más de 115TM a 200TM | C42: Por kilómetro recorrido | D42: =+'2. Tarifas'!H43 -> 0.6 | E42: =+'2. Tarifas'!R43 -> 0.3696699602 | F42: -0.3838833996
B43: Más de 200TM | C43: Por kilómetro recorrido | D43: =+'2. Tarifas'!H44 -> 0.89 | E43: =+'2. Tarifas'!R44 -> 0.5483437744 | F43: -0.3838833996

Sheet 0. FC-SNAR_SV
B1: 0. Flujo de caja: Servicio de SNAR (Nacional e Internacional) y Sobrevuelo | G1: Índice
B2: Montos expresados en miles de soles
B3: Año | D3: 2021 | E3: =+D3+1 -> 2022 | F3: =+E3+1 -> 2023 | G3: 2024
B5: Ingresos por prestación del servicio | E5: =('3. Ingresos'!C8+'3. Ingresos'!C21+'3. Ingresos'!C46)/1000 -> 135422.3739 | F5: =('3. Ingresos'!D8+'3. Ingresos'!D21+'3. Ingresos'!D46)/1000 -> 166673.6909 | G5: =('3. Ingresos'!E8+'3. Ingresos'!E21+'3. Ingresos'!E46)/1000 -> 177090.7966
B7: Ingresos por Usuarios no atribuibles | E7: =('7. No atribuibles'!F60+'7. No atribuibles'!F61+'7. No atribuibles'!F63)/1000 -> 250.7666292 | F7: =('7. No atribuibles'!G60+'7. No atribuibles'!G61+'7. No atribuibles'!G63)/1000 -> 308.6358513 | G7: =('7. No atribuibles'!H60+'7. No atribuibles'!H61+'7. No atribuibles'!H63)/1000 -> 327.925592
B9: Ingreso Bruto total | E9: =E5+SUM(E7:E7) -> 135673.1405 | F9: =F5+SUM(F7:F7) -> 166982.3268 | G9: =G5+SUM(G7:G7) -> 177418.7222
B11: Pago al MTC | C11: 0.1 | E11: =-'6. Contribuciones'!D34/1000 -> -7146.805106 | F11: =-'6. Contribuciones'!E34/1000 -> -8796.067822 | G11: =-'6. Contribuciones'!F34/1000 -> -9345.822061
B12: Aporte por Regulación | C12: 0.01 | E12: =-SUM('6. Contribuciones'!D39:D40,'6. Contribuciones'!D42)/1000 -> -1356.731405 | F12: =-SUM('6. Contribuciones'!E39:E40,'6. Contribuciones'!E42)/1000 -> -1669.823268 | G12: =-SUM('6. Contribuciones'!F39:F40,'6. Contribuciones'!F42)/1000 -> -1774.187222
B13: Contribuciones | E13: =SUM(E11:E12) -> -8503.536511 | F13: =SUM(F11:F12) -> -10465.89109 | G13: -11120.00928
B15: Ingresos Netos | E15: =E9+E13 -> 127169.604 | F15: 156516.4357 | G15: 166298.7129
B17: Suministros y Materiales | E17: =-('4. OPEX'!F56+'4. OPEX'!F66+'4. OPEX'!F86)/1000 -> -6563.963894 | F17: =-('4. OPEX'!G56+'4. OPEX'!G66+'4. OPEX'!G86)/1000 -> -6695.243172 | G17: =-('4. OPEX'!H56+'4. OPEX'!H66+'4. OPEX'!H86)/1000 -> -6829.148035
B18: Gastos de Personal | E18: =-('4. OPEX'!F57+'4. OPEX'!F67+'4. OPEX'!F87)/1000 -> -82824.11491 | F18: =-('4. OPEX'!G57+'4. OPEX'!G67+'4. OPEX'!G87)/1000 -> -98567.05484 | G18: =-('4. OPEX'!H57+'4. OPEX'!H67+'4. OPEX'!H87)/1000 -> -100311.4002
B19: Participación de los trabajadores | E19: =-E49 -> 0 | F19: =-F49 -> 0 | G19: 0
B20: Servicios prestados por terceros | E20: =-('4. OPEX'!F58+'4. OPEX'!F68+'4. OPEX'!F88)/1000 -> -23009.82768 | F20: =-('4. OPEX'!G58+'4. OPEX'!G68+'4. OPEX'!G88)/1000 -> -23470.02424 | G20: =-('4. OPEX'!H58+'4. OPEX'!H68+'4. OPEX'!H88)/1000 -> -23939.42472
B21: Mantenimiento | E21: =-('4. OPEX'!F59+'4. OPEX'!F69+'4. OPEX'!F89)/1000 -> -3953.392882 | F21: =-('4. OPEX'!G59+'4. OPEX'!G69+'4. OPEX'!G89)/1000 -> -4032.46074 | G21: =-('4. OPEX'!H59+'4. OPEX'!H69+'4. OPEX'!H89)/1000 -> -4113.109954
B22: Seguros y tributos | E22: =-('4. OPEX'!F60+'4. OPEX'!F70+'4. OPEX'!F90)/1000 -> -4957.906257 | F22: =-('4. OPEX'!G60+'4. OPEX'!G70+'4. OPEX'!G90)/1000 -> -5057.064382 | G22: =-('4. OPEX'!H60+'4. OPEX'!H70+'4. OPEX'!H90)/1000 -> -5158.20567
B23: Otros Costos | E23: =-('4. OPEX'!F61+'4. OPEX'!F71+'4. OPEX'!F91)/1000 -> -2082.922976 | F23: =-('4. OPEX'!G61+'4. OPEX'!G71+'4. OPEX'!G91)/1000 -> -2124.581435 | G23: =-('4. OPEX'!H61+'4. OPEX'!H71+'4. OPEX'!H91)/1000 -> -2167.073064
B24: Costos incrementales | E24: =-('4. OPEX'!F62+'4. OPEX'!F72+'4. OPEX'!F92)/1000 -> -1295.361461 | F24: =-('4. OPEX'!G62+'4. OPEX'!G72+'4. OPEX'!G92)/1000 -> -2904.386638 | G24: =-('4. OPEX'!H62+'4. OPEX'!H72+'4. OPEX'!H92)/1000 -> -3266.053558
B25: Costo de operación (Usuarios no atribuibles) | E25: =-('7. No atribuibles'!D78+'7. No atribuibles'!D79+'7. No atribuibles'!D81)/1000 -> -122.7625156 | F25: =-('7. No atribuibles'!E78+'7. No atribuibles'!E79+'7. No atribuibles'!E81)/1000 -> -140.3303936 | G25: =-('7. No atribuibles'!F78+'7. No atribuibles'!F79+'7. No atribuibles'!F81)/1000 -> -143.3112513
B26: Total Costos de Operación | E26: =SUM(E17:E25) -> -124810.2526 | F26: =SUM(F17:F25) -> -142991.1458 | G26: -145927.7264
B28: Pago de IR | E28: =-E50 -> 0 | F28: =-F50 -> 0 | G28: 0
B30: Flujo de Caja Operativo | E30: =E15+E26+E28 -> 2359.351416 | F30: =F15+F26+F28 -> 13525.28985 | G30: 20370.98648
B32: Valor inicial de los activos | D32: =-SUM('5. CAPEX'!D59,'5. CAPEX'!D76,'5. CAPEX'!D110)+'5.5. CKF no ejecutado'!C35/1000 -> -148007.7749 | E32: =-SUM('5. CAPEX'!E59,'5. CAPEX'!E76,'5. CAPEX'!E110) -> 0 | F32: =-SUM('5. CAPEX'!F59,'5. CAPEX'!F76,'5. CAPEX'!F110) -> 0 | G32: =-SUM('5. CAPEX'!G59,'5. CAPEX'!G76,'5. CAPEX'!G110) -> 0
B33: Inversiones | D33: =-SUM('5. CAPEX'!D60,'5. CAPEX'!D77,'5. CAPEX'!D111) -> -21772.424 | E33: =-SUM('5. CAPEX'!E60,'5. CAPEX'!E77,'5. CAPEX'!E111) -> -12800.78293 | F33: =-SUM('5. CAPEX'!F60,'5. CAPEX'!F77,'5. CAPEX'!F111) -> -27664.8841 | G33: =-SUM('5. CAPEX'!G60,'5. CAPEX'!G77,'5. CAPEX'!G111) -> -18105.44025
B34: Recuperación de la inversión | D34: =-SUM('5. CAPEX'!D61,'5. CAPEX'!D78,'5. CAPEX'!D112) -> 0 | E34: =-SUM('5. CAPEX'!E61,'5. CAPEX'!E78,'5. CAPEX'!E112) -> 0 | F34: =-SUM('5. CAPEX'!F61,'5. CAPEX'!F78,'5. CAPEX'!F112) -> 0 | G34: =SUM('5. CAPEX'!G61,'5. CAPEX'!G78,'5. CAPEX'!G112) -> 236579.967
B36: Flujo de Caja Económico | D36: =SUM(D32:D34) -> -169780.1989 | E36: =SUM(E30,E32:E34) -> -10441.43151 | F36: -14139.59425 | G36: =SUM(G30,G32:G34) -> 238845.5132
B38: WACC | C38: =+'9. WACC'!C18 -> 0.07605732638
B39: VAN | C39: =NPV(C38,E36:G36)+D36 -> 0
B41: EGyP | E41: 2022 | F41: =+E41+1 -> 2023 | G41: 2024
B42: Ingresos Brutos | E42: =E9 -> 135673.1405 | F42: 166982.3268 | G42: 177418.7222
B43: Contribuciones | E43: =E13 -> -8503.536511 | F43: =F13 -> -10465.89109 | G43: -11120.00928
B44: Costos de operación, neto de participaciones | E44: =SUM(E17:E18,E20:E25) -> -124810.2526 | F44: =SUM(F17:F18,F20:F25) -> -142991.1458 | G44: -145927.7264
B45: Depreciación y Amortización | E45: =-SUM('5. CAPEX'!E29,'5. CAPEX'!E30,'5. CAPEX'!E32,'5. CAPEX'!E38,'5. CAPEX'!E39,'5. CAPEX'!E41) -> -20637.93067 | F45: =-SUM('5. CAPEX'!F29,'5. CAPEX'!F30,'5. CAPEX'!F32,'5. CAPEX'!F38,'5. CAPEX'!F39,'5. CAPEX'!F41) -> -20501.784 | G45: =-SUM('5. CAPEX'!G29,'5. CAPEX'!G30,'5. CAPEX'!G32,'5. CAPEX'!G38,'5. CAPEX'!G39,'5. CAPEX'!G41) -> -22114.89983
B46: Utilidad Operativa | E46: =SUM(E42:E45) -> -18278.57925 | F46: =SUM(F42:F45) -> -6976.494152 | G46: -1743.913357
B48: Pago de IR y Participación de los trabajadores
B49: Participación de los trabajadores | E49: ='10. Var-Sup-Gen'!I15*IF(E46<0,0,E46) -> 0 | F49: ='10. Var-Sup-Gen'!J15*IF(F46<0,0,F46) -> 0 | G49: ='10. Var-Sup-Gen'!K15*IF(G46<0,0,G46) -> 0
B50: Impuesto a la renta | E50: ='10. Var-Sup-Gen'!I14*IF(E46-E49<0,0,E46-E49) -> 0 | F50: ='10. Var-Sup-Gen'!J14*IF(F46-F49<0,0,F46-F49) -> 0 | G50: ='10. Var-Sup-Gen'!K14*IF(G46-G49<0,0,G46-G49) -> 0

Sheet 0. FC-APRX
B1: 0. Flujo de caja: Servicio de Aproximación | G1: Índice
B2: Montos expresados en miles de soles
B3: Año | D3: 2021 | E3: =+D3+1 -> 2022 | F3: =+E3+1 -> 2023 | G3: 2024
B5: Ingresos por prestación del servicio | E5: =+'3. Ingresos'!C34/1000 -> 16614.50652 | F5: =+'3. Ingresos'!D34/1000 -> 20448.62341 | G5: =+'3. Ingresos'!E34/1000 -> 21726.66237
B7: Ingresos por Usuarios no atribuibles | E7: =+'7. No atribuibles'!F62/1000 -> 36.49741556 | F7: =+'7. No atribuibles'!G62/1000 -> 44.91989608 | G7: =+'7. No atribuibles'!H62/1000 -> 47.72738958
B8: Transferencias del AIJCh | E8: =+'8. Transferencias'!E31/1000 -> 56566.21673 | F8: =+'8. Transferencias'!F31/1000 -> 74365.55261 | G8: =+'8. Transferencias'!G31/1000 -> 81372.53099
B10: Ingreso Bruto total | E10: =E5+SUM(E7:E8) -> 73217.22066 | F10: =F5+SUM(F7:F8) -> 94859.09591 | G10: 103146.9208
B12: Aporte por Regulación | C12: 0.01 | E12: =-'6. Contribuciones'!D41/1000 -> -732.1722066 | F12: =-'6. Contribuciones'!E41/1000 -> -948.5909591 | G12: =-'6. Contribuciones'!F41/1000 -> -1031.469208
B13: Contribuciones | E13: =SUM(E12:E12) -> -732.1722066 | F13: =SUM(F12:F12) -> -948.5909591 | G13: =SUM(G12:G12) -> -1031.469208
B15: Ingresos Netos | E15: =E10+E13 -> 72485.04845 | F15: =F10+F13 -> 93910.50496 | G15: =G10+G13 -> 102115.4515
B17: Suministros y Materiales | E17: =-'4. OPEX'!F76/1000 -> -1235.822278 | F17: =-'4. OPEX'!G76/1000 -> -1260.538724 | G17: =-'4. OPEX'!H76/1000 -> -1285.749498
B18: Gastos de Personal | E18: =-'4. OPEX'!F77/1000 -> -35753.075 | F18: =-'4. OPEX'!G77/1000 -> -42548.90388 | G18: =-'4. OPEX'!H77/1000 -> -43301.89363
B19: Participación de los trabajadores | E19: =-E49 -> -229.0821852 | F19: -889.0138666 | G19: -1114.567413
B20: Servicios prestados por terceros | E20: =-'4. OPEX'!F78/1000 -> -11682.35075 | F20: =-'4. OPEX'!G78/1000 -> -11915.99777 | G20: =-'4. OPEX'!H78/1000 -> -12154.31772
B21: Mantenimiento | E21: =-'4. OPEX'!F79/1000 -> -2508.070837 | F21: =-'4. OPEX'!G79/1000 -> -2558.232254 | G21: =-'4. OPEX'!H79/1000 -> -2609.396899
B22: Seguros y tributos | E22: =-'4. OPEX'!F80/1000 -> -1831.328083 | F22: =-'4. OPEX'!G80/1000 -> -1867.954644 | G22: =-'4. OPEX'!H80/1000 -> -1905.313737
B23: Otros Costos | E23: =-'4. OPEX'!F81/1000 -> -954.8681038 | F23: =-'4. OPEX'!G81/1000 -> -973.9654659 | G23: =-'4. OPEX'!H81/1000 -> -993.4447752
B24: Costos incrementales | E24: =-'4. OPEX'!F82/1000 -> -1733.082941 | F24: =-'4. OPEX'!G82/1000 -> -2838.163227 | G24: =-'4. OPEX'!H82/1000 -> -3381.690325
B25: Costo de operación (Usuarios no atribuibles) | E25: =-'7. No atribuibles'!D80/1000 -> -84.79908792 | F25: =-'7. No atribuibles'!E80/1000 -> -97.38249006 | G25: =-'7. No atribuibles'!F80/1000 -> -99.92203642
B26: Total Costos de Operación | E26: =SUM(E17:E25) -> -56012.47927 | F26: =SUM(F17:F25) -> -64950.15232 | G26: -66846.29604
B28: Pago de IR | E28: =-E50 -> -1284.005648 | F28: =-F50 -> -4982.922722 | G28: -6247.150351
B30: Flujo de Caja Operativo | E30: =E15+E26+E28 -> 15188.56354 | F30: 23977.42992 | G30: 29022.00515
B32: Valor inicial de los activos | D32: =-'5. CAPEX'!D93+'5.5. CKF no ejecutado'!C67/1000 -> -122531.7129 | E32: =-'5. CAPEX'!E93 -> 0 | F32: =-'5. CAPEX'!F93 -> 0 | G32: =-'5. CAPEX'!G93 -> 0
B33: Inversiones | D33: =-'5. CAPEX'!D94 -> -15623.26536 | E33: =-'5. CAPEX'!E94 -> -7512.291334 | F33: =-'5. CAPEX'!F94 -> -24858.39395 | G33: =-'5. CAPEX'!G94 -> -13936.05615
B34: Recuperación de la inversión | D34: =-'5. CAPEX'!D95 -> 0 | E34: =-'5. CAPEX'!E95 -> 0 | F34: =-'5. CAPEX'!F95 -> 0 | G34: ='5. CAPEX'!G95 -> 149110.0874
B36: Flujo de Caja Económico | D36: =SUM(D32:D34) -> -138154.9782 | E36: =SUM(E30,E32:E34) -> 7676.272206 | F36: -880.9640348 | G36: 164196.0365
B38: WACC | C38: =+'9. WACC'!C18 -> 0.07605732638
B39: VAN | C39: =NPV(C38,E36:G36)+D36 -> 0
B41: EGyP | E41: 2022 | F41: =E41+1 -> 2023 | G41: 2024
B42: Ingresos Brutos | E42: =E10 -> 73217.22066 | F42: =F10 -> 94859.09591 | G42: =G10 -> 103146.9208
B43: Contribuciones | E43: =E13 -> -732.1722066 | F43: -948.5909591 | G43: -1031.469208
B44: Costos de operación, neto de participaciones | E44: =SUM(E17:E18,E20:E25) -> -55783.39708 | F44: =SUM(F17:F18,F20:F25) -> -64061.13845 | G44: -65731.72863
B45: Depreciación y Amortización | E45: =-SUM('5. CAPEX'!E31,'5. CAPEX'!E40) -> -12120.00767 | F45: =-SUM('5. CAPEX'!F31,'5. CAPEX'!F40) -> -12069.08917 | G45: =-SUM('5. CAPEX'!G31,'5. CAPEX'!G40) -> -14092.37465
B46: Utilidad Operativa | E46: =SUM(E42:E45) -> 4581.643704 | F46: =SUM(F42:F45) -> 17780.27733 | G46: 22291.34827
B48: Pago de IR y Participación de los trabajadores
B49: Participación de los trabajadores | E49: ='10. Var-Sup-Gen'!I15*IF(E46<0,0,E46) -> 229.0821852 | F49: ='10. Var-Sup-Gen'!J15*IF(F46<0,0,F46) -> 889.0138666 | G49: ='10. Var-Sup-Gen'!K15*IF(G46<0,0,G46) -> 1114.567413
B50: Impuesto a la renta | E50: ='10. Var-Sup-Gen'!I14*IF(E46-E49<0,0,E46-E49) -> 1284.005648 | F50: ='10. Var-Sup-Gen'!J14*IF(F46-F49<0,0,F46-F49) -> 4982.922722 | G50: ='10. Var-Sup-Gen'!K14*IF(G46-G49<0,0,G46-G49) -> 6247.150351

Sheet 1. Demanda
B1: 1. Proyecciones de demanda | J1: Índice
B3: Servicio / Peso Máximo de Despegue (PMD) | H3: Proyecciones
C4: 2017 | D4: =+C4+1 -> 2018 | E4: 2019 | F4: 2020 | G4: 2021 | H4: 2022 | I4: 2023 | J4: 2024
B6: A. SNAR Nacional
B7: En Kilómetros recorridos
B9: Usuarios atribuibles | C9: =C11+C20 -> 75128319.21 | D9: 80835290.16 | E9: 86859755.46 | F9: 32977805.86 | G9: 52195747.65 | H9: 69516534.75 | I9: 85558812 | J9: 90906237.76
B11: 1. Por rango de PMD: | C11: =SUM(C12:C17) -> 74998878.17 | D11: 80473216.4 | E11: 86849565.34 | F11: 32856368.28 | G11: 51958127.61 | H11: 69314182.04 | I11: 85309762.51 | J11: 90641622.67
B12: Hasta 5,7TM | C12: =+'1.1 SNAR Nac'!C8 -> 6939199.39 | D12: =+'1.1 SNAR Nac'!D8 -> 8508094.66 | E12: =+'1.1 SNAR Nac'!E8 -> 8030860.25 | F12: =+'1.1 SNAR Nac'!F8 -> 3764264.61 | G12: =+'1.1 SNAR Nac'!G8 -> 5206134.57 | H12: ='1.1 SNAR Nac'!C61 -> 7006745.874 | I12: ='1.1 SNAR Nac'!D61 -> 8623687.229 | J12: ='1.1 SNAR Nac'!E61 -> 9162667.681
B13: Más de 5,7TM a 10TM | C13: =+'1.1 SNAR Nac'!C9 -> 1245673.92 | D13: =+'1.1 SNAR Nac'!D9 -> 1831020.14 | E13: =+'1.1 SNAR Nac'!E9 -> 2926524.77 | F13: =+'1.1 SNAR Nac'!F9 -> 1969449.46 | G13: =+'1.1 SNAR Nac'!G9 -> 2200070.67 | H13: ='1.1 SNAR Nac'!C62 -> 2430231.68 | I13: ='1.1 SNAR Nac'!D62 -> 2991054.376 | J13: ='1.1 SNAR Nac'!E62 -> 3177995.274
B14: Más de 10TM a 35TM | C14: =+'1.1 SNAR Nac'!C10 -> 3715496.84 | D14: =+'1.1 SNAR Nac'!D10 -> 3337703.41 | E14: =+'1.1 SNAR Nac'!E10 -> 3403595.85 | F14: =+'1.1 SNAR Nac'!F10 -> 960343.17 | G14: =+'1.1 SNAR Nac'!G10 -> 2035358.31 | H14: ='1.1 SNAR Nac'!C63 -> 2753495.532 | I14: ='1.1 SNAR Nac'!D63 -> 3388917.578 | J14: ='1.1 SNAR Nac'!E63 -> 3600724.926
B15: Más de 35TM a 70TM | C15: =+'1.1 SNAR Nac'!C11 -> 26323247.19 | D15: =+'1.1 SNAR Nac'!D11 -> 25384535.14 | E15: =+'1.1 SNAR Nac'!E11 -> 21563981.99 | F15: =+'1.1 SNAR Nac'!F11 -> 5441464.51 | G15: =+'1.1 SNAR Nac'!G11 -> 7394673.77 | H15: ='1.1 SNAR Nac'!C64 -> 16952898.65 | I15: ='1.1 SNAR Nac'!D64 -> 20865106.03 | J15: ='1.1 SNAR Nac'!E64 -> 22169175.16
B16: Más de 70TM a 105TM | C16: =+'1.1 SNAR Nac'!C12 -> 36774553.35 | D16: =+'1.1 SNAR Nac'!D12 -> 41410605.13 | E16: =+'1.1 SNAR Nac'!E12 -> 50920249.78 | F16: =+'1.1 SNAR Nac'!F12 -> 20718475.22 | G16: =+'1.1 SNAR Nac'!G12 -> 35119196.68 | H16: ='1.1 SNAR Nac'!C65 -> 40168049.08 | I16: ='1.1 SNAR Nac'!D65 -> 49437598.86 | J16: ='1.1 SNAR Nac'!E65 -> 52527448.79
B17: Más de 105TM | C17: =+'1.1 SNAR Nac'!C13 -> 707.48 | D17: =+'1.1 SNAR Nac'!D13 -> 1257.92 | E17: =+'1.1 SNAR Nac'!E13 -> 4352.7 | F17: =+'1.1 SNAR Nac'!F13 -> 2371.31 | G17: =+'1.1 SNAR Nac'!G13 -> 2693.61 | H17: ='1.1 SNAR Nac'!C66 -> 2761.230929 | I17: ='1.1 SNAR Nac'!D66 -> 3398.438067 | J17: ='1.1 SNAR Nac'!E66 -> 3610.840446
B19: 2. Cargo mínimo:
B20: Kilómetros recorridos | C20: =+'1.1 SNAR Nac'!C14 -> 129441.04 | D20: =+'1.1 SNAR Nac'!D14 -> 362073.76 | E20: =+'1.1 SNAR Nac'!E14 -> 10190.12 | F20: =+'1.1 SNAR Nac'!F14 -> 121437.58 | G20: =+'1.1 SNAR Nac'!G14 -> 237620.04 | H20: ='1.1 SNAR Nac'!C67 -> 202352.7114 | I20: ='1.1 SNAR Nac'!D67 -> 249049.4909 | J20: ='1.1 SNAR Nac'!E67 -> 264615.0841
B21: N° Operaciones | C21: =+'1.1 SNAR Nac'!C39 -> 1177 | D21: =+'1.1 SNAR Nac'!D39 -> 3729 | E21: =+'1.1 SNAR Nac'!E39 -> 164 | F21: =+'1.1 SNAR Nac'!F39 -> 2030 | G21: =+'1.1 SNAR Nac'!G39 -> 3825 | H21: =IFERROR(G21*(H20/G20),0) -> 3257.297326 | I21: =IFERROR(H21*(I20/H20),0) -> 4008.981325 | J21: 4259.542658
B23: B. SNAR Internacional
B24: En Kilómetros recorridos
B26: Usuarios atribuibles (KM) | C26: =C28+C37 -> 76765499.64 | D26: 80424520.97 | E26: 80707610.26 | F26: 24869238.11 | G26: 29618643.68 | H26: 56937868.35 | I26: 70077376.43 | J26: 74457212.45
B28: 1. Por rango de PMD: | C28: =SUM(C29:C34) -> 76737612.83 | D28: 80357152.08 | E28: 80617724.71 | F28: 24791413.34 | G28: 29547601.2 | H28: 56848560.29 | I28: 69967458.81 | J28: 74340424.99
B29: Hasta 5,7TM | C29: =+'1.2 SNAR Int'!C8 -> 485407.28 | D29: =+'1.2 SNAR Int'!D8 -> 378017.84 | E29: =+'1.2 SNAR Int'!E8 -> 370572.65 | F29: =+'1.2 SNAR Int'!F8 -> 230598.49 | G29: =+'1.2 SNAR Int'!G8 -> 309126.13 | H29: ='1.2 SNAR Int'!C61 -> 402259.0884 | I29: ='1.2 SNAR Int'!D61 -> 495088.1088 | J29: ='1.2 SNAR Int'!E61 -> 526031.1156
B30: Más de 5,7TM a 10TM | C30: =+'1.2 SNAR Int'!C9 -> 615817.42 | D30: =+'1.2 SNAR Int'!D9 -> 618794.82 | E30: =+'1.2 SNAR Int'!E9 -> 689532.75 | F30: =+'1.2 SNAR Int'!F9 -> 340332.44 | G30: =+'1.2 SNAR Int'!G9 -> 691237.92 | H30: ='1.2 SNAR Int'!C62 -> 697859.7263 | I30: ='1.2 SNAR Int'!D62 -> 858904.2786 | J30: ='1.2 SNAR Int'!E62 -> 912585.796
B31: Más de 10TM a 35TM | C31: =+'1.2 SNAR Int'!C10 -> 1116701.69 | D31: =+'1.2 SNAR Int'!D10 -> 1153058.11 | E31: =+'1.2 SNAR Int'!E10 -> 1203435.4 | F31: =+'1.2 SNAR Int'!F10 -> 371663.46 | G31: =+'1.2 SNAR Int'!G10 -> 526865.73 | H31: ='1.2 SNAR Int'!C63 -> 871469.8327 | I31: ='1.2 SNAR Int'!D63 -> 1072578.256 | J31: ='1.2 SNAR Int'!E63 -> 1139614.397
B32: Más de 35TM a 70TM | C32: =+'1.2 SNAR Int'!C11 -> 9122469.82 | D32: =+'1.2 SNAR Int'!D11 -> 6029414.03 | E32: =+'1.2 SNAR Int'!E11 -> 5793638.12 | F32: =+'1.2 SNAR Int'!F11 -> 1885698.23 | G32: =+'1.2 SNAR Int'!G11 -> 2912792.67 | H32: ='1.2 SNAR Int'!C64 -> 5007784.11 | I32: ='1.2 SNAR Int'!D64 -> 6163426.597 | J32: ='1.2 SNAR Int'!E64 -> 6548640.759
B33: Más de 70TM a 105TM | C33: =+'1.2 SNAR Int'!C12 -> 42803624.45 | D33: =+'1.2 SNAR Int'!D12 -> 49903206.61 | E33: =+'1.2 SNAR Int'!E12 -> 50457353.21 | F33: =+'1.2 SNAR Int'!F12 -> 12254787.1 | G33: =+'1.2 SNAR Int'!G12 -> 13724697.82 | H33: ='1.2 SNAR Int'!C65 -> 31423133.43 | I33: ='1.2 SNAR Int'!D65 -> 38674625.76 | J33: ='1.2 SNAR Int'!E65 -> 41091789.87
B34: Más de 105TM | C34: =+'1.2 SNAR Int'!C13 -> 22593592.17 | D34: =+'1.2 SNAR Int'!D13 -> 22274660.67 | E34: =+'1.2 SNAR Int'!E13 -> 22103192.58 | F34: =+'1.2 SNAR Int'!F13 -> 9708333.62 | G34: =+'1.2 SNAR Int'!G13 -> 11382880.93 | H34: ='1.2 SNAR Int'!C66 -> 18446054.1 | I34: ='1.2 SNAR Int'!D66 -> 22702835.81 | J34: ='1.2 SNAR Int'!E66 -> 24121763.05
B36: 2. Cargo mínimo:
B37: Kilómetros recorridos | C37: =+'1.2 SNAR Int'!C14 -> 27886.81 | D37: =+'1.2 SNAR Int'!D14 -> 67368.89 | E37: =+'1.2 SNAR Int'!E14 -> 89885.55 | F37: =+'1.2 SNAR Int'!F14 -> 77824.77 | G37: =+'1.2 SNAR Int'!G14 -> 71042.48 | H37: ='1.2 SNAR Int'!C67 -> 89308.05996 | I37: ='1.2 SNAR Int'!D67 -> 109917.6123 | J37: ='1.2 SNAR Int'!E67 -> 116787.463
B38: N° Operaciones | C38: =+'1.2 SNAR Int'!C39 -> 474 | D38: =+'1.2 SNAR Int'!D39 -> 956 | E38: =+'1.2 SNAR Int'!E39 -> 1348 | F38: =+'1.2 SNAR Int'!F39 -> 1051 | G38: =+'1.2 SNAR Int'!G39 -> 1191 | H38: =IFERROR(G38*(H37/G37),0) -> 1497.21546 | I38: =IFERROR(H38*(I37/H37),0) -> 1842.726721 | J38: =IFERROR(I38*(J37/I37),0) -> 1957.897141
B40: C. Aproximación
B41: En Toneladas (PMD)
B43: Usuarios atribuibles (TM): | C43: =C45+C53 -> 3651843.52 | D43: 3965713.13 | E43: 4220184.13 | F43: 1538493.82 | G43: 2464258.42 | H43: 3140065.469 | I43: 3864695.962 | J43: 4106239.459
B45: 1. Por rango de PMD: | C45: =SUM(C46:C50) -> 3647244.13 | D45: 3959311.65 | E45: 4212495.73 | F45: 1533036.51 | G45: 2457841.78 | H45: 3133253.691 | I45: 3856312.236 | J45: 4097331.75
B46: Hasta 10TM | C46: =+'1.3 Aprox'!C8 -> 66306.96 | D46: =+'1.3 Aprox'!D8 -> 65464.57 | E46: =+'1.3 Aprox'!E8 -> 64816.56 | F46: =+'1.3 Aprox'!F8 -> 48547.29 | G46: =+'1.3 Aprox'!G8 -> 69705.41 | H46: ='1.3 Aprox'!C57 -> 68996.72659 | I46: ='1.3 Aprox'!D57 -> 84919.04811 | J46: ='1.3 Aprox'!E57 -> 90226.48861
B47: Más de 10TM a 35TM | C47: =+'1.3 Aprox'!C9 -> 81510.94 | D47: =+'1.3 Aprox'!D9 -> 74015.19 | E47: =+'1.3 Aprox'!E9 -> 49962.25 | F47: =+'1.3 Aprox'!F9 -> 14328.59 | G47: =+'1.3 Aprox'!G9 -> 37157.66 | H47: ='1.3 Aprox'!C58 -> 48492.14031 | I47: ='1.3 Aprox'!D58 -> 59682.63423 | J47: ='1.3 Aprox'!E58 -> 63412.79887
B48: Más de 35TM a 70TM | C48: =+'1.3 Aprox'!C10 -> 1394281.98 | D48: =+'1.3 Aprox'!D10 -> 1396165.82 | E48: =+'1.3 Aprox'!E10 -> 1198967.94 | F48: =+'1.3 Aprox'!F10 -> 334333.06 | G48: =+'1.3 Aprox'!G10 -> 440702.69 | H48: ='1.3 Aprox'!C59 -> 888082.3877 | I48: ='1.3 Aprox'!D59 -> 1093024.477 | J48: ='1.3 Aprox'!E59 -> 1161338.507
B49: Más de 70TM a 105TM | C49: =+'1.3 Aprox'!C11 -> 2103748.95 | D49: =+'1.3 Aprox'!D11 -> 2420836.48 | E49: =+'1.3 Aprox'!E11 -> 2897645.34 | F49: =+'1.3 Aprox'!F11 -> 1135596.67 | G49: =+'1.3 Aprox'!G11 -> 1909436.6 | H49: ='1.3 Aprox'!C60 -> 2126521.976 | I49: ='1.3 Aprox'!D60 -> 2617257.817 | J49: ='1.3 Aprox'!E60 -> 2780836.43
B50: Más de 105TM | C50: =+'1.3 Aprox'!C12 -> 1395.3 | D50: =+'1.3 Aprox'!D12 -> 2829.59 | E50: =+'1.3 Aprox'!E12 -> 1103.64 | F50: =+'1.3 Aprox'!F12 -> 230.9 | G50: =+'1.3 Aprox'!G12 -> 839.42 | H50: ='1.3 Aprox'!C61 -> 1160.460815 | I50: ='1.3 Aprox'!D61 -> 1428.259464 | J50: ='1.3 Aprox'!E61 -> 1517.525681
B52: 2. Cargo mínimo:
B53: Toneladas (PMD) | C53: =+'1.3 Aprox'!C13 -> 4599.39 | D53: =+'1.3 Aprox'!D13 -> 6401.48 | E53: =+'1.3 Aprox'!E13 -> 7688.4 | F53: =+'1.3 Aprox'!F13 -> 5457.31 | G53: =+'1.3 Aprox'!G13 -> 6416.64 | H53: ='1.3 Aprox'!C62 -> 6811.777503 | I53: ='1.3 Aprox'!D62 -> 8383.726157 | J53: ='1.3 Aprox'!E62 -> 8907.709042
B54: N° Operaciones | C54: =+'1.3 Aprox'!C36 -> 2891 | D54: =+'1.3 Aprox'!D36 -> 4034 | E54: =+'1.3 Aprox'!E36 -> 4778 | F54: =+'1.3 Aprox'!F36 -> 3423 | G54: =+'1.3 Aprox'!G36 -> 4058 | H54: =IFERROR(G54*(H53/G53),0) -> 4307.892153 | I54: =IFERROR(H54*(I53/H53),0) -> 5302.021112 | J54: =IFERROR(I54*(J53/I53),0) -> 5633.397431
B56: D. Sobrevuelo
B57: En Kilómetros recorridos
B59: Usuarios atribuibles (KM): | C59: =C61 -> 44112792.8 | D59: 45840674.03 | E59: 45342728.73 | F59: 23258811.94 | G59: 28747071.59 | H59: 40944957.25 | I59: 50393793.54 | J59: 53543405.64
B61: 1. Por rango de PMD: | C61: =SUM(C62:C65) -> 44112792.8 | D61: 45840674.03 | E61: 45342728.73 | F61: 23258811.94 | G61: 28747071.59 | H61: 40944957.25 | I61: 50393793.54 | J61: 53543405.64
B62: Hasta 55TM | C62: =+'1.4 Sobrev'!C8 -> 1760455.98 | D62: =+'1.4 Sobrev'!D8 -> 1911435.67 | E62: =+'1.4 Sobrev'!E8 -> 1720224.35 | F62: =+'1.4 Sobrev'!F8 -> 1198678.62 | G62: =+'1.4 Sobrev'!G8 -> 1877258.96 | H62: ='1.4 Sobrev'!C49 -> 1935737.118 | I62: ='1.4 Sobrev'!D49 -> 2382445.683 | J62: ='1.4 Sobrev'!E49 -> 2531348.539
B63: Más de 55TM a 115TM | C63: =+'1.4 Sobrev'!C9 -> 15802264.12 | D63: =+'1.4 Sobrev'!D9 -> 16906620.63 | E63: =+'1.4 Sobrev'!E9 -> 15901396.1 | F63: =+'1.4 Sobrev'!F9 -> 5252411.84 | G63: =+'1.4 Sobrev'!G9 -> 7073044.82 | H63: ='1.4 Sobrev'!C50 -> 12689650.83 | I63: ='1.4 Sobrev'!D50 -> 15618031.8 | J63: ='1.4 Sobrev'!E50 -> 16594158.78
B64: Más de 115TM a 200TM | C64: =+'1.4 Sobrev'!C10 -> 3938980.86 | D64: =+'1.4 Sobrev'!D10 -> 4527278.58 | E64: =+'1.4 Sobrev'!E10 -> 4167078.07 | F64: =+'1.4 Sobrev'!F10 -> 2400663.64 | G64: =+'1.4 Sobrev'!G10 -> 3334285.46 | H64: ='1.4 Sobrev'!C51 -> 4087605.057 | I64: ='1.4 Sobrev'!D51 -> 5030898.531 | J64: ='1.4 Sobrev'!E51 -> 5345329.69
B65: Más de 200TM | C65: =+'1.4 Sobrev'!C11 -> 22611091.84 | D65: =+'1.4 Sobrev'!D11 -> 22495339.15 | E65: =+'1.4 Sobrev'!E11 -> 23554030.21 | F65: =+'1.4 Sobrev'!F11 -> 14407057.84 | G65: =+'1.4 Sobrev'!G11 -> 16462482.35 | H65: ='1.4 Sobrev'!C52 -> 22231964.24 | I65: ='1.4 Sobrev'!D52 -> 27362417.53 | J65: ='1.4 Sobrev'!E52 -> 29072568.62

Sheet 1.1 SNAR Nac
B1: 1.1 SNAR NACIONAL - Información de demanda | H1: Índice
B3: 1. Información histórica: Expresada en kilómetros recorridos facturados (Fuente: CORPAC S.A.)
B5: 1.1 Por tipo de usuario / Rango de PMD:
C6: 2017 | D6: 2018 | E6: 2019 | F6: 2020 | G6: 2021
B7: A. Usuarios atribuibles: | C7: =SUM(C8:C14) -> 75128319.21 | D7: 80835290.16 | E7: 86859755.46 | F7: 32977805.86 | G7: 52195747.65
B8: (>0-5,7) | C8: 6939199.39 | D8: 8508094.66 | E8: 8030860.25 | F8: 3764264.61 | G8: 5206134.57
B9: (>5,7-10) | C9: 1245673.92 | D9: 1831020.14 | E9: 2926524.77 | F9: 1969449.46 | G9: 2200070.67
B10: (>10-35) | C10: 3715496.84 | D10: 3337703.41 | E10: 3403595.85 | F10: 960343.17 | G10: 2035358.31
B11: (>35-70) | C11: 26323247.19 | D11: 25384535.14 | E11: 21563981.99 | F11: 5441464.51 | G11: 7394673.77
B12: (>70-105) | C12: 36774553.35 | D12: 41410605.13 | E12: 50920249.78 | F12: 20718475.22 | G12: 35119196.68
B13: (>105) | C13: 707.48 | D13: 1257.92 | E13: 4352.7 | F13: 2371.31 | G13: 2693.61
B14: Cargo mínimo | C14: 129441.04 | D14: 362073.76 | E14: 10190.12 | F14: 121437.58 | G14: 237620.04
B15: B. Otros usuarios: | C15: =SUM(C16) -> 4637591.19 | D15: 3887712.14 | E15: 787330.93 | F15: 5722267 | G15: 4266231.23
B16: Tarifa de USD 1 | C16: 4637591.19 | D16: 3887712.14 | E16: 787330.93 | F16: 5722267 | G16: 4266231.23
B17: Total | C17: =C7+C15 -> 79765910.4 | D17: 84723002.3 | E17: 87647086.39 | F17: 38700072.86 | G17: 56461978.88
B19: * Estructura de distribución * | C19: 2017 | D19: 2018 | E19: 2019 | F19: 2020 | G19: 2021 | H19: Prom 2017-21
B20: A. Atribuibles: | C20: =C7/C$17 -> 0.9418599855 | D20: 0.9541126727 | E20: 0.9910170325 | F20: 0.852138082 | G20: 0.9244406357 | H20: =AVERAGE(C20:G20) -> 0.9327136817
B21: (>0-5,7) | C21: =C8/C$7 -> 0.09236462978 | D21: 0.1052522313 | E21: 0.09245778102 | F21: 0.114145393 | G21: 0.09974250402 | H21: =AVERAGE(C21:G21) -> 0.1007925078
B22: (>5,7-10) | C22: 0.01658061744 | D22: 0.0226512472 | E22: 0.03369252831 | F22: 0.05972045164 | G22: 0.04215038138 | H22: 0.0349590452
B23: (>10-35) | C23: 0.04945534359 | D23: 0.04129017665 | E23: 0.03918495777 | F23: 0.02912089343 | G23: 0.03899471512 | H23: 0.03960921731
B24: (>35-70) | C24: 0.3503771609 | D24: 0.3140278842 | E24: 0.2482620619 | F24: 0.1650038372 | G24: 0.141671958 | H24: 0.2438685805
B25: (>70-105) | C25: 0.4894898986 | D25: 0.5122837445 | E25: 0.5862352422 | F25: 0.6282551152 | G25: 0.6728363566 | H25: 0.5778200714
B26: (>105) | C26: 9.416954984e-06 | D26: 1.556152019e-05 | E26: 5.011181504e-05 | F26: 7.190623931e-05 | G26: 5.160592809e-05 | H26: 3.972049152e-05
B27: Cargo mínimo | C27: 0.001722932728 | D27: 0.004479154578 | E27: 0.0001173169317 | F27: 0.003682403266 | G27: 0.004552478903 | H27: 0.002910857281
B28: B. Otros usuarios: | C28: =C15/C$17 -> 0.05814001453 | D28: 0.04588732734 | E28: 0.008982967517 | F28: 0.147861918 | G28: 0.07555936428 | H28: 0.06728631834
B30: 1.2 Por tipo de cobro / Rango de PMD: Expresado en número de operaciones (Fuente: CORPAC S.A.)
C31: 2017 | D31: 2018 | E31: 2019 | F31: 2020 | G31: 2021
B32: A. Usuarios atribuibles: | C32: =SUM(C33:C39) -> 149952 | D32: 155992 | E32: 172462 | F32: 63562 | G32: 99723
B33: (>0-5,7) | C33: 40323 | D33: 37755 | E33: 45551 | F33: 16499 | G33: 24035
B34: (>5,7-10) | C34: 3720 | D34: 5422 | E34: 8268 | F34: 5345 | G34: 6463
B35: (>10-35) | C35: 9333 | D35: 7945 | E35: 10474 | F35: 2097 | G35: 4609
B36: (>35-70) | C36: 42855 | D36: 41425 | E36: 34592 | F36: 8846 | G36: 11814
B37: (>70-105) | C37: 52543 | D37: 59714 | E37: 73409 | F37: 28741 | G37: 48974
B38: (>105) | C38: 1 | D38: 2 | E38: 4 | F38: 4 | G38: 3
B39: Cargo mínimo | C39: 1177 | D39: 3729 | E39: 164 | F39: 2030 | G39: 3825
B40: B. Otros usuarios: | C40: =SUM(C41) -> 15839 | D40: 16074 | E40: 3885 | F40: 21676 | G40: 18295
B41: Tarifa de USD 1 | C41: 15839 | D41: 16074 | E41: 3885 | F41: 21676 | G41: 18295
B42: Total | C42: =C32+C40 -> 165791 | D42: 172066 | E42: 176347 | F42: 85238 | G42: 118018
B44: * Estructura de distribución * | C44: 2017 | D44: 2018 | E44: 2019 | F44: 2020 | G44: 2021
B45: A. Atribuibles: | C45: =C32/C$42 -> 0.9044640541 | D45: 0.9065823579 | E45: 0.9779695714 | F45: 0.7457002745 | G45: 0.844981274
B46: (>0-5,7) | C46: =C33/C$32 -> 0.2689060499 | D46: 0.2420316426 | E46: 0.2641219515 | F46: 0.25957333 | G46: 0.2410176188
B47: (>5,7-10) | C47: =C34/C$32 -> 0.02480793854 | D47: 0.03475819273 | E47: 0.0479409957 | F47: 0.08409112363 | G47: 0.06480952238
B48: (>10-35) | C48: 0.06223991677 | D48: 0.05093209908 | E48: 0.06073221927 | F48: 0.03299140996 | G48: 0.04621802393
B49: (>35-70) | C49: 0.2857914533 | D49: 0.2655584902 | E49: 0.2005775185 | F49: 0.1391712029 | G49: 0.1184681568
B50: (>70-105) | C50: 0.3503987943 | D50: 0.3828016821 | E50: 0.4256531874 | F50: 0.4521726818 | G50: 0.491100348
B51: (>105) | C51: 6.668800683e-06 | D51: 1.282117032e-05 | E51: 2.319351509e-05 | F51: 6.293068185e-05 | G51: 3.008333083e-05
B52: Cargo mínimo | C52: =C39/C$32 -> 0.007849178404 | D52: 0.02390507205 | E52: 0.0009509341188 | F52: 0.03193732104 | G52: 0.0383562468
B53: B. Otros usuarios: | C53: =C40/C$42 -> 0.09553594586 | D53: 0.09341764207 | E53: 0.02203042864 | F53: 0.2542997255 | G53: 0.155018726
B55: 2. Proyección de demanda para SNAR Nacional
B56: (Expresada en kilómetros recorridos)
B58: 2.1 Por tipo de usuario / Rango de PMD:
C60: 2022 | D60: 2023 | E60: 2024
B61: Hasta 5,7TM | C61: =+C$68*$H21 -> 7006745.874 | D61: 8623687.229 | E61: 9162667.681
B62: Más de 5,7TM a 10TM | C62: 2430231.68 | D62: 2991054.376 | E62: 3177995.274
B63: Más de 10TM a 35TM | C63: 2753495.532 | D63: 3388917.578 | E63: 3600724.926
B64: Más de 35TM a 70TM | C64: 16952898.65 | D64: 20865106.03 | E64: 22169175.16
B65: Más de 70TM a 105TM | C65: 40168049.08 | D65: 49437598.86 | E65: 52527448.79
B66: Más de 105TM | C66: 2761.230929 | D66: 3398.438067 | E66: 3610.840446
B67: Cargo mínimo | C67: 202352.7114 | D67: 249049.4909 | E67: 264615.0841
B68: Total Usuarios atribuibles | C68: =+G7*(1+'1.5 Tasas'!F38) -> 69516534.75 | D68: =C68*(1+'1.5 Tasas'!G38) -> 85558812 | E68: =D68*(1+'1.5 Tasas'!H38) -> 90906237.76

Sheet 1.2 SNAR Int
B1: 1.2 SNAR INTERNACIONAL - Información de demanda | H1: Índice
B3: 1. Información histórica: Expresada en kilómetros recorridos facturados (Fuente: CORPAC S.A.)
B5: 1.1 Por tipo de usuario / Rango de PMD:
C6: 2017 | D6: 2018 | E6: 2019 | F6: 2020 | G6: 2021
B7: A. Usuarios atribuibles: | C7: =SUM(C8:C14) -> 76765499.64 | D7: 80424520.97 | E7: 80707610.26 | F7: 24869238.11 | G7: 29618643.68
B8: (>0-5,7) | C8: 485407.28 | D8: 378017.84 | E8: 370572.65 | F8: 230598.49 | G8: 309126.13
B9: (>5,7-10) | C9: 615817.42 | D9: 618794.82 | E9: 689532.75 | F9: 340332.44 | G9: 691237.92
B10: (>10-35) | C10: 1116701.69 | D10: 1153058.11 | E10: 1203435.4 | F10: 371663.46 | G10: 526865.73
B11: (>35-70) | C11: 9122469.82 | D11: 6029414.03 | E11: 5793638.12 | F11: 1885698.23 | G11: 2912792.67
B12: (>70-105) | C12: 42803624.45 | D12: 49903206.61 | E12: 50457353.21 | F12: 12254787.1 | G12: 13724697.82
B13: (>105) | C13: 22593592.17 | D13: 22274660.67 | E13: 22103192.58 | F13: 9708333.62 | G13: 11382880.93
B14: Cargo mínimo | C14: 27886.81 | D14: 67368.89 | E14: 89885.55 | F14: 77824.77 | G14: 71042.48
B15: B. Otros usuarios: | C15: =SUM(C16) -> 146303.54 | D15: 131091.61 | E15: 107600.64 | F15: 788671.45 | G15: 29103.2
B16: Tarifa de USD 1 | C16: 146303.54 | D16: 131091.61 | E16: 107600.64 | F16: 788671.45 | G16: 29103.2
B17: Total | C17: =C7+C15 -> 76911803.18 | D17: 80555612.58 | E17: 80815210.9 | F17: 25657909.56 | G17: 29647746.88
B19: Estructura de distribución | C19: 2017 | D19: 2018 | E19: 2019 | F19: 2020 | G19: 2021 | H19: Prom 2017-21
B20: A. Atribuibles: | C20: =C7/C$17 -> 0.9980977752 | D20: 0.998372657 | E20: 0.9986685596 | F20: 0.9692620536 | G20: 0.9990183672 | H20: =AVERAGE(C20:G20) -> 0.9926838825
B21: (>0-5,7) | C21: =C8/C$7 -> 0.006323247843 | D21: 0.004700280902 | E21: 0.004591545318 | F21: 0.009272438865 | G21: 0.01043687663 | H21: =AVERAGE(C21:G21) -> 0.007064877911
B22: (>5,7-10) | C22: 0.008022059687 | D22: 0.007694106381 | E22: 0.008543590224 | F22: 0.01368487601 | G22: 0.02333793294 | H22: 0.01225651305
B23: (>10-35) | C23: 0.01454692141 | D23: 0.01433714614 | E23: 0.01491105233 | F23: 0.01494470632 | G23: 0.01778831386 | H23: 0.01530562801
B24: (>35-70) | C24: 0.1188355428 | D24: 0.07496984697 | E24: 0.07178552433 | F24: 0.07582452754 | G24: 0.0983432159 | H24: 0.08795173151
B25: (>70-105) | C25: 0.5575893422 | D25: 0.6204974056 | E25: 0.6251870554 | F25: 0.4927688997 | G25: 0.4633803616 | H25: 0.5518846129
B26: (>105) | C26: 0.2943196133 | D26: 0.2769635479 | E26: 0.273867514 | F26: 0.3903751927 | G26: 0.384314726 | H26: 0.3239681188
B27: Cargo mínimo | C27: 0.0003632726958 | D27: 0.00083766604 | E27: 0.001113718393 | F27: 0.003129358835 | G27: 0.002398573033 | H27: 0.001568517799
B28: B. Otros usuarios: | C28: =C15/C$17 -> 0.001902224808 | D28: 0.001627342972 | E28: 0.001331440441 | F28: 0.03073794645 | G28: 0.0009816327736 | H28: 0.007316117488
B30: 1.2 Por tipo de cobro / Rango de PMD: Expresado en número de operaciones (Fuente: CORPAC S.A.)
C31: 2017 | D31: 2018 | E31: 2019 | F31: 2020 | G31: 2021
B32: A. Usuarios atribuibles: | C32: =SUM(C33:C39) -> 83565 | D32: 87406 | E32: 89512 | F32: 28555 | G32: 33232
B33: (>0-5,7) | C33: 2106 | D33: 1340 | E33: 1539 | F33: 1099 | G33: 1232
B34: (>5,7-10) | C34: 1021 | D34: 924 | E34: 1067 | F34: 500 | G34: 1019
B35: (>10-35) | C35: 1369 | D35: 1429 | E35: 1848 | F35: 419 | G35: 598
B36: (>35-70) | C36: 9877 | D36: 6687 | E36: 6248 | F36: 2161 | G36: 2966
B37: (>70-105) | C37: 44350 | D37: 52219 | E37: 53386 | F37: 12995 | G37: 14330
B38: (>105) | C38: 24368 | D38: 23851 | E38: 24076 | F38: 10330 | G38: 11896
B39: Cargo mínimo | C39: 474 | D39: 956 | E39: 1348 | F39: 1051 | G39: 1191
B40: B. Otros usuarios: | C40: =SUM(C41) -> 200 | D40: 157 | E40: 130 | F40: 885 | G40: 46
B41: Tarifa de USD 1 | C41: 200 | D41: 157 | E41: 130 | F41: 885 | G41: 46
B42: Total | C42: =C32+C40 -> 83765 | D42: 87563 | E42: 89642 | F42: 29440 | G42: 33278
B44: Estructura de distribución | C44: 2017 | D44: 2018 | E44: 2019 | F44: 2020 | G44: 2021
B45: A. Atribuibles: | C45: =C32/C$42 -> 0.9976123679 | D45: 0.9982070052 | E45: 0.9985497869 | F45: 0.9699388587 | G45: 0.9986177054
B46: (>0-5,7) | C46: =C33/C$32 -> 0.02520193861 | D46: 0.01533075533 | E46: 0.01719322549 | F46: 0.0384871301 | G46: 0.03707270101
B47: (>5,7-10) | C47: =C34/C$32 -> 0.01221803387 | D47: 0.01057135666 | E47: 0.01192018947 | F47: 0.01751006829 | G47: 0.03066321618
B48: (>10-35) | C48: 0.01638245677 | D48: 0.01634899206 | E48: 0.02064527661 | F48: 0.01467343723 | G48: 0.0179947039
B49: (>35-70) | C49: 0.1181954167 | D49: 0.07650504542 | E49: 0.06980069711 | F49: 0.07567851515 | G49: 0.08925132403
B50: (>70-105) | C50: 0.5307245857 | D50: 0.5974303824 | E50: 0.5964116543 | F50: 0.4550866748 | G50: 0.4312108811
B51: (>105) | C51: 0.2916053372 | D51: 0.2728760039 | E51: 0.2689695236 | F51: 0.3617580109 | G51: 0.3579682234
B52: Cargo mínimo | C52: 0.005672231197 | D52: 0.01093746425 | E52: 0.01505943337 | F52: 0.03680616354 | G52: 0.03583895041
B53: B. Otros usuarios: | C53: =C40/C$42 -> 0.002387632066 | D53: 0.001792994758 | E53: 0.00145021307 | F53: 0.0300611413 | G53: 0.001382294609
B55: 2. Proyección de demanda para SNAR Internacional
B56: (Expresada en kilómetros recorridos)
B58: 2.1 Por tipo de usuario / Rango de PMD:
C60: 2022 | D60: 2023 | E60: 2024
B61: Hasta 5,7TM | C61: =+C$68*$H21 -> 402259.0884 | D61: 495088.1088 | E61: 526031.1156
B62: Más de 5,7TM a 10TM | C62: 697859.7263 | D62: 858904.2786 | E62: 912585.796
B63: Más de 10TM a 35TM | C63: 871469.8327 | D63: 1072578.256 | E63: 1139614.397
B64: Más de 35TM a 70TM | C64: 5007784.11 | D64: 6163426.597 | E64: 6548640.759
B65: Más de 70TM a 105TM | C65: 31423133.43 | D65: 38674625.76 | E65: 41091789.87
B66: Más de 105TM | C66: 18446054.1 | D66: 22702835.81 | E66: 24121763.05
B67: Cargo mínimo | C67: 89308.05996 | D67: 109917.6123 | E67: 116787.463
B68: Total Usuarios atribuibles | C68: =+G7*(1+'1.5 Tasas'!F39) -> 56937868.35 | D68: =C68*(1+'1.5 Tasas'!G39) -> 70077376.43 | E68: =D68*(1+'1.5 Tasas'!H39) -> 74457212.45

Sheet 1.3 Aprox
B1: 1.3 APROXIMACIÓN - Información de demanda | H1: Índice
B3: 1. Información histórica: Expresada en toneladas/PMD facturados (Fuente: CORPAC S.A.)
B5: 1.1 Por tipo de usuario / Rango de PMD:
C6: 2017 | D6: 2018 | E6: 2019 | F6: 2020 | G6: 2021
B7: A. Usuarios atribuibles: | C7: =SUM(C8:C13) -> 3651843.52 | D7: 3965713.13 | E7: 4220184.13 | F7: 1538493.82 | G7: 2464258.42
B8: (>0-10) | C8: 66306.96 | D8: 65464.57 | E8: 64816.56 | F8: 48547.29 | G8: 69705.41
B9: (>10-35) | C9: 81510.94 | D9: 74015.19 | E9: 49962.25 | F9: 14328.59 | G9: 37157.66
B10: (>35-70) | C10: 1394281.98 | D10: 1396165.82 | E10: 1198967.94 | F10: 334333.06 | G10: 440702.69
B11: (>70-105) | C11: 2103748.95 | D11: 2420836.48 | E11: 2897645.34 | F11: 1135596.67 | G11: 1909436.6
B12: (>105) | C12: 1395.3 | D12: 2829.59 | E12: 1103.64 | F12: 230.9 | G12: 839.42
B13: Cargo mínimo | C13: 4599.39 | D13: 6401.48 | E13: 7688.4 | F13: 5457.31 | G13: 6416.64
B14: B. Otros usuarios: | C14: =SUM(C15) -> 116430.21 | D14: 93347.33 | E14: 108165.82 | F14: 138188.05 | G14: 109054.48
B15: Tarifa de USD1 | C15: 116430.21 | D15: 93347.33 | E15: 108165.82 | F15: 138188.05 | G15: 109054.48
B16: Total | C16: =C7+C14 -> 3768273.73 | D16: 4059060.46 | E16: 4328349.95 | F16: 1676681.87 | G16: 2573312.9
B18: Estructura de distribución | C18: 2017 | D18: 2018 | E18: 2019 | F18: 2020 | G18: 2021 | H18: Prom 2017-21
B19: A. Atribuibles: | C19: =C7/C$16 -> 0.9691025073 | D19: 0.9770027249 | E19: 0.975009918 | F19: 0.9175824272 | G19: 0.9576209796 | H19: =AVERAGE(C19:G19) -> 0.9592637114
B20: (>0-10) | C20: =C8/C$7 -> 0.01815711972 | D20: 0.01650764134 | E20: 0.01535870427 | F20: 0.03155507638 | G20: 0.02828656663 | H20: =AVERAGE(C20:G20) -> 0.02197302167
B21: (>10-35) | C21: 0.02232049088 | D21: 0.01866377813 | E21: 0.01183887917 | F21: 0.009313388077 | G21: 0.01507863773 | H21: 0.0154430348
B22: (>35-70) | C22: 0.3818022246 | D22: 0.3520592071 | E22: 0.2841032294 | F22: 0.2173119291 | G22: 0.178837855 | H22: 0.2828228891
B23: (>70-105) | C23: 0.576078613 | D23: 0.6104416534 | E23: 0.6866158563 | F23: 0.7381223475 | G23: 0.7748524199 | H23: 0.677222178
B24: (>105) | C24: 0.0003820809934 | D24: 0.0007135135365 | E24: 0.0002615146558 | F24: 0.0001500818508 | G24: 0.0003406379758 | H24: 0.0003695658025
B25: Cargo mínimo | C25: 0.001259470723 | D25: 0.001614206522 | E25: 0.001821816244 | F25: 0.00354717707 | G25: 0.002603882753 | H25: 0.002169310663
B26: B. Otros usuarios: | C26: =C14/C$16 -> 0.03089749268 | D26: 0.02299727509 | E26: 0.02499008196 | F26: 0.08241757275 | G26: 0.04237902044 | H26: 0.04073628859
B28: 1.2 Por tipo de cobro / Rango de PMD: Expresado en número de operaciones (Fuente: CORPAC S.A.)
C29: 2017 | D29: 2018 | E29: 2019 | F29: 2020 | G29: 2021
B30: A. Usuarios atribuibles: | C30: =SUM(C31:C36) -> 72346 | D30: 76014 | E30: 77068 | F30: 33263 | G30: 51149
B31: (>0-10) | C31: 13993 | D31: 13287 | E31: 12762 | F31: 9168 | G31: 13682
B32: (>10-35) | C32: 3578 | D32: 3167 | E32: 2753 | F32: 713 | G32: 1783
B33: (>35-70) | C33: 24360 | D33: 23816 | E33: 18726 | F33: 5041 | G33: 6629
B34: (>70-105) | C34: 27520 | D34: 31697 | E34: 38044 | F34: 14917 | G34: 24992
B35: (>105) | C35: 4 | D35: 13 | E35: 5 | F35: 1 | G35: 5
B36: Cargo mínimo | C36: 2891 | D36: 4034 | E36: 4778 | F36: 3423 | G36: 4058
B37: B. Otros usuarios: | C37: =SUM(C38) -> 6559 | D37: 6078 | E37: 7497 | F37: 11450 | G37: 11924
B38: Tarifa de USD 1 | C38: 6559 | D38: 6078 | E38: 7497 | F38: 11450 | G38: 11924
B39: Total | C39: =C30+C37 -> 78905 | D39: 82092 | E39: 84565 | F39: 44713 | G39: 63073
B41: Estructura de distribución | C41: 2017 | D41: 2018 | E41: 2019 | F41: 2020 | G41: 2021
B42: A. Atribuibles: | C42: =C30/C$39 -> 0.9168747228 | D42: 0.9259611168 | E42: 0.9113463017 | F42: 0.7439223492 | G42: 0.8109492176
B43: (>0-10) | C43: =C31/C$30 -> 0.1934177425 | D43: 0.174796748 | E43: 0.1655940209 | F43: 0.2756215615 | G43: 0.2674930106
B44: (>10-35) | C44: =C32/C$30 -> 0.04945677715 | D44: 0.0416633778 | E44: 0.03572170032 | F44: 0.02143522833 | G44: 0.03485894152
B45: (>35-70) | C45: 0.3367152296 | D45: 0.3133107059 | E45: 0.2429802253 | F45: 0.15154977 | G45: 0.1296017517
B46: (>70-105) | C46: 0.3803942167 | D46: 0.4169889757 | E46: 0.4936419785 | F46: 0.4484562427 | G46: 0.4886117031
B47: (>105) | C47: 5.528985708e-05 | D47: 0.0001710211277 | E47: 6.487777028e-05 | F47: 3.006343385e-05 | G47: 9.775362177e-05
B48: Cargo mínimo | C48: =C36/C$30 -> 0.0399607442 | D48: 0.05306917147 | E48: 0.06199719728 | F48: 0.1029071341 | G48: 0.07933683943
B49: B. Otros usuarios: | C49: =C37/C$39 -> 0.08312527723 | D49: 0.0740388832 | E49: 0.08865369834 | F49: 0.2560776508 | G49: 0.1890507824
B51: 2. Proyección de demanda para Aproximación
B52: (Expresada en toneladas/PMD facturados)
B54: 2.1 Por tipo de usuario / Rango de PMD:
C56: 2022 | D56: 2023 | E56: 2024
B57: Hasta 10TM | C57: =+C$63*$H20 -> 68996.72659 | D57: 84919.04811 | E57: 90226.48861
B58: Más de 10TM a 35TM | C58: 48492.14031 | D58: 59682.63423 | E58: 63412.79887
B59: Más de 35TM a 70TM | C59: 888082.3877 | D59: 1093024.477 | E59: 1161338.507
B60: Más de 70TM a 105TM | C60: 2126521.976 | D60: 2617257.817 | E60: 2780836.43
B61: Más de 105TM | C61: 1160.460815 | D61: 1428.259464 | E61: 1517.525681
B62: Cargo mínimo | C62: 6811.777503 | D62: 8383.726157 | E62: 8907.709042
B63: Total Usuarios atribuibles | C63: =G7*(1+'1.5 Tasas'!F40) -> 3140065.469 | D63: =C63*(1+'1.5 Tasas'!G40) -> 3864695.962 | E63: =D63*(1+'1.5 Tasas'!H40) -> 4106239.459

Sheet 1.4 Sobrev
B1: 1.4 SOBREVUELO - Información de demanda | H1: Índice
B3: 1. Información histórica: Expresada en kilómetros recorridos facturados (Fuente: CORPAC S.A.)
B5: 1.1 Por tipo de usuario / Rango de PMD:
C6: 2017 | D6: 2018 | E6: 2019 | F6: 2020 | G6: 2021
B7: A. Usuarios atribuibles: | C7: =SUM(C8:C11) -> 44112792.8 | D7: 45840674.03 | E7: 45342728.73 | F7: 23258811.94 | G7: 28747071.59
B8: (>0-55) | C8: 1760455.98 | D8: 1911435.67 | E8: 1720224.35 | F8: 1198678.62 | G8: 1877258.96
B9: (>55-115) | C9: 15802264.12 | D9: 16906620.63 | E9: 15901396.1 | F9: 5252411.84 | G9: 7073044.82
B10: (>115-200) | C10: 3938980.86 | D10: 4527278.58 | E10: 4167078.07 | F10: 2400663.64 | G10: 3334285.46
B11: (>200) | C11: 22611091.84 | D11: 22495339.15 | E11: 23554030.21 | F11: 14407057.84 | G11: 16462482.35
B12: B. Otros usuarios: | C12: =SUM(C13) -> 119173.05 | D12: 121701.84 | E12: 129442.92 | F12: 59094.3 | G12: 56762.9
B13: Tarifa de USD 1 | C13: 119173.05 | D13: 121701.84 | E13: 129442.92 | F13: 59094.3 | G13: 56762.9
B14: Total | C14: =C7+C12 -> 44231965.85 | D14: 45962375.87 | E14: 45472171.65 | F14: 23317906.24 | G14: 28803834.49
B16: Estructura de distribución | C16: 2017 | D16: 2018 | E16: 2019 | F16: 2020 | G16: 2021 | H16: Prom 2017-21
B17: A. Atribuibles: | C17: =C7/C$14 -> 0.9973057257 | D17: 0.9973521421 | E17: 0.9971533596 | F17: 0.9974657116 | G17: 0.9980293284 | H17: =AVERAGE(C17:G17) -> 0.9974612535
B18: (>0-55) | C18: =C8/C$7 -> 0.03990805996 | D18: 0.0416973727 | E18: 0.03793826261 | F18: 0.05153653691 | G18: 0.0653026154 | H18: =AVERAGE(C18:G18) -> 0.04727656952
B19: (>55-115) | C19: 0.3582240687 | D19: 0.3688126536 | E19: 0.3506934087 | F19: 0.2258245973 | G19: 0.2460440117 | H19: 0.309919748
B20: (>115-200) | C20: 0.0892933911 | D20: 0.09876116955 | E20: 0.091901793 | F20: 0.1032152307 | G20: 0.1159869606 | H20: 0.09983170899
B21: (>200) | C21: 0.5125744802 | D21: 0.4907288042 | E21: 0.5194665356 | F21: 0.6194236351 | G21: 0.5726664122 | H21: 0.5429719735
B22: B. Otros usuarios: | C22: =C12/C$14 -> 0.002694274326 | D22: 0.002647857899 | E22: 0.00284664038 | F22: 0.00253428843 | G22: 0.001970671649 | H22: 0.002538746537
B24: 1.2 Por tipo de cobro / Rango de PMD: Expresado en número de operaciones (Fuente: CORPAC S.A.)
C25: 2017 | D25: 2018 | E25: 2019 | F25: 2020 | G25: 2021
B26: A. Usuarios atribuibles: | C26: =SUM(C27:C30) -> 34572 | D26: 36287 | E26: 35821 | F26: 16852 | G26: 21426
B27: (>0-55) | C27: 1153 | D27: 1224 | E27: 1110 | F27: 750 | G27: 1152
B28: (>55-115) | C28: 15181 | D28: 16695 | E28: 15861 | F28: 4867 | G28: 7307
B29: (>115-200) | C29: 3577 | D29: 3636 | E29: 3658 | F29: 1989 | G29: 2576
B30: (>200) | C30: 14661 | D30: 14732 | E30: 15192 | F30: 9246 | G30: 10391
B31: B. Otros usuarios: | C31: =SUM(C32) -> 81 | D31: 72 | E31: 83 | F31: 34 | G31: 41
B32: Tarifa de USD 1 | C32: 81 | D32: 72 | E32: 83 | F32: 34 | G32: 41
B33: Total | C33: =C26+C31 -> 34653 | D33: 36359 | E33: 35904 | F33: 16886 | G33: 21467
B35: Estructura de distribución | C35: 2017 | D35: 2018 | E35: 2019 | F35: 2020 | G35: 2021
B36: A. Atribuibles: | C36: =C26/C$33 -> 0.99766254 | D36: 0.9980197475 | E36: 0.9976882799 | F36: 0.9979864977 | G36: 0.9980900918
B37: (>0-55) | C37: =C27/C$26 -> 0.03335068842 | D37: 0.03373108827 | E37: 0.03098740962 | F37: 0.04450510325 | G37: 0.05376645197
B38: (>55-115) | C38: =C28/C$26 -> 0.4391125767 | D38: 0.4600821231 | E38: 0.4427849585 | F38: 0.28880845 | G38: 0.3410342574
B39: (>115-200) | C39: 0.103465232 | D39: 0.100201174 | E39: 0.1021188688 | F39: 0.1180275338 | G39: 0.1202277607
B40: (>200) | C40: 0.424071503 | D40: 0.4059856147 | E40: 0.424108763 | F40: 0.5486589129 | G40: 0.4849715299
B41: B. Otros usuarios: | C41: =C31/C$33 -> 0.00233745996 | D41: 0.001980252482 | E41: 0.002311720143 | F41: 0.00201350231 | G41: 0.001909908231
B43: 2. Proyección de demanda para Sobrevuelo
B44: (Expresada en kilómetros recorridos)
B46: 2.2 Por tipo de usuario / Rango de PMD:
C48: 2022 | D48: 2023 | E48: 2024
B49: Hasta 55TM | C49: =+C$53*$H18 -> 1935737.118 | D49: 2382445.683 | E49: 2531348.539
B50: Más de 55TM a 115TM | C50: 12689650.83 | D50: 15618031.8 | E50: 16594158.78
B51: Más de 115TM a 200TM | C51: 4087605.057 | D51: 5030898.531 | E51: 5345329.69
B52: Más de 200TM | C52: 22231964.24 | D52: 27362417.53 | E52: 29072568.62
B53: Total Usuarios atribuibles | C53: =G7*(1+'1.5 Tasas'!F41) -> 40944957.25 | D53: =C53*(1+'1.5 Tasas'!G41) -> 50393793.54 | E53: =D53*(1+'1.5 Tasas'!H41) -> 53543405.64

Sheet 1.5 Tasas
B1: 1.5 Tasas de crecimiento aplicadas a la proyección de demanda | H1: Índice
B3: 1. Proyecciones de recuperación del tráfico aéreo de pasajeros respecto del año 2019:
C4: 2019 | D4: 2020 | E4: 2021 | F4: 2022 | G4: 2023 | H4: 2024
B5: Recuperación esperada del tráfico respecto del año 2019 (en niveles)/1 | C5: 100 | D5: 40 | E5: 59 | F5: 78 | G5: 96 | H5: 102
B6: Variación esperada del tráfico respecto del año 2019 | C6: - | D6: =+D5/$C$5-1 -> -0.6 | E6: =+E5/$C$5-1 -> -0.41 | F6: =+F5/$C$5-1 -> -0.22 | G6: =+G5/$C$5-1 -> -0.04 | H6: =+H5/$C$5-1 -> 0.02
B7: /1 De acuerdo con las proyecciones de ICF a junio de 2021 (https://www.icf.com/insights/transportation/covid-19-air-traffic-recovery-update)
B9: 2. Evolución de las operaciones relacionadas a los servicios de aeronavegación de CORPAC:
C10: 2017 | D10: 2018 | E10: 2019 | F10: 2020 | G10: 2021
B11: SNAR Nacional | C11: =+'1.1 SNAR Nac'!C32 -> 149952 | D11: =+'1.1 SNAR Nac'!D32 -> 155992 | E11: =+'1.1 SNAR Nac'!E32 -> 172462 | F11: =+'1.1 SNAR Nac'!F32 -> 63562 | G11: =+'1.1 SNAR Nac'!G32 -> 99723
B12: SNAR Internacional | C12: =+'1.2 SNAR Int'!C32 -> 83565 | D12: =+'1.2 SNAR Int'!D32 -> 87406 | E12: =+'1.2 SNAR Int'!E32 -> 89512 | F12: =+'1.2 SNAR Int'!F32 -> 28555 | G12: =+'1.2 SNAR Int'!G32 -> 33232
B13: Aproximación | C13: =+'1.3 Aprox'!C30 -> 72346 | D13: =+'1.3 Aprox'!D30 -> 76014 | E13: =+'1.3 Aprox'!E30 -> 77068 | F13: =+'1.3 Aprox'!F30 -> 33263 | G13: =+'1.3 Aprox'!G30 -> 51149
B14: Sobrevuelo | C14: =+'1.4 Sobrev'!C26 -> 34572 | D14: =+'1.4 Sobrev'!D26 -> 36287 | E14: =+'1.4 Sobrev'!E26 -> 35821 | F14: =+'1.4 Sobrev'!F26 -> 16852 | G14: =+'1.4 Sobrev'!G26 -> 21426
B15: Total Operaciones relacionadas a los servicios de aeronavegación | C15: =SUM(C11:C14) -> 340435 | D15: =SUM(D11:D14) -> 355699 | E15: =SUM(E11:E14) -> 374863 | F15: =SUM(F11:F14) -> 142232 | G15: =SUM(G11:G14) -> 205530
B16: Variación de las operaciones respecto del año 2019 | C16: - | D16: =+D15/$E$15-1 -> -0.05112267682 | E16: =+E15/$E$15-1 -> 0 | F16: =+F15/$E$15-1 -> -0.6205760505 | G16: =+G15/$E$15-1 -> -0.4517196949
B18: * Estructura de distribución * | C18: 2017 | D18: 2018 | E18: 2019 | F18: 2020 | G18: 2021 | H18: Prom. 2017-21
B19: SNAR Nacional | C19: =+C11/C$15 -> 0.4404717494 | D19: 0.4385505723 | E19: 0.4600667444 | F19: 0.4468895888 | G19: 0.485199241 | H19: =AVERAGE(C19:G19) -> 0.4542355792
B20: SNAR Internacional | C20: 0.2454653605 | D20: 0.2457302382 | E20: 0.2387859031 | F20: 0.2007635413 | G20: 0.1616892911 | H20: =AVERAGE(C20:G20) -> 0.2184868668
B21: Aproximación | C21: 0.2125104646 | D21: 0.2137031591 | E21: 0.2055897755 | F21: 0.2338643906 | G21: 0.2488639128 | H21: =AVERAGE(C21:G21) -> 0.2229063405
B22: Sobrevuelo | C22: 0.1015524256 | D22: 0.1020160304 | E22: 0.09555757703 | F22: 0.1184824793 | G22: 0.1042475551 | H22: =AVERAGE(C22:G22) -> 0.1043712135
B24: 3. Estimación de tasas de crecimiento para los servicios de aeronavegación de CORPAC:
B26: 3.1. Proyección de operaciones, por servicio de aeronavegación:
C27: 2019 | D27: 2020 | E27: 2021 | F27: 2022 | G27: 2023 | H27: 2024
B28: Variación esperada del tráfico respecto del año 2019 | C28: =+C6 -> - | D28: -0.6 | E28: -0.41 | F28: -0.22 | G28: -0.04 | H28: 0.02
B29: Variación de las operaciones de CORPAC respecto del año 2019 | C29: =+E16 -> 0 | D29: =+F16 -> -0.6205760505 | E29: =+G16 -> -0.4517196949 | F29: =+F28 -> -0.22 | G29: =+G28 -> -0.04 | H29: =+H28 -> 0.02
B30: Total Operaciones relacionadas con los servicios de aeronavegación | C30: =+E15 -> 374863 | D30: =+F15 -> 142232 | E30: =+G15 -> 205530 | F30: =$C30*(1+F29) -> 292393.14 | G30: =$C30*(1+G29) -> 359868.48 | H30: =$C30*(1+H29) -> 382360.26
B31: SNAR Nacional | C31: =+E11 -> 172462 | D31: 63562 | E31: 99723 | F31: =+F$30*$H19 -> 132815.3673 | G31: 163465.0674 | H31: 173681.6342
B32: SNAR Internacional | C32: 89512 | D32: 28555 | E32: 33232 | F32: 63884.06104 | G32: 78626.53667 | H32: 83540.69521
B33: Aproximación | C33: 77068 | D33: 33263 | E33: 51149 | F33: 65176.28483 | G33: 80216.96594 | H33: 85230.52631
B34: Sobrevuelo | C34: 35821 | D34: 16852 | E34: 21426 | F34: 30517.42684 | G34: 37559.90995 | H34: 39907.40433
B36: 3.2. Cálculo de la tasa de crecimiento anual de la demanda, por servicio:
C37: 2019 | D37: 2020 | E37: 2021 | F37: 2022 | G37: 2023 | H37: 2024
B38: SNAR Nacional | C38: - | D38: =+D31/C31-1 -> -0.6314434484 | E38: 0.5689090966 | F38: 0.3318428777 | G38: 0.2307692308 | H38: 0.0625
B39: SNAR Internacional | C39: - | D39: -0.6809924926 | E39: 0.1637891788 | F39: 0.9223658234 | G39: 0.2307692308 | H39: 0.0625
B40: Aproximación | C40: - | D40: -0.5683941454 | E40: 0.5377145778 | F40: 0.2742435791 | G40: 0.2307692308 | H40: 0.0625
B41: Sobrevuelo | C41: - | D41: -0.5295497055 | E41: 0.2714217897 | F41: 0.4243175039 | G41: 0.2307692308 | H41: 0.0625

Sheet 2. Tarifas
B1: 2. Tarifas reguladas | S1: Índice
B3: Servicio / Peso Máximo de Despegue (PMD) | C3: Unidad de cobro | D3: Tarifas vigentes (según moneda) | J3: Tarifas vigentes (en Soles) | P3: Tarifa revisada (en Soles) | R3: Tarifa revisada (según moneda) | S3: Var% sobre Tarifa vigente
D4: 2017-11-10 | E4: 2018-11-10 | F4: 2019-11-10 | G4: 2020-11-10 | H4: 2021-11-10 | J4: 2017-11-10 | K4: 2018-11-10 | L4: 2019-11-10 | M4: 2020-11-10 | N4: 2021-11-10
B6: A. SNAR Nacional | P6: -0.3747795362
B7: (En soles)
B8: - Por rango de PMD:
B9: Hasta 5,7TM | C9: Por kilómetro recorrido | D9: 0.16 | E9: 0.16 | F9: 0.16 | G9: 0.16 | H9: 0.17 | J9: =D9 -> 0.16 | K9: 0.16 | L9: 0.16 | M9: 0.16 | N9: =H9 -> 0.17 | P9: =N9*(1+$P$6) -> 0.1062874788 | R9: =P9 -> 0.1062874788 | S9: =R9/H9-1 -> -0.3747795362
B10: Más de 5,7TM a 10TM | C10: Por kilómetro recorrido | D10: 0.29 | E10: 0.29 | F10: 0.3 | G10: 0.31 | H10: 0.33 | J10: 0.29 | K10: 0.29 | L10: 0.3 | M10: 0.31 | N10: 0.33 | P10: 0.2063227531 | R10: 0.2063227531 | S10: -0.3747795362
B11: Más de 10TM a 35TM | C11: Por kilómetro recorrido | D11: 0.32 | E11: 0.32 | F11: 0.33 | G11: 0.34 | H11: 0.36 | J11: 0.32 | K11: 0.32 | L11: 0.33 | M11: 0.34 | N11: 0.36 | P11: 0.225079367 | R11: 0.225079367 | S11: -0.3747795362
B12: Más de 35TM a 70TM | C12: Por kilómetro recorrido | D12: 0.43 | E12: 0.44 | F12: 0.45 | G12: 0.46 | H12: 0.48 | J12: 0.43 | K12: 0.44 | L12: 0.45 | M12: 0.46 | N12: 0.48 | P12: 0.3001058226 | R12: 0.3001058226 | S12: -0.3747795362
B13: Más de 70TM a 105TM | C13: Por kilómetro recorrido | D13: 0.66 | E13: 0.67 | F13: 0.68 | G13: 0.69 | H13: 0.73 | J13: 0.66 | K13: 0.67 | L13: 0.68 | M13: 0.69 | N13: 0.73 | P13: 0.4564109386 | R13: 0.4564109386 | S13: -0.3747795362
B14: Más de 105TM | C14: Por kilómetro recorrido | D14: 0.86 | E14: 0.87 | F14: 0.89 | G14: 0.91 | H14: 0.96 | J14: 0.86 | K14: 0.87 | L14: 0.89 | M14: 0.91 | N14: 0.96 | P14: 0.6002116453 | R14: 0.6002116453 | S14: -0.3747795362
B15: - Cargo mínimo: | C15: Por operación | D15: 14.45 | E15: 14.64 | F15: 14.91 | G15: 15.18 | H15: 15.97 | J15: =D15 -> 14.45 | K15: =E15 -> 14.64 | L15: =F15 -> 14.91 | M15: =G15 -> 15.18 | N15: =H15 -> 15.97 | P15: 9.984770807 | R15: 9.984770807 | S15: -0.3747795362
B17: B. SNAR Internacional | P17: =+P6 -> -0.3747795362
B18: (En dólares)
B19: - Por rango de PMD:
B20: Hasta 5,7TM | C20: Por kilómetro recorrido | D20: 0.07 | E20: 0.07 | F20: 0.07 | G20: 0.07 | H20: 0.07 | J20: =D20*'10. Var-Sup-Gen'!D$11 -> 0.2282775904 | K20: =E20*'10. Var-Sup-Gen'!E$11 -> 0.2300369309 | L20: =F20*'10. Var-Sup-Gen'!F$11 -> 0.2335842369 | M20: =G20*'10. Var-Sup-Gen'!G$11 -> 0.244724685 | N20: =H20*'10. Var-Sup-Gen'!H$11 -> 0.2717840637 | P20: =N20*(1+$P$17) -> 0.1699249584 | R20: =P20/'10. Var-Sup-Gen'!$I$11 -> 0.04312816203 | S20: =R20/H20-1 -> -0.3838833996
B21: Más de 5,7TM a 10TM | C21: Por kilómetro recorrido | D21: 0.13 | E21: 0.13 | F21: 0.13 | G21: 0.13 | H21: 0.14 | J21: =D21*'10. Var-Sup-Gen'!D$11 -> 0.4239440964 | K21: =E21*'10. Var-Sup-Gen'!E$11 -> 0.4272114431 | L21: =F21*'10. Var-Sup-Gen'!F$11 -> 0.4337992972 | M21: =G21*'10. Var-Sup-Gen'!G$11 -> 0.4544887008 | N21: =H21*'10. Var-Sup-Gen'!H$11 -> 0.5435681275 | P21: =N21*(1+$P$17) -> 0.3398499168 | R21: =P21/'10. Var-Sup-Gen'!$I$11 -> 0.08625632406 | S21: -0.3838833996
B22: Más de 10TM a 35TM | C22: Por kilómetro recorrido | D22: 0.14 | E22: 0.14 | F22: 0.14 | G22: 0.14 | H22: 0.15 | J22: =D22*'10. Var-Sup-Gen'!D$11 -> 0.4565551807 | K22: =E22*'10. Var-Sup-Gen'!E$11 -> 0.4600738618 | L22: =F22*'10. Var-Sup-Gen'!F$11 -> 0.4671684739 | M22: =G22*'10. Var-Sup-Gen'!G$11 -> 0.4894493701 | N22: =H22*'10. Var-Sup-Gen'!H$11 -> 0.5823944223 | P22: 0.3641249108 | R22: =P22/'10. Var-Sup-Gen'!$I$11 -> 0.09241749006 | S22: -0.3838833996
B23: Más de 35TM a 70TM | C23: Por kilómetro recorrido | D23: 0.19 | E23: 0.19 | F23: 0.19 | G23: 0.2 | H23: 0.2 | J23: =D23*'10. Var-Sup-Gen'!D$11 -> 0.6196106024 | K23: =E23*'10. Var-Sup-Gen'!E$11 -> 0.6243859553 | L23: =F23*'10. Var-Sup-Gen'!F$11 -> 0.6340143574 | M23: =G23*'10. Var-Sup-Gen'!G$11 -> 0.6992133858 | N23: =H23*'10. Var-Sup-Gen'!H$11 -> 0.7765258964 | P23: 0.4854998811 | R23: =P23/'10. Var-Sup-Gen'!$I$11 -> 0.1232233201 | S23: -0.3838833996
B24: Más de 70TM a 105TM | C24: Por kilómetro recorrido | D24: 0.28 | E24: 0.29 | F24: 0.29 | G24: 0.3 | H24: 0.31 | J24: =D24*'10. Var-Sup-Gen'!D$11 -> 0.9131103614 | K24: =E24*'10. Var-Sup-Gen'!E$11 -> 0.9530101423 | L24: =F24*'10. Var-Sup-Gen'!F$11 -> 0.9677061245 | M24: =G24*'10. Var-Sup-Gen'!G$11 -> 1.048820079 | N24: =H24*'10. Var-Sup-Gen'!H$11 -> 1.203615139 | P24: 0.7525248157 | R24: =P24/'10. Var-Sup-Gen'!$I$11 -> 0.1909961461 | S24: -0.3838833996
B25: Más de 105TM | C25: Por kilómetro recorrido | D25: 0.38 | E25: 0.39 | F25: 0.4 | G25: 0.4 | H25: 0.43 | J25: =D25*'10. Var-Sup-Gen'!D$11 -> 1.239221205 | K25: =E25*'10. Var-Sup-Gen'!E$11 -> 1.281634329 | L25: =F25*'10. Var-Sup-Gen'!F$11 -> 1.334767068 | M25: =G25*'10. Var-Sup-Gen'!G$11 -> 1.398426772 | N25: =H25*'10. Var-Sup-Gen'!H$11 -> 1.669530677 | P25: 1.043824744 | R25: =P25/'10. Var-Sup-Gen'!$I$11 -> 0.2649301382 | S25: -0.3838833996
B26: - Cargo mínimo: | C26: Por operación | D26: 6.68 | E26: 6.83 | F26: 6.95 | G26: 7.05 | H26: 7.43 | J26: =D26*'10. Var-Sup-Gen'!D$11 -> 21.78420434 | K26: =E26*'10. Var-Sup-Gen'!E$11 -> 22.44503197 | L26: =F26*'10. Var-Sup-Gen'!F$11 -> 23.19157781 | M26: =G26*'10. Var-Sup-Gen'!G$11 -> 24.64727185 | N26: =H26*'10. Var-Sup-Gen'!H$11 -> 28.84793705 | P26: 18.03632058 | R26: =P26/'10. Var-Sup-Gen'!$I$11 -> 4.577746341 | S26: -0.3838833996
B28: C. Aproximación | P28: 0.1883439032
B29: (En soles)
B30: - Por rango de PMD:
B31: Hasta 10TM | C31: Por Tonelada (PMD) | D31: 3.04 | E31: 3.08 | F31: 3.14 | G31: 3.19 | H31: 3.37 | J31: =D31 -> 3.04 | K31: 3.08 | L31: 3.14 | M31: 3.19 | N31: =H31 -> 3.37 | P31: =N31*(1+$P$28) -> 4.004718954 | R31: =P31 -> 4.004718954 | S31: =R31/H31-1 -> 0.1883439032
B32: Más de 10TM a 35TM | C32: Por Tonelada (PMD) | D32: 3.41 | E32: 3.45 | F32: 3.51 | G32: 3.58 | H32: 3.76 | J32: 3.41 | K32: 3.45 | L32: 3.51 | M32: 3.58 | N32: 3.76 | P32: 4.468173076 | R32: 4.468173076 | S32: 0.1883439032
B33: Más de 35TM a 70TM | C33: Por Tonelada (PMD) | D33: 3.79 | E33: 3.84 | F33: 3.91 | G33: 3.98 | H33: 4.19 | J33: 3.79 | K33: 3.84 | L33: 3.91 | M33: 3.98 | N33: 4.19 | P33: 4.979160954 | R33: 4.979160954 | S33: 0.1883439032
B34: Más de 70TM a 105TM | C34: Por Tonelada (PMD) | D34: 4.17 | E34: 4.22 | F34: 4.3 | G34: 4.37 | H34: 4.61 | J34: 4.17 | K34: 4.22 | L34: 4.3 | M34: 4.37 | N34: 4.61 | P34: 5.478265394 | R34: 5.478265394 | S34: 0.1883439032
B35: Más de 105TM | C35: Por Tonelada (PMD) | D35: 4.56 | E35: 4.62 | F35: 4.71 | G35: 4.8 | H35: 5.05 | J35: 4.56 | K35: 4.62 | L35: 4.71 | M35: 4.8 | N35: 5.05 | P35: 6.001136711 | R35: 6.001136711 | S35: 0.1883439032
B36: - Cargo mínimo: | C36: Por operación | D36: 7.6 | E36: 7.7 | F36: 7.84 | G36: 7.98 | H36: 8.4 | J36: =D36 -> 7.6 | K36: =E36 -> 7.7 | L36: =F36 -> 7.84 | M36: =G36 -> 7.98 | N36: 8.4 | P36: 9.982088787 | R36: 9.982088787 | S36: 0.1883439032
B38: D. Sobrevuelo | P38: =+P6 -> -0.3747795362
B39: (En dólares)
B40: - Por rango de PMD:
B41: Hasta 55TM | C41: Por kilómetro recorrido | D41: 0.18 | E41: 0.18 | F41: 0.18 | G41: 0.18 | H41: 0.19 | J41: =D41*'10. Var-Sup-Gen'!D$11 -> 0.5869995181 | K41: =E41*'10. Var-Sup-Gen'!E$11 -> 0.5915235366 | L41: =F41*'10. Var-Sup-Gen'!F$11 -> 0.6006451807 | M41: =G41*'10. Var-Sup-Gen'!G$11 -> 0.6292920472 | N41: =H41*'10. Var-Sup-Gen'!H$11 -> 0.7376996016 | P41: =N41*(1+$P$38) -> 0.4612248871 | R41: =P41/'10. Var-Sup-Gen'!$I$11 -> 0.1170621541 | S41: =R41/H41-1 -> -0.3838833996
B42: Más de 55TM a 115TM | C42: Por kilómetro recorrido | D42: 0.27 | E42: 0.28 | F42: 0.28 | G42: 0.29 | H42: 0.3 | J42: =D42*'10. Var-Sup-Gen'!D$11 -> 0.8804992771 | K42: =E42*'10. Var-Sup-Gen'!E$11 -> 0.9201477236 | L42: =F42*'10. Var-Sup-Gen'!F$11 -> 0.9343369478 | M42: =G42*'10. Var-Sup-Gen'!G$11 -> 1.013859409 | N42: =H42*'10. Var-Sup-Gen'!H$11 -> 1.164788845 | P42: =N42*(1+$P$38) -> 0.7282498217 | R42: =P42/'10. Var-Sup-Gen'!$I$11 -> 0.1848349801 | S42: =R42/H42-1 -> -0.3838833996
B43: Más de 115TM a 200TM | C43: Por kilómetro recorrido | D43: 0.54 | E43: 0.55 | F43: 0.56 | G43: 0.56 | H43: 0.6 | J43: =D43*'10. Var-Sup-Gen'!D$11 -> 1.760998554 | K43: =E43*'10. Var-Sup-Gen'!E$11 -> 1.807433028 | L43: =F43*'10. Var-Sup-Gen'!F$11 -> 1.868673896 | M43: =G43*'10. Var-Sup-Gen'!G$11 -> 1.95779748 | N43: =H43*'10. Var-Sup-Gen'!H$11 -> 2.329577689 | P43: 1.456499643 | R43: =P43/'10. Var-Sup-Gen'!$I$11 -> 0.3696699602 | S43: =R43/H43-1 -> -0.3838833996
B44: Más de 200TM | C44: Por kilómetro recorrido | D44: 0.8 | E44: 0.82 | F44: 0.83 | G44: 0.84 | H44: 0.89 | J44: =D44*'10. Var-Sup-Gen'!D$11 -> 2.608886747 | K44: =E44*'10. Var-Sup-Gen'!E$11 -> 2.694718333 | L44: =F44*'10. Var-Sup-Gen'!F$11 -> 2.769641667 | M44: =G44*'10. Var-Sup-Gen'!G$11 -> 2.93669622 | N44: =H44*'10. Var-Sup-Gen'!H$11 -> 3.455540239 | P44: 2.160474471 | R44: =P44/'10. Var-Sup-Gen'!$I$11 -> 0.5483437744 | S44: =R44/H44-1 -> -0.3838833996

Sheet 3. Ingresos
B1: 3. Ingresos totales (Usuarios atribuibles) | E1: Índice
B3: Servicio / Peso Máximo de Despegue (PMD) | C3: Proyecciones
C4: 2022 | D4: =C4+1 -> 2023 | E4: =D4+1 -> 2024
B6: A. SNAR Nacional
B7: (En soles)
B8: Ingresos totales | C8: =SUM(C11:C16,C17) -> 25320877.74 | D8: =SUM(D11:D16,D17) -> 31164157.22 | E8: =SUM(E11:E16,E17) -> 33111917.05
B10: - Por rango de PMD:
B11: Hasta 5,7TM | C11: ='2. Tarifas'!$P9*'1. Demanda'!H12 -> 744729.3538 | D11: ='2. Tarifas'!$P9*'1. Demanda'!I12 -> 916589.9739 | E11: ='2. Tarifas'!$P9*'1. Demanda'!J12 -> 973876.8473
B12: Más de 5,7TM a 10TM | C12: ='2. Tarifas'!$P10*'1. Demanda'!H13 -> 501412.0908 | D12: ='2. Tarifas'!$P10*'1. Demanda'!I13 -> 617122.5733 | E12: ='2. Tarifas'!$P10*'1. Demanda'!J13 -> 655692.7342
B13: Más de 10TM a 35TM | C13: ='2. Tarifas'!$P11*'1. Demanda'!H14 -> 619755.0313 | D13: ='2. Tarifas'!$P11*'1. Demanda'!I14 -> 762775.4231 | E13: ='2. Tarifas'!$P11*'1. Demanda'!J14 -> 810448.887
B14: Más de 35TM a 70TM | C14: ='2. Tarifas'!$P12*'1. Demanda'!H15 -> 5087663.595 | D14: ='2. Tarifas'!$P12*'1. Demanda'!I15 -> 6261739.809 | E14: ='2. Tarifas'!$P12*'1. Demanda'!J15 -> 6653098.547
B15: Más de 70TM a 105TM | C15: ='2. Tarifas'!$P13*'1. Demanda'!H16 -> 18333136.98 | D15: ='2. Tarifas'!$P13*'1. Demanda'!I16 -> 22563860.9 | E15: ='2. Tarifas'!$P13*'1. Demanda'!J16 -> 23974102.2
B16: Más de 105TM | C16: ='2. Tarifas'!$P14*'1. Demanda'!H17 -> 1657.322959 | D16: ='2. Tarifas'!$P14*'1. Demanda'!I17 -> 2039.782103 | E16: ='2. Tarifas'!$P14*'1. Demanda'!J17 -> 2167.268485
B17: - Cargo mínimo: | C17: ='2. Tarifas'!$P15*'1. Demanda'!H21 -> 32523.36725 | D17: ='2. Tarifas'!$P15*'1. Demanda'!I21 -> 40028.7597 | E17: ='2. Tarifas'!$P15*'1. Demanda'!J21 -> 42530.55718
B19: B. SNAR Internacional
B20: (En dólares)
B21: Ingresos totales | C21: =SUM(C24:C29,C30) -> 45982263.55 | D21: =SUM(D24:D29,D30) -> 56593555.14 | E21: =SUM(E24:E29,E30) -> 60130652.33
B23: - Por rango de PMD:
B24: Hasta 5,7TM | C24: ='2. Tarifas'!$P20*'1. Demanda'!H29 -> 68353.85886 | D24: ='2. Tarifas'!$P20*'1. Demanda'!I29 -> 84127.82629 | E24: ='2. Tarifas'!$P20*'1. Demanda'!J29 -> 89385.81543
B25: Más de 5,7TM a 10TM | C25: ='2. Tarifas'!$P21*'1. Demanda'!H30 -> 237167.5699 | D25: ='2. Tarifas'!$P21*'1. Demanda'!I30 -> 291898.5476 | E25: ='2. Tarifas'!$P21*'1. Demanda'!J30 -> 310142.2068
B26: Más de 10TM a 35TM | C26: ='2. Tarifas'!$P22*'1. Demanda'!H31 -> 317323.8751 | D26: ='2. Tarifas'!$P22*'1. Demanda'!I31 -> 390552.4617 | E26: ='2. Tarifas'!$P22*'1. Demanda'!J31 -> 414961.9905
B27: Más de 35TM a 70TM | C27: ='2. Tarifas'!$P23*'1. Demanda'!H32 -> 2431278.59 | D27: ='2. Tarifas'!$P23*'1. Demanda'!I32 -> 2992342.88 | E27: ='2. Tarifas'!$P23*'1. Demanda'!J32 -> 3179364.31
B28: Más de 70TM a 105TM | C28: ='2. Tarifas'!$P24*'1. Demanda'!H33 -> 23646687.7 | D28: ='2. Tarifas'!$P24*'1. Demanda'!I33 -> 29103615.63 | E28: ='2. Tarifas'!$P24*'1. Demanda'!J33 -> 30922591.6
B29: Más de 105TM | C29: ='2. Tarifas'!$P25*'1. Demanda'!H34 -> 19254447.7 | D29: ='2. Tarifas'!$P25*'1. Demanda'!I34 -> 23697781.79 | E29: ='2. Tarifas'!$P25*'1. Demanda'!J34 -> 25178893.15
B30: - Cargo mínimo: | C30: ='2. Tarifas'!$P26*'1. Demanda'!H38 -> 27004.25803 | D30: ='2. Tarifas'!$P26*'1. Demanda'!I38 -> 33236.00988 | E30: ='2. Tarifas'!$P26*'1. Demanda'!J38 -> 35313.2605
B32: C. Aproximación
B33: (En soles)
B34: Ingresos totales | C34: =SUM(C37:C41,C42) -> 16614506.52 | D34: =SUM(D37:D41,D42) -> 20448623.41 | E34: =SUM(E37:E41,E42) -> 21726662.37
B36: - Por rango de PMD:
B37: Hasta 10TM | C37: ='2. Tarifas'!$P31*'1. Demanda'!H46 -> 276312.4987 | D37: ='2. Tarifas'!$P31*'1. Demanda'!I46 -> 340076.9215 | E37: ='2. Tarifas'!$P31*'1. Demanda'!J46 -> 361331.7291
B38: Más de 10TM a 35TM | C38: ='2. Tarifas'!$P32*'1. Demanda'!H47 -> 216671.2757 | D38: ='2. Tarifas'!$P32*'1. Demanda'!I47 -> 266672.3394 | E38: ='2. Tarifas'!$P32*'1. Demanda'!J47 -> 283339.3606
B39: Más de 35TM a 70TM | C39: ='2. Tarifas'!$P33*'1. Demanda'!H48 -> 4421905.149 | D39: ='2. Tarifas'!$P33*'1. Demanda'!I48 -> 5442344.799 | E39: ='2. Tarifas'!$P33*'1. Demanda'!J48 -> 5782491.349
B40: Más de 70TM a 105TM | C40: ='2. Tarifas'!$P34*'1. Demanda'!H49 -> 11649651.75 | D40: ='2. Tarifas'!$P34*'1. Demanda'!I49 -> 14338032.92 | E40: ='2. Tarifas'!$P34*'1. Demanda'!J49 -> 15234159.98
B41: Más de 105TM | C41: ='2. Tarifas'!$P35*'1. Demanda'!H50 -> 6964.083997 | D41: ='2. Tarifas'!$P35*'1. Demanda'!I50 -> 8571.180305 | E41: ='2. Tarifas'!$P35*'1. Demanda'!J50 -> 9106.879074
B42: - Cargo mínimo: | C42: ='2. Tarifas'!$P36*'1. Demanda'!H54 -> 43001.76196 | D42: ='2. Tarifas'!$P36*'1. Demanda'!I54 -> 52925.24549 | E42: ='2. Tarifas'!$P36*'1. Demanda'!J54 -> 56233.07333
B44: D. Sobrevuelo
B45: (En dólares)
B46: Ingresos totales | C46: =SUM(C49:C52) -> 64119232.58 | D46: =SUM(D49:D52) -> 78915978.56 | E46: =SUM(E49:E52) -> 83848227.22
B48: - Por rango de PMD:
B49: Hasta 55TM | C49: ='2. Tarifas'!$P41*'1. Demanda'!H62 -> 892810.1335 | D49: ='2. Tarifas'!$P41*'1. Demanda'!I62 -> 1098843.241 | E49: ='2. Tarifas'!$P41*'1. Demanda'!J62 -> 1167520.944
B50: Más de 55TM a 115TM | C50: ='2. Tarifas'!$P42*'1. Demanda'!H63 -> 9241235.957 | D50: ='2. Tarifas'!$P42*'1. Demanda'!I63 -> 11373828.87 | E50: ='2. Tarifas'!$P42*'1. Demanda'!J63 -> 12084693.17
B51: Más de 115TM a 200TM | C51: ='2. Tarifas'!$P43*'1. Demanda'!H64 -> 5953595.307 | D51: ='2. Tarifas'!$P43*'1. Demanda'!I64 -> 7327501.917 | E51: ='2. Tarifas'!$P43*'1. Demanda'!J64 -> 7785470.787
B52: Más de 200TM | C52: ='2. Tarifas'!$P44*'1. Demanda'!H65 -> 48031591.18 | D52: ='2. Tarifas'!$P44*'1. Demanda'!I65 -> 59115804.53 | E52: ='2. Tarifas'!$P44*'1. Demanda'!J65 -> 62810542.32

Sheet 4. OPEX
B1: 4. Costos de operación - OPEX (Usuarios atribuibles) | H1: Índice
B3: I. Información histórica
B4: (Expresado en soles. Fuente: Contabilidad regulatoria de CORPAC S.A.)
B5: Servicio / Partida de Costo | E5: 2017 | F5: =+E5+1 -> 2018 | G5: =+F5+1 -> 2019 | H5: =+G5+1 -> 2020
B7: A. SNAR NACIONAL
B8: Suministros y Materiales | E8: 3289056.576 | F8: 1577965.411 | G8: 1155468.467 | H8: 2340184.393
B9: Gastos de Personal | E9: 44982994.65 | F9: 43469412.72 | G9: 47572068.82 | H9: 33033225.59
B10: Servicios prestados por terceros | E10: 15668345.12 | F10: 16381705.98 | G10: 17445248 | H10: 15552886.46
B11: Mantenimiento | E11: 3333235.414 | F11: 1675655.664 | G11: 1591671.761 | H11: 1968143.27
B12: Depreciación de activos | E12: 6835035.443 | F12: 12487023.9 | G12: 11029813.9 | H12: 12408747.99
B13: Amortización de Intangibles | E13: 294736.5731 | F13: 458227.3593 | G13: 454393.872 | H13: 399791.7453
B14: Seguros y tributos | E14: 1906831.882 | F14: 1567839.956 | G14: 1628183.945 | H14: 1935379.45
B15: Otros Costos | E15: 2850954.959 | F15: 2606800.097 | G15: 2393711.066 | H15: 985951.8093
B16: Costos totales | E16: =SUM(E8:E15) -> 79161190.62 | F16: =SUM(F8:F15) -> 80224631.09 | G16: =SUM(G8:G15) -> 83270559.82 | H16: =SUM(H8:H15) -> 68624310.71
B18: B. SNAR INTERNACIONAL
B19: Suministros y Materiales | E19: 697692.9185 | F19: 726028.5137 | G19: 398910.3457 | H19: 1533497.356
B20: Gastos de Personal | E20: 28616588.65 | F20: 22559704.08 | G20: 24415540.2 | H20: 13855129.54
B21: Servicios prestados por terceros | E21: 4771371.041 | F21: 4218914.586 | G21: 4338777.859 | H21: 2862225.183
B22: Mantenimiento | E22: 932230.9842 | F22: 551253.9388 | G22: 679078.0808 | H22: 730018.8934
B23: Depreciación de activos | E23: 2260837.732 | F23: 3539683.968 | G23: 3878310.05 | H23: 3458358.388
B24: Amortización de Intangibles | E24: 191180.7705 | F24: 247952.6883 | G24: 240045.9216 | H24: 167390.0481
B25: Seguros y tributos | E25: 1350909.092 | F25: 1092669.096 | G25: 1214508.321 | H25: 1143183.153
B26: Otros Costos | E26: 1782922.451 | F26: 1285526.757 | G26: 1212083.631 | H26: 405411.1431
B27: Costos totales | E27: =SUM(E19:E26) -> 40603733.63 | F27: =SUM(F19:F26) -> 34221733.62 | G27: =SUM(G19:G26) -> 36377254.4 | H27: =SUM(H19:H26) -> 24155213.71
B29: C. APROXIMACIÓN
B30: Suministros y Materiales | E30: 2104704.063 | F30: 1554098.939 | G30: 2591206.703 | H30: 1187833.793
B31: Gastos de Personal | E31: 40193356.01 | F31: 40666721.61 | G31: 43319229.27 | H31: 29692596.61
B32: Servicios prestados por terceros | E32: 12913170.55 | F32: 13440364.98 | G32: 13250307.05 | H32: 11228710.84
B33: Mantenimiento | E33: 2584395.357 | F33: 1601774.357 | G33: 1436201.778 | H33: 2410679.39
B34: Depreciación de activos | E34: 7015121.353 | F34: 11539124.6 | G34: 10391075.27 | H34: 13021985.23
B35: Amortización de Intangibles | E35: 336569.1653 | F35: 610725.3533 | G35: 555408.4373 | H35: 471860.538
B36: Seguros y tributos | E36: 1690828.444 | F36: 1622683.591 | G36: 1489054.951 | H36: 1760215.381
B37: Otros Costos | E37: 2820258.301 | F37: 2898779.389 | G37: 3163480.538 | H37: 917789.4116
B38: Costos totales | E38: =SUM(E30:E37) -> 69658403.25 | F38: =SUM(F30:F37) -> 73934272.81 | G38: =SUM(G30:G37) -> 76195964 | H38: =SUM(H30:H37) -> 60691671.2
B40: D. SOBREVUELO
B41: Suministros y Materiales | E41: 564375.0402 | F41: 752948.593 | G41: 410242.3799 | H41: 2435395.427
B42: Gastos de Personal | E42: 27644886.08 | F42: 23813240.98 | G42: 26394622.14 | H42: 20906579.2
B43: Servicios prestados por terceros | E43: 4171236.129 | F43: 3934712.005 | G43: 4024961.75 | H43: 3701216.39
B44: Mantenimiento | E44: 850310.3331 | F44: 551161.9197 | G44: 705166.8236 | H44: 1101715.655
B45: Depreciación de activos | E45: 2530012.859 | F45: 4502331.029 | G45: 4688213.838 | H45: 5831606.592
B46: Amortización de Intangibles | E46: 184950.7558 | F46: 271424.5159 | G46: 257873.6802 | H46: 256979.5646
B47: Seguros y tributos | E47: 1339964.301 | F47: 1125307.993 | G47: 1253040.834 | H47: 1686822.111
B48: Otros Costos | E48: 1719967.172 | F48: 1356158.505 | G48: 1294505.091 | H48: 610677.5857
B49: Costos totales | E49: =SUM(E41:E48) -> 39005702.67 | F49: =SUM(F41:F48) -> 36307285.54 | G49: =SUM(G41:G48) -> 39028626.54 | H49: =SUM(H41:H48) -> 36530992.53
B51: II. Proyección de costos de operación, por servicio de aeronavegación
B52: (Expresado en soles)
D53: 2020 | E53: =D53+1 -> 2021 | F53: =E53+1 -> 2022 | G53: =F53+1 -> 2023 | H53: =G53+1 -> 2024
B55: A. SNAR Nacional
B56: Suministros y Materiales | D56: =VLOOKUP(B56,$B$8:$H$15,7,FALSE) -> 2340184.393 | E56: =+D56*'10. Var-Sup-Gen'!H19 -> 2386988.081 | F56: =+E56*'10. Var-Sup-Gen'!I19 -> 2434727.842 | G56: =+F56*'10. Var-Sup-Gen'!J19 -> 2483422.399 | H56: =+G56*'10. Var-Sup-Gen'!K19 -> 2533090.847
B57: Gastos de Personal | D57: 33033225.59 | E57: ='4.1. OPEX (Personal)'!E124 -> 34108076.72 | F57: ='4.1. OPEX (Personal)'!F124 -> 39299074.9 | G57: ='4.1. OPEX (Personal)'!G124 -> 46768915.97 | H57: ='4.1. OPEX (Personal)'!H124 -> 47596587.46
B58: Servicios prestados por terceros | D58: 15552886.46 | E58: =+D58*'10. Var-Sup-Gen'!H20 -> 15863944.19 | F58: =+E58*'10. Var-Sup-Gen'!I20 -> 16181223.07 | G58: =+F58*'10. Var-Sup-Gen'!J20 -> 16504847.53 | H58: =+G58*'10. Var-Sup-Gen'!K20 -> 16834944.48
B59: Mantenimiento | D59: 1968143.27 | E59: =+D59*'10. Var-Sup-Gen'!H21 -> 2007506.135 | F59: =+E59*'10. Var-Sup-Gen'!I21 -> 2047656.258 | G59: =+F59*'10. Var-Sup-Gen'!J21 -> 2088609.383 | H59: =+G59*'10. Var-Sup-Gen'!K21 -> 2130381.571
B60: Seguros y tributos | D60: 1935379.45 | E60: =+D60*'10. Var-Sup-Gen'!H22 -> 1974087.039 | F60: =+E60*'10. Var-Sup-Gen'!I22 -> 2013568.779 | G60: =+F60*'10. Var-Sup-Gen'!J22 -> 2053840.155 | H60: =+G60*'10. Var-Sup-Gen'!K22 -> 2094916.958
B61: Otros Costos | D61: 985951.8093 | E61: =+D61*'10. Var-Sup-Gen'!H23 -> 1005670.845 | F61: =+E61*'10. Var-Sup-Gen'!I23 -> 1025784.262 | G61: =+F61*'10. Var-Sup-Gen'!J23 -> 1046299.948 | H61: =+G61*'10. Var-Sup-Gen'!K23 -> 1067225.947
B62: Costos incrementales | E62: =+'4.2. OPEX (Incremental)'!D213 -> 936694.3875 | F62: =+'4.2. OPEX (Incremental)'!E213 -> 938046.7578 | G62: =+'4.2. OPEX (Incremental)'!F213 -> 2023010.369 | H62: =+'4.2. OPEX (Incremental)'!G213 -> 2299980.471
B63: Costo total | D63: =SUM(D56:D62) -> 55815770.97 | E63: =SUM(E56:E62) -> 58282967.4 | F63: =SUM(F56:F62) -> 63940081.87 | G63: =SUM(G56:G62) -> 72968945.76 | H63: =SUM(H56:H62) -> 74557127.73
B65: B. SNAR Internacional
B66: Suministros y Materiales | D66: =VLOOKUP(B66,$B$19:$H$26,7,FALSE) -> 1533497.356 | E66: =+D66*'10. Var-Sup-Gen'!H19 -> 1564167.304 | F66: =+E66*'10. Var-Sup-Gen'!I19 -> 1595450.65 | G66: =+F66*'10. Var-Sup-Gen'!J19 -> 1627359.663 | H66: =+G66*'10. Var-Sup-Gen'!K19 -> 1659906.856
B67: Gastos de Personal | D67: 13855129.54 | E67: ='4.1. OPEX (Personal)'!E125 -> 17742378.25 | F67: ='4.1. OPEX (Personal)'!F125 -> 20442637.6 | G67: ='4.1. OPEX (Personal)'!G125 -> 24328308.05 | H67: ='4.1. OPEX (Personal)'!H125 -> 24758847.15
B68: Servicios prestados por terceros | D68: 2862225.183 | E68: =+D68*'10. Var-Sup-Gen'!H20 -> 2919469.686 | F68: =+E68*'10. Var-Sup-Gen'!I20 -> 2977859.08 | G68: =+F68*'10. Var-Sup-Gen'!J20 -> 3037416.262 | H68: =+G68*'10. Var-Sup-Gen'!K20 -> 3098164.587
B69: Mantenimiento | D69: 730018.8934 | E69: =+D69*'10. Var-Sup-Gen'!H21 -> 744619.2713 | F69: =+E69*'10. Var-Sup-Gen'!I21 -> 759511.6567 | G69: =+F69*'10. Var-Sup-Gen'!J21 -> 774701.8899 | H69: =+G69*'10. Var-Sup-Gen'!K21 -> 790195.9277
B70: Seguros y tributos | D70: 1143183.153 | E70: =+D70*'10. Var-Sup-Gen'!H22 -> 1166046.816 | F70: =+E70*'10. Var-Sup-Gen'!I22 -> 1189367.753 | G70: =+F70*'10. Var-Sup-Gen'!J22 -> 1213155.108 | H70: =+G70*'10. Var-Sup-Gen'!K22 -> 1237418.21
B71: Otros Costos | D71: 405411.1431 | E71: =+D71*'10. Var-Sup-Gen'!H23 -> 413519.366 | F71: =+E71*'10. Var-Sup-Gen'!I23 -> 421789.7533 | G71: =+F71*'10. Var-Sup-Gen'!J23 -> 430225.5484 | H71: =+G71*'10. Var-Sup-Gen'!K23 -> 438830.0594
B72: Costos incrementales | E72: =+'4.2. OPEX (Incremental)'!D223 -> 261029.6809 | F72: =+'4.2. OPEX (Incremental)'!E223 -> 174883.409 | G72: =+'4.2. OPEX (Incremental)'!F223 -> 431379.0756 | H72: =+'4.2. OPEX (Incremental)'!G223 -> 472832.9208
B73: Costo total | D73: =SUM(D66:D72) -> 20529465.27 | E73: =SUM(E66:E72) -> 24811230.37 | F73: =SUM(F66:F72) -> 27561499.9 | G73: =SUM(G66:G72) -> 31842545.6 | H73: =SUM(H66:H72) -> 32456195.71
B75: C. Aproximación
B76: Suministros y Materiales | D76: =VLOOKUP(B76,$B$30:$H$37,7,FALSE) -> 1187833.793 | E76: =+D76*'10. Var-Sup-Gen'!H19 -> 1211590.469 | F76: =+E76*'10. Var-Sup-Gen'!I19 -> 1235822.278 | G76: =+F76*'10. Var-Sup-Gen'!J19 -> 1260538.724 | H76: =+G76*'10. Var-Sup-Gen'!K19 -> 1285749.498
B77: Gastos de Personal | D77: 29692596.61 | E77: ='4.1. OPEX (Personal)'!E126 -> 31030466.45 | F77: ='4.1. OPEX (Personal)'!F126 -> 35753075 | G77: ='4.1. OPEX (Personal)'!G126 -> 42548903.88 | H77: ='4.1. OPEX (Personal)'!H126 -> 43301893.63
B78: Servicios prestados por terceros | D78: 11228710.84 | E78: =+D78*'10. Var-Sup-Gen'!H20 -> 11453285.05 | F78: =+E78*'10. Var-Sup-Gen'!I20 -> 11682350.75 | G78: =+F78*'10. Var-Sup-Gen'!J20 -> 11915997.77 | H78: =+G78*'10. Var-Sup-Gen'!K20 -> 12154317.72
B79: Mantenimiento | D79: 2410679.39 | E79: =+D79*'10. Var-Sup-Gen'!H21 -> 2458892.977 | F79: =+E79*'10. Var-Sup-Gen'!I21 -> 2508070.837 | G79: =+F79*'10. Var-Sup-Gen'!J21 -> 2558232.254 | H79: =+G79*'10. Var-Sup-Gen'!K21 -> 2609396.899
B80: Seguros y tributos | D80: 1760215.381 | E80: =+D80*'10. Var-Sup-Gen'!H22 -> 1795419.689 | F80: =+E80*'10. Var-Sup-Gen'!I22 -> 1831328.083 | G80: =+F80*'10. Var-Sup-Gen'!J22 -> 1867954.644 | H80: =+G80*'10. Var-Sup-Gen'!K22 -> 1905313.737
B81: Otros Costos | D81: 917789.4116 | E81: =+D81*'10. Var-Sup-Gen'!H23 -> 936145.1998 | F81: =+E81*'10. Var-Sup-Gen'!I23 -> 954868.1038 | G81: =+F81*'10. Var-Sup-Gen'!J23 -> 973965.4659 | H81: =+G81*'10. Var-Sup-Gen'!K23 -> 993444.7752
B82: Costos incrementales | E82: =+'4.2. OPEX (Incremental)'!D233 -> 774683.2542 | F82: =+'4.2. OPEX (Incremental)'!E233 -> 1733082.941 | G82: =+'4.2. OPEX (Incremental)'!F233 -> 2838163.227 | H82: =+'4.2. OPEX (Incremental)'!G233 -> 3381690.325
B83: Costo total | D83: =SUM(D76:D82) -> 47197825.42 | E83: =SUM(E76:E82) -> 49660483.09 | F83: =SUM(F76:F82) -> 55698597.99 | G83: =SUM(G76:G82) -> 63963755.96 | H83: =SUM(H76:H82) -> 65631806.59
B85: D. Sobrevuelo
B86: Suministros y Materiales | D86: =VLOOKUP(B86,$B$41:$H$48,7,FALSE) -> 2435395.427 | E86: =+D86*'10. Var-Sup-Gen'!H19 -> 2484103.336 | F86: =+E86*'10. Var-Sup-Gen'!I19 -> 2533785.402 | G86: =+F86*'10. Var-Sup-Gen'!J19 -> 2584461.11 | H86: =+G86*'10. Var-Sup-Gen'!K19 -> 2636150.332
B87: Gastos de Personal | D87: 20906579.2 | E87: ='4.1. OPEX (Personal)'!E127 -> 20033457.65 | F87: ='4.1. OPEX (Personal)'!F127 -> 23082402.41 | G87: ='4.1. OPEX (Personal)'!G127 -> 27469830.82 | H87: ='4.1. OPEX (Personal)'!H127 -> 27955965.58
B88: Servicios prestados por terceros | D88: 3701216.39 | E88: =+D88*'10. Var-Sup-Gen'!H20 -> 3775240.717 | F88: =+E88*'10. Var-Sup-Gen'!I20 -> 3850745.532 | G88: =+F88*'10. Var-Sup-Gen'!J20 -> 3927760.442 | H88: =+G88*'10. Var-Sup-Gen'!K20 -> 4006315.651
B89: Mantenimiento | D89: 1101715.655 | E89: =+D89*'10. Var-Sup-Gen'!H21 -> 1123749.968 | F89: =+E89*'10. Var-Sup-Gen'!I21 -> 1146224.967 | G89: =+F89*'10. Var-Sup-Gen'!J21 -> 1169149.467 | H89: =+G89*'10. Var-Sup-Gen'!K21 -> 1192532.456
B90: Seguros y tributos | D90: 1686822.111 | E90: =+D90*'10. Var-Sup-Gen'!H22 -> 1720558.554 | F90: =+E90*'10. Var-Sup-Gen'!I22 -> 1754969.725 | G90: =+F90*'10. Var-Sup-Gen'!J22 -> 1790069.119 | H90: =+G90*'10. Var-Sup-Gen'!K22 -> 1825870.502
B91: Otros Costos | D91: 610677.5857 | E91: =+D91*'10. Var-Sup-Gen'!H23 -> 622891.1375 | F91: =+E91*'10. Var-Sup-Gen'!I23 -> 635348.9602 | G91: =+F91*'10. Var-Sup-Gen'!J23 -> 648055.9394 | H91: =+G91*'10. Var-Sup-Gen'!K23 -> 661017.0582
B92: Costos incrementales | E92: =+'4.2. OPEX (Incremental)'!D243 -> 272295.5986 | F92: =+'4.2. OPEX (Incremental)'!E243 -> 182431.2944 | G92: =+'4.2. OPEX (Incremental)'!F243 -> 449997.1927 | H92: =+'4.2. OPEX (Incremental)'!G243 -> 493240.1662
B93: Costo total | D93: =SUM(D86:D92) -> 30442406.37 | E93: =SUM(E86:E92) -> 30032296.96 | F93: =SUM(F86:F92) -> 33185908.29 | G93: =SUM(G86:G92) -> 38039324.09 | H93: =SUM(H86:H92) -> 38771091.74

Sheet 4.1. OPEX (Personal)
B1: 4.1 Costos de operación (OPEX) - Gasto de Personal | U1: Índice
B3: I. Información histórica
B4: (Expresado en soles. Fuente: Contabilidad regulatoria de CORPAC S.A.)
D5: 2017 | E5: =+D5+1 -> 2018 | F5: =+E5+1 -> 2019 | G5: =+F5+1 -> 2020
B6: SNAR Nacional | D6: =+'4. OPEX'!E9 -> 44982994.65 | E6: =+'4. OPEX'!F9 -> 43469412.72 | F6: =+'4. OPEX'!G9 -> 47572068.82 | G6: =+'4. OPEX'!H9 -> 33033225.59
B7: SNAR Internacional | D7: =+'4. OPEX'!E20 -> 28616588.65 | E7: =+'4. OPEX'!F20 -> 22559704.08 | F7: =+'4. OPEX'!G20 -> 24415540.2 | G7: =+'4. OPEX'!H20 -> 13855129.54
B8: Aproximación | D8: =+'4. OPEX'!E31 -> 40193356.01 | E8: =+'4. OPEX'!F31 -> 40666721.61 | F8: =+'4. OPEX'!G31 -> 43319229.27 | G8: =+'4. OPEX'!H31 -> 29692596.61
B9: Sobrevuelo | D9: =+'4. OPEX'!E42 -> 27644886.08 | E9: =+'4. OPEX'!F42 -> 23813240.98 | F9: =+'4. OPEX'!G42 -> 26394622.14 | G9: =+'4. OPEX'!H42 -> 20906579.2
B10: Servicios No Regulados de Navegación Aérea | D10: 183890.4403 | E10: 131117.9886 | F10: 140704.0742 | G10: 85654.83398
B11: Total de Gastos de Personal - Aeronavegación | D11: =SUM(D6:D10) -> 141621715.8 | E11: =SUM(E6:E10) -> 130640197.4 | F11: =SUM(F6:F10) -> 141842164.5 | G11: =SUM(G6:G10) -> 97573185.78
B12: Total de Gastos de Personal - Total CORPAC | D12: 176172657.2 | E12: 170820430.2 | F12: 187290311.6 | G12: 130141214.7
B13: % aeronavegación respecto Total CORPAC | D13: =D11/D$12 -> 0.8038802278 | E13: =E11/E$12 -> 0.7647808708 | F13: =F11/F$12 -> 0.7573385045 | G13: =G11/G$12 -> 0.7497485406
B15: * Participación del gasto de personal - Aeronavegación:
B16: (Fuente: CORPAC S.A.)
B17: Servicio | D17: 2017 | E17: =+D17+1 -> 2018 | F17: =+E17+1 -> 2019 | G17: =+F17+1 -> 2020 | H17: Promedio
B18: SNAR Nacional | D18: =+D6/D$11 -> 0.3176278044 | E18: 0.3327414808 | F18: 0.3353873581 | G18: 0.3385481915 | H18: =AVERAGE(D18:G18) -> 0.3310762087
B19: SNAR Internacional | D19: =+D7/D$11 -> 0.202063564 | E19: 0.1726857777 | F19: 0.1721317514 | G19: 0.1419973063 | H19: =AVERAGE(D19:G19) -> 0.1722195998
B20: Aproximación | D20: 0.2838078594 | E20: 0.3112879682 | F20: 0.3054044573 | G20: 0.3043110295 | H20: =AVERAGE(D20:G20) -> 0.3012028286
B21: Sobrevuelo | D21: =+D9/D$11 -> 0.19520231 | E21: 0.1822811161 | F21: 0.1860844569 | G21: 0.2142656206 | H21: =AVERAGE(D21:G21) -> 0.1944583759
B22: Servicios No Regulados de Navegación Aérea | D22: 0.001298462169 | E22: 0.001003657306 | F22: 0.0009919763615 | G22: 0.0008778521813 | H22: =AVERAGE(D22:G22) -> 0.001042987004
B23: Total de Gastos de Personal - Aeronavegación | D23: =SUM(D18:D22) -> 1 | E23: =SUM(E18:E22) -> 1 | F23: =SUM(F18:F22) -> 1 | G23: =SUM(G18:G22) -> 1 | H23: =SUM(H18:H22) -> 1
B25: II. Proyecciones por servicio de aeronavegación
B27: a. Proyección de Gastos de Personal Total - Periodo 2021-2024
B28: (Expresado en soles. Fuente: CORPAC S.A.)
B29: Tipo de gasto de personal | C29: Subdivisión | D29: Rubros | E29: ¿Se incluye en tarifa? | F29: 2021 | J29: 2022 | N29: 2023 | R29: 2024
F30: Total | G30: Aeronavegación | H30: Aeroportuario | I30: Mixto | J30: Total | K30: Aeronavegación | L30: Aeroportuario | M30: Mixto | N30: Total | O30: Aeronavegación | P30: Aeroportuario | Q30: Mixto | R30: Total | S30: Aeronavegación | T30: Aeroportuario | U30: Mixto
B31: Sueldos y salarios | C31: Básica | D31: Sueldo Básico | E31: Sí | F31: 56059004 | G31: 33887984 | H31: 8770182 | I31: 13400838 | J31: 62525932 | K31: 36879953 | L31: 10236219 | M31: 15409760 | N31: 78473667 | O31: 44601990 | P31: 16145847 | Q31: 17725830 | R31: 79628667 | S31: 45260760 | T31: 16384321 | U31: 17983586
B32: Sueldos y salarios | C32: Básica | D32: Sueldo Vacacional | E32: Sí | F32: 5049808 | G32: 3052637 | H32: 790020 | I32: 1207151 | J32: 5684175 | K32: 3352723 | L32: 930565 | M32: 1400887 | N32: 7134009 | O32: 4054749 | P32: 1467812 | Q32: 1611448 | R32: 7239009 | S32: 4114637 | T32: 1489492 | U32: 1634880
B33: Sueldos y salarios | C33: Básica | D33: Ejercicios Anteriores Basico | E33: Sí | F33: 472794 | G33: 285807 | H33: 73967 | I33: 113020 | J33: 1638987 | K33: 966731 | L33: 268321 | M33: 403935 | N33: 1638972 | O33: 931541 | P33: 337216 | Q33: 370215 | R33: 1638972 | S33: 931588 | T33: 337233 | U33: 370151
B34: Sueldos y salarios | C34: Bonificaciones | D34: Bonificacion por Retorno Vacacional | E34: Sí | F34: 5054606 | G34: 3055538 | H34: 790771 | I34: 1208297 | J34: 5684175 | K34: 3352723 | L34: 930565 | M34: 1400887 | N34: 7134009 | O34: 4054749 | P34: 1467812 | Q34: 1611448 | R34: 7239009 | S34: 4114637 | T34: 1489492 | U34: 1634880
B35: Sueldos y salarios | C35: Bonificaciones | D35: Quinquenio (Remuneracion por Tiempo de Servicio) | E35: Sí | F35: 9631254 | G35: 5822147 | H35: 1506767 | I35: 2302340 | J35: 10110094 | K35: 5963282 | L35: 1655140 | M35: 2491672 | N35: 11687758 | O35: 6642958 | P35: 2404740 | Q35: 2640060 | R35: 12353274 | S35: 7021574 | T35: 2541798 | U35: 2789902
B36: Sueldos y salarios | C36: Bonificaciones | D36: Bonificacion por Antigüedad 30% | E36: Sí | F36: 0 | G36: 0 | H36: 0 | I36: 0 | J36: 0 | K36: 0 | L36: 0 | M36: 0 | N36: 0 | O36: 0 | P36: 0 | Q36: 0 | R36: 0 | S36: 0 | T36: 0 | U36: 0
B37: Sueldos y salarios | C37: Bonificaciones | D37: Bonificacion Consolidada (Incremento 10.23 Remun) | E37: Sí | F37: 377537 | G37: 228223 | H37: 59064 | I37: 90250 | J37: 373429 | K37: 220261 | L37: 61135 | M37: 92033 | N37: 408447 | O37: 232149 | P37: 84037 | Q37: 92261 | R37: 408447 | S37: 232160 | T37: 84042 | U37: 92245
B38: Sueldos y salarios | C38: Bonificaciones | D38: Otras Bonificaciones (Bolsa de cierre y otro similares) | E38: No | F38: 7900000 | G38: 4972000 | H38: 1347500 | I38: 1580500 | J38: 0 | K38: 0 | L38: 0 | M38: 0 | N38: 0 | O38: 0 | P38: 0 | Q38: 0 | R38: 0 | S38: 0 | T38: 0 | U38: 0
B39: Sueldos y salarios | C39: Bonificaciones | D39: Bonificacion unica por productividad (por Norma Legal). | E39: Sí | F39: 0 | G39: 0 | H39: 0 | I39: 0 | J39: 0 | K39: 0 | L39: 0 | M39: 0 | N39: 0 | O39: 0 | P39: 0 | Q39: 0 | R39: 0 | S39: 0 | T39: 0 | U39: 0
B40: Sueldos y salarios | C40: Bonificaciones | D40: Bonificación Extraordinaria (Ley 29714) | E40: Sí | F40: 1178151 | G40: 712199 | H40: 184316 | I40: 281636 | J40: 1405675 | K40: 829116 | L40: 230125 | M40: 346434 | N40: 1781865 | O40: 1012757 | P40: 366616 | Q40: 402492 | R40: 1815291 | S40: 1031807 | T40: 373513 | U40: 409971
B41: Sueldos y salarios | C41: Bonificaciones | D41: Ejercicios Anteriores Bonificaciones | E41: Sí | F41: 16066 | G41: 9712 | H41: 2513 | I41: 3841 | J41: 415128 | K41: 244857 | L41: 67961 | M41: 102310 | N41: 415128 | O41: 235946 | P41: 85412 | Q41: 93770 | R41: 415128 | S41: 235958 | T41: 85416 | U41: 93754
B42: Sueldos y salarios | C42: Gratificaciones | D42: Gratificaciones Ordinarias (1er y 2do semestre) | E42: Sí | F42: 13435332 | G42: 8121734 | H42: 2101898 | I42: 3211700 | J42: 15618614 | K42: 9212398 | L42: 2556948 | M42: 3849268 | N42: 19798470 | O42: 11252834 | P42: 4073508 | Q42: 4472128 | R42: 20169874 | S42: 11464512 | T42: 4150135 | U42: 4555227
B43: Sueldos y salarios | C43: Gratificaciones | D43: Gratificacion Extraordinario por Antigüedad (Tiempo de Ss.) | E43: Sí | F43: 1262316 | G43: 763077 | H43: 197484 | I43: 301755 | J43: 882732 | K43: 520666 | L43: 144513 | M43: 217553 | N43: 1911003 | O43: 1086155 | P43: 393186 | Q43: 431662 | R43: 1724979 | S43: 980474 | T43: 354930 | U43: 389575
B44: Sueldos y salarios | C44: Gratificaciones | D44: Gratificacion por Balance | E44: Sí | F44: 157024 | G44: 94922 | H44: 24566 | I44: 37536 | J44: 190247 | K44: 112214 | L44: 31146 | M44: 46887 | N44: 183021 | O44: 104023 | P44: 37656 | Q44: 41342 | R44: 183021 | S44: 104029 | T44: 37658 | U44: 41334
B45: Sueldos y salarios | C45: Gratificaciones | D45: Ejercicios Anteriores Gratificaciones | E45: Sí | F45: 58936 | G45: 35627 | H45: 9220 | I45: 14089 | J45: 242312 | K45: 142924 | L45: 39669 | M45: 59719 | N45: 242308 | O45: 137720 | P45: 49855 | Q45: 54733 | R45: 242308 | S45: 137727 | T45: 49857 | U45: 54724
B46: Sueldos y salarios | C46: Asignaciones | D46: Asignacion Familiar | E46: Sí | F46: 800226 | G46: 483741 | H46: 125192 | I46: 191293 | J46: 891256 | K46: 525694 | L46: 145908 | M46: 219654 | N46: 1485549 | O46: 844340 | P46: 305650 | Q46: 335559 | R46: 1513449 | S46: 860241 | T46: 311406 | U46: 341802
B47: Sueldos y salarios | C47: Asignaciones | D47: Asignacion Escolar | E47: Sí | F47: 2435400 | G47: 1472213 | H47: 381008 | I47: 582179 | J47: 2548900 | K47: 1503429 | L47: 417285 | M47: 628186 | N47: 4507200 | O47: 2561752 | P47: 927350 | Q47: 1018098 | R47: 4897200 | S47: 2783558 | T47: 1007643 | U47: 1105999
B48: Sueldos y salarios | C48: Asignaciones | D48: Asignación por Diferencia Remunerativa (Encargaturas) | E48: Sí | F48: 600640 | G48: 363090 | H48: 93967 | I48: 143583 | J48: 600000 | K48: 353901 | L48: 98227 | M48: 147872 | N48: 254917 | O48: 144887 | P48: 52449 | Q48: 57581 | R48: 254917 | S48: 144894 | T48: 52451 | U48: 57572
B49: Sueldos y salarios | C49: Asignaciones | D49: Asignacion Sepelio y Luto | E49: Sí | F49: 304591 | G49: 184127 | H49: 47652 | I49: 72812 | J49: 239822 | K49: 141455 | L49: 39262 | M49: 59105 | N49: 248069 | O49: 140995 | P49: 51040 | Q49: 56034 | R49: 248069 | S49: 141002 | T49: 51042 | U49: 56025
B50: Sueldos y salarios | C50: Asignaciones | D50: Asignación por Día 31 trabajado para Grupo CTA | E50: Sí | F50: 99141 | G50: 59931 | H50: 15510 | I50: 23700 | J50: 565835 | K50: 333749 | L50: 92634 | M50: 139452 | N50: 2703701 | O50: 2703701 | P50: 0 | Q50: 0 | R50: 2804554 | S50: 2804554 | T50: 0 | U50: 0
B51: Sueldos y salarios | C51: Asignaciones | D51: Años Anteriores Asignaciones | E51: Sí | F51: 127528 | G51: 77091 | H51: 19951 | I51: 30486 | J51: 27528 | K51: 16237 | L51: 4507 | M51: 6784 | N51: 27524 | O51: 15644 | P51: 5663 | Q51: 6217 | R51: 27524 | S51: 15645 | T51: 5663 | U51: 6216
B52: Sueldos y salarios | C52: Horas extras | D52: Horas Extraordinarias (25% -35%) | E52: Sí | F52: 2264400 | G52: 1368843 | H52: 354255 | I52: 541302 | J52: 2223218 | K52: 1311331 | L52: 363966 | M52: 547921 | N52: 4540644 | O52: 2580761 | P52: 934231 | Q52: 1025652 | R52: 4582501 | S52: 2604684 | T52: 942891 | U52: 1034926
B53: Sueldos y salarios | C53: Horas extras | D53: Feriados Trabajados | E53: Sí | F53: 1186851 | G53: 717458 | H53: 185678 | I53: 283715 | J53: 964511 | K53: 568902 | L53: 157902 | M53: 237707 | N53: 1270277 | O53: 721986 | P53: 261358 | Q53: 286933 | R53: 1313207 | S53: 746424 | T53: 270204 | U53: 296579
B54: Sueldos y salarios | C54: Horas extras | D54: Horas Libres Laborados | E54: Sí | F54: 10514040 | G54: 6355796 | H54: 1644875 | I54: 2513369 | J54: 8400000 | K54: 4954610 | L54: 1375177 | M54: 2070213 | N54: 6306911 | O54: 3584652 | P54: 1297638 | Q54: 1424621 | R54: 6306911 | S54: 3584834 | T54: 1297704 | U54: 1424373
B55: Sueldos y salarios | C55: Horas extras | D55: Ejercicios Anteriores Horas Extras | E55: Sí | F55: 441600 | G55: 266950 | H55: 69086 | I55: 105564 | J55: 235780 | K55: 139071 | L55: 38600 | M55: 58109 | N55: 235780 | O55: 134010 | P55: 48511 | Q55: 53259 | R55: 235780 | S55: 134017 | T55: 48514 | U55: 53249
B56: CTS | C56: CTS | D56: Compensacion Tiempo Servicio Empleado Depositado | E56: Sí | F56: 7677129 | G56: 4640868 | H56: 1201053 | I56: 1835208 | J56: 8583601 | K56: 5062904 | L56: 1405235 | M56: 2115462 | N56: 11979314 | O56: 6808669 | P56: 2464727 | Q56: 2705918 | R56: 12206713 | S56: 6938269 | T56: 2511642 | U56: 2756802
B57: CTS | C57: CTS | D57: Ejercicios Anteriores CTS | E57: Sí | F57: 209784 | G57: 126816 | H57: 32820 | I57: 50148 | J57: 157314 | K57: 92789 | L57: 25754 | M57: 38771 | N57: 157298 | O57: 89403 | P57: 32364 | Q57: 35531 | R57: 157298 | S57: 89408 | T57: 32365 | U57: 35525
B58: Seguridad y previsión social | C58: Seguridad y previsión social | D58: Essalud - Seguro Social | E58: Sí | F58: 8656574 | G58: 5232948 | H58: 1354283 | I58: 2069343 | J58: 10504745 | K58: 6196061 | L58: 1719749 | M58: 2588935 | N58: 11719923 | O58: 6661239 | P58: 2411358 | Q58: 2647326 | R58: 11936461 | S58: 6784658 | T58: 2456035 | U58: 2695768
B59: Seguridad y previsión social | C59: Seguridad y previsión social | D59: Seguro de Vida Ley DL 688 | E59: Sí | F59: 307506 | G59: 185889 | H59: 48108 | I59: 73509 | J59: 800000 | K59: 471868 | L59: 130969 | M59: 197163 | N59: 552598 | O59: 314080 | P59: 113696 | Q59: 124822 | R59: 552598 | S59: 314095 | T59: 113702 | U59: 124801
B60: Seguridad y previsión social | C60: Seguridad y previsión social | D60: Seguro Accidente Personal (Seguro Accidente de Viaje) | E60: Sí | F60: 110539 | G60: 66821 | H60: 17293 | I60: 26425 | J60: 50000 | K60: 29492 | L60: 8185 | M60: 12323 | N60: 89262 | O60: 50734 | P60: 18366 | Q60: 20162 | R60: 89262 | S60: 50736 | T60: 18366 | U60: 20160
B61: Seguridad y previsión social | C61: Seguridad y previsión social | D61: Ejercicios Anteriores Seguridad y Prevision Social | E61: Sí | F61: 0 | G61: 0 | H61: 0 | I61: 0 | J61: 87456 | K61: 51585 | L61: 14317 | M61: 21554 | N61: 87456 | O61: 49707 | P61: 17994 | Q61: 19755 | R61: 87456 | S61: 49710 | T61: 17995 | U61: 19751
B62: Dietas del directorio | C62: Dietas del directorio | D62: Dietas del Directorio (Asignacion por Sesion) | E62: Sí | F62: 266250 | G62: 160950 | H62: 41654 | I62: 63646 | J62: 285000 | K62: 168103 | L62: 46658 | M62: 70239 | N62: 285000 | O62: 161985 | P62: 58638 | Q62: 64377 | R62: 285000 | S62: 161993 | T62: 58641 | U62: 64366
B63: Capacitación | C63: Capacitación | D63: Capacitacion Empleados (Personal Administrativo | E63: Sí | F63: 177740 | G63: 107445 | H63: 27807 | I63: 42488 | J63: 336000 | K63: 198184 | L63: 55007 | M63: 82809 | N63: 180004 | O63: 102309 | P63: 37036 | Q63: 40659 | R63: 180004 | S63: 102314 | T63: 37037 | U63: 40653
B64: Capacitación | C64: Capacitación | D64: Curso Basico Formacion C.T.A. | E64: Sí | F64: 711040 | G64: 429828 | H64: 111239 | I64: 169973 | J64: 4671625 | K64: 2755486 | L64: 764799 | M64: 1151340 | N64: 4205781 | O64: 4205781 | P64: 0 | Q64: 0 | R64: 4205781 | S64: 4205781 | T64: 0 | U64: 0
B65: Capacitación | C65: Capacitación | D65: Capacitacion Personal Tecnico | E65: Sí | F65: 689367 | G65: 416726 | H65: 107848 | I65: 164793 | J65: 2217525 | K65: 1307973 | L65: 363034 | M65: 546518 | N65: 800000 | O65: 454695 | P65: 164599 | Q65: 180706 | R65: 800000 | S65: 454718 | T65: 164607 | U65: 180675
B66: Capacitación | C66: Capacitación | D66: Curso de Formación y Entrenamiento para Personal DGAC | E66: Sí | F66: 0 | G66: 0 | H66: 0 | I66: 0 | J66: 50000 | K66: 29492 | L66: 8185 | M66: 12323 | N66: 49996 | O66: 28416 | P66: 10287 | Q66: 11293 | R66: 49996 | S66: 28418 | T66: 10287 | U66: 11291
B67: Capacitación | C67: Capacitación | D67: Ejercicios Anteriores Capacitacion | E67: Sí | F67: 78760 | G67: 47611 | H67: 12322 | I67: 18827 | J67: 78760 | K67: 46455 | L67: 12894 | M67: 19411 | N67: 78764 | O67: 44767 | P67: 16206 | Q67: 17791 | R67: 78764 | S67: 44769 | T67: 16206 | U67: 17789
B68: Jubilaciones y pensiones | C68: Jubilaciones y pensiones | D68: Pension y Jubilacion | E68: Sí | F68: 0 | G68: 0 | H68: 0 | I68: 0 | J68: 0 | K68: 0 | L68: 0 | M68: 0 | N68: 0 | O68: 0 | P68: 0 | Q68: 0 | R68: 0 | S68: 0 | T68: 0 | U68: 0
B69: Otros gastos de personal | C69: Refrigerio | D69: Alimentos por Vales | E69: Sí | F69: 53647 | G69: 32430 | H69: 8393 | I69: 12824 | J69: 110000 | K69: 64882 | L69: 18008 | M69: 27110 | N69: 109996 | O69: 62518 | P69: 22632 | Q69: 24846 | R69: 109996 | S69: 62521 | T69: 22633 | U69: 24842
B70: Otros gastos de personal | C70: UNIFORMES (compensación económica) | D70: Asignacion Vestuarios y Otros Implementos | E70: Sí | F70: 2761500 | G70: 1669342 | H70: 432024 | I70: 660134 | J70: 2699200 | K70: 1592081 | L70: 441891 | M70: 665228 | N70: 3822500 | O70: 2172590 | P70: 786474 | Q70: 863436 | R70: 4012500 | S70: 2280696 | T70: 825608 | U70: 906196
B71: Otros gastos de personal | C71: UNIFORMES (compensación económica) | D71: Ejercicios Anteriores Uniforme | E71: Sí | F71: 6781 | G71: 4099 | H71: 1061 | I71: 1621 | J71: 6781 | K71: 4000 | L71: 1110 | M71: 1671 | N71: 6782 | O71: 3855 | P71: 1395 | Q71: 1532 | R71: 6782 | S71: 3855 | T71: 1395 | U71: 1532
B72: Otros gastos de personal | C72: Asistencia médica | D72: (Auto) Seguro de Asistencia Medica Trabajadores | E72: Sí | F72: 5335449 | G72: 3225309 | H72: 834707 | I72: 1275433 | J72: 6501200 | K72: 3834632 | L72: 1064322 | M72: 1602246 | N72: 9870400 | O72: 5610028 | P72: 2030821 | Q72: 2229551 | R72: 9990400 | S72: 5678521 | T72: 2055615 | U72: 2256264
B73: Otros gastos de personal | C73: Asistencia médica | D73: Seguro Medico Practicante | E73: Sí | F73: 71271 | G73: 43084 | H73: 11150 | I73: 17037 | J73: 144000 | K73: 84936 | L73: 23575 | M73: 35489 | N73: 421200 | O73: 239397 | P73: 86661 | Q73: 95142 | R73: 421200 | S73: 239409 | T73: 86666 | U73: 95125
B74: Otros gastos de personal | C74: Asistencia médica | D74: Servicio Médico Personal Aeronáutico | E74: Sí | F74: 167199 | G74: 101073 | H74: 26158 | I74: 39968 | J74: 300000 | K74: 176950 | L74: 49114 | M74: 73936 | N74: 292835 | O74: 292835 | P74: 0 | Q74: 0 | R74: 292835 | S74: 292835 | T74: 0 | U74: 0
B75: Otros gastos de personal | C75: Asistencia médica | D75: Habilitación y Renovacion Licencia Personal Aeronáutico | E75: Sí | F75: 39451 | G75: 23848 | H75: 6172 | I75: 9431 | J75: 54000 | K75: 31851 | L75: 8840 | M75: 13309 | N75: 51226 | O75: 51226 | P75: 0 | Q75: 0 | R75: 51226 | S75: 51226 | T75: 0 | U75: 0
B76: Otros gastos de personal | C76: Asistencia médica | D76: Examenes Médicos Ocupacionales Ley Nº 29783 | E76: Sí | F76: 171129 | G76: 103448 | H76: 26772 | I76: 40909 | J76: 312840 | K76: 184524 | L76: 51215 | M76: 77101 | N76: 450000 | O76: 255766 | P76: 92587 | Q76: 101647 | R76: 450000 | S76: 255779 | T76: 92592 | U76: 101629
B77: Otros gastos de personal | C77: Asistencia médica | D77: Programa Médico Oncologico (titulares) | E77: Sí | F77: 0 | G77: 0 | H77: 0 | I77: 0 | J77: 0 | K77: 0 | L77: 0 | M77: 0 | N77: 0 | O77: 0 | P77: 0 | Q77: 0 | R77: 0 | S77: 0 | T77: 0 | U77: 0
B78: Otros gastos de personal | C78: Asistencia médica | D78: Ejercicios Anteriores Asistencia Medica | E78: Sí | F78: 75000 | G78: 45338 | H78: 11733 | I78: 17929 | J78: 48181 | K78: 28419 | L78: 7888 | M78: 11874 | N78: 75000 | O78: 42628 | P78: 15431 | Q78: 16941 | R78: 75000 | S78: 42630 | T78: 15432 | U78: 16938
B79: Otros gastos de personal | C79: Asistencia médica | D79: Cobertura Seguro PIRV 2017 | E79: Sí | F79: 0 | G79: 0 | H79: 0 | I79: 0 | J79: 0 | K79: 0 | L79: 0 | M79: 0 | N79: 0 | O79: 0 | P79: 0 | Q79: 0 | R79: 0 | S79: 0 | T79: 0 | U79: 0
B80: Otros gastos de personal | C80: Seguro complementario de trabajo de riesgo | D80: Seguro Complementario de Trabajo de Alto Riesgo | E80: Sí | F80: 250000 | G80: 151126 | H80: 39111 | I80: 59763 | J80: 819062 | K80: 483111 | L80: 134090 | M80: 201861 | N80: 772903 | O80: 439294 | P80: 159024 | Q80: 174585 | R80: 785531 | S80: 446494 | T80: 161630 | U80: 177407
B81: Otros gastos de personal | C81: Seguro complementario de trabajo de riesgo | D81: Ejercicios Anteriores SCTR | E81: Sí | F81: 9980 | G81: 6033 | H81: 1561 | I81: 2386 | J81: 9980 | K81: 5887 | L81: 1633 | M81: 2460 | N81: 9976 | O81: 5670 | P81: 2053 | Q81: 2253 | R81: 9976 | S81: 5670 | T81: 2053 | U81: 2253
B82: Otros gastos de personal | C82: Pago de indemnización por cese de relación laboral | D82: Indemnizacion Especial según D.L. 728 | E82: No | F82: 104238 | G82: 63012 | H82: 16308 | I82: 24918 | J82: 0 | K82: 0 | L82: 0 | M82: 0 | N82: 0 | O82: 0 | P82: 0 | Q82: 0 | R82: 0 | S82: 0 | T82: 0 | U82: 0
B83: Otros gastos de personal | C83: Incentivos por retiro voluntario (GIP) | D83: Programa Retiro Voluntario con Incentivo | E83: Sí | F83: 0 | G83: 0 | H83: 0 | I83: 0 | J83: 1454350 | K83: 857826 | L83: 238094 | M83: 358430 | N83: 0 | O83: 0 | P83: 0 | Q83: 0 | R83: 0 | S83: 0 | T83: 0 | U83: 0
B84: Otros gastos de personal | C84: Celebraciones | D84: Celebracion | E84: Sí | F84: 33000 | G84: 19949 | H84: 5163 | I84: 7888 | J84: 29830 | K84: 17595 | L84: 4883 | M84: 7352 | N84: 66000 | O84: 37512 | P84: 13579 | Q84: 14909 | R84: 66000 | S84: 37514 | T84: 13580 | U84: 14906
B85: Otros gastos de personal | C85: Bonos de productividad (Convenio de Gestión) | D85: Bono de Productividad | E85: Sí | F85: 0 | G85: 0 | H85: 0 | I85: 0 | J85: 0 | K85: 0 | L85: 0 | M85: 0 | N85: 0 | O85: 0 | P85: 0 | Q85: 0 | R85: 0 | S85: 0 | T85: 0 | U85: 0
B86: Otros gastos de personal | C86: Participación de trabajadores | D86: Participacion de Trabajadores | E86: No | F86: 0 | G86: 0 | H86: 0 | I86: 0 | J86: 0 | K86: 0 | L86: 0 | M86: 0 | N86: 0 | O86: 0 | P86: 0 | Q86: 0 | R86: 0 | S86: 0 | T86: 0 | U86: 0
B87: Otros (GIP) | C87: Otros (GIP) | D87: Gastos Rehabilitacion y Becas Hijos Trabajadores | E87: Sí | F87: 18156 | G87: 10975 | H87: 2840 | I87: 4341 | J87: 55932 | K87: 32991 | L87: 9156 | M87: 13785 | N87: 42594 | O87: 24209 | P87: 8764 | Q87: 9621 | R87: 42594 | S87: 24210 | T87: 8764 | U87: 9620
B88: Otros (GIP) | C88: Otros (GIP) | D88: Indemnizacion Vacaciones No Disfrutadas | E88: Sí | F88: 0 | G88: 0 | H88: 0 | I88: 0 | J88: 0 | K88: 0 | L88: 0 | M88: 0 | N88: 0 | O88: 0 | P88: 0 | Q88: 0 | R88: 0 | S88: 0 | T88: 0 | U88: 0
B89: Otros (GIP) | C89: Otros (GIP) | D89: Reduccion Periodo Vacacional | E89: Sí | F89: 174424 | G89: 105440 | H89: 27288 | I89: 41696 | J89: 220000 | K89: 129764 | L89: 36016 | M89: 54220 | N89: 220004 | O89: 125043 | P89: 45266 | Q89: 49695 | R89: 220004 | S89: 125050 | T89: 45268 | U89: 49686
B90: Otros (GIP) | C90: Otros (GIP) | D90: Programa de Asistencia Social | E90: Sí | F90: 334339 | G90: 202110 | H90: 52306 | I90: 79923 | J90: 350000 | K90: 206442 | L90: 57299 | M90: 86259 | N90: 388002 | O90: 220528 | P90: 79831 | Q90: 87643 | R90: 388002 | S90: 220539 | T90: 79835 | U90: 87628
B91: Otros (GIP) | C91: Otros (GIP) | D91: Practicas Pro y Pre Profesionales | E91: Sí | F91: 905799 | G91: 547561 | H91: 141708 | I91: 216530 | J91: 2362200 | K91: 1393307 | L91: 386720 | M91: 582173 | N91: 2606700 | O91: 1481567 | P91: 536325 | Q91: 588808 | R91: 2606700 | S91: 1481643 | T91: 536352 | U91: 588705
B92: Otros (GIP) | C92: Otros (GIP) | D92: Canasta Navideña | E92: Sí | F92: 1450000 | G92: 904000 | H92: 261000 | I92: 285000 | J92: 1679000 | K92: 985000 | L92: 277000 | M92: 417000 | N92: 2142000 | O92: 1217446 | P92: 440714 | Q92: 483840 | R92: 2142000 | S92: 1217508 | T92: 440736 | U92: 483756
B93: Otros (GIP) | C93: Otros (GIP) | D93: Ejercicios Anteriores Otros | E93: Sí | F93: 25000 | G93: 15113 | H93: 3911 | I93: 5976 | J93: 25000 | K93: 14746 | L93: 4093 | M93: 6161 | N93: 25000 | O93: 14209 | P93: 5144 | Q93: 5647 | R93: 25000 | S93: 14210 | T93: 5144 | U93: 5646
B94: Otros (GIP) | C94: Otros (GIP) | D94: Vales de Prestación Alimentaria | E94: Sí | F94: 0 | G94: 0 | H94: 0 | I94: 0 | J94: 0 | K94: 0 | L94: 0 | M94: 0 | N94: 0 | O94: 0 | P94: 0 | Q94: 0 | R94: 0 | S94: 0 | T94: 0 | U94: 0
B95: Total | F95: =SUM(F31:F94) -> 150298297 | G95: =SUM(G31:G94) -> 91080039 | H95: 23659235 | I95: 35559023 | J95: 166471932 | K95: 98185563 | L95: 27255508 | M95: 41030861 | N95: 203947743 | O95: 119048405 | P95: 40469559 | Q95: 44429779 | R95: 207567170 | S95: 121154895 | T95: 41195591 | U95: 45216684
B97: * Resumen de proyecciones:
E98: 2021 | F98: =+E98+1 -> 2022 | G98: =+F98+1 -> 2023 | H98: =+G98+1 -> 2024
B99: Aeronavegación | E99: =+G95 -> 91080039 | F99: =+K95 -> 98185563 | G99: =+O95 -> 119048405 | H99: =+S95 -> 121154895
B100: Aeroportuario | E100: =+H95 -> 23659235 | F100: =+L95 -> 27255508 | G100: =+P95 -> 40469559 | H100: =+T95 -> 41195591
B101: Mixto | E101: =+I95 -> 35559023 | F101: =+M95 -> 41030861 | G101: =+Q95 -> 44429779 | H101: =+U95 -> 45216684
B102: Total | E102: =SUM(E99:E101) -> 150298297 | F102: =SUM(F99:F101) -> 166471932 | G102: =SUM(G99:G101) -> 203947743 | H102: =SUM(H99:H101) -> 207567170
B104: b. Gastos de Personal a incluirse en las tarifas
B105: (Expresado en soles)
E106: 2021 | F106: =+E106+1 -> 2022 | G106: =+F106+1 -> 2023 | H106: =+G106+1 -> 2024
B107: Aeronavegación | E107: =SUMIF($E$31:$E$94,"Sí",G$31:G$94) -> 86045027 | F107: =SUMIF($E$31:$E$94,"Sí",K$31:K$94) -> 98185563 | G107: =SUMIF($E$31:$E$94,"Sí",O$31:O$94) -> 119048405 | H107: =SUMIF($E$31:$E$94,"Sí",S$31:S$94) -> 121154895
B108: Aeroportuario | E108: =SUMIF($E$31:$E$94,"Sí",H$31:H$94) -> 22295427 | F108: =SUMIF($E$31:$E$94,"Sí",L$31:L$94) -> 27255508 | G108: =SUMIF($E$31:$E$94,"Sí",P$31:P$94) -> 40469559 | H108: =SUMIF($E$31:$E$94,"Sí",T$31:T$94) -> 41195591
B109: Mixto | E109: =SUMIF($E$31:$E$94,"Sí",I$31:I$94) -> 33953605 | F109: =SUMIF($E$31:$E$94,"Sí",M$31:M$94) -> 41030861 | G109: =SUMIF($E$31:$E$94,"Sí",Q$31:Q$94) -> 44429779 | H109: =SUMIF($E$31:$E$94,"Sí",U$31:U$94) -> 45216684
B110: Total | E110: =SUM(E107:E109) -> 142294059 | F110: =SUM(F107:F109) -> 166471932 | G110: =SUM(G107:G109) -> 203947743 | H110: =SUM(H107:H109) -> 207567170
B112: c. Asignación de las proyecciones de gastos de personal a Aeronavegación
B113: (Expresado en soles)
E114: 2021 | F114: =+E114+1 -> 2022 | G114: =+F114+1 -> 2023 | H114: =+G114+1 -> 2024
B115: Aeronavegación | E115: =+E107 -> 86045027 | F115: =+F107 -> 98185563 | G115: =+G107 -> 119048405 | H115: =+H107 -> 121154895
B116: Mixto | E116: =+E109*'10. Var-Sup-Gen'!H25 -> 16976802.5 | F116: =+F109*'10. Var-Sup-Gen'!I25 -> 20515430.5 | G116: =+G109*'10. Var-Sup-Gen'!J25 -> 22214889.5 | H116: =+H109*'10. Var-Sup-Gen'!K25 -> 22608342
B117: Total | E117: =SUM(E115:E116) -> 103021829.5 | F117: =SUM(F115:F116) -> 118700993.5 | G117: =SUM(G115:G116) -> 141263294.5 | H117: =SUM(H115:H116) -> 143763237
B118: Nota: Se considera el 100% de los gastos de personal asignados a aeronavegación y el 50% de los considerados como mixtos.
B120: d. Gastos de personal - Total aeronavegación
B121: (En soles)
B122: Concepto | C122: % Asignación a Aeronavegación | E122: 2021 | F122: =E122+1 -> 2022 | G122: =F122+1 -> 2023 | H122: =G122+1 -> 2024
B123: Gastos de personal - Total aeronavegación | E123: =+E117 -> 103021829.5 | F123: =+F117 -> 118700993.5 | G123: =+G117 -> 141263294.5 | H123: =+H117 -> 143763237
B124: SNAR Nacional | C124: =+H18 -> 0.3310762087 | E124: =+$C124*E$123 -> 34108076.72 | F124: =+$C124*F$123 -> 39299074.9 | G124: =+$C124*G$123 -> 46768915.97 | H124: =+$C124*H$123 -> 47596587.46
B125: SNAR Internacional | C125: =+H19 -> 0.1722195998 | E125: =+$C125*E$123 -> 17742378.25 | F125: 20442637.6 | G125: 24328308.05 | H125: 24758847.15
B126: Aproximación | C126: =+H20 -> 0.3012028286 | E126: 31030466.45 | F126: 35753075 | G126: 42548903.88 | H126: =+$C126*H$123 -> 43301893.63
B127: Sobrevuelo | C127: =+H21 -> 0.1944583759 | E127: 20033457.65 | F127: 23082402.41 | G127: 27469830.82 | H127: =+$C127*H$123 -> 27955965.58
B128: Total Aeronavegación regulados | E128: =SUM(E124:E127) -> 102914379.1 | F128: =SUM(F124:F127) -> 118577189.9 | G128: =SUM(G124:G127) -> 141115958.7 | H128: =SUM(H124:H127) -> 143613293.8

Sheet 4.2. OPEX (Incremental)
B1: 4.2 Costos de operación (OPEX) Incremental | V1: Índice
B3: I. Costos incrementales no relacionados con la ampliación del AIJCh
B5: a. Determinación del costo unitario de las actividades de mantenimiento
B7: i. Información histórica, año 2020
B8: (Expresado en soles. Fuente: Contabilidad regulatoria de CORPAC S.A.)
C9: SNAR Nacional | D9: SNAR Internacional | E9: Aproximación | F9: Sobrevuelo | G9: Total | H9: Participación (%)
B10: Suministros y Materiales | C10: =+'4. OPEX'!H8 -> 2340184.393 | D10: =+'4. OPEX'!H19 -> 1533497.356 | E10: =+'4. OPEX'!H30 -> 1187833.793 | F10: =+'4. OPEX'!H41 -> 2435395.427 | G10: =SUM(C10:F10) -> 7496910.969 | H10: =+G10/$G$13 -> 0.1593307443
B11: Mantenimiento | C11: =+'4. OPEX'!H11 -> 1968143.27 | D11: =+'4. OPEX'!H22 -> 730018.8934 | E11: =+'4. OPEX'!H33 -> 2410679.39 | F11: =+'4. OPEX'!H44 -> 1101715.655 | G11: =SUM(C11:F11) -> 6210557.208 | H11: =+G11/$G$13 -> 0.1319920573
B12: Servicios Prestados por Terceros | C12: =+'4. OPEX'!H10 -> 15552886.46 | D12: =+'4. OPEX'!H21 -> 2862225.183 | E12: =+'4. OPEX'!H32 -> 11228710.84 | F12: =+'4. OPEX'!H43 -> 3701216.39 | G12: 33345038.86 | H12: 0.7086771983
B13: Total | C13: =SUM(C10:C12) -> 19861214.12 | D13: =SUM(D10:D12) -> 5125741.433 | E13: =SUM(E10:E12) -> 14827224.02 | F13: =SUM(F10:F12) -> 7238327.471 | G13: =SUM(G10:G12) -> 47052507.04
B15: ii. Cantidades de mantenimiento realizadas en el año 2020
B16: (Fuente: CORPAC)
C17: Actividades programadas | D17: Actividades ejecutadas
B18: Áreas de sistemas de comunicaciones aeronáuticas | C18: 4120 | D18: 1499
B19: Áreas de sistemas de navegación aérea | C19: 3648 | D19: 1191
B20: Área de sistemas de vigilancia aérea | C20: 2084 | D20: 561
B21: Área de soporte de sistemas CNS y ayudas luminosas | C21: 4626 | D21: 1891
B22: Simuladores | C22: 817 | D22: 605
B23: Servicios Prestados por Terceros | C23: =+SUM(C18:C22) -> 15295 | D23: =+SUM(D18:D22) -> 5747
B25: iii. Costo unitario de las actividades de mantenimiento
B26: (Expresado en soles)
B27: Detalle | D27: 2020
B28: Costo total de las actividades de mantenimiento en el año 2020 | D28: =+G13 -> 47052507.04
B29: Número de actividades de mantenimiento desarrolladas en el año 2020 | D29: =+D23 -> 5747
B30: Costo unitario de las actividades de mantenimiento, año base 2020 | D30: =+D28/D29 -> 8187.316346
B32: iv. Costo unitario de las actividades de mantenimiento por tipo de gasto
B33: (Expresado en soles)
B34: Costos unitarios | C34: 2020
B35: Suministros y Materiales | C35: =+$D$30*H10 -> 1304.491207
B36: Mantenimiento | C36: =+$D$30*H11 -> 1080.660729
B37: Servicios Prestados por Terceros | C37: 5802.16441
B38: Total | C38: =SUM(C35:C37) -> 8187.316346
B40: b. Actividades de mantenimiento incrementales proyectadas por CORPAC. Sin incluir la ampliación del AIJCh
B41: (Fuente: CORPAC)
C42: 2020 | D42: 2021 | E42: 2022 | F42: 2023 | G42: 2024
B43: Número de actividades de mantenimiento incrementales | C43: =D29 -> 5747 | D43: 403 | E43: 270 | F43: 666 | G43: 730
B45: c. Proyección de costos incrementales, sin incluir la ampliación del AIJCh
B46: (Expresado en soles)
B47: Costos incrementales | D47: 2021 | E47: 2022 | F47: 2023 | G47: 2024
B48: Suministros y Materiales | D48: =+$C35*D$43 -> 525709.9566 | E48: =+$C35*E$43 -> 352212.626 | F48: 868791.1441 | G48: 952278.5814
B49: Mantenimiento | D49: =+$C36*D$43 -> 435506.2737 | E49: 291778.3967 | F49: 719720.0453 | G49: 788882.3319
B50: Servicios Prestados por Terceros | D50: 2338272.257 | E50: 1566584.391 | F50: 3864241.497 | G50: 4235580.019
B51: Total | D51: =+SUM(D48:D50) -> 3299488.487 | E51: =+SUM(E48:E50) -> 2210575.413 | F51: =+SUM(F48:F50) -> 5452752.687 | G51: =+SUM(G48:G50) -> 5976740.933
B53: d. Participación de los servicios en los costos incrementales NO relacionados con la ampliación del AIJCh
B54: (Expresado en soles. Fuente: Contabilidad regulatoria de CORPAC S.A.)
B55: Detalle | C55: 2017 | H55: 2018 | M55: 2019 | R55: 2020
C56: SNAR nacional | D56: SNAR Internacional | E56: Aproximación | F56: Sobrevuelo | G56: Total | H56: SNAR nacional | I56: SNAR Internacional | J56: Aproximación | K56: Sobrevuelo | L56: Total | M56: SNAR nacional | N56: SNAR Internacional | O56: Aproximación | P56: Sobrevuelo | Q56: Total | R56: SNAR nacional | S56: SNAR Internacional | T56: Aproximación | U56: Sobrevuelo | V56: Total
B57: Suministros y Materiales | C57: =+VLOOKUP(B57,'4. OPEX'!$B$7:$H$15,4,0) -> 3289056.576 | D57: =+VLOOKUP(B57,'4. OPEX'!$B$18:$H$26,4,0) -> 697692.9185 | E57: =+VLOOKUP(B57,'4. OPEX'!$B$29:$H$37,4,0) -> 2104704.063 | F57: =+VLOOKUP($B57,'4. OPEX'!B40:H48,4,0) -> 564375.0402 | G57: =+SUM(C57:F57) -> 6655828.597 | H57: =+VLOOKUP(B57,'4. OPEX'!$B$7:$H$15,5,0) -> 1577965.411 | I57: =+VLOOKUP(B57,'4. OPEX'!$B$18:$H$26,5,0) -> 726028.5137 | J57: =+VLOOKUP(B57,'4. OPEX'!$B$29:$H$37,5,0) -> 1554098.939 | K57: =+VLOOKUP($B57,'4. OPEX'!B40:H48,5,0) -> 752948.593 | L57: =+SUM(H57:K57) -> 4611041.457 | M57: =+VLOOKUP(B57,'4. OPEX'!$B$7:$H$15,6,0) -> 1155468.467 | N57: =+VLOOKUP(B57,'4. OPEX'!$B$18:$H$26,6,0) -> 398910.3457 | O57: =+VLOOKUP(B57,'4. OPEX'!$B$29:$H$37,6,0) -> 2591206.703 | P57: =+VLOOKUP($B57,'4. OPEX'!B40:H48,6,0) -> 410242.3799 | Q57: =+SUM(M57:P57) -> 4555827.896 | R57: =+VLOOKUP(B57,'4. OPEX'!$B$7:$H$15,7,0) -> 2340184.393 | S57: =+VLOOKUP(B57,'4. OPEX'!$B$18:$H$26,7,0) -> 1533497.356 | T57: =+VLOOKUP(B57,'4. OPEX'!$B$29:$H$37,7,0) -> 1187833.793 | U57: =+VLOOKUP($B57,'4. OPEX'!B40:H48,7,0) -> 2435395.427 | V57: =+SUM(R57:U57) -> 7496910.969
B58: Servicios prestados por terceros | C58: =+VLOOKUP(B58,'4. OPEX'!$B$7:$H$15,4,0) -> 15668345.12 | D58: =+VLOOKUP(B58,'4. OPEX'!$B$18:$H$26,4,0) -> 4771371.041 | E58: =+VLOOKUP(B58,'4. OPEX'!$B$29:$H$37,4,0) -> 12913170.55 | F58: =+VLOOKUP($B58,'4. OPEX'!B41:H49,4,0) -> 4171236.129 | G58: =+SUM(C58:F58) -> 37524122.84 | H58: =+VLOOKUP(B58,'4. OPEX'!$B$7:$H$15,5,0) -> 16381705.98 | I58: =+VLOOKUP(B58,'4. OPEX'!$B$18:$H$26,5,0) -> 4218914.586 | J58: =+VLOOKUP(B58,'4. OPEX'!$B$29:$H$37,5,0) -> 13440364.98 | K58: =+VLOOKUP($B58,'4. OPEX'!B41:H49,5,0) -> 3934712.005 | L58: =+SUM(H58:K58) -> 37975697.55 | M58: =+VLOOKUP(B58,'4. OPEX'!$B$7:$H$15,6,0) -> 17445248 | N58: =+VLOOKUP(B58,'4. OPEX'!$B$18:$H$26,6,0) -> 4338777.859 | O58: =+VLOOKUP(B58,'4. OPEX'!$B$29:$H$37,6,0) -> 13250307.05 | P58: =+VLOOKUP($B58,'4. OPEX'!B41:H49,6,0) -> 4024961.75 | Q58: =+SUM(M58:P58) -> 39059294.66 | R58: =+VLOOKUP(B58,'4. OPEX'!$B$7:$H$15,7,0) -> 15552886.46 | S58: =+VLOOKUP(B58,'4. OPEX'!$B$18:$H$26,7,0) -> 2862225.183 | T58: =+VLOOKUP(B58,'4. OPEX'!$B$29:$H$37,7,0) -> 11228710.84 | U58: =+VLOOKUP($B58,'4. OPEX'!B41:H49,7,0) -> 3701216.39 | V58: =+SUM(R58:U58) -> 33345038.86
B59: Mantenimiento | C59: =+VLOOKUP(B59,'4. OPEX'!$B$7:$H$15,4,0) -> 3333235.414 | D59: =+VLOOKUP(B59,'4. OPEX'!$B$18:$H$26,4,0) -> 932230.9842 | E59: =+VLOOKUP(B59,'4. OPEX'!$B$29:$H$37,4,0) -> 2584395.357 | F59: =+VLOOKUP($B59,'4. OPEX'!B42:H50,4,0) -> 850310.3331 | G59: =+SUM(C59:F59) -> 7700172.088 | H59: =+VLOOKUP(B59,'4. OPEX'!$B$7:$H$15,5,0) -> 1675655.664 | I59: =+VLOOKUP(B59,'4. OPEX'!$B$18:$H$26,5,0) -> 551253.9388 | J59: =+VLOOKUP(B59,'4. OPEX'!$B$29:$H$37,5,0) -> 1601774.357 | K59: =+VLOOKUP($B59,'4. OPEX'!B42:H50,5,0) -> 551161.9197 | L59: =+SUM(H59:K59) -> 4379845.88 | M59: =+VLOOKUP(B59,'4. OPEX'!$B$7:$H$15,6,0) -> 1591671.761 | N59: =+VLOOKUP(B59,'4. OPEX'!$B$18:$H$26,6,0) -> 679078.0808 | O59: =+VLOOKUP(B59,'4. OPEX'!$B$29:$H$37,6,0) -> 1436201.778 | P59: =+VLOOKUP($B59,'4. OPEX'!B42:H50,6,0) -> 705166.8236 | Q59: =+SUM(M59:P59) -> 4412118.443 | R59: =+VLOOKUP(B59,'4. OPEX'!$B$7:$H$15,7,0) -> 1968143.27 | S59: =+VLOOKUP(B59,'4. OPEX'!$B$18:$H$26,7,0) -> 730018.8934 | T59: =+VLOOKUP(B59,'4. OPEX'!$B$29:$H$37,7,0) -> 2410679.39 | U59: =+VLOOKUP($B59,'4. OPEX'!B42:H50,7,0) -> 1101715.655 | V59: =+SUM(R59:U59) -> 6210557.208
B61: Detalle | C61: 2017 | H61: 2018 | M61: 2019 | R61: 2020
C62: SNAR nacional | D62: SNAR Internacional | E62: Aproximación | F62: Sobrevuelo | G62: Total | H62: SNAR nacional | I62: SNAR Internacional | J62: Aproximación | K62: Sobrevuelo | L62: Total | M62: SNAR nacional | N62: SNAR Internacional | O62: Aproximación | P62: Sobrevuelo | Q62: Total | R62: SNAR nacional | S62: SNAR Internacional | T62: Aproximación | U62: Sobrevuelo | V62: Total
B63: Suministros y Materiales | C63: =+C57/$G57 -> 0.4941618505 | D63: 0.1048243518 | E63: 0.316219691 | F63: 0.0847941067 | G63: 1 | H63: =+H57/$L57 -> 0.3422145356 | I63: 0.1574543453 | J63: 0.3370385961 | K63: 0.163292523 | L63: 1 | M63: =+M57/$Q57 -> 0.2536242575 | N63: 0.0875604511 | O63: 0.5687674693 | P63: 0.09004782211 | Q63: 1 | R63: =+R57/$V57 -> 0.3121531525 | S63: 0.2045505626 | T63: 0.1584430971 | U63: 0.3248531878 | V63: 1
B64: Servicios prestados por terceros | C64: 0.4175539342 | D64: 0.1271547655 | E64: 0.3441298443 | F64: 0.111161456 | G64: 1 | H64: 0.4313734056 | I64: 0.1110951176 | J64: 0.3539201606 | K64: 0.1036113162 | L64: 1 | M64: 0.4466349981 | N64: 0.1110818282 | O64: 0.3392356971 | P64: 0.1030474765 | Q64: 1 | R64: 0.4664228019 | S64: 0.08583661259 | T64: 0.3367430724 | U64: 0.1109975131 | V64: 1
B65: Mantenimiento | C65: 0.4328780416 | D65: 0.1210662533 | E65: 0.3356282597 | F65: 0.1104274454 | G65: 1 | H65: 0.3825832483 | I65: 0.1258614924 | J65: 0.3657147766 | K65: 0.1258404827 | L65: 1 | M65: 0.3607500074 | N65: 0.1539120242 | O65: 0.3255129698 | P65: 0.1598249985 | Q65: 1 | R65: 0.3169028485 | S65: 0.1175448304 | T65: 0.3881583099 | U65: 0.1773940112 | V65: 1
B67: * Participación promedio 2017-2020 gastos:
B68: Detalle | C68: SNAR nacional | D68: SNAR Internacional | E68: Aproximación | F68: Sobrevuelo
B69: Suministros y Materiales | C69: =+AVERAGE(C63,H63,M63,R63) -> 0.350538449 | D69: 0.1385974277 | E69: 0.3451172134 | F69: 0.1657469099
B70: Servicios prestados por terceros | C70: 0.440496285 | D70: 0.108792081 | E70: 0.3435071936 | F70: 0.1072044405
B71: Mantenimiento | C71: 0.3732785365 | D71: 0.1295961501 | E71: 0.353753579 | F71: 0.1433717345
B73: e. Asignación de los costos incrementales no relacionados con la ampliación del AIJCh a los servicios de aeronavegación
B75: i. Para SNAR Nacional
B76: (Expresado en soles)
B77: Detalle | D77: 2021 | E77: 2022 | F77: 2023 | G77: 2024
B78: Suministros y Materiales | D78: =+D48*$C69 -> 184281.5528 | E78: =+E48*$C69 -> 123464.0676 | F78: =+F48*$C69 -> 304544.7002 | G78: =+G48*$C69 -> 333810.257
B79: Servicios prestados por terceros | D79: =+D50*$C70 -> 1030000.243 | E79: =+E50*$C70 -> 690074.6042 | F79: =+F50*$C70 -> 1702184.024 | G79: =+G50*$C70 -> 1865757.263
B80: Mantenimiento | D80: =+D49*$C71 -> 162565.1445 | E80: =+E49*$C71 -> 108914.6129 | F80: =+F49*$C71 -> 268656.0452 | G80: =+G49*$C71 -> 294472.8423
B81: Costos de operación y mantenimiento | D81: =+SUM(D78:D80) -> 1376846.94 | E81: =+SUM(E78:E80) -> 922453.2847 | F81: 2275384.769 | G81: 2494040.362
B83: ii. Para SNAR Internacional
B84: (Expresado en soles)
B85: Detalle | D85: 2021 | E85: 2022 | F85: 2023 | G85: 2024
B86: Suministros y Materiales | D86: =+D48*$D69 -> 72862.0477 | E86: =+E48*$D69 -> 48815.76397 | F86: =+F48*$D69 -> 120412.2178 | G86: =+G48*$D69 -> 131983.3618
B87: Servicios prestados por terceros | D87: =+D50*$D70 -> 254385.5048 | E87: =+E50*$D70 -> 170431.9759 | F87: =+F50*$D70 -> 420398.8739 | G87: =+G50*$D70 -> 460797.5645
B88: Mantenimiento | D88: =+D49*$D71 -> 56439.93639 | E88: =+E49*$D71 -> 37813.35689 | F88: =+F49*$D71 -> 93272.94699 | G88: =+G49*$D71 -> 102236.1131
B89: Costos de operación y mantenimiento | D89: =+SUM(D86:D88) -> 383687.4889 | E89: =+SUM(E86:E88) -> 257061.0968 | F89: =+SUM(F86:F88) -> 634084.0387 | G89: =+SUM(G86:G88) -> 695017.0394
B91: iii. Para Aproximación
B92: (Expresado en soles)
B93: Detalle | D93: 2021 | E93: 2022 | F93: 2023 | G93: 2024
B94: Suministros y Materiales | D94: =+D48*$E69 -> 181431.5553 | E94: =+E48*$E69 -> 121554.64 | F94: =+F48*$E69 -> 299834.7787 | G94: =+G48*$E69 -> 328647.7304
B95: Servicios prestados por terceros | D95: =+D50*$E70 -> 803213.341 | E95: =+E50*$E70 -> 538133.0076 | F95: =+F50*$E70 -> 1327394.752 | G95: =+G50*$E70 -> 1454952.206
B96: Mantenimiento | D96: =+D49*$E71 -> 154061.903 | E96: =+E49*$E71 -> 103217.6521 | F96: =+F49*$E71 -> 254603.5419 | G96: =+G49*$E71 -> 279069.9483
B97: Costos de operación y mantenimiento | D97: =+SUM(D94:D96) -> 1138706.799 | E97: =+SUM(E94:E96) -> 762905.2997 | F97: =+SUM(F94:F96) -> 1881833.073 | G97: =+SUM(G94:G96) -> 2062669.884
B99: iv. Para Sobrevuelo
B100: (Expresado en soles)
B101: Detalle | D101: 2021 | E101: 2022 | F101: 2023 | G101: 2024
B102: Suministros y Materiales | D102: =+D48*$F69 -> 87134.80081 | E102: =+E48*$F69 -> 58378.15439 | F102: =+F48*$F69 -> 143999.4475 | G102: =+G48*$F69 -> 157837.2322
B103: Servicios prestados por terceros | D103: =+D50*$F70 -> 250673.169 | E103: =+E50*$F70 -> 167944.803 | F103: =+F50*$F70 -> 414263.8475 | G103: =+G50*$F70 -> 454072.986
B104: Mantenimiento | D104: =+D49*$F71 -> 62439.28982 | E104: =+E49*$F71 -> 41832.77482 | F104: =+F49*$F71 -> 103187.5112 | G104: =+G49*$F71 -> 113103.4282
B105: Costos de operación y mantenimiento | D105: =+SUM(D102:D104) -> 400247.2596 | E105: =+SUM(E102:E104) -> 268155.7322 | F105: =+SUM(F102:F104) -> 661450.8062 | G105: =+SUM(G102:G104) -> 725013.6464
B107: f. Ajuste de los costos incrementales no relacionados con la ampliación del AIJCh a los servicios de aeronavegación
B109: i. Para SNAR Nacional
B110: (Expresado en soles)
B111: Detalle | D111: 2021 | E111: 2022 | F111: 2023 | G111: 2024
B112: Suministros y Materiales | D112: =+D78*'5.3. InvEjecutadas'!$H$77 -> 125370.1419 | E112: =+E78*'5.3. InvEjecutadas'!$H$77 -> 83994.88416 | F112: =+F78*'5.3. InvEjecutadas'!$H$77 -> 207187.3809 | G112: =+G78*'5.3. InvEjecutadas'!$H$77 -> 227097.2794
B113: Servicios prestados por terceros | D113: =+D79*'5.3. InvEjecutadas'!$H$77 -> 700728.1771 | E113: =+E79*'5.3. InvEjecutadas'!$H$77 -> 469470.4909 | F113: =+F79*'5.3. InvEjecutadas'!$H$77 -> 1158027.211 | G113: =+G79*'5.3. InvEjecutadas'!$H$77 -> 1269309.105
B114: Mantenimiento | D114: =+D80*'5.3. InvEjecutadas'!$H$77 -> 110596.0685 | E114: =+E80*'5.3. InvEjecutadas'!$H$77 -> 74096.62155 | F114: =+F80*'5.3. InvEjecutadas'!$H$77 -> 182771.6665 | G114: =+G80*'5.3. InvEjecutadas'!$H$77 -> 200335.3101
B115: Costos de operación y mantenimiento | D115: =+SUM(D112:D114) -> 936694.3875 | E115: =+SUM(E112:E114) -> 627561.9966 | F115: =+SUM(F112:F114) -> 1547986.258 | G115: =+SUM(G112:G114) -> 1696741.694
B117: ii. Para SNAR Internacional
B118: (Expresado en soles)
B119: Detalle | D119: 2021 | E119: 2022 | F119: 2023 | G119: 2024
B120: Suministros y Materiales | D120: =+D86*'5.3. InvEjecutadas'!$H$77 -> 49569.39596 | E120: =+E86*'5.3. InvEjecutadas'!$H$77 -> 33210.26529 | F120: =+F86*'5.3. InvEjecutadas'!$H$77 -> 81918.65437 | G120: =+G86*'5.3. InvEjecutadas'!$H$77 -> 89790.71725
B121: Servicios prestados por terceros | D121: =+D87*'5.3. InvEjecutadas'!$H$77 -> 173063.1544 | E121: =+E87*'5.3. InvEjecutadas'!$H$77 -> 115948.0191 | F121: =+F87*'5.3. InvEjecutadas'!$H$77 -> 286005.1138 | G121: =+G87*'5.3. InvEjecutadas'!$H$77 -> 313489.0887
B122: Mantenimiento | D122: =+D88*'5.3. InvEjecutadas'!$H$77 -> 38397.13052 | E122: =+E88*'5.3. InvEjecutadas'!$H$77 -> 25725.12466 | F122: =+F88*'5.3. InvEjecutadas'!$H$77 -> 63455.3075 | G122: =+G88*'5.3. InvEjecutadas'!$H$77 -> 69553.11483
B123: Costos de operación y mantenimiento | D123: =+SUM(D120:D122) -> 261029.6809 | E123: =+SUM(E120:E122) -> 174883.409 | F123: =+SUM(F120:F122) -> 431379.0756 | G123: =+SUM(G120:G122) -> 472832.9208
B125: iii. Para Aproximación
B126: (Expresado en soles)
B127: Detalle | D127: 2021 | E127: 2022 | F127: 2023 | G127: 2024
B128: Suministros y Materiales | D128: =+D94*'5.3. InvEjecutadas'!$H$77 -> 123431.236 | E128: =+E94*'5.3. InvEjecutadas'!$H$77 -> 82695.8653 | F128: =+F94*'5.3. InvEjecutadas'!$H$77 -> 203983.1344 | G128: =+G94*'5.3. InvEjecutadas'!$H$77 -> 223585.1173
B129: Servicios prestados por terceros | D129: =+D95*'5.3. InvEjecutadas'!$H$77 -> 546440.8619 | E129: =+E95*'5.3. InvEjecutadas'!$H$77 -> 366101.8181 | F129: =+F95*'5.3. InvEjecutadas'!$H$77 -> 903051.1514 | G129: =+G95*'5.3. InvEjecutadas'!$H$77 -> 989830.8416
B130: Mantenimiento | D130: =+D96*'5.3. InvEjecutadas'!$H$77 -> 104811.1563 | E130: =+E96*'5.3. InvEjecutadas'!$H$77 -> 70220.87397 | F130: =+F96*'5.3. InvEjecutadas'!$H$77 -> 173211.4891 | G130: =+G96*'5.3. InvEjecutadas'!$H$77 -> 189856.437
B131: Costos de operación y mantenimiento | D131: =+SUM(D128:D130) -> 774683.2542 | E131: =+SUM(E128:E130) -> 519018.5574 | F131: =+SUM(F128:F130) -> 1280245.775 | G131: =+SUM(G128:G130) -> 1403272.396
B133: iv. Para Sobrevuelo
B134: (Expresado en soles)
B135: Detalle | D135: 2021 | E135: 2022 | F135: 2023 | G135: 2024
B136: Suministros y Materiales | D136: =+D102*'5.3. InvEjecutadas'!$H$77 -> 59279.41335 | E136: =+E102*'5.3. InvEjecutadas'!$H$77 -> 39715.73599 | F136: =+F102*'5.3. InvEjecutadas'!$H$77 -> 97965.48212 | G136: =+G102*'5.3. InvEjecutadas'!$H$77 -> 107379.5825
B137: Servicios prestados por terceros | D137: =+D103*'5.3. InvEjecutadas'!$H$77 -> 170537.5839 | E137: =+E103*'5.3. InvEjecutadas'!$H$77 -> 114255.9495 | F137: =+F103*'5.3. InvEjecutadas'!$H$77 -> 281831.3421 | G137: =+G103*'5.3. InvEjecutadas'!$H$77 -> 308914.2338
B138: Mantenimiento | D138: =+D104*'5.3. InvEjecutadas'!$H$77 -> 42478.60139 | E138: =+E104*'5.3. InvEjecutadas'!$H$77 -> 28459.60887 | F138: =+F104*'5.3. InvEjecutadas'!$H$77 -> 70200.36856 | G138: =+G104*'5.3. InvEjecutadas'!$H$77 -> 76946.34992
B139: Costos de operación y mantenimiento | D139: =+SUM(D136:D138) -> 272295.5986 | E139: =+SUM(E136:E138) -> 182431.2944 | F139: =+SUM(F136:F138) -> 449997.1927 | G139: =+SUM(G136:G138) -> 493240.1662
B141: II. Costos incrementales relacionados con la ampliación del AIJCh
B143: a. Proyecciones de los costos incrementales relacionados con la ampliación del AIJCh
B145: (Expresado en soles)
B146: Detalle | E146: 2022 | F146: 2023 | G146: 2024
B147: Suministros y Materiales | E147: 607524.0536 | F147: 810115.5038 | G147: 1028775.328
B148: Servicios prestados por terceros | E148: 465075.3956 | F148: 620164.3972 | G148: 787554.1549
B149: Seguros y tributos | E149: 200634.0268 | F149: 267539.5892 | G149: 339751.711
B150: Otros Costos | E150: 251315.6693 | F150: 335122.0727 | G150: 425575.5118
B151: Costos de operación y mantenimiento | E151: =+SUM(E147:E150) -> 1524549.145 | F151: =+SUM(F147:F150) -> 2032941.563 | G151: =+SUM(G147:G150) -> 2581656.706
B153: b. Participación de los servicios en los costos incrementales relacionados con la ampliación del AIJCh
B154: (Expresado en soles)
D155: 2021 | E155: 2022 | F155: 2023 | G155: 2024
B156: Inversión ampliación AIJCh asignada a SNAR | D156: 1180018.935 | E156: 13560278.73 | F156: 12421448.17
B157: Inversión ampliación AIJCh asignada a Aproximación | D157: 2538936.741 | E157: 55098901.38 | F157: 31443446.16
B158: Inversión ampliación AIJCh | D158: =+D156+D157 -> 3718955.677 | E158: =+E156+E157 -> 68659180.11 | F158: =+F156+F157 -> 43864894.33
B159: Inversión acumulada ampliación AIJCh asignada a SNAR | D159: 1180018.935 | E159: =+D159+E156 -> 14740297.67 | F159: 27161745.84 | G159: 27161745.84
B160: Inversión acumulada ampliación AIJCh asignada a Aproximación | D160: 2538936.741 | E160: 57637838.12 | F160: 89081284.28 | G160: 89081284.28
B161: Inversión acumulada ampliación AIJCh | D161: =+D159+D160 -> 3718955.677 | E161: =+E159+E160 -> 72378135.79 | F161: =+F159+F160 -> 116243030.1 | G161: =+G159+G160 -> 116243030.1
B162: SNAR | D162: =+D159/D161 -> 0.3172984671 | E162: =+E159/E161 -> 0.2036567743 | F162: =+F159/F161 -> 0.2336634361 | G162: =+G159/G161 -> 0.2336634361
B163: Aproximación | D163: =+D160/D161 -> 0.6827015329 | E163: =+E160/E161 -> 0.7963432257 | F163: =+F160/F161 -> 0.7663365639 | G163: =+G160/G161 -> 0.7663365639
B165: c. Asignación de los costos incrementales relacionados con la ampliación del AIJCh a los servicios de aeronavegación
B167: i. Para los servicios de SNAR nacional-internacional y sobrevuelo
B168: (Expresado en soles)
B169: Detalle | E169: 2022 | F169: 2023 | G169: 2024
B170: Suministros y Materiales | E170: =+E147*E$162 -> 123726.3891 | F170: 189294.3722 | G170: 240387.178
B171: Servicios prestados por terceros | E171: 94715.75489 | F171: 144909.744 | G171: 184022.6099
B172: Seguros y tributos | E172: 40860.47872 | F172: 62514.21969 | G172: 79387.5522
B173: Otros Costos | E173: 51182.13855 | F173: 78305.77501 | G173: 99441.4364
B174: Costos de operación y mantenimiento | E174: =+SUM(E170:E173) -> 310484.7612 | F174: =+SUM(F170:F173) -> 475024.1109 | G174: =+SUM(G170:G173) -> 603238.7765
B176: ii. Para los servicios de SNAR internacional
B177: (Expresado en soles)
B178: Detalle | E178: 2022 | F178: 2023 | G178: 2024
B179: Suministros y Materiales
B180: Servicios prestados por terceros
B181: Seguros y tributos
B182: Otros Costos
B183: Costos de operación y mantenimiento | E183: =+SUM(E179:E182) -> 0 | F183: =+SUM(F179:F182) -> 0 | G183: =+SUM(G179:G182) -> 0
B185: iii. Para Aproximación
B186: (Expresado en soles)
B187: Detalle | E187: 2022 | F187: 2023 | G187: 2024
B188: Suministros y Materiales | E188: =+E147*E$163 -> 483797.6645 | F188: 620821.1316 | G188: 788388.1497
B189: Servicios prestados por terceros | E189: 370359.6407 | F189: 475254.6532 | G189: 603531.545
B190: Seguros y tributos | E190: 159773.5481 | F190: 205025.3695 | G190: 260364.1588
B191: Otros Costos | E191: 200133.5308 | F191: 256816.2977 | G191: 326134.0754
B192: Costos de operación y mantenimiento | E192: =+SUM(E188:E191) -> 1214064.384 | F192: =+SUM(F188:F191) -> 1557917.452 | G192: =+SUM(G188:G191) -> 1978417.929
B194: iv. Para Sobrevuelo
B195: (Expresado en soles)
B196: Detalle | E196: 2022 | F196: 2023 | G196: 2024
B197: Suministros y Materiales
B198: Servicios prestados por terceros
B199: Seguros y tributos
B200: Otros Costos
B201: Costos de operación y mantenimiento | E201: =+SUM(E197:E200) -> 0 | F201: =+SUM(F197:F200) -> 0 | G201: =+SUM(G197:G200) -> 0
B203: III. Costos incrementales totales (incluye el mantenimiento de equipos y la ampliación del AIJCh)
B205: a. Para SNAR nacional
B206: (Expresado en soles) | D206: 3 | E206: 4 | F206: 5 | G206: 6
B207: Detalle | D207: 2021 | E207: 2022 | F207: 2023 | G207: 2024
B208: Suministros y Materiales | D208: =IFERROR(VLOOKUP($B208,$B$111:$G$114,D$206,0),0)+IFERROR(VLOOKUP($B208,$B$169:$G$173,D$206,0),0) -> 125370.1419 | E208: 207721.2732 | F208: 396481.7532 | G208: 467484.4574
B209: Servicios prestados por terceros | D209: 700728.1771 | E209: 564186.2458 | F209: 1302936.955 | G209: 1453331.715
B210: Mantenimiento | D210: 110596.0685 | E210: 74096.62155 | F210: 182771.6665 | G210: 200335.3101
B211: Seguros y tributos | D211: 0 | E211: 40860.47872 | F211: 62514.21969 | G211: 79387.5522
B212: Otros Costos | D212: 0 | E212: 51182.13855 | F212: 78305.77501 | G212: 99441.4364
B213: Costo total | D213: =SUM(D208:D212) -> 936694.3875 | E213: =SUM(E208:E212) -> 938046.7578 | F213: =SUM(F208:F212) -> 2023010.369 | G213: =SUM(G208:G212) -> 2299980.471
B215: b. Para SNAR internacional
B216: (Expresado en soles) | D216: 3 | E216: 4 | F216: 5 | G216: 6
B217: Detalle | D217: 2021 | E217: 2022 | F217: 2023 | G217: 2024
B218: Suministros y Materiales | D218: =IFERROR(VLOOKUP($B218,$B$119:$G$122,D$216,0),0)+IFERROR(VLOOKUP($B218,$B$178:$G$182,D$216,0),0) -> 49569.39596 | E218: 33210.26529 | F218: 81918.65437 | G218: 89790.71725
B219: Servicios prestados por terceros | D219: 173063.1544 | E219: 115948.0191 | F219: 286005.1138 | G219: 313489.0887
B220: Mantenimiento | D220: 38397.13052 | E220: 25725.12466 | F220: 63455.3075 | G220: 69553.11483
B221: Seguros y tributos | D221: 0 | E221: 0 | F221: 0 | G221: 0
B222: Otros Costos | D222: 0 | E222: 0 | F222: 0 | G222: 0
B223: Costo total | D223: =SUM(D218:D222) -> 261029.6809 | E223: =SUM(E218:E222) -> 174883.409 | F223: =SUM(F218:F222) -> 431379.0756 | G223: =SUM(G218:G222) -> 472832.9208
B225: c. Para Aproximación
B226: (Expresado en soles) | D226: 3 | E226: 4 | F226: 5 | G226: 6
B227: Detalle | D227: 2021 | E227: 2022 | F227: 2023 | G227: 2024
B228: Suministros y Materiales | D228: =IFERROR(VLOOKUP($B228,$B$127:$G$130,D$226,0),0)+IFERROR(VLOOKUP($B228,$B$187:$G$191,D$226,0),0) -> 123431.236 | E228: 566493.5298 | F228: 824804.266 | G228: 1011973.267
B229: Servicios prestados por terceros | D229: 546440.8619 | E229: 736461.4589 | F229: 1378305.805 | G229: 1593362.387
B230: Mantenimiento | D230: 104811.1563 | E230: 70220.87397 | F230: 173211.4891 | G230: 189856.437
B231: Seguros y tributos | D231: 0 | E231: 159773.5481 | F231: 205025.3695 | G231: 260364.1588
B232: Otros Costos | D232: 0 | E232: 200133.5308 | F232: 256816.2977 | G232: 326134.0754
B233: Costo total | D233: =SUM(D228:D232) -> 774683.2542 | E233: =SUM(E228:E232) -> 1733082.941 | F233: =SUM(F228:F232) -> 2838163.227 | G233: =SUM(G228:G232) -> 3381690.325
B235: d. Para Sobrevuelo
... 8 more rows

Sheet 5. CAPEX
B1: 5. Gastos de Capital - CAPEX Total | G1: Índice
B3: A. Activos existentes e inversiones proyectadas
B5: A.1 Activos base al 2020, por servicio:
B6: (Expresado en miles de soles. Fuente: CORPAC S.A.)
B7: Servicio | C7: Aeronavegación | D7: Mixto | E7: Total
B8: SNAR nacional | C8: =+'5.1. Activos Base'!D43 -> 97306.28522 | D8: =+'5.1. Activos Base'!E43 -> 41346.87621 | E8: =SUM(C8:D8) -> 138653.1614
B9: SNAR internacional | C9: =+'5.1. Activos Base'!D44 -> 30668.83174 | D9: =+'5.1. Activos Base'!E44 -> 13031.63908 | E9: =SUM(C9:D9) -> 43700.47082
B10: Aproximación | C10: =+'5.1. Activos Base'!D45 -> 96372.21016 | D10: =+'5.1. Activos Base'!E45 -> 40949.97394 | E10: 137322.1841
B11: Sobrevuelo | C11: =+'5.1. Activos Base'!D46 -> 40625.04188 | D11: =+'5.1. Activos Base'!E46 -> 17262.17966 | E11: 57887.22155
B12: Total | C12: =SUM(C8:C11) -> 264972.369 | D12: =SUM(D8:D11) -> 112590.6689 | E12: =SUM(E8:E11) -> 377563.0379
B14: A.2 Activos 2022-2024 (Inversiones proyectadas), por servicio:
B15: (Expresado en miles de soles. Fuente: Proyecciones CORPAC S.A.)
B16: Servicio | D16: 2021 | E16: 2022 | F16: =E16+1 -> 2023 | G16: =F16+1 -> 2024
B17: SNAR nacional | D17: =+'5.2. InvProgramadas'!E182*'10. Var-Sup-Gen'!H$12 -> 8647.891704 | E17: =+'5.2. InvProgramadas'!F182*'10. Var-Sup-Gen'!I$12 -> 4975.7622 | F17: =+'5.2. InvProgramadas'!G182*'10. Var-Sup-Gen'!J$12 -> 11104.41103 | G17: =+'5.2. InvProgramadas'!H182*'10. Var-Sup-Gen'!K$12 -> 7396.065868
B18: SNAR internacional | D18: =+'5.2. InvProgramadas'!E183*'10. Var-Sup-Gen'!H$12 -> 8239.194275 | E18: =+'5.2. InvProgramadas'!F183*'10. Var-Sup-Gen'!I$12 -> 4740.60879 | F18: =+'5.2. InvProgramadas'!G183*'10. Var-Sup-Gen'!J$12 -> 10579.61904 | G18: =+'5.2. InvProgramadas'!H183*'10. Var-Sup-Gen'!K$12 -> 7046.529448
B19: Aproximación | D19: =+'5.2. InvProgramadas'!E184*'10. Var-Sup-Gen'!H$12 -> 15623.26536 | E19: =+'5.2. InvProgramadas'!F184*'10. Var-Sup-Gen'!I$12 -> 7512.291334 | F19: =+'5.2. InvProgramadas'!G184*'10. Var-Sup-Gen'!J$12 -> 24858.39395 | G19: =+'5.2. InvProgramadas'!H184*'10. Var-Sup-Gen'!K$12 -> 13936.05615
B20: Sobrevuelo | D20: =+'5.2. InvProgramadas'!E185*'10. Var-Sup-Gen'!H$12 -> 4885.338023 | E20: =+'5.2. InvProgramadas'!F185*'10. Var-Sup-Gen'!I$12 -> 3084.411937 | F20: =+'5.2. InvProgramadas'!G185*'10. Var-Sup-Gen'!J$12 -> 5980.854026 | G20: =+'5.2. InvProgramadas'!H185*'10. Var-Sup-Gen'!K$12 -> 3662.844935
B21: Total | D21: =SUM(D17:D20) -> 37395.68936 | E21: =SUM(E17:E20) -> 20313.07426 | F21: =SUM(F17:F20) -> 52523.27805 | G21: =SUM(G17:G20) -> 32041.4964
B22: Nota: Los montos del año 2021 corresponden a lo efectivamente ejecutado, según CORPAC.
B24: B. Depreciación y amortización de activos existentes e inversiones proyectadas
B26: B.1 Depreciación de Activos base 2020, por servicio:
B27: (Expresado en miles de soles)
B28: Servicio | D28: 2021 | E28: =D28+1 -> 2022 | F28: =E28+1 -> 2023 | G28: =F28+1 -> 2024
B29: SNAR nacional | D29: =+'5.1. Activos Base'!D53 -> 11975.58957 | E29: =+'5.1. Activos Base'!E53 -> 10648.4737 | F29: =+'5.1. Activos Base'!F53 -> 9790.246694 | G29: =+'5.1. Activos Base'!G53 -> 9118.442343
B30: SNAR internacional | D30: =+'5.1. Activos Base'!D54 -> 3774.446232 | E30: =+'5.1. Activos Base'!E54 -> 3356.168079 | F30: =+'5.1. Activos Base'!F54 -> 3085.673529 | G30: =+'5.1. Activos Base'!G54 -> 2873.935361
B31: Aproximación | D31: =+'5.1. Activos Base'!D55 -> 11860.63195 | E31: =+'5.1. Activos Base'!E55 -> 10546.2555 | F31: =+'5.1. Activos Base'!F55 -> 9696.266893 | G31: =+'5.1. Activos Base'!G55 -> 9030.911413
B32: Sobrevuelo | D32: =+'5.1. Activos Base'!D56 -> 4999.767764 | E32: =+'5.1. Activos Base'!E56 -> 4445.701418 | F32: =+'5.1. Activos Base'!F56 -> 4087.394571 | G32: =+'5.1. Activos Base'!G56 -> 3806.918548
B33: Total | D33: =SUM(D29:D32) -> 32610.43552 | E33: =SUM(E29:E32) -> 28996.5987 | F33: =SUM(F29:F32) -> 26659.58169 | G33: =SUM(G29:G32) -> 24830.20766
B35: B.2 Depreciación de Activos 2021-2024 (Inversiones proyectadas), por servicio:
B36: (Expresado en miles de soles)
B37: Servicio | E37: 2022 | F37: 2023 | G37: =F37+1 -> 2024
B38: SNAR nacional | E38: ='5.2. InvProgramadas'!F231*'10. Var-Sup-Gen'!I$12 -> 869.1308823 | F38: ='5.2. InvProgramadas'!G231*'10. Var-Sup-Gen'!J$12 -> 1394.633018 | G38: ='5.2. InvProgramadas'!H231*'10. Var-Sup-Gen'!K$12 -> 2510.370263
B39: SNAR internacional | E39: ='5.2. InvProgramadas'!F232*'10. Var-Sup-Gen'!I$12 -> 828.0559509 | F39: ='5.2. InvProgramadas'!G232*'10. Var-Sup-Gen'!J$12 -> 1328.722973 | G39: ='5.2. InvProgramadas'!H232*'10. Var-Sup-Gen'!K$12 -> 2391.730725
B40: Aproximación | E40: ='5.2. InvProgramadas'!F233*'10. Var-Sup-Gen'!I$12 -> 1573.752169 | F40: ='5.2. InvProgramadas'!G233*'10. Var-Sup-Gen'!J$12 -> 2372.822279 | G40: ='5.2. InvProgramadas'!H233*'10. Var-Sup-Gen'!K$12 -> 5061.46324
B41: Sobrevuelo | E41: ='5.2. InvProgramadas'!F234*'10. Var-Sup-Gen'!I$12 -> 490.400634 | F41: ='5.2. InvProgramadas'!G234*'10. Var-Sup-Gen'!J$12 -> 815.1132114 | G41: ='5.2. InvProgramadas'!H234*'10. Var-Sup-Gen'!K$12 -> 1413.502596
B42: Total | E42: =SUM(E38:E41) -> 3761.339636 | F42: =SUM(F38:F41) -> 5911.291482 | G42: =SUM(G38:G41) -> 11377.06682
B44: C. Activo neto, por servicio:
B46: C.1 SNAR Nacional
B47: (Expresado en miles de soles)
C48: 2020 | D48: =C48+1 -> 2021 | E48: =D48+1 -> 2022 | F48: =E48+1 -> 2023 | G48: =F48+1 -> 2024
B49: Activo Existente | C49: =E8 -> 138653.1614
B50: Activo nuevo | D50: =D17 -> 8647.891704 | E50: =E17 -> 4975.7622 | F50: =F17 -> 11104.41103 | G50: =G17 -> 7396.065868
B51: Activo total | C51: =SUM(C49:C50) -> 138653.1614 | D51: 8647.891704 | E51: 4975.7622 | F51: 11104.41103 | G51: 7396.065868
B52: Depreciación Activo Existente | D52: =D29 -> 11975.58957 | E52: =E29 -> 10648.4737 | F52: =F29 -> 9790.246694 | G52: =G29 -> 9118.442343
B53: Depreciación Activo nuevo | E53: =E38 -> 869.1308823 | F53: =F38 -> 1394.633018 | G53: =G38 -> 2510.370263
B54: Depreciación Activo Total | C54: =SUM(C52:C53) -> 0 | D54: 11975.58957 | E54: 11517.60459 | F54: 11184.87971 | G54: 11628.81261
B55: Activo (CAPEX) Acumulado | C55: =C51 -> 138653.1614 | D55: =C55+D51 -> 147301.0531 | E55: =D55+E51 -> 152276.8153 | F55: =E55+F51 -> 163381.2264 | G55: =F55+G51 -> 170777.2922
B56: Depreciación Acumulada | C56: =C54 -> 0 | D56: =C56+D54 -> 11975.58957 | E56: =D56+E54 -> 23493.19416 | F56: =E56+F54 -> 34678.07387 | G56: =F56+G54 -> 46306.88648
B57: CAPEX Neto | C57: =C55-C56 -> 138653.1614 | D57: 135325.4636 | E57: 128783.6212 | F57: 128703.1525 | G57: 124470.4058
B59: Inversiones realizadas | D59: =+D57-D60 -> 126677.5719
B60: Plan de Inversiones | D60: =D50 -> 8647.891704 | E60: =E50 -> 4975.7622 | F60: =F50 -> 11104.41103 | G60: =G50 -> 7396.065868
B61: Recuperación Inversión | G61: =G57 -> 124470.4058
B63: C.2 SNAR Internacional
B64: (Expresado en miles de soles)
B65: Servicio | C65: 2020 | D65: =C65+1 -> 2021 | E65: =D65+1 -> 2022 | F65: =E65+1 -> 2023 | G65: =F65+1 -> 2024
B66: Activo Existente | C66: =E9 -> 43700.47082
B67: Activo nuevo | D67: =D18 -> 8239.194275 | E67: =E18 -> 4740.60879 | F67: =F18 -> 10579.61904 | G67: =G18 -> 7046.529448
B68: Activo total | C68: =SUM(C66:C67) -> 43700.47082 | D68: 8239.194275 | E68: 4740.60879 | F68: 10579.61904 | G68: 7046.529448
B69: Depreciación Activo Existente | D69: =D30 -> 3774.446232 | E69: =E30 -> 3356.168079 | F69: =F30 -> 3085.673529 | G69: =G30 -> 2873.935361
B70: Depreciación Activo nuevo | E70: =E39 -> 828.0559509 | F70: =F39 -> 1328.722973 | G70: =G39 -> 2391.730725
B71: Depreciación Activo Total | C71: =SUM(C69:C70) -> 0 | D71: 3774.446232 | E71: 4184.22403 | F71: 4414.396502 | G71: 5265.666086
B72: Activo (CAPEX) Acumulado | C72: =C68 -> 43700.47082 | D72: =C72+D68 -> 51939.6651 | E72: =D72+E68 -> 56680.27389 | F72: =E72+F68 -> 67259.89293 | G72: =F72+G68 -> 74306.42238
B73: Depreciación Acumulada | C73: =C71 -> 0 | D73: =C73+D71 -> 3774.446232 | E73: =D73+E71 -> 7958.670262 | F73: =E73+F71 -> 12373.06676 | G73: =F73+G71 -> 17638.73285
B74: CAPEX Neto | C74: =C72-C73 -> 43700.47082 | D74: 48165.21886 | E74: =E72-E73 -> 48721.60363 | F74: 54886.82617 | G74: 56667.68953
B76: Inversiones realizadas | D76: =+D74-D77 -> 39926.02459
B77: Plan de Inversiones | D77: =D67 -> 8239.194275 | E77: =E67 -> 4740.60879 | F77: =F67 -> 10579.61904 | G77: =G67 -> 7046.529448
B78: Recuperación Inversión | G78: =G74 -> 56667.68953
B80: C.3 Aproximación
B81: (Expresado en miles de soles)
B82: Servicio | C82: 2020 | D82: =C82+1 -> 2021 | E82: =D82+1 -> 2022 | F82: =E82+1 -> 2023 | G82: =F82+1 -> 2024
B83: Activo Existente | C83: =E10 -> 137322.1841
B84: Activo nuevo | D84: =D19 -> 15623.26536 | E84: =E19 -> 7512.291334 | F84: =F19 -> 24858.39395 | G84: =G19 -> 13936.05615
B85: Activo total | C85: =SUM(C83:C84) -> 137322.1841 | D85: 15623.26536 | E85: 7512.291334 | F85: 24858.39395 | G85: 13936.05615
B86: Depreciación Activo Existente | D86: =D31 -> 11860.63195 | E86: =E31 -> 10546.2555 | F86: =F31 -> 9696.266893 | G86: =G31 -> 9030.911413
B87: Depreciación Activo nuevo | E87: =E40 -> 1573.752169 | F87: =F40 -> 2372.822279 | G87: =G40 -> 5061.46324
B88: Depreciación Activo Total | C88: =SUM(C86:C87) -> 0 | D88: 11860.63195 | E88: 12120.00767 | F88: 12069.08917 | G88: 14092.37465
B89: Activo (CAPEX) Acumulado | C89: =C85 -> 137322.1841 | D89: =C89+D85 -> 152945.4495 | E89: =D89+E85 -> 160457.7408 | F89: =E89+F85 -> 185316.1347 | G89: =F89+G85 -> 199252.1909
B90: Depreciación Acumulada | C90: =C88 -> 0 | D90: =C90+D88 -> 11860.63195 | E90: =D90+E88 -> 23980.63962 | F90: =E90+F88 -> 36049.72879 | G90: =F90+G88 -> 50142.10344
B91: CAPEX Neto | C91: =C89-C90 -> 137322.1841 | D91: =D89-D90 -> 141084.8175 | E91: 136477.1012 | F91: =F89-F90 -> 149266.406 | G91: 149110.0874
B93: Inversiones realizadas | D93: =+D91-D94 -> 125461.5522
B94: Plan de Inversiones | D94: =D84 -> 15623.26536 | E94: =E84 -> 7512.291334 | F94: =F84 -> 24858.39395 | G94: =G84 -> 13936.05615
B95: Recuperación Inversión | G95: =G91 -> 149110.0874
B97: C.4 Sobrevuelo
B98: (Expresado en miles de soles)
B99: Servicio | C99: 2020 | D99: =C99+1 -> 2021 | E99: =D99+1 -> 2022 | F99: =E99+1 -> 2023 | G99: =F99+1 -> 2024
B100: Activo Existente | C100: =E11 -> 57887.22155
B101: Activo nuevo | D101: =D20 -> 4885.338023 | E101: =E20 -> 3084.411937 | F101: =F20 -> 5980.854026 | G101: =G20 -> 3662.844935
B102: Activo total | C102: =SUM(C100:C101) -> 57887.22155 | D102: 4885.338023 | E102: 3084.411937 | F102: =SUM(F100:F101) -> 5980.854026 | G102: 3662.844935
B103: Depreciación Activo Existente | D103: =D32 -> 4999.767764 | E103: =E32 -> 4445.701418 | F103: =F32 -> 4087.394571 | G103: =G32 -> 3806.918548
B104: Depreciación Activo nuevo | E104: =E41 -> 490.400634 | F104: =F41 -> 815.1132114 | G104: =G41 -> 1413.502596
B105: Depreciación Activo Total | C105: =SUM(C103:C104) -> 0 | D105: 4999.767764 | E105: 4936.102052 | F105: 4902.507783 | G105: 5220.421144
B106: Activo (CAPEX) Acumulado | C106: =C102 -> 57887.22155 | D106: =C106+D102 -> 62772.55957 | E106: =D106+E102 -> 65856.97151 | F106: =E106+F102 -> 71837.82553 | G106: =F106+G102 -> 75500.67047
B107: Depreciación Acumulada | C107: =C105 -> 0 | D107: =C107+D105 -> 4999.767764 | E107: =D107+E105 -> 9935.869816 | F107: =E107+F105 -> 14838.3776 | G107: =F107+G105 -> 20058.79874
B108: CAPEX Neto | C108: =C106-C107 -> 57887.22155 | D108: 57772.79181 | E108: 55921.10169 | F108: 56999.44793 | G108: 55441.87173
B110: Inversiones realizadas | D110: =+D108-D111 -> 52887.45378
B111: Plan de Inversiones | D111: =D101 -> 4885.338023 | E111: =E101 -> 3084.411937 | F111: =F101 -> 5980.854026 | G111: =G101 -> 3662.844935
B112: Recuperación Inversión | G112: =G108 -> 55441.87173

Sheet 5.1. Activos Base
B1: 5.1 Activos Fijos Base (Existentes) al 2020 | H1: Índice
B3: A. Factor de distribución de activos: Distribución según participación en la depreciación de activos de aeronavegación
B4: (Expresado en miles de soles. Fuente: Contabilidad regulatoria de CORPAC S.A.)
B5: Servicio | C5: Depreciación y amortización | G5: Promedio | H5: % del total
C6: 2017 | D6: =+C6+1 -> 2018 | E6: =+D6+1 -> 2019 | F6: 2020
B7: SNAR nacional | C7: =+'4. OPEX'!E12+'4. OPEX'!E13 -> 7129772.016 | D7: =+'4. OPEX'!F12+'4. OPEX'!F13 -> 12945251.26 | E7: =+'4. OPEX'!G12+'4. OPEX'!G13 -> 11484207.77 | F7: =+'4. OPEX'!H12+'4. OPEX'!H13 -> 12808539.74 | G7: =AVERAGE(C7:F7) -> 11091942.7 | H7: =+G7/$G$15 -> 0.3669953322
B8: SNAR internacional | C8: ='4. OPEX'!E23+'4. OPEX'!E24 -> 2452018.503 | D8: ='4. OPEX'!F23+'4. OPEX'!F24 -> 3787636.656 | E8: ='4. OPEX'!G23+'4. OPEX'!G24 -> 4118355.972 | F8: ='4. OPEX'!H23+'4. OPEX'!H24 -> 3625748.436 | G8: =AVERAGE(C8:F8) -> 3495939.892 | H8: 0.1156689731
B9: Aproximación | C9: =+'4. OPEX'!E34+'4. OPEX'!E35 -> 7351690.518 | D9: =+'4. OPEX'!F34+'4. OPEX'!F35 -> 12149849.95 | E9: =+'4. OPEX'!G34+'4. OPEX'!G35 -> 10946483.71 | F9: =+'4. OPEX'!H34+'4. OPEX'!H35 -> 13493845.77 | G9: 10985467.49 | H9: 0.3634724232
B10: Sobrevuelo | C10: =+'4. OPEX'!E45+'4. OPEX'!E46 -> 2714963.615 | D10: =+'4. OPEX'!F45+'4. OPEX'!F46 -> 4773755.545 | E10: =+'4. OPEX'!G45+'4. OPEX'!G46 -> 4946087.518 | F10: =+'4. OPEX'!H45+'4. OPEX'!H46 -> 6088586.156 | G10: 4630848.209 | H10: 0.1532192983
B11: Total servicios con tarifa regulada | C11: =SUM(C7:C10) -> 19648444.65 | D11: =SUM(D7:D10) -> 33656493.41 | E11: =SUM(E7:E10) -> 31495134.97 | F11: 36016720.1 | G11: =SUM(G7:G10) -> 30204198.28 | H11: 0.9993560269
B12: Servicios No Regulados de Navegación Aérea | C12: 17444.32555 | D12: 15956.54101 | E12: 28036.116 | F12: 16415.92046 | G12: 19463.22575 | H12: 0.0006439731251
B13: Total de servicios no regulados | C13: =+SUM(C12) -> 17444.32555 | D13: =+SUM(D12) -> 15956.54101 | E13: =+SUM(E12) -> 28036.116 | F13: 16415.92046 | G13: =+SUM(G12) -> 19463.22575 | H13: 0.0006439731251
B15: Total Aeronavegación | C15: =+C11+C13 -> 19665888.98 | D15: =+D11+D13 -> 33672449.95 | E15: =+E11+E13 -> 31523171.08 | F15: 36033136.02 | G15: =+G11+G13 -> 30223661.51 | H15: =+H11+H13 -> 1
B17: B. Valor de Activos de aeronavegación
B19: B.1 Resumen de activos existentes asignados a Aeronavegación:
B20: (Expresado en miles de soles)
B21: Tipo de activo | C21: Valor Histórico Neto al 2020 | D21: Depreciación del Ejercicio
D22: 2021 | E22: =D22+1 -> 2022 | F22: =E22+1 -> 2023 | G22: =F22+1 -> 2024
A23: AERONAVEGACIÓN | B23: A. Aeronavegación | C23: =SUM(C24:C29) -> 265143.1141 | D23: =SUM(D24:D29) -> 31419.55162 | E23: =SUM(E24:E29) -> 27862.45018 | F23: =SUM(F24:F29) -> 25606.46929 | G23: =SUM(G24:G29) -> 23862.4606
B24: Concesiones, licencias y otros derechos | C24: =SUMIFS('5.4. BD-AERONAV2020'!$O$5:$O$29239,'5.4. BD-AERONAV2020'!$B$5:$B$29239,'5.1. Activos Base'!$A$23,'5.4. BD-AERONAV2020'!$D$5:$D$29239,'5.1. Activos Base'!$B24)/1000 -> -8.913425553e-16 | D24: =SUMIFS('5.4. BD-AERONAV2020'!R$5:R$29239,'5.4. BD-AERONAV2020'!$B$5:$B$29239,'5.1. Activos Base'!$A$23,'5.4. BD-AERONAV2020'!$D$5:$D$29239,'5.1. Activos Base'!$B24)/1000 -> 0 | E24: =SUMIFS('5.4. BD-AERONAV2020'!S$5:S$29239,'5.4. BD-AERONAV2020'!$B$5:$B$29239,'5.1. Activos Base'!$A$23,'5.4. BD-AERONAV2020'!$D$5:$D$29239,'5.1. Activos Base'!$B24)/1000 -> 0 | F24: =SUMIFS('5.4. BD-AERONAV2020'!T$5:T$29239,'5.4. BD-AERONAV2020'!$B$5:$B$29239,'5.1. Activos Base'!$A$23,'5.4. BD-AERONAV2020'!$D$5:$D$29239,'5.1. Activos Base'!$B24)/1000 -> 0 | G24: =SUMIFS('5.4. BD-AERONAV2020'!U$5:U$29239,'5.4. BD-AERONAV2020'!$B$5:$B$29239,'5.1. Activos Base'!$A$23,'5.4. BD-AERONAV2020'!$D$5:$D$29239,'5.1. Activos Base'!$B24)/1000 -> 0
B25: Edificaciones y construcciones | C25: =SUMIFS('5.4. BD-AERONAV2020'!$O$5:$O$29239,'5.4. BD-AERONAV2020'!$B$5:$B$29239,'5.1. Activos Base'!$A$23,'5.4. BD-AERONAV2020'!$D$5:$D$29239,'5.1. Activos Base'!$B25)/1000 -> 40978.2973 | D25: =SUMIFS('5.4. BD-AERONAV2020'!R$5:R$29239,'5.4. BD-AERONAV2020'!$B$5:$B$29239,'5.1. Activos Base'!$A$23,'5.4. BD-AERONAV2020'!$D$5:$D$29239,'5.1. Activos Base'!$B25)/1000 -> 2393.34593 | E25: =SUMIFS('5.4. BD-AERONAV2020'!S$5:S$29239,'5.4. BD-AERONAV2020'!$B$5:$B$29239,'5.1. Activos Base'!$A$23,'5.4. BD-AERONAV2020'!$D$5:$D$29239,'5.1. Activos Base'!$B25)/1000 -> 2346.40963 | F25: =SUMIFS('5.4. BD-AERONAV2020'!T$5:T$29239,'5.4. BD-AERONAV2020'!$B$5:$B$29239,'5.1. Activos Base'!$A$23,'5.4. BD-AERONAV2020'!$D$5:$D$29239,'5.1. Activos Base'!$B25)/1000 -> 2320.5611 | G25: =SUMIFS('5.4. BD-AERONAV2020'!U$5:U$29239,'5.4. BD-AERONAV2020'!$B$5:$B$29239,'5.1. Activos Base'!$A$23,'5.4. BD-AERONAV2020'!$D$5:$D$29239,'5.1. Activos Base'!$B25)/1000 -> 1940.48835
B26: Maquinaria y Equipo | C26: =SUMIFS('5.4. BD-AERONAV2020'!$O$5:$O$29239,'5.4. BD-AERONAV2020'!$B$5:$B$29239,'5.1. Activos Base'!$A$23,'5.4. BD-AERONAV2020'!$D$5:$D$29239,'5.1. Activos Base'!$B26)/1000 -> 75228.48578 | D26: =SUMIFS('5.4. BD-AERONAV2020'!R$5:R$29239,'5.4. BD-AERONAV2020'!$B$5:$B$29239,'5.1. Activos Base'!$A$23,'5.4. BD-AERONAV2020'!$D$5:$D$29239,'5.1. Activos Base'!$B26)/1000 -> 12236.99742 | E26: =SUMIFS('5.4. BD-AERONAV2020'!S$5:S$29239,'5.4. BD-AERONAV2020'!$B$5:$B$29239,'5.1. Activos Base'!$A$23,'5.4. BD-AERONAV2020'!$D$5:$D$29239,'5.1. Activos Base'!$B26)/1000 -> 10977.11309 | F26: =SUMIFS('5.4. BD-AERONAV2020'!T$5:T$29239,'5.4. BD-AERONAV2020'!$B$5:$B$29239,'5.1. Activos Base'!$A$23,'5.4. BD-AERONAV2020'!$D$5:$D$29239,'5.1. Activos Base'!$B26)/1000 -> 9736.78601 | G26: =SUMIFS('5.4. BD-AERONAV2020'!U$5:U$29239,'5.4. BD-AERONAV2020'!$B$5:$B$29239,'5.1. Activos Base'!$A$23,'5.4. BD-AERONAV2020'!$D$5:$D$29239,'5.1. Activos Base'!$B26)/1000 -> 9111.07028
B27: Otros | C27: =SUMIFS('5.4. BD-AERONAV2020'!$O$5:$O$29239,'5.4. BD-AERONAV2020'!$B$5:$B$29239,'5.1. Activos Base'!$A$23,'5.4. BD-AERONAV2020'!$D$5:$D$29239,'5.1. Activos Base'!$B27)/1000 -> 128836.1283 | D27: =SUMIFS('5.4. BD-AERONAV2020'!R$5:R$29239,'5.4. BD-AERONAV2020'!$B$5:$B$29239,'5.1. Activos Base'!$A$23,'5.4. BD-AERONAV2020'!$D$5:$D$29239,'5.1. Activos Base'!$B27)/1000 -> 15476.85603 | E27: =SUMIFS('5.4. BD-AERONAV2020'!S$5:S$29239,'5.4. BD-AERONAV2020'!$B$5:$B$29239,'5.1. Activos Base'!$A$23,'5.4. BD-AERONAV2020'!$D$5:$D$29239,'5.1. Activos Base'!$B27)/1000 -> 13279.32377 | F27: =SUMIFS('5.4. BD-AERONAV2020'!T$5:T$29239,'5.4. BD-AERONAV2020'!$B$5:$B$29239,'5.1. Activos Base'!$A$23,'5.4. BD-AERONAV2020'!$D$5:$D$29239,'5.1. Activos Base'!$B27)/1000 -> 12765.15227 | G27: =SUMIFS('5.4. BD-AERONAV2020'!U$5:U$29239,'5.4. BD-AERONAV2020'!$B$5:$B$29239,'5.1. Activos Base'!$A$23,'5.4. BD-AERONAV2020'!$D$5:$D$29239,'5.1. Activos Base'!$B27)/1000 -> 12068.80668
B28: Programas de computadora (software) | C28: =SUMIFS('5.4. BD-AERONAV2020'!$O$5:$O$29239,'5.4. BD-AERONAV2020'!$B$5:$B$29239,'5.1. Activos Base'!$A$23,'5.4. BD-AERONAV2020'!$D$5:$D$29239,'5.1. Activos Base'!$B28)/1000 -> 9308.98998 | D28: =SUMIFS('5.4. BD-AERONAV2020'!R$5:R$29239,'5.4. BD-AERONAV2020'!$B$5:$B$29239,'5.1. Activos Base'!$A$23,'5.4. BD-AERONAV2020'!$D$5:$D$29239,'5.1. Activos Base'!$B28)/1000 -> 1312.35224 | E28: =SUMIFS('5.4. BD-AERONAV2020'!S$5:S$29239,'5.4. BD-AERONAV2020'!$B$5:$B$29239,'5.1. Activos Base'!$A$23,'5.4. BD-AERONAV2020'!$D$5:$D$29239,'5.1. Activos Base'!$B28)/1000 -> 1259.60369 | F28: =SUMIFS('5.4. BD-AERONAV2020'!T$5:T$29239,'5.4. BD-AERONAV2020'!$B$5:$B$29239,'5.1. Activos Base'!$A$23,'5.4. BD-AERONAV2020'!$D$5:$D$29239,'5.1. Activos Base'!$B28)/1000 -> 783.96991 | G28: =SUMIFS('5.4. BD-AERONAV2020'!U$5:U$29239,'5.4. BD-AERONAV2020'!$B$5:$B$29239,'5.1. Activos Base'!$A$23,'5.4. BD-AERONAV2020'!$D$5:$D$29239,'5.1. Activos Base'!$B28)/1000 -> 742.09529
B29: Terrenos | C29: =SUMIFS('5.4. BD-AERONAV2020'!$O$5:$O$29239,'5.4. BD-AERONAV2020'!$B$5:$B$29239,'5.1. Activos Base'!$A$23,'5.4. BD-AERONAV2020'!$D$5:$D$29239,'5.1. Activos Base'!$B29)/1000 -> 10791.21272 | D29: =SUMIFS('5.4. BD-AERONAV2020'!R$5:R$29239,'5.4. BD-AERONAV2020'!$B$5:$B$29239,'5.1. Activos Base'!$A$23,'5.4. BD-AERONAV2020'!$D$5:$D$29239,'5.1. Activos Base'!$B29)/1000 -> 0 | E29: =SUMIFS('5.4. BD-AERONAV2020'!S$5:S$29239,'5.4. BD-AERONAV2020'!$B$5:$B$29239,'5.1. Activos Base'!$A$23,'5.4. BD-AERONAV2020'!$D$5:$D$29239,'5.1. Activos Base'!$B29)/1000 -> 0 | F29: =SUMIFS('5.4. BD-AERONAV2020'!T$5:T$29239,'5.4. BD-AERONAV2020'!$B$5:$B$29239,'5.1. Activos Base'!$A$23,'5.4. BD-AERONAV2020'!$D$5:$D$29239,'5.1. Activos Base'!$B29)/1000 -> 0 | G29: =SUMIFS('5.4. BD-AERONAV2020'!U$5:U$29239,'5.4. BD-AERONAV2020'!$B$5:$B$29239,'5.1. Activos Base'!$A$23,'5.4. BD-AERONAV2020'!$D$5:$D$29239,'5.1. Activos Base'!$B29)/1000 -> 0
A30: AERONAVEGACIÓN/AEROPORTUARIO | B30: B. Aeronavegación/Aeroportuarios (Mixto) | C30: =SUM(C31:C36) -> 112663.221 | D30: =SUM(D31:D36) -> 1211.897675 | E30: =SUM(E31:E36) -> 1152.833585 | F30: =SUM(F31:F36) -> 1070.291515 | G30: =SUM(G31:G36) -> 983.747355
B31: Concesiones, licencias y otros derechos | C31: =SUMIFS('5.4. BD-AERONAV2020'!$O$5:$O$29239,'5.4. BD-AERONAV2020'!$B$5:$B$29239,'5.1. Activos Base'!$A$30,'5.4. BD-AERONAV2020'!$D$5:$D$29239,'5.1. Activos Base'!$B31)/1000 -> -3.637992685e-16 | D31: =SUMIFS('5.4. BD-AERONAV2020'!R$5:R$29239,'5.4. BD-AERONAV2020'!$B$5:$B$29239,'5.1. Activos Base'!$A$30,'5.4. BD-AERONAV2020'!$D$5:$D$29239,'5.1. Activos Base'!$B31)/1000 -> 0 | E31: =SUMIFS('5.4. BD-AERONAV2020'!S$5:S$29239,'5.4. BD-AERONAV2020'!$B$5:$B$29239,'5.1. Activos Base'!$A$30,'5.4. BD-AERONAV2020'!$D$5:$D$29239,'5.1. Activos Base'!$B31)/1000 -> 0 | F31: =SUMIFS('5.4. BD-AERONAV2020'!T$5:T$29239,'5.4. BD-AERONAV2020'!$B$5:$B$29239,'5.1. Activos Base'!$A$30,'5.4. BD-AERONAV2020'!$D$5:$D$29239,'5.1. Activos Base'!$B31)/1000 -> 0 | G31: =SUMIFS('5.4. BD-AERONAV2020'!U$5:U$29239,'5.4. BD-AERONAV2020'!$B$5:$B$29239,'5.1. Activos Base'!$A$30,'5.4. BD-AERONAV2020'!$D$5:$D$29239,'5.1. Activos Base'!$B31)/1000 -> 0
B32: Edificaciones y construcciones | C32: =SUMIFS('5.4. BD-AERONAV2020'!$O$5:$O$29239,'5.4. BD-AERONAV2020'!$B$5:$B$29239,'5.1. Activos Base'!$A$30,'5.4. BD-AERONAV2020'!$D$5:$D$29239,'5.1. Activos Base'!$B32)/1000 -> 4924.810405 | D32: =SUMIFS('5.4. BD-AERONAV2020'!R$5:R$29239,'5.4. BD-AERONAV2020'!$B$5:$B$29239,'5.1. Activos Base'!$A$30,'5.4. BD-AERONAV2020'!$D$5:$D$29239,'5.1. Activos Base'!$B32)/1000 -> 217.699655 | E32: =SUMIFS('5.4. BD-AERONAV2020'!S$5:S$29239,'5.4. BD-AERONAV2020'!$B$5:$B$29239,'5.1. Activos Base'!$A$30,'5.4. BD-AERONAV2020'!$D$5:$D$29239,'5.1. Activos Base'!$B32)/1000 -> 217.699655 | F32: =SUMIFS('5.4. BD-AERONAV2020'!T$5:T$29239,'5.4. BD-AERONAV2020'!$B$5:$B$29239,'5.1. Activos Base'!$A$30,'5.4. BD-AERONAV2020'!$D$5:$D$29239,'5.1. Activos Base'!$B32)/1000 -> 217.699655 | G32: =SUMIFS('5.4. BD-AERONAV2020'!U$5:U$29239,'5.4. BD-AERONAV2020'!$B$5:$B$29239,'5.1. Activos Base'!$A$30,'5.4. BD-AERONAV2020'!$D$5:$D$29239,'5.1. Activos Base'!$B32)/1000 -> 217.699655
B33: Maquinaria y Equipo | C33: =SUMIFS('5.4. BD-AERONAV2020'!$O$5:$O$29239,'5.4. BD-AERONAV2020'!$B$5:$B$29239,'5.1. Activos Base'!$A$30,'5.4. BD-AERONAV2020'!$D$5:$D$29239,'5.1. Activos Base'!$B33)/1000 -> 1737.584795 | D33: =SUMIFS('5.4. BD-AERONAV2020'!R$5:R$29239,'5.4. BD-AERONAV2020'!$B$5:$B$29239,'5.1. Activos Base'!$A$30,'5.4. BD-AERONAV2020'!$D$5:$D$29239,'5.1. Activos Base'!$B33)/1000 -> 250.575125 | E33: =SUMIFS('5.4. BD-AERONAV2020'!S$5:S$29239,'5.4. BD-AERONAV2020'!$B$5:$B$29239,'5.1. Activos Base'!$A$30,'5.4. BD-AERONAV2020'!$D$5:$D$29239,'5.1. Activos Base'!$B33)/1000 -> 240.915865 | F33: =SUMIFS('5.4. BD-AERONAV2020'!T$5:T$29239,'5.4. BD-AERONAV2020'!$B$5:$B$29239,'5.1. Activos Base'!$A$30,'5.4. BD-AERONAV2020'!$D$5:$D$29239,'5.1. Activos Base'!$B33)/1000 -> 196.868195 | G33: =SUMIFS('5.4. BD-AERONAV2020'!U$5:U$29239,'5.4. BD-AERONAV2020'!$B$5:$B$29239,'5.1. Activos Base'!$A$30,'5.4. BD-AERONAV2020'!$D$5:$D$29239,'5.1. Activos Base'!$B33)/1000 -> 187.703745
B34: Otros | C34: =SUMIFS('5.4. BD-AERONAV2020'!$O$5:$O$29239,'5.4. BD-AERONAV2020'!$B$5:$B$29239,'5.1. Activos Base'!$A$30,'5.4. BD-AERONAV2020'!$D$5:$D$29239,'5.1. Activos Base'!$B34)/1000 -> 4532.870385 | D34: =SUMIFS('5.4. BD-AERONAV2020'!R$5:R$29239,'5.4. BD-AERONAV2020'!$B$5:$B$29239,'5.1. Activos Base'!$A$30,'5.4. BD-AERONAV2020'!$D$5:$D$29239,'5.1. Activos Base'!$B34)/1000 -> 743.310335 | E34: =SUMIFS('5.4. BD-AERONAV2020'!S$5:S$29239,'5.4. BD-AERONAV2020'!$B$5:$B$29239,'5.1. Activos Base'!$A$30,'5.4. BD-AERONAV2020'!$D$5:$D$29239,'5.1. Activos Base'!$B34)/1000 -> 694.218065 | F34: =SUMIFS('5.4. BD-AERONAV2020'!T$5:T$29239,'5.4. BD-AERONAV2020'!$B$5:$B$29239,'5.1. Activos Base'!$A$30,'5.4. BD-AERONAV2020'!$D$5:$D$29239,'5.1. Activos Base'!$B34)/1000 -> 655.723665 | G34: =SUMIFS('5.4. BD-AERONAV2020'!U$5:U$29239,'5.4. BD-AERONAV2020'!$B$5:$B$29239,'5.1. Activos Base'!$A$30,'5.4. BD-AERONAV2020'!$D$5:$D$29239,'5.1. Activos Base'!$B34)/1000 -> 578.343955
B35: Programas de computadora (software) | C35: =SUMIFS('5.4. BD-AERONAV2020'!$O$5:$O$29239,'5.4. BD-AERONAV2020'!$B$5:$B$29239,'5.1. Activos Base'!$A$30,'5.4. BD-AERONAV2020'!$D$5:$D$29239,'5.1. Activos Base'!$B35)/1000 -> 96.461445 | D35: =SUMIFS('5.4. BD-AERONAV2020'!R$5:R$29239,'5.4. BD-AERONAV2020'!$B$5:$B$29239,'5.1. Activos Base'!$A$30,'5.4. BD-AERONAV2020'!$D$5:$D$29239,'5.1. Activos Base'!$B35)/1000 -> 0.31256 | E35: =SUMIFS('5.4. BD-AERONAV2020'!S$5:S$29239,'5.4. BD-AERONAV2020'!$B$5:$B$29239,'5.1. Activos Base'!$A$30,'5.4. BD-AERONAV2020'!$D$5:$D$29239,'5.1. Activos Base'!$B35)/1000 -> 0 | F35: =SUMIFS('5.4. BD-AERONAV2020'!T$5:T$29239,'5.4. BD-AERONAV2020'!$B$5:$B$29239,'5.1. Activos Base'!$A$30,'5.4. BD-AERONAV2020'!$D$5:$D$29239,'5.1. Activos Base'!$B35)/1000 -> 0 | G35: =SUMIFS('5.4. BD-AERONAV2020'!U$5:U$29239,'5.4. BD-AERONAV2020'!$B$5:$B$29239,'5.1. Activos Base'!$A$30,'5.4. BD-AERONAV2020'!$D$5:$D$29239,'5.1. Activos Base'!$B35)/1000 -> 0
B36: Terrenos | C36: =SUMIFS('5.4. BD-AERONAV2020'!$O$5:$O$29239,'5.4. BD-AERONAV2020'!$B$5:$B$29239,'5.1. Activos Base'!$A$30,'5.4. BD-AERONAV2020'!$D$5:$D$29239,'5.1. Activos Base'!$B36)/1000 -> 101371.494 | D36: =SUMIFS('5.4. BD-AERONAV2020'!R$5:R$29239,'5.4. BD-AERONAV2020'!$B$5:$B$29239,'5.1. Activos Base'!$A$30,'5.4. BD-AERONAV2020'!$D$5:$D$29239,'5.1. Activos Base'!$B36)/1000 -> 0 | E36: =SUMIFS('5.4. BD-AERONAV2020'!S$5:S$29239,'5.4. BD-AERONAV2020'!$B$5:$B$29239,'5.1. Activos Base'!$A$30,'5.4. BD-AERONAV2020'!$D$5:$D$29239,'5.1. Activos Base'!$B36)/1000 -> 0 | F36: =SUMIFS('5.4. BD-AERONAV2020'!T$5:T$29239,'5.4. BD-AERONAV2020'!$B$5:$B$29239,'5.1. Activos Base'!$A$30,'5.4. BD-AERONAV2020'!$D$5:$D$29239,'5.1. Activos Base'!$B36)/1000 -> 0 | G36: =SUMIFS('5.4. BD-AERONAV2020'!U$5:U$29239,'5.4. BD-AERONAV2020'!$B$5:$B$29239,'5.1. Activos Base'!$A$30,'5.4. BD-AERONAV2020'!$D$5:$D$29239,'5.1. Activos Base'!$B36)/1000 -> 0
B37: Total general | C37: =C23+C30 -> 377806.335 | D37: =D23+D30 -> 32631.44929 | E37: =E23+E30 -> 29015.28376 | F37: =F23+F30 -> 26676.7608 | G37: =G23+G30 -> 24846.20795
B39: B.2 Distribución de valor histórico neto, año 2020, por servicio regulado:
B40: (Expresado en miles de soles)
B41: Servicio | C41: % de asignación | D41: Año 2020
D42: Aeronavegación | E42: Mixto | F42: Total
B43: SNAR nacional | C43: =H7 -> 0.3669953322 | D43: =$C$23*$C43 -> 97306.28522 | E43: =$C$30*$C43 -> 41346.87621 | F43: =D43+E43 -> 138653.1614
B44: SNAR internacional | C44: =H8 -> 0.1156689731 | D44: =$C$23*$C44 -> 30668.83174 | E44: =$C$30*$C44 -> 13031.63908 | F44: =D44+E44 -> 43700.47082
B45: Aproximación | C45: =H9 -> 0.3634724232 | D45: =$C$23*$C45 -> 96372.21016 | E45: =$C$30*$C45 -> 40949.97394 | F45: 137322.1841
B46: Sobrevuelo | C46: =H10 -> 0.1532192983 | D46: =$C$23*$C46 -> 40625.04188 | E46: =$C$30*$C46 -> 17262.17966 | F46: =D46+E46 -> 57887.22155
B47: Total | C47: =SUM(C43:C46) -> 0.9993560269 | D47: =SUM(D43:D46) -> 264972.369 | E47: =SUM(E43:E46) -> 112590.6689 | F47: =SUM(F43:F46) -> 377563.0379
B49: B.3 Distribución de Depreciación y Amortización, por servicio:
B50: (Expresado en miles de soles)
B51: Servicio | C51: % de asignación | D51: Depreciación del Ejercicio
D52: 2021 | E52: =D52+1 -> 2022 | F52: =E52+1 -> 2023 | G52: =F52+1 -> 2024
B53: SNAR nacional | C53: =C43 -> 0.3669953322 | D53: =$C53*D$37 -> 11975.58957 | E53: 10648.4737 | F53: 9790.246694 | G53: 9118.442343
B54: SNAR internacional | C54: =C44 -> 0.1156689731 | D54: 3774.446232 | E54: 3356.168079 | F54: 3085.673529 | G54: 2873.935361
B55: Aproximación | C55: =C45 -> 0.3634724232 | D55: 11860.63195 | E55: 10546.2555 | F55: 9696.266893 | G55: 9030.911413
B56: Sobrevuelo | C56: =C46 -> 0.1532192983 | D56: 4999.767764 | E56: 4445.701418 | F56: 4087.394571 | G56: 3806.918548
B57: Total | C57: =SUM(C53:C56) -> 0.9993560269 | D57: 32610.43552 | E57: 28996.5987 | F57: 26659.58169 | G57: 24830.20766

Sheet 5.2. InvProgramadas
B1: 5.2 Inversiones Programadas | V1: Índice
B3: I. PLAN DE INVERSIONES DE CORPAC, Periodo 2022-2024
B4: (Expresado en dólares. Fuente: CORPAC)
B5: Descripción | C5: Categoria | D5: Tipo | F5: Servicios asignados | G5: Tipo de inversión | H5: Año de adquisición | I5: Valor de adquisición (USD) | J5: % de ejecución objetivo | K5: Valor de adquisición ajustado (USD) | L5: Vida Útil (años) | M5: Factor de depreciación | N5: Depreciación anual | P5: Plan de inversiones | T5: Depreciación
P6: 2022 | Q6: 2023 | R6: 2024 | T6: 2022 | U6: 2023 | V6: 2024 | W6: 2025
B7: - Equipos de radio VHF TWR -Dual - Nivel nacional | C7: Inversiones no ligadas a proyectos (Reposiciones) | D7: Equipos de comunicaciones | F7: SV-SNAR-APROX | G7: Maquinaria y equipo | H7: 2022 | I7: 2872675.696 | J7: =+'5.3. InvEjecutadas'!$H$77 -> 0.6803184584 | K7: =I7*J7 -> 1954334.301 | L7: =VLOOKUP($G7,$B$100:$C$105,2,FALSE) -> 10 | M7: =1/L7 -> 0.1 | N7: =K7/L7 -> 195433.4301 | P7: =IF(P$6=$H7,$K7,0) -> 1954334.301 | Q7: 0 | R7: 0 | T7: =+IF(T$6>$H7,$N7,0) -> 0 | U7: 195433.4301 | V7: 195433.4301 | W7: 195433.4301
B8: - Sistemas de grabaciòn - Nivel nacional. | C8: Inversiones no ligadas a proyectos (Reposiciones) | D8: Equipos de comunicaciones | F8: SV-SNAR-APROX | G8: Maquinaria y equipo | H8: 2023 | I8: 1227860.976 | J8: =+'5.3. InvEjecutadas'!$H$77 -> 0.6803184584 | K8: 835336.486 | L8: 10 | M8: 0.1 | N8: 83533.6486 | P8: 0 | Q8: 835336.486 | R8: 0 | T8: 0 | U8: 0 | V8: 83533.6486 | W8: 83533.6486
B9: - Sistemas ATIS | C9: Inversiones no ligadas a proyectos (Reposiciones) | D9: Equipos de comunicaciones | F9: SV-SNAR-APROX | G9: Maquinaria y equipo | H9: 2023 | I9: 241105.6098 | J9: =+'5.3. InvEjecutadas'!$H$77 -> 0.6803184584 | K9: 164028.5967 | L9: 10 | M9: 0.1 | N9: 16402.85967 | P9: 0 | Q9: 164028.5967 | R9: 0 | T9: 0 | U9: 0 | V9: 16402.85967 | W9: 16402.85967
B10: - Estaciones de una Red de radio HF-SSB para el servicio ATS y de mensajería AMHS del servicio fijo aeronáutico | C10: Inversiones no ligadas a proyectos (Reposiciones) | D10: Equipos de comunicaciones | F10: SV-SNAR-APROX | G10: Maquinaria y equipo | H10: 2024 | I10: 838390 | J10: =+'5.3. InvEjecutadas'!$H$77 -> 0.6803184584 | K10: 570372.1923 | L10: 10 | M10: 0.1 | N10: 57037.21923 | P10: =IF(P$6=$H10,$K10,0) -> 0 | Q10: 0 | R10: 570372.1923 | T10: 0 | U10: 0 | V10: 0 | W10: 57037.21923
B11: - Reposición del sistema de mensajería aeronáutica AMHS | C11: Inversiones no ligadas a proyectos (Reposiciones) | D11: Equipos de comunicaciones | F11: SV-SNAR-APROX | G11: Maquinaria y equipo | H11: 2022 | I11: 521975.443 | J11: =+'5.3. InvEjecutadas'!$H$77 -> 0.6803184584 | K11: 355109.5287 | L11: 10 | M11: 0.1 | N11: 35510.95287 | P11: =IF(P$6=$H11,$K11,0) -> 355109.5287 | Q11: 0 | R11: 0 | T11: 0 | U11: 35510.95287 | V11: 35510.95287 | W11: 35510.95287
B12: - Reposición del sistema de mensajería aeronáutica AMHS | C12: Inversiones no ligadas a proyectos (Reposiciones) | D12: Equipos de comunicaciones | F12: SV-SNAR-APROX | G12: Maquinaria y equipo | H12: 2023 | I12: 3916456.829 | J12: =+'5.3. InvEjecutadas'!$H$77 -> 0.6803184584 | K12: 2664437.872 | L12: 10 | M12: 0.1 | N12: 266443.7872 | P12: 0 | Q12: 2664437.872 | R12: 0 | T12: 0 | U12: 0 | V12: 266443.7872 | W12: 266443.7872
B13: - Radioenlaces digitales de microondas | C13: Inversiones no ligadas a proyectos (Reposiciones) | D13: Equipos de comunicaciones | F13: SV-SNAR-APROX | G13: Maquinaria y equipo | H13: 2022 | I13: 2297938.228 | J13: =+'5.3. InvEjecutadas'!$H$77 -> 0.6803184584 | K13: 1563329.793 | L13: 10 | M13: 0.1 | N13: 156332.9793 | P13: 1563329.793 | Q13: 0 | R13: 0 | T13: =+IF(T$6>$H13,$N13,0) -> 0 | U13: 156332.9793 | V13: 156332.9793 | W13: 156332.9793
B14: - Modernizaciòn de sistemas Conmutaciòn oral ATS 15 aeròdromos no controlados | C14: Inversiones no ligadas a proyectos (Reposiciones) | D14: Equipos de comunicaciones | F14: SV-SNAR-APROX | G14: Maquinaria y equipo | H14: 2024 | I14: 278296.8293 | J14: =+'5.3. InvEjecutadas'!$H$77 -> 0.6803184584 | K14: 189330.4699 | L14: 10 | M14: 0.1 | N14: 18933.04699 | P14: 0 | Q14: 0 | R14: 189330.4699 | T14: 0 | U14: 0 | V14: 0 | W14: 18933.04699
B15: - Equipos diversos, Estudios- Nivel Nacional. | C15: Inversiones no ligadas a proyectos (Reposiciones) | D15: Equipos de comunicaciones | F15: SV-SNAR-APROX | G15: Maquinaria y equipo | H15: 2022 | I15: 165026.8354 | J15: =+'5.3. InvEjecutadas'!$H$77 -> 0.6803184584 | K15: 112270.8023 | L15: 10 | M15: 0.1 | N15: 11227.08023 | P15: 112270.8023 | Q15: 0 | R15: 0 | T15: 0 | U15: 11227.08023 | V15: 11227.08023 | W15: 11227.08023
B16: - Equipos diversos, Estudios- Nivel Nacional. | C16: Inversiones no ligadas a proyectos (Reposiciones) | D16: Equipos de comunicaciones | F16: SV-SNAR-APROX | G16: Maquinaria y equipo | H16: 2023 | I16: 145428.5366 | J16: =+'5.3. InvEjecutadas'!$H$77 -> 0.6803184584 | K16: 98937.71781 | L16: 10 | M16: 0.1 | N16: 9893.771781 | P16: 0 | Q16: 98937.71781 | R16: 0 | T16: 0 | U16: 0 | V16: 9893.771781 | W16: 9893.771781
B17: - Equipos diversos, Estudios- Nivel Nacional. | C17: Inversiones no ligadas a proyectos (Reposiciones) | D17: Equipos de comunicaciones | F17: SV-SNAR-APROX | G17: Maquinaria y equipo | H17: 2024 | I17: 195121.9512 | J17: =+'5.3. InvEjecutadas'!$H$77 -> 0.6803184584 | K17: 132745.065 | L17: 10 | M17: 0.1 | N17: 13274.5065 | P17: 0 | Q17: 0 | R17: 132745.065 | T17: 0 | U17: 0 | V17: 0 | W17: 13274.5065
B18: - Sistemas UPS para protección de equipos de aeronavegación Nivel nacional. | C18: Inversiones no ligadas a proyectos (Reposiciones) | D18: Equipo de electricidad | F18: SV-SNAR-APROX | G18: Maquinaria y equipo | H18: 2022 | I18: 95417.72152 | J18: =+'5.3. InvEjecutadas'!$H$77 -> 0.6803184584 | K18: 64914.4372 | L18: 10 | M18: 0.1 | N18: 6491.44372 | P18: 64914.4372 | Q18: 0 | R18: 0 | T18: 0 | U18: 6491.44372 | V18: 6491.44372 | W18: 6491.44372
B19: - Sistemas UPS para protección de equipos de aeronavegación Nivel nacional. | C19: Inversiones no ligadas a proyectos (Reposiciones) | D19: Equipo de electricidad | F19: SV-SNAR-APROX | G19: Maquinaria y equipo | H19: 2023 | I19: 827341.4634 | J19: =+'5.3. InvEjecutadas'!$H$77 -> 0.6803184584 | K19: 562855.6689 | L19: 10 | M19: 0.1 | N19: 56285.56689 | P19: 0 | Q19: 562855.6689 | R19: 0 | T19: 0 | U19: 0 | V19: 56285.56689 | W19: 56285.56689
B20: - Sistemas UPS para protección de equipos de aeronavegación Nivel nacional. | C20: Inversiones no ligadas a proyectos (Reposiciones) | D20: Equipo de electricidad | F20: SV-SNAR-APROX | G20: Maquinaria y equipo | H20: 2024 | I20: 197268.2927 | J20: =+'5.3. InvEjecutadas'!$H$77 -> 0.6803184584 | K20: 134205.2608 | L20: 10 | M20: 0.1 | N20: 13420.52608 | P20: 0 | Q20: 0 | R20: 134205.2608 | T20: 0 | U20: 0 | V20: 0 | W20: 13420.52608
B21: - Equipos de aire acondicionado para estaciones - Nivel nacional | C21: Inversiones no ligadas a proyectos (Reposiciones) | D21: Equipo de electricidad | F21: SV-SNAR-APROX | G21: Maquinaria y equipo | H21: 2022 | I21: 29268.86076 | J21: =+'5.3. InvEjecutadas'!$H$77 -> 0.6803184584 | K21: 19912.14623 | L21: 10 | M21: 0.1 | N21: 1991.214623 | P21: 19912.14623 | Q21: 0 | R21: 0 | T21: 0 | U21: 1991.214623 | V21: 1991.214623 | W21: 1991.214623
B22: - Equipos de aire acondicionado para estaciones - Nivel nacional | C22: Inversiones no ligadas a proyectos (Reposiciones) | D22: Equipo de electricidad | F22: SV-SNAR-APROX | G22: Maquinaria y equipo | H22: 2023 | I22: 736673.1707 | J22: =+'5.3. InvEjecutadas'!$H$77 -> 0.6803184584 | K22: 501172.3558 | L22: 10 | M22: 0.1 | N22: 50117.23558 | P22: 0 | Q22: 501172.3558 | R22: 0 | T22: 0 | U22: 0 | V22: 50117.23558 | W22: 50117.23558
B23: - Equipos de aire acondicionado para estaciones - Nivel nacional | C23: Inversiones no ligadas a proyectos (Reposiciones) | D23: Equipo de electricidad | F23: SV-SNAR-APROX | G23: Maquinaria y equipo | H23: 2024 | I23: 236829.2683 | J23: =+'5.3. InvEjecutadas'!$H$77 -> 0.6803184584 | K23: 161119.3227 | L23: 10 | M23: 0.1 | N23: 16111.93227 | P23: 0 | Q23: 0 | R23: 161119.3227 | T23: 0 | U23: 0 | V23: 0 | W23: 16111.93227
B24: - Luces de Aproximación | C24: Inversiones no ligadas a proyectos (Reposiciones) | D24: Equipo de electricidad | F24: APROX | G24: Maquinaria y equipo | H24: 2023 | I24: 276973.9024 | J24: =+'5.3. InvEjecutadas'!$H$77 -> 0.6803184584 | K24: 188430.4583 | L24: 10 | M24: 0.1 | N24: 18843.04583 | P24: 0 | Q24: 188430.4583 | R24: 0 | T24: 0 | U24: 0 | V24: 18843.04583 | W24: 18843.04583
B25: - Sistema de Ayudas Luminosas - Reposición (Pto Maldonado, Tacna, Tarapoto, Pucallpa, Talara,Tumbes) | C25: Inversiones no ligadas a proyectos (Reposiciones) | D25: Equipo de electricidad | F25: APROX | G25: Maquinaria y equipo | H25: 2023 | I25: 929967.0732 | J25: =+'5.3. InvEjecutadas'!$H$77 -> 0.6803184584 | K25: 632673.7655 | L25: 10 | M25: 0.1 | N25: 63267.37655 | P25: 0 | Q25: 632673.7655 | R25: 0 | T25: 0 | U25: 0 | V25: 63267.37655 | W25: 63267.37655
B26: - Sistema de Ayudas Luminosas - Reposición (Pto Maldonado, Tacna, Tarapoto, Pucallpa, Talara,Tumbes) | C26: Inversiones no ligadas a proyectos (Reposiciones) | D26: Equipo de electricidad | F26: APROX | G26: Maquinaria y equipo | H26: 2024 | I26: 1038666.341 | J26: =+'5.3. InvEjecutadas'!$H$77 -> 0.6803184584 | K26: 706623.8842 | L26: 10 | M26: 0.1 | N26: 70662.38842 | P26: 0 | Q26: 0 | R26: 706623.8842 | T26: 0 | U26: 0 | V26: 0 | W26: 70662.38842
B27: - 03 Sistema computarizado control remoto de los sistemas ayudas luminosas | C27: Inversiones no ligadas a proyectos (Reposiciones) | D27: Equipo de electricidad | F27: APROX | G27: Equipos de informática | H27: 2023 | I27: 413826.8293 | J27: =+'5.3. InvEjecutadas'!$H$77 -> 0.6803184584 | K27: 281534.0305 | L27: 4 | M27: 0.25 | N27: 70383.50763 | P27: 0 | Q27: 281534.0305 | R27: 0 | T27: =+IF(T$6>$H27,$N27,0) -> 0 | U27: 0 | V27: 70383.50763 | W27: 70383.50763
B28: - Renovaciòn y mejoramiento de sub estaciones electricas. | C28: Inversiones no ligadas a proyectos (Reposiciones) | D28: Equipo de electricidad | F28: SV-SNAR-APROX | G28: Maquinaria y equipo | H28: 2023 | I28: 289375.8537 | J28: =+'5.3. InvEjecutadas'!$H$77 -> 0.6803184584 | K28: 196867.7346 | L28: 10 | M28: 0.1 | N28: 19686.77346 | P28: 0 | Q28: 196867.7346 | R28: 0 | T28: 0 | U28: 0 | V28: 19686.77346 | W28: 19686.77346
B29: - Renovaciòn y mejoramiento de sub estaciones electricas. | C29: Inversiones no ligadas a proyectos (Reposiciones) | D29: Equipo de electricidad | F29: SV-SNAR-APROX | G29: Maquinaria y equipo | H29: 2024 | I29: 303090.9756 | J29: =+'5.3. InvEjecutadas'!$H$77 -> 0.6803184584 | K29: 206198.3853 | L29: 10 | M29: 0.1 | N29: 20619.83853 | P29: 0 | Q29: 0 | R29: 206198.3853 | T29: 0 | U29: 0 | V29: 0 | W29: 20619.83853
B30: - Luces de calle de rodaje Arpto. Jorge Chávez | C30: Inversiones no ligadas a proyectos (Reposiciones) | D30: Equipo de electricidad | F30: APROX | G30: Maquinaria y equipo | H30: 2023 | I30: 425291.2195 | J30: =+'5.3. InvEjecutadas'!$H$77 -> 0.6803184584 | K30: 289333.4668 | L30: 10 | M30: 0.1 | N30: 28933.34668 | P30: 0 | Q30: 289333.4668 | R30: 0 | T30: 0 | U30: 0 | V30: 28933.34668 | W30: 28933.34668
B31: - Adquisición e instalación letreros de señalizaciòn vertical Aeropuerto Jorge Chàvez | C31: Inversiones no ligadas a proyectos (Reposiciones) | D31: Equipo de electricidad | F31: APROX | G31: Maquinaria y equipo | H31: 2022 | I31: 19204.55696 | J31: =+'5.3. InvEjecutadas'!$H$77 -> 0.6803184584 | K31: 13065.21459 | L31: 10 | M31: 0.1 | N31: 1306.521459 | P31: 13065.21459 | Q31: 0 | R31: 0 | T31: 0 | U31: 1306.521459 | V31: 1306.521459 | W31: 1306.521459
B32: - Adquisición e instalación letreros de señalizaciòn vertical Aeropuerto Jorge Chàvez | C32: Inversiones no ligadas a proyectos (Reposiciones) | D32: Equipo de electricidad | F32: APROX | G32: Maquinaria y equipo | H32: 2023 | I32: 166517.561 | J32: =+'5.3. InvEjecutadas'!$H$77 -> 0.6803184584 | K32: 113284.9704 | L32: 10 | M32: 0.1 | N32: 11328.49704 | P32: 0 | Q32: 113284.9704 | R32: 0 | T32: 0 | U32: 0 | V32: 11328.49704 | W32: 11328.49704
B33: - Estudios, equipos diversos,obras e instalación - Nivel nacional. | C33: Inversiones no ligadas a proyectos (Reposiciones) | D33: Equipo de electricidad | F33: SV-SNAR-APROX | G33: Maquinaria y equipo | H33: 2022 | I33: 161039.7468 | J33: =+'5.3. InvEjecutadas'!$H$77 -> 0.6803184584 | K33: 109558.3123 | L33: 10 | M33: 0.1 | N33: 10955.83123 | P33: 109558.3123 | Q33: 0 | R33: 0 | T33: 0 | U33: 10955.83123 | V33: 10955.83123 | W33: 10955.83123
B34: - Estudios, equipos diversos,obras e instalación - Nivel nacional. | C34: Inversiones no ligadas a proyectos (Reposiciones) | D34: Equipo de electricidad | F34: SV-SNAR-APROX | G34: Maquinaria y equipo | H34: 2023 | I34: 524090.7317 | J34: =+'5.3. InvEjecutadas'!$H$77 -> 0.6803184584 | K34: 356548.5986 | L34: 10 | M34: 0.1 | N34: 35654.85986 | P34: 0 | Q34: 356548.5986 | R34: 0 | T34: 0 | U34: 0 | V34: 35654.85986 | W34: 35654.85986
B35: - Estudios, equipos diversos,obras e instalación - Nivel nacional. | C35: Inversiones no ligadas a proyectos (Reposiciones) | D35: Equipo de electricidad | F35: SV-SNAR-APROX | G35: Maquinaria y equipo | H35: 2024 | I35: 731707.3171 | J35: =+'5.3. InvEjecutadas'!$H$77 -> 0.6803184584 | K35: 497793.9939 | L35: 10 | M35: 0.1 | N35: 49779.39939 | P35: 0 | Q35: 0 | R35: 497793.9939 | T35: 0 | U35: 0 | V35: 0 | W35: 49779.39939
B36: - Renovación de Sistemas de Radioayudas (Grupo 1): | C36: Inversiones no ligadas a proyectos (Reposiciones) | D36: Equipo de radioayudas | F36: SNAR-APROX | G36: Maquinaria y equipo | H36: 2023 | I36: 1859446.098 | J36: =+'5.3. InvEjecutadas'!$H$77 -> 0.6803184584 | K36: 1265015.502 | L36: 10 | M36: 0.1 | N36: 126501.5502 | P36: 0 | Q36: 1265015.502 | R36: 0 | T36: 0 | U36: 0 | V36: 126501.5502 | W36: 126501.5502
B37: - Renovación de Sistemas de Radioayudas (Grupo 1): | C37: Inversiones no ligadas a proyectos (Reposiciones) | D37: Equipo de radioayudas | F37: SNAR-APROX | G37: Maquinaria y equipo | H37: 2024 | I37: 1859446.098 | J37: =+'5.3. InvEjecutadas'!$H$77 -> 0.6803184584 | K37: 1265015.502 | L37: 10 | M37: 0.1 | N37: 126501.5502 | P37: 0 | Q37: 0 | R37: 1265015.502 | T37: 0 | U37: 0 | V37: 0 | W37: 126501.5502
B38: - Unidad mòvil integrada para ensayos de tierra de sistemas de aeronavegación | C38: Inversiones no ligadas a proyectos (Reposiciones) | D38: Equipo de radioayudas | F38: APROX | G38: Maquinaria y equipo | H38: 2023 | I38: 921118.7805 | J38: =+'5.3. InvEjecutadas'!$H$77 -> 0.6803184584 | K38: 626654.1087 | L38: 10 | M38: 0.1 | N38: 62665.41087 | P38: 0 | Q38: 626654.1087 | R38: 0 | T38: 0 | U38: 0 | V38: 62665.41087 | W38: 62665.41087
B39: - Equipos diversos, obras e instalación - Nivel nacional. | C39: Inversiones no ligadas a proyectos (Reposiciones) | D39: Equipo de radioayudas | F39: APROX | G39: Maquinaria y equipo | H39: 2022 | I39: 55228.60759 | J39: =+'5.3. InvEjecutadas'!$H$77 -> 0.6803184584 | K39: 37573.04118 | L39: =VLOOKUP($G39,$B$100:$C$105,2,FALSE) -> 10 | M39: 0.1 | N39: 3757.304118 | P39: 37573.04118 | Q39: 0 | R39: 0 | T39: 0 | U39: 3757.304118 | V39: 3757.304118 | W39: 3757.304118
B40: - Equipos diversos, obras e instalación - Nivel nacional. | C40: Inversiones no ligadas a proyectos (Reposiciones) | D40: Equipo de radioayudas | F40: APROX | G40: Maquinaria y equipo | H40: 2023 | I40: 47953.65854 | J40: =+'5.3. InvEjecutadas'!$H$77 -> 0.6803184584 | K40: 32623.75905 | L40: 10 | M40: 0.1 | N40: 3262.375905 | P40: 0 | Q40: 32623.75905 | R40: 0 | T40: 0 | U40: 0 | V40: 3262.375905 | W40: 3262.375905
B41: - Equipos diversos, obras e instalación - Nivel nacional. | C41: Inversiones no ligadas a proyectos (Reposiciones) | D41: Equipo de radioayudas | F41: APROX | G41: Maquinaria y equipo | H41: 2024 | I41: 78973.90244 | J41: =+'5.3. InvEjecutadas'!$H$77 -> 0.6803184584 | K41: 53727.40356 | L41: 10 | M41: 0.1 | N41: 5372.740356 | P41: 0 | Q41: 0 | R41: 53727.40356 | T41: =+IF(T$6>$H41,$N41,0) -> 0 | U41: 0 | V41: 0 | W41: 5372.740356
B42: - Grupos electrógenos -uso continuo Nivel nacional. | C42: Inversiones no ligadas a proyectos (Reposiciones) | D42: Equipos de grupos electrógenos | F42: SV-SNAR-APROX | G42: Maquinaria y equipo | H42: 2022 | I42: 102886.0759 | J42: =+'5.3. InvEjecutadas'!$H$77 -> 0.6803184584 | K42: 69995.29658 | L42: 10 | M42: 0.1 | N42: 6999.529658 | P42: 69995.29658 | Q42: 0 | R42: 0 | T42: 0 | U42: 6999.529658 | V42: 6999.529658 | W42: 6999.529658
B43: - Grupos electrógenos -uso continuo Nivel nacional. | C43: Inversiones no ligadas a proyectos (Reposiciones) | D43: Equipos de grupos electrógenos | F43: SV-SNAR-APROX | G43: Maquinaria y equipo | H43: 2023 | I43: 231285.122 | J43: =+'5.3. InvEjecutadas'!$H$77 -> 0.6803184584 | K43: 157347.5376 | L43: 10 | M43: 0.1 | N43: 15734.75376 | P43: 0 | Q43: 157347.5376 | R43: 0 | T43: 0 | U43: 0 | V43: 15734.75376 | W43: 15734.75376
B44: - Grupos electrógenos -uso continuo Nivel nacional. | C44: Inversiones no ligadas a proyectos (Reposiciones) | D44: Equipos de grupos electrógenos | F44: SV-SNAR-APROX | G44: Maquinaria y equipo | H44: 2024 | I44: 647844.6341 | J44: =+'5.3. InvEjecutadas'!$H$77 -> 0.6803184584 | K44: 440740.6628 | L44: 10 | M44: =1/L44 -> 0.1 | N44: 44074.06628 | P44: 0 | Q44: 0 | R44: 440740.6628 | T44: 0 | U44: 0 | V44: 0 | W44: 44074.06628
B45: - Obras, equipos diversos y gastos de instalación. | C45: Inversiones no ligadas a proyectos (Reposiciones) | D45: Equipos de grupos electrógenos | F45: SV-SNAR-APROX | G45: Edificaciones y construcciones | H45: 2022 | I45: 30010.88608 | J45: =+'5.3. InvEjecutadas'!$H$77 -> 0.6803184584 | K45: =I45*J45 -> 20416.95975 | L45: 33.3 | M45: 0.03003003003 | N45: =K45/L45 -> 613.1219144 | P45: 20416.95975 | Q45: 0 | R45: 0 | T45: 0 | U45: 613.1219144 | V45: 613.1219144 | W45: 613.1219144
B46: - Obras, equipos diversos y gastos de instalación. | C46: Inversiones no ligadas a proyectos (Reposiciones) | D46: Equipos de grupos electrógenos | F46: SV-SNAR-APROX | G46: Edificaciones y construcciones | H46: 2023 | I46: 63720 | J46: =+'5.3. InvEjecutadas'!$H$77 -> 0.6803184584 | K46: 43349.89217 | L46: 33.3 | M46: 0.03003003003 | N46: 1301.798564 | P46: =IF(P$6=$H46,$K46,0) -> 0 | Q46: 43349.89217 | R46: 0 | T46: 0 | U46: 0 | V46: 1301.798564 | W46: 1301.798564
B47: - Obras, equipos diversos y gastos de instalación. | C47: Inversiones no ligadas a proyectos (Reposiciones) | D47: Equipos de grupos electrógenos | F47: SV-SNAR-APROX | G47: Edificaciones y construcciones | H47: 2024 | I47: 32088.29268 | J47: =+'5.3. InvEjecutadas'!$H$77 -> 0.6803184584 | K47: 21830.25781 | L47: 33.3 | M47: 0.03003003003 | N47: 655.5632976 | P47: 0 | Q47: 0 | R47: 21830.25781 | T47: 0 | U47: 0 | V47: 0 | W47: 655.5632976
B48: - Renovaciòn de REDAP y RED de VHF-AA del ACC(Sectorizaciòn PROESA) Incluye VHF-AA frecuencia Emergencia 121.5Mhz | C48: Inversiones no ligadas a proyectos (Reposiciones) | D48: Sistema VHF-AA y medios de transmisión | F48: SV-SNAR-APROX | G48: Maquinaria y equipo | H48: 2023 | I48: 1895582.927 | J48: =+'5.3. InvEjecutadas'!$H$77 -> 0.6803184584 | K48: 1289600.054 | L48: 10 | M48: 0.1 | N48: 128960.0054 | P48: 0 | Q48: 1289600.054 | R48: 0 | T48: 0 | U48: 0 | V48: 128960.0054 | W48: 128960.0054
B49: - Renovación sistema AWOS de Cusco,Arequipa, Iquitos, Trujillo y Arptos. Controlados. | C49: Inversiones no ligadas a proyectos (Reposiciones) | D49: Equipos de meteorología | F49: SV-SNAR-APROX | G49: Maquinaria y equipo | H49: 2022 | I49: 152658.481 | J49: =+'5.3. InvEjecutadas'!$H$77 -> 0.6803184584 | K49: 103856.3825 | L49: 10 | M49: 0.1 | N49: 10385.63825 | P49: 103856.3825 | Q49: 0 | R49: 0 | T49: 0 | U49: 10385.63825 | V49: 10385.63825 | W49: 10385.63825
B50: - Renovación sistema AWOS de Cusco,Arequipa, Iquitos, Trujillo y Arptos. Controlados. | C50: Inversiones no ligadas a proyectos (Reposiciones) | D50: Equipos de meteorología | F50: SV-SNAR-APROX | G50: Maquinaria y equipo | H50: 2023 | I50: 464379.2683 | J50: =+'5.3. InvEjecutadas'!$H$77 -> 0.6803184584 | K50: 315925.7879 | L50: 10 | M50: 0.1 | N50: 31592.57879 | P50: 0 | Q50: 315925.7879 | R50: 0 | T50: 0 | U50: 0 | V50: 31592.57879 | W50: 31592.57879
B51: - Implementación de Sistemas Automáticas de Observaciones Meteorológicas (AWOS) en Aeropuertos Controlados | C51: Inversiones no ligadas a proyectos (Reposiciones) | D51: Equipos de meteorología | F51: SV-SNAR-APROX | G51: Maquinaria y equipo | H51: 2024 | I51: 928758.7805 | J51: =+'5.3. InvEjecutadas'!$H$77 -> 0.6803184584 | K51: 631851.7417 | L51: 10 | M51: 0.1 | N51: 63185.17417 | P51: 0 | Q51: 0 | R51: 631851.7417 | T51: =+IF(T$6>$H51,$N51,0) -> 0 | U51: 0 | V51: 0 | W51: 63185.17417
B52: - Receptor de Imágenes de satélite geoestacionario de alta resolución | C52: Inversiones no ligadas a proyectos (Reposiciones) | D52: Equipos de meteorología | F52: SV-SNAR-APROX | G52: Maquinaria y equipo | H52: 2023 | I52: 172782.439 | J52: =+'5.3. InvEjecutadas'!$H$77 -> 0.6803184584 | K52: 117547.0825 | L52: 10 | M52: 0.1 | N52: 11754.70825 | P52: 0 | Q52: 117547.0825 | R52: 0 | T52: 0 | U52: 0 | V52: 11754.70825 | W52: 11754.70825
B53: - Sistema automàtico Radiosondaje (Piura,Iquitos,Pto. Maldonado) | C53: Inversiones no ligadas a proyectos (Reposiciones) | D53: Equipos de meteorología | F53: SV-SNAR-APROX | G53: Maquinaria y equipo | H53: 2024 | I53: 255541.9512 | J53: =+'5.3. InvEjecutadas'!$H$77 -> 0.6803184584 | K53: 173849.9063 | L53: 10 | M53: 0.1 | N53: 17384.99063 | P53: 0 | Q53: 0 | R53: 173849.9063 | T53: 0 | U53: 0 | V53: 0 | W53: 17384.99063
B54: - Equipos diversos de meteorologìa y gastos de instalación - Nivel nacional. | C54: Inversiones no ligadas a proyectos (Reposiciones) | D54: Equipos de meteorología | F54: SV-SNAR-APROX | G54: Maquinaria y equipo | H54: 2022 | I54: 486940.7595 | J54: =+'5.3. InvEjecutadas'!$H$77 -> 0.6803184584 | K54: 331274.7868 | L54: 10 | M54: 0.1 | N54: 33127.47868 | P54: 331274.7868 | Q54: 0 | R54: 0 | T54: 0 | U54: 33127.47868 | V54: 33127.47868 | W54: 33127.47868
B55: - Equipos diversos de meteorologìa y gastos de instalación - Nivel nacional. | C55: Inversiones no ligadas a proyectos (Reposiciones) | D55: Equipos de meteorología | F55: SV-SNAR-APROX | G55: Maquinaria y equipo | H55: 2023 | I55: 827021.2195 | J55: =+'5.3. InvEjecutadas'!$H$77 -> 0.6803184584 | K55: 562637.8011 | L55: 10 | M55: 0.1 | N55: 56263.78011 | P55: 0 | Q55: 562637.8011 | R55: 0 | T55: 0 | U55: 0 | V55: 56263.78011 | W55: 56263.78011
B56: - Equipos diversos de meteorologìa y gastos de instalación - Nivel nacional. | C56: Inversiones no ligadas a proyectos (Reposiciones) | D56: Equipos de meteorología | F56: SV-SNAR-APROX | G56: Maquinaria y equipo | H56: 2024 | I56: 965981.7073 | J56: =+'5.3. InvEjecutadas'!$H$77 -> 0.6803184584 | K56: 657175.1859 | L56: 10 | M56: 0.1 | N56: 65717.51859 | P56: 0 | Q56: 0 | R56: 657175.1859 | T56: 0 | U56: 0 | V56: 0 | W56: 65717.51859
B57: - Renovaciòn de equipos y sistemas del Centro de Control de Lima. | C57: Inversiones no ligadas a proyectos (Reposiciones) | D57: Equipos de vigilancia aérea | F57: SV-SNAR-APROX | G57: Maquinaria y equipo | H57: 2024 | I57: 1972682.927 | J57: =+'5.3. InvEjecutadas'!$H$77 -> 0.6803184584 | K57: 1342052.608 | L57: 10 | M57: 0.1 | N57: 134205.2608 | P57: 0 | Q57: 0 | R57: 1342052.608 | T57: 0 | U57: 0 | V57: 0 | W57: 134205.2608
B58: - Estaciones ADS-B (Trujillo, Jauja, Yurimaguas, Pto Maldonado, Pisco) | C58: Inversiones no ligadas a proyectos (Reposiciones) | D58: Equipos de vigilancia aérea | F58: SV-SNAR-APROX | G58: Maquinaria y equipo | H58: 2023 | I58: 1043612.927 | J58: =+'5.3. InvEjecutadas'!$H$77 -> 0.6803184584 | K58: 709989.1375 | L58: 10 | M58: 0.1 | N58: 70998.91375 | P58: 0 | Q58: 709989.1375 | R58: 0 | T58: 0 | U58: 0 | V58: 70998.91375 | W58: 70998.91375
B59: - Radomo | C59: Inversiones no ligadas a proyectos (Reposiciones) | D59: Equipos de vigilancia aérea | F59: SV-SNAR-APROX | G59: Maquinaria y equipo | H59: 2023 | I59: 481557.0732 | J59: =+'5.3. InvEjecutadas'!$H$77 -> 0.6803184584 | K59: 327612.1656 | L59: 10 | M59: 0.1 | N59: 32761.21656 | P59: 0 | Q59: 327612.1656 | R59: 0 | T59: 0 | U59: 0 | V59: 32761.21656 | W59: 32761.21656
B60: - Equipos diversos (Estación Radar y Centro de Control). | C60: Inversiones no ligadas a proyectos (Reposiciones) | D60: Equipos de vigilancia aérea | F60: SV-SNAR-APROX | G60: Maquinaria y equipo | H60: 2022 | I60: 232542.2785 | J60: =+'5.3. InvEjecutadas'!$H$77 -> 0.6803184584 | K60: 158202.8044 | L60: 10 | M60: 0.1 | N60: 15820.28044 | P60: 158202.8044 | Q60: 0 | R60: 0 | T60: 0 | U60: 15820.28044 | V60: 15820.28044 | W60: 15820.28044
B61: - Equipos diversos (Estación Radar y Centro de Control). | C61: Inversiones no ligadas a proyectos (Reposiciones) | D61: Equipos de vigilancia aérea | F61: SV-SNAR-APROX | G61: Maquinaria y equipo | H61: 2023 | I61: 182926.8293 | J61: =+'5.3. InvEjecutadas'!$H$77 -> 0.6803184584 | K61: 124448.4985 | L61: 10 | M61: 0.1 | N61: 12444.84985 | P61: 0 | Q61: 124448.4985 | R61: 0 | T61: 0 | U61: 0 | V61: 12444.84985 | W61: 12444.84985
B62: - Equipos diversos (Estación Radar y Centro de Control). | C62: Inversiones no ligadas a proyectos (Reposiciones) | D62: Equipos de vigilancia aérea | F62: SV-SNAR-APROX | G62: Maquinaria y equipo | H62: 2024 | I62: 494814.3902 | J62: =+'5.3. InvEjecutadas'!$H$77 -> 0.6803184584 | K62: 336631.3631 | L62: 10 | M62: 0.1 | N62: 33663.13631 | P62: 0 | Q62: 0 | R62: 336631.3631 | T62: 0 | U62: 0 | V62: 0 | W62: 33663.13631
B63: - Construcción y/o mejoramiento de torres de control de Pisco (2022-2023), Iquitos (2023), Tarapoto (2024), Puerto Maldonado (2023), Jaén (2024), Jauja(2023), Nazca(2023), Mazamari (2024), Huánuco(2025), Tocache(2027), Atalaya (2026) | C63: Inversiones no ligadas a proyectos (Reposiciones) | D63: Torres de control | F63: SV-SNAR-APROX | G63: Edificaciones y construcciones | H63: 2023 | I63: 171088.0488 | J63: =+'5.3. InvEjecutadas'!$H$77 -> 0.6803184584 | K63: 116394.3576 | L63: 33.3 | M63: 0.03003003003 | N63: 3495.326054 | P63: 0 | Q63: 116394.3576 | R63: 0 | T63: =+IF(T$6>$H63,$N63,0) -> 0 | U63: 0 | V63: 3495.326054 | W63: 3495.326054
B64: - Construcción y/o mejoramiento de torres de control de Pisco (2022-2023), Iquitos (2023), Tarapoto (2024), Puerto Maldonado (2023), Jaén (2024), Jauja(2023), Nazca(2023), Mazamari (2024), Huánuco(2025), Tocache(2027), Atalaya (2026) | C64: Inversiones no ligadas a proyectos (Reposiciones) | D64: Torres de control | F64: SV-SNAR-APROX | G64: Edificaciones y construcciones | H64: 2024 | I64: =764839.024390244-365634 -> 399205.0244 | J64: =+'5.3. InvEjecutadas'!$H$77 -> 0.6803184584 | K64: 271586.5468 | L64: =VLOOKUP($G64,$B$100:$C$105,2,FALSE) -> 33.3 | M64: 0.03003003003 | N64: 8155.752155 | P64: 0 | Q64: 0 | R64: 271586.5468 | T64: 0 | U64: 0 | V64: 0 | W64: 8155.752155
B65: - Sistema de interfase para grabación y reproducción del Centro de Control y TWR | C65: Inversiones no ligadas a proyectos (Reposiciones) | D65: Otras inversiones | F65: SV-SNAR-APROX | G65: Maquinaria y equipo | H65: 2022 | I65: 139214.1772 | J65: =+'5.3. InvEjecutadas'!$H$77 -> 0.6803184584 | K65: 94709.97443 | L65: 10 | M65: 0.1 | N65: 9470.997443 | P65: 94709.97443 | Q65: 0 | R65: 0 | T65: 0 | U65: 9470.997443 | V65: 9470.997443 | W65: 9470.997443
B66: - Investigación,capacitación y actualización tecnológica | C66: Inversiones no ligadas a proyectos (Reposiciones) | D66: Otras inversiones | F66: SV-SNAR-APROX | G66: Otros | H66: 2022 | I66: 25316.4557 | J66: =+'5.3. InvEjecutadas'!$H$77 -> 0.6803184584 | K66: 17223.25211 | L66: 10 | M66: 0.1 | N66: 1722.325211 | P66: 17223.25211 | Q66: 0 | R66: 0 | T66: 0 | U66: 1722.325211 | V66: 1722.325211 | W66: 1722.325211
B67: - Investigación,capacitación y actualización tecnológica | C67: Inversiones no ligadas a proyectos (Reposiciones) | D67: Otras inversiones | F67: SV-SNAR-APROX | G67: Otros | H67: 2023 | I67: 24390.2439 | J67: =+'5.3. InvEjecutadas'!$H$77 -> 0.6803184584 | K67: 16593.13313 | L67: 10 | M67: 0.1 | N67: 1659.313313 | P67: 0 | Q67: 16593.13313 | R67: 0 | T67: 0 | U67: 0 | V67: 1659.313313 | W67: 1659.313313
B68: - Investigación,capacitación y actualización tecnológica | C68: Inversiones no ligadas a proyectos (Reposiciones) | D68: Otras inversiones | F68: SV-SNAR-APROX | G68: Otros | H68: 2024 | I68: 148099.2683 | J68: =+'5.3. InvEjecutadas'!$H$77 -> 0.6803184584 | K68: 100754.6659 | L68: 10 | M68: 0.1 | N68: 10075.46659 | P68: 0 | Q68: 0 | R68: 100754.6659 | T68: 0 | U68: 0 | V68: 0 | W68: 10075.46659
B69: - Inversiones varias a nivel nacional | C69: Inversiones no ligadas a proyectos (Reposiciones) | D69: Otras inversiones | F69: SV-SNAR-APROX | G69: Maquinaria y equipo | H69: 2022 | I69: 351705.0633 | J69: =+'5.3. InvEjecutadas'!$H$77 -> 0.6803184584 | K69: 239271.4465 | L69: 10 | M69: 0.1 | N69: 23927.14465 | P69: 239271.4465 | Q69: 0 | R69: 0 | T69: 0 | U69: 23927.14465 | V69: 23927.14465 | W69: 23927.14465
B70: - Inversiones varias a nivel nacional | C70: Inversiones no ligadas a proyectos (Reposiciones) | D70: Otras inversiones | F70: SV-SNAR-APROX | G70: Maquinaria y equipo | H70: 2023 | I70: 304003.4146 | J70: =+'5.3. InvEjecutadas'!$H$77 -> 0.6803184584 | K70: 206819.1344 | L70: 10 | M70: 0.1 | N70: 20681.91344 | P70: 0 | Q70: 206819.1344 | R70: 0 | T70: 0 | U70: 0 | V70: 20681.91344 | W70: 20681.91344
B71: - Inversiones varias a nivel nacional | C71: Inversiones no ligadas a proyectos (Reposiciones) | D71: Otras inversiones | F71: SV-SNAR-APROX | G71: Maquinaria y equipo | H71: 2024 | I71: 100097.561 | J71: =+'5.3. InvEjecutadas'!$H$77 -> 0.6803184584 | K71: 68098.21837 | L71: 10 | M71: 0.1 | N71: 6809.821837 | P71: 0 | Q71: 0 | R71: 68098.21837 | T71: 0 | U71: 0 | V71: 0 | W71: 6809.821837
B72: - Inversiones sistema de navegación aérea y torres de control Arpto. Ilo, Moquegua (DU-006-2018) | C72: Inversiones no ligadas a proyectos (Reposiciones) | D72: Otras inversiones | F72: SV-SNAR-APROX | G72: Edificaciones y construcciones | H72: 2022 | I72: 1265.822785 | J72: =+'5.3. InvEjecutadas'!$H$77 -> 0.6803184584 | K72: 861.1626055 | L72: 33.3 | M72: 0.03003003003 | N72: 25.8607389 | P72: 861.1626055 | Q72: 0 | R72: 0 | T72: 0 | U72: 25.8607389 | V72: 25.8607389 | W72: 25.8607389
B73: - Inversiones sistema de navegación aérea y torres de control Arpto. Ilo, Moquegua (DU-006-2018) | C73: Inversiones no ligadas a proyectos (Reposiciones) | D73: Otras inversiones | F73: SV-SNAR-APROX | G73: Edificaciones y construcciones | H73: 2023 | I73: 781122.9268 | J73: =+'5.3. InvEjecutadas'!$H$77 -> 0.6803184584 | K73: 531412.3454 | L73: 33.3 | M73: 0.03003003003 | N73: 15958.32869 | P73: 0 | Q73: 531412.3454 | R73: 0 | T73: 0 | U73: 0 | V73: 15958.32869 | W73: 15958.32869
B74: Total | I74: =SUM(I7:I73) -> 39036121.94 | K74: =SUM(K7:K73) -> 26556994.3 | N74: =SUM(N7:N73) -> 2627550.134 | P74: =SUM(P7:P73) -> 5265879.642 | Q74: 13329412.02 | R74: 7961702.636 | S74: 0 | T74: 0 | U74: 525099.1346 | V74: 1851910.235 | W74: 2627550.134
B76: II. INVERSIONES EJECUTADAS, AÑO 2021
B77: (Expresado en dólares. Fuente: CORPAC)
B78: Descripción | C78: Categoria | D78: Tipo | F78: Servicios asignados | G78: Tipo de inversión | H78: Año de adquisición | I78: Valor de adquisición (USD) | J78: % de ejecución objetivo | K78: Valor de adquisición ajustado (USD) | L78: Vida Útil (años) | M78: Factor de depreciación | N78: Depreciación anual | P78: Inversión | T78: Depreciación
P79: 2021 | T79: 2022 | U79: 2023 | V79: 2024 | W79: 2025
B80: Construcción de la torre de control del Aeropuerto de Ilo | F80: SV-SNAR-APROX | G80: Edificaciones y construcciones | H80: 2021 | I80: 159652.5907 | J80: 1 | K80: =I80*J80 -> 159652.5907 | L80: =VLOOKUP($G80,$B$100:$C$105,2,FALSE) -> 33.3 | M80: =1/L80 -> 0.03003003003 | N80: =K80/L80 -> 4794.372092 | P80: =IF(P$79=$H80,$K80,0) -> 159652.5907 | T80: =+IF(T$6>$H80,$N80,0) -> 4794.372092 | U80: 4794.372092 | V80: 4794.372092 | W80: 4794.372092
B81: Sistemas de Aeronavegación para la Segunda Pista del Arpto. Jorge Chávez (*) | F81: SNAR-APROX | G81: Maquinaria y equipo | H81: 2021 | I81: 692359.8446 | J81: 1 | K81: =I81*J81 -> 692359.8446 | L81: 10 | M81: =1/L81 -> 0.1 | N81: =K81/L81 -> 69235.98446 | P81: 692359.8446 | T81: 69235.98446 | U81: 69235.98446 | V81: 69235.98446 | W81: 69235.98446
B82: Equipos de radio VHF TWR - Dual - Nivel nacional (*) | F82: SV-SNAR-APROX | G82: Maquinaria y equipo | H82: 2021 | I82: 2010303.886 | J82: 1 | K82: 2010303.886 | L82: 10 | M82: 0.1 | N82: 201030.3886 | P82: 2010303.886 | T82: 201030.3886 | U82: 201030.3886 | V82: 201030.3886 | W82: 201030.3886
B83: Equipos diversos - Nivel Nacional | F83: SV-SNAR-APROX | G83: Maquinaria y equipo | H83: 2021 | I83: 13442.74611 | J83: 1 | K83: 13442.74611 | L83: 10 | M83: 0.1 | N83: 1344.274611 | P83: 13442.74611 | T83: 1344.274611 | U83: 1344.274611 | V83: 1344.274611 | W83: 1344.274611
B84: Renovación luces de aproximación y letreros de señalización vertical Arpto. Jorge Chávez | F84: APROX | G84: Maquinaria y equipo | H84: 2021 | I84: 259558.8083 | J84: 1 | K84: 259558.8083 | L84: 10 | M84: 0.1 | N84: 25955.88083 | P84: 259558.8083 | T84: 25955.88083 | U84: 25955.88083 | V84: 25955.88083 | W84: 25955.88083
B85: Estudios, equipos diversos, obras e instalación - Nivel nacional | F85: SV-SNAR-APROX | G85: Maquinaria y equipo | H85: 2021 | I85: 14424.87047 | J85: 1 | K85: 14424.87047 | L85: 10 | M85: 0.1 | N85: 1442.487047 | P85: 14424.87047 | T85: 1442.487047 | U85: 1442.487047 | V85: 1442.487047 | W85: 1442.487047
B86: Equipos de aire acondicionado para estaciones - Nivel nacional | F86: SV-SNAR-APROX | G86: Maquinaria y equipo | H86: 2021 | I86: 327564.7668 | J86: 1 | K86: 327564.7668 | L86: 10 | M86: 0.1 | N86: 32756.47668 | P86: 327564.7668 | T86: 32756.47668 | U86: 32756.47668 | V86: 32756.47668 | W86: 32756.47668
B87: Reposición Sistema DVOR/DME - Jorge Chávez | F87: APROX | G87: Maquinaria y equipo | H87: 2021 | I87: 269730.5699 | J87: 1 | K87: 269730.5699 | L87: 10 | M87: 0.1 | N87: 26973.05699 | P87: 269730.5699 | T87: 26973.05699 | U87: 26973.05699 | V87: 26973.05699 | W87: 26973.05699
B88: Equipos diversos, obras e instalación - Nivel nacional | F88: APROX | G88: Maquinaria y equipo | H88: 2021 | I88: 237215.285 | J88: 1 | K88: 237215.285 | L88: 10 | M88: 0.1 | N88: 23721.5285 | P88: 237215.285 | T88: 23721.5285 | U88: 23721.5285 | V88: 23721.5285 | W88: 23721.5285
B89: Equipos diversos y gastos de instalación | F89: SV-SNAR-APROX | G89: Maquinaria y equipo | H89: 2021 | I89: 695.5958549 | J89: 1 | K89: 695.5958549 | L89: 10 | M89: 0.1 | N89: 69.55958549 | P89: 695.5958549 | T89: 69.55958549 | U89: 69.55958549 | V89: 69.55958549 | W89: 69.55958549
B90: Equipos diversos de meteorología y gastos de instalación - Nivel nacional | F90: SV-SNAR-APROX | G90: Maquinaria y equipo | H90: 2021 | I90: 54024.87047 | J90: 1 | K90: 54024.87047 | L90: 10 | M90: 0.1 | N90: 5402.487047 | P90: 54024.87047 | T90: 5402.487047 | U90: 5402.487047 | V90: 5402.487047 | W90: 5402.487047
B91: Equipos diversos (Estación Radar y Centro de Control) | F91: SV-SNAR-APROX | G91: Maquinaria y equipo | H91: 2021 | I91: 1989916.062 | J91: 1 | K91: 1989916.062 | L91: 10 | M91: 0.1 | N91: 198991.6062 | P91: 1989916.062 | T91: 198991.6062 | U91: 198991.6062 | V91: 198991.6062 | W91: 198991.6062
B92: Adquisición de equipos, hardware y software | F92: SV-SNAR-APROX | G92: Maquinaria y equipo | H92: 2021 | I92: 519837.8238 | J92: 1 | K92: 519837.8238 | L92: 10 | M92: 0.1 | N92: 51983.78238 | P92: 519837.8238 | T92: 51983.78238 | U92: 51983.78238 | V92: 51983.78238 | W92: 51983.78238
B93: Investigación, capacitación y actualización tecnológica GREPECAS | F93: SV-SNAR-APROX | G93: Otros | H93: 2021 | I93: 9897.668394 | J93: 1 | K93: 9897.668394 | L93: 10 | M93: 0.1 | N93: 989.7668394 | P93: 9897.668394 | T93: 989.7668394 | U93: 989.7668394 | V93: 989.7668394 | W93: 989.7668394
B94: Inversiones varias a nivel nacional | F94: SV-SNAR-APROX | G94: Otros | H94: 2021 | I94: 12733.93782 | J94: 1 | K94: 12733.93782 | L94: 10 | M94: 0.1 | N94: 1273.393782 | P94: 12733.93782 | T94: 1273.393782 | U94: 1273.393782 | V94: 1273.393782 | W94: 1273.393782
B95: Repotenciación de la Red de Radares secundarios | F95: SV-SNAR-APROX | G95: Maquinaria y equipo | H95: 2021 | I95: 3291095.078 | J95: 1 | K95: 3291095.078 | L95: 10 | M95: 0.1 | N95: 329109.5078 | P95: 3291095.078 | T95: 329109.5078 | U95: 329109.5078 | V95: 329109.5078 | W95: 329109.5078
B96: Total | I96: =SUM(I80:I95) -> 9862454.404 | K96: =SUM(K80:K95) -> 9862454.404 | N96: =SUM(N80:N95) -> 975074.5534 | P96: =SUM(P80:P95) -> 9862454.404 | S96: 0 | T96: 975074.5534 | U96: 975074.5534 | V96: 975074.5534 | W96: 975074.5534
B98: * Vida útil de los activos:
B99: Concepto | C99: Vida útil (años)
B100: Maquinaria y equipo | C100: 10
B101: Edificaciones y construcciones | C101: 33.3
B102: Otros | C102: 10
B103: Equipos de informática | C103: 4
B104: Red | C104: 10
B105: Equipos | C105: 10
B107: III. INVERSIONES PROYECTADAS, por clasificación
B109: A. Factor de distribución de inversiones:
B111: i.1 Gasto en Depreciación y Amortización, según CR (en soles):
B112: (Driver 1: Gasto en Depreciación + Amortización, según CR)
B113: Servicio | D113: Depreciación y amortización | H113: Promedio
D114: 2017 | E114: =+D114+1 -> 2018 | F114: =+E114+1 -> 2019 | G114: 2020
B115: SNAR nacional | D115: =+'5.1. Activos Base'!C7 -> 7129772.016 | E115: =+'5.1. Activos Base'!D7 -> 12945251.26 | F115: =+'5.1. Activos Base'!E7 -> 11484207.77 | G115: =+'5.1. Activos Base'!F7 -> 12808539.74 | H115: =AVERAGE(D115:G115) -> 11091942.7
B116: SNAR internacional | D116: =+'5.1. Activos Base'!C8 -> 2452018.503 | E116: =+'5.1. Activos Base'!D8 -> 3787636.656 | F116: =+'5.1. Activos Base'!E8 -> 4118355.972 | G116: =+'5.1. Activos Base'!F8 -> 3625748.436 | H116: =AVERAGE(D116:G116) -> 3495939.892
B117: Aproximación | D117: =+'5.1. Activos Base'!C9 -> 7351690.518 | E117: =+'5.1. Activos Base'!D9 -> 12149849.95 | F117: =+'5.1. Activos Base'!E9 -> 10946483.71 | G117: =+'5.1. Activos Base'!F9 -> 13493845.77 | H117: 10985467.49
B118: Sobrevuelo | D118: =+'5.1. Activos Base'!C10 -> 2714963.615 | E118: =+'5.1. Activos Base'!D10 -> 4773755.545 | F118: =+'5.1. Activos Base'!E10 -> 4946087.518 | G118: =+'5.1. Activos Base'!F10 -> 6088586.156 | H118: 4630848.209
B119: Total servicios con tarifa regulada | D119: =SUM(D115:D118) -> 19648444.65 | E119: =SUM(E115:E118) -> 33656493.41 | F119: =SUM(F115:F118) -> 31495134.97 | G119: 36016720.1 | H119: =SUM(H115:H118) -> 30204198.28
B121: i.2 Distribución para Inversiones asignadas a SNAR:
B122: (Driver 2: Kilómetro recorrido, usuarios atribuibles)
B123: Servicio | D123: 2017 | E123: =D123+1 -> 2018 | F123: =E123+1 -> 2019 | G123: 2020 | H123: Promedio
B124: SNAR Nacional (Kilómetros recorridos) | D124: =+'1. Demanda'!C9 -> 75128319.21 | E124: =+'1. Demanda'!D9 -> 80835290.16 | F124: =+'1. Demanda'!E9 -> 86859755.46 | G124: =+'1. Demanda'!F9 -> 32977805.86 | H124: =AVERAGE(D124:G124) -> 68950292.67
B125: SNAR Internacional (Kilómetros recorridos) | D125: =+'1. Demanda'!C26 -> 76765499.64 | E125: =+'1. Demanda'!D26 -> 80424520.97 | F125: =+'1. Demanda'!E26 -> 80707610.26 | G125: =+'1. Demanda'!F26 -> 24869238.11 | H125: =AVERAGE(D125:G125) -> 65691717.25
B126: Total SNAR (Kilómetros recorridos) | D126: =SUM(D124:D125) -> 151893818.8 | E126: =SUM(E124:E125) -> 161259811.1 | F126: 167567365.7 | G126: 57847043.97 | H126: 134642009.9
B128: ii. Asignación por combinación de servicios (%):
B129: Combinación | C129: Servicio | D129: 2017 | E129: =D129+1 -> 2018 | F129: =E129+1 -> 2019 | G129: 2020 | H129: Promedio
B130: SV-SNAR-APROX | C130: SNAR Nacional | D130: =SUM(D$115:D$116)/D119*D124/D$126 -> 0.2412026449 | E130: =SUM(E$115:E$116)/E119*E124/E$126 -> 0.2492165564 | F130: 0.2567920958 | G130: 0.2601281325 | H130: 0.247332094
B131: SV-SNAR-APROX | C131: SNAR Internacional | D131: =SUM(D$115:D$116)/D119*D125/D$126 -> 0.2464588819 | E131: =SUM(E$115:E$116)/E119*E125/E$126 -> 0.2479501481 | F131: 0.2386038998 | G131: 0.1961679468 | H131: 0.2356432345
B132: SV-SNAR-APROX | C132: Sobrevuelo | D132: =D118/D119 -> 0.1381770244 | E132: =E118/E119 -> 0.141837579 | F132: 0.1570429059 | G132: 0.1690488789 | H132: 0.153318031
B133: SV-SNAR-APROX | C133: Aproximación | D133: =D117/D119 -> 0.3741614488 | E133: =E117/E119 -> 0.3609957164 | F133: 0.3475610985 | G133: 0.3746550417 | H133: 0.3637066405
B134: SNAR-APROX | C134: Aproximación | D134: =D117/SUM(D115,D116,D117) -> 0.4341511649 | E134: =E117/SUM(E115,E116,E117) -> 0.4206612962 | F134: 0.4123117309 | G134: 0.4508749459 | H134: 0.4295670084
B135: SNAR-APROX | C135: SNAR Nacional | D135: =SUM(D115:D116)/SUM(D115,D116,D117)*D124/D$126 -> 0.2798749299 | E135: =SUM(E115:E116)/SUM(E115,E116,E117)*E124/E$126 -> 0.2904072124 | F135: 0.304632463 | G135: 0.313048657 | H135: 0.2921192408
B136: SNAR-APROX | C136: SNAR Internacional | D136: =SUM(D115:D116)/SUM(D115,D116,D117)*D125/D$126 -> 0.2859739052 | E136: =SUM(E115:E116)/SUM(E115,E116,E117)*E125/E$126 -> 0.2889314914 | F136: 0.2830558061 | G136: 0.2360763971 | H136: 0.2783137508
B137: APROX | C137: Aproximación | D137: =D117/D117 -> 1 | E137: =E117/E117 -> 1 | F137: 1 | G137: 1 | H137: 1
B139: B. Distribución de inversiones
B141: i. Inversiones, según combinación de servicios:
B142: (Expresado en dólares)
B143: Combinación | C143: Tipo de inversión | E143: 2021 | F143: =E143+1 -> 2022 | G143: =F143+1 -> 2023 | H143: =G143+1 -> 2024
B144: SV-SNAR-APROX | C144: Edificaciones y construcciones | E144: =SUMIFS(P$80:P$95,$F$80:$F$95,$B144,$G$80:$G$95,$C144) -> 159652.5907 | F144: =SUMIFS(P$7:P$73,$F$7:$F$73,$B144,$G$7:$G$73,$C144) -> 21278.12235 | G144: =SUMIFS(Q$7:Q$73,$F$7:$F$73,$B144,$G$7:$G$73,$C144) -> 691156.5951 | H144: =SUMIFS(R$7:R$73,$F$7:$F$73,$B144,$G$7:$G$73,$C144) -> 293416.8046
B145: SV-SNAR-APROX | C145: Equipos de informática | E145: 0 | F145: 0 | G145: 0 | H145: 0
B146: SV-SNAR-APROX | C146: Maquinaria y equipo | E146: 8221305.699 | F146: 5176740.011 | G146: 9192112.231 | H146: 5542164.376
B147: SV-SNAR-APROX | C147: Otros | E147: 22631.60622 | F147: 17223.25211 | G147: 16593.13313 | H147: 100754.6659
B148: SNAR-APROX | C148: Edificaciones y construcciones | E148: 0 | F148: 0 | G148: 0 | H148: 0
B149: SNAR-APROX | C149: Equipos de informática | E149: 0 | F149: 0 | G149: 0 | H149: 0
B150: SNAR-APROX | C150: Maquinaria y equipo | E150: 692359.8446 | F150: 0 | G150: 1265015.502 | H150: 1265015.502
B151: SNAR-APROX | C151: Otros | E151: 0 | F151: 0 | G151: 0 | H151: 0
B152: APROX | C152: Edificaciones y construcciones | E152: 0 | F152: 0 | G152: 0 | H152: 0
B153: APROX | C153: Equipos de informática | E153: 0 | F153: 0 | G153: 281534.0305 | H153: 0
B154: APROX | C154: Maquinaria y equipo | E154: 766504.6632 | F154: 50638.25576 | G154: 1883000.529 | H154: 760351.2877
B155: APROX | C155: Otros | E155: 0 | F155: 0 | G155: 0 | H155: 0
B156: Total | E156: =SUM(E144:E155) -> 9862454.404 | F156: =SUM(F144:F155) -> 5265879.642 | G156: =SUM(G144:G155) -> 13329412.02 | H156: =SUM(H144:H155) -> 7961702.636
B158: ii. Inversiones por servicio de aeronavegación, según tipo de inversión:
B159: (Expresado en dólares)
B160: Servicio | C160: Tipo de inversión | E160: =E143 -> 2021 | F160: =E160+1 -> 2022 | G160: =F160+1 -> 2023 | H160: =G160+1 -> 2024
B161: SNAR Nacional | C161: Edificaciones y construcciones | E161: =SUMIF($C$144:$C$147,$C161,E$144:E$147)*SUMIFS($H$130:$H$133,$B$130:$B$133,$B144,$C$130:$C$133,$B161)+SUMIF($C$148:$C$151,$C161,E$148:E$151)*SUMIFS($H$134:$H$136,$B$134:$B$136,$B148,$C$134:$C$136,$B161)+SUMIF($C$152:$C$155,$C161,E$152:E$155)*SUMIFS($H$137,$B$137,$B152,$C$137,$B161) -> 39487.20956 | F161: 5262.762558 | G161: 170945.208 | H161: 72571.39269
B162: SNAR Nacional | C162: Equipos de informática | E162: 0 | F162: 0 | G162: 0 | H162: 0
B163: SNAR Nacional | C163: Maquinaria y equipo | E163: 2235644.386 | F163: 1280373.947 | G163: 2643039.734 | H163: 1740290.489
B164: SNAR Nacional | C164: Otros | E164: 5597.522556 | F164: 4259.86301 | G164: 4104.014363 | H164: 24919.86249
B165: SNAR Internacional | C165: Edificaciones y construcciones | E165: =SUMIF($C$144:$C$147,$C165,E$144:E$147)*SUMIFS($H$130:$H$133,$B$130:$B$133,$B144,$C$130:$C$133,$B165)+SUMIF($C$148:$C$151,$C165,E$148:E$151)*SUMIFS($H$134:$H$136,$B$134:$B$136,$B148,$C$134:$C$136,$B165)+SUMIF($C$152:$C$155,$C165,E$152:E$155)*SUMIFS($H$137,$B$137,$B152,$C$137,$B165) -> 37621.05286 | F165: 5014.045576 | G165: 162866.3756 | H165: 69141.68488
B166: SNAR Internacional | C166: Equipos de informática | E166: 0 | F166: 0 | G166: 0 | H166: 0
B167: SNAR Internacional | C167: Maquinaria y equipo | E167: 2129988.332 | F167: 1219863.76 | G167: 2518130.267 | H167: 1658044.749
B168: SNAR Internacional | C168: Otros | E168: 5332.984891 | F168: 4058.542836 | G168: 3910.059561 | H168: 23742.15536
B169: Aproximación | C169: Edificaciones y construcciones | E169: =SUMIF($C$144:$C$147,$C169,E$144:E$147)*SUMIFS($H$130:$H$133,$B$130:$B$133,$B144,$C$130:$C$133,$B169)+SUMIF($C$148:$C$151,$C169,E$148:E$151)*SUMIFS($H$134:$H$136,$B$134:$B$136,$B148,$C$134:$C$136,$B169)+SUMIF($C$152:$C$155,$C169,E$152:E$155)*SUMIFS($H$137,$B$137,$B152,$C$137,$B169) -> 58066.7074 | F169: 7738.994398 | G169: 251378.2433 | H169: 106717.6403
B170: Aproximación | C170: Equipos de informática | E170: 0 | F170: 0 | G170: 281534.0305 | H170: 0
B171: Aproximación | C171: Maquinaria y equipo | E171: 4054063.087 | F171: 1933452.974 | G171: 5769641.712 | H171: 3319482.199
B172: Aproximación | C172: Otros | E172: 8231.265467 | F172: 6264.211164 | G172: 6035.032707 | H172: 36645.14105
B173: Sobrevuelo | C173: Edificaciones y construcciones | E173: =SUMIF($C$144:$C$147,$C173,E$144:E$147)*SUMIFS($H$130:$H$133,$B$130:$B$133,$B144,$C$130:$C$133,$B173)+SUMIF($C$148:$C$151,$C173,E$148:E$151)*SUMIFS($H$134:$H$136,$B$134:$B$136,$B148,$C$134:$C$136,$B173)+SUMIF($C$152:$C$155,$C173,E$152:E$155)*SUMIFS($H$137,$B$137,$B152,$C$137,$B173) -> 24477.62084 | F173: 3262.319823 | G173: 105966.7683 | H173: 44986.08674
B174: Sobrevuelo | C174: Equipos de informática | E174: 0 | F174: 0 | G174: 0 | H174: 0
B175: Sobrevuelo | C175: Maquinaria y equipo | E175: 1260474.402 | F175: 793687.5855 | G175: 1409316.548 | H175: 849713.7295
B176: Sobrevuelo | C176: Otros | E176: 3469.833303 | F176: 2640.635101 | G176: 2544.0265 | H176: 15447.50699
B177: Total Aeronavegación | E177: =SUM(E161:E176) -> 9862454.404 | F177: =SUM(F161:F176) -> 5265879.642 | G177: =SUM(G161:G176) -> 13329412.02 | H177: =SUM(H161:H176) -> 7961702.636
B179: iii. Resumen de Inversiones por servicio de aeronavegación:
B180: (Expresado en miles de dólares)
B181: Servicio | E181: =E160 -> 2021 | F181: =E181+1 -> 2022 | G181: =F181+1 -> 2023 | H181: =G181+1 -> 2024
B182: SNAR nacional | E182: =SUMIF($B$161:$B$176,$B182,E$161:E$176)/1000 -> 2280.729118 | F182: 1289.896573 | G182: 2818.088957 | H182: 1837.781744
B183: SNAR internacional | E183: 2172.94237 | F183: 1228.936349 | G183: 2684.906702 | H183: 1750.928589
B184: Aproximación | E184: 4120.36106 | F184: 1947.45618 | G184: 6308.589019 | H184: 3462.84498
B185: Sobrevuelo | E185: 1288.421856 | F185: 799.5905404 | G185: 1517.827343 | H185: 910.1473232
B186: Total | E186: =SUM(E182:E185) -> 9862.454404 | F186: 5265.879642 | G186: 13329.41202 | H186: 7961.702636
B188: C. Depreciación y amortización
B190: i. Depreciación: Por combinación de servicios
B191: (Expresado en dólares)
B192: Combinación | C192: Tipo de inversión | F192: 2022 | G192: =F192+1 -> 2023 | H192: =G192+1 -> 2024
B193: SV-SNAR-APROX | C193: Edificaciones y construcciones | F193: =SUMIFS(T$7:T$95,$F$7:$F$95,$B193,$G$7:$G$95,$C193) -> 4794.372092 | G193: =SUMIFS(U$7:U$95,$F$7:$F$95,$B193,$G$7:$G$95,$C193) -> 5433.354746 | H193: =SUMIFS(V$7:V$95,$F$7:$F$95,$B193,$G$7:$G$95,$C193) -> 26188.80805
B194: SV-SNAR-APROX | C194: Equipos de informática | F194: 0 | G194: 0 | H194: 0
B195: SV-SNAR-APROX | C195: Maquinaria y equipo | F195: 822130.5699 | G195: 1339804.571 | H195: 2259015.794
B196: SV-SNAR-APROX | C196: Otros | F196: 2263.160622 | G196: 3985.485833 | H196: 5644.799146
B197: SNAR-APROX | C197: Edificaciones y construcciones | F197: 0 | G197: 0 | H197: 0
B198: SNAR-APROX | C198: Equipos de informática | F198: 0 | G198: 0 | H198: 0
B199: SNAR-APROX | C199: Maquinaria y equipo | F199: 69235.98446 | G199: 69235.98446 | H199: 195737.5347
B200: SNAR-APROX | C200: Otros | F200: 0 | G200: 0 | H200: 0
B201: APROX | C201: Edificaciones y construcciones | F201: 0 | G201: 0 | H201: 0
B202: APROX | C202: Equipos de informática | F202: 0 | G202: 0 | H202: 70383.50763
B203: APROX | C203: Maquinaria y equipo | F203: 76650.46632 | G203: 81714.2919 | H203: 270014.3448
B204: APROX | C204: Otros | F204: 0 | G204: 0 | H204: 0
B205: Total | F205: =SUM(F193:F204) -> 975074.5534 | G205: =SUM(G193:G204) -> 1500173.688 | H205: =SUM(H193:H204) -> 2826984.788
B207: ii. Depreciación: Según tipo de inversión
B208: (Expresado en dólares)
B209: Servicio | C209: Tipo de inversión | F209: 2022 | G209: =F209+1 -> 2023 | H209: =G209+1 -> 2024
B210: SNAR Nacional | C210: Edificaciones y construcciones | F210: =SUMIF($C$193:$C$196,$C210,F$193:F$196)*SUMIFS($H$130:$H$133,$B$130:$B$133,$B193,$C$130:$C$133,$B210)+SUMIF($C$197:$C$200,$C210,F$197:F$200)*SUMIFS($H$134:$H$136,$B$134:$B$136,$B197,$C$134:$C$136,$B210)+SUMIF($C$201:$C$204,$C210,F$201:F$204)*SUMIFS($H$137,$B$137,$B201,$C$137,$B210) -> 1185.802089 | G210: 1343.843007 | H210: 6477.332735
B211: SNAR Nacional | C211: Equipos de informática | F211: 0 | G211: 0 | H211: 0
B212: SNAR Nacional | C212: Maquinaria y equipo | F212: 223564.4386 | G212: 351601.8333 | H212: 615905.8068
B213: SNAR Nacional | C213: Otros | F213: 559.7522556 | G213: 985.7385566 | H213: 1396.139993
B214: SNAR Internacional | C214: Edificaciones y construcciones | F214: =SUMIF($C$193:$C$196,$C214,F$193:F$196)*SUMIFS($H$130:$H$133,$B$130:$B$133,$B193,$C$130:$C$133,$B214)+SUMIF($C$197:$C$200,$C214,F$197:F$200)*SUMIFS($H$134:$H$136,$B$134:$B$136,$B197,$C$134:$C$136,$B214)+SUMIF($C$201:$C$204,$C214,F$201:F$204)*SUMIFS($H$137,$B$137,$B201,$C$137,$B214) -> 1129.761347 | G214: 1280.333286 | H214: 6171.215437
B215: SNAR Internacional | C215: Equipos de informática | F215: 0 | G215: 0 | H215: 0
... 19 more rows

Sheet 5.3. InvEjecutadas
B1: 5.3. EJECUCIÓN DE INVERSIONES - PERIODO 2017 - 2021 | O1: Índice
B2: Fuente: CORPAC S.A.
B3: (Expresado en dólares)
B4: Descripción | C4: 2017 | E4: 2018 | G4: 2019 | I4: 2020 | K4: 2021 | M4: Total 2017-2021
C5: Programado | D5: Ejecutado | E5: Programado | F5: Ejecutado | G5: Programado | H5: Ejecutado | I5: Programado | J5: Ejecutado | K5: Programado | L5: Ejecutado | M5: Programado | N5: Ejecutado | O5: % Ejecutado
B6: Proyecto de Comunicaciones Satelitales VSAT (Mejoramiento de la Conectividad de la Red de Comunicaciones Aeronáuticas de CORPAC S.A.) | C6: 509839.2 | D6: 516473 | E6: 2601470.3 | G6: 2067980 | I6: 329926 | K6: 2969337 | M6: =C6+E6+G6+I6+K6 -> 8478552.5 | N6: =D6+F6+H6+J6+L6 -> 516473 | O6: =IFERROR(N6/M6,1) -> 0.06091523288
B7: Modernización de Sistemas de Ayudas Luminosas en Aeropuertos del Perú (III Etapa) | C7: 0 | E7: 780000 | G7: 845000 | I7: 650000 | K7: 650000 | M7: 2925000 | N7: 0 | O7: =IFERROR(N7/M7,1) -> 0
B8: Implantación de Estaciones Automáticas de Observaciones Meteorológicas (AWOS) | C8: 0 | E8: 244432.5 | G8: 439979 | I8: 659968 | K8: 1099946 | M8: 2444325.5 | N8: 0 | O8: 0
B9: Nuevo Centro de Gestión de Tránsito Aéreo y Sistemas de Vigilancia y Comunicaciones | C9: 0 | E9: 3093450.75 | G9: 4640176 | I9: 6186902 | K9: 1546726 | M9: 15467254.75 | N9: 0 | O9: 0
B10: Sistemas GVAR (Arequipa, Cusco, Iquitos) | C10: 0 | E10: 39000 | G10: 351000 | M10: 390000 | N10: 0 | O10: 0
B11: Construcción de la torre de control del Aeropuerto de Ilo | C11: 0 | E11: 224138.2 | J11: 275051.216 | L11: 159652.5907 | M11: 224138.2 | N11: 434703.8067 | O11: 1.939445426
B12: Construcción de la torre de control del Aeropuerto de Nasca | C12: 0 | E12: 219718.2 | M12: 219718.2 | N12: 0 | O12: 0
B13: Adquisición de un Sistema de Vigilancia Aérea para el Espacio Aéreo Inferior (ADSB) | C13: 0 | E13: 0 | G13: 585000 | I13: 682500 | K13: 682500 | M13: 1950000 | N13: 0 | O13: 0
B14: Sistemas de Aeronavegación para la Segunda Pista del Arpto. Jorge Chávez (*) | C14: 0 | E14: 0 | G14: 810724 | I14: 3242896 | J14: 127546.495 | K14: 4053620 | L14: 692359.8446 | M14: 8107240 | N14: 819906.3396 | O14: 0.1011326098
B15: Sistemas de Aeronavegación para el Aeropuerto de Chinchero - Cusco | C15: 0 | E15: 0 | G15: 1002575 | I15: 4010299 | K15: 5012873 | M15: 10025747 | N15: 0 | O15: 0
B16: Construcción de la torre de control del Aeropuerto de Juanjui | C16: 0 | E16: 0 | G16: 219718 | M16: 219718 | N16: 0 | O16: 0
B17: Construcción de la torre de control del Aeropuerto de Chimbote | I17: 219718 | M17: 219718 | N17: 0 | O17: 0
B18: Construcción de la torre de control del Aeropuerto de Tingo María | K18: 219718 | M18: 219718 | N18: 0 | O18: 0
B19: Equipos de radio VHF TWR - Dual - Nivel nacional (*) | C19: 240797.05 | E19: 2407972.45 | I19: 2237424 | J19: 175178.2546 | K19: 2372552 | L19: 2010303.886 | M19: 7258745.5 | N19: 2185482.141 | O19: 0.3010826238
B20: Sistemas ATIS (Pisco, Piura, Trujillo, Iquitos y Nasca) | C20: 394598.75 | E20: 0 | F20: 438261 | I20: 19473 | K20: 175257 | M20: 589328.75 | N20: 438261 | O20: 0.7436613266
B21: Equipos HF tierra-aire | C21: 175115.85 | E21: 700463.4 | F21: 390919 | G21: 701771 | H21: =1206287/3.31 -> 364437.1601 | I21: 488186 | K21: 488186 | M21: 2553722.25 | N21: 755356.1601 | O21: 0.2957863409
B22: 06 Radioenlaces (Lima, Iquitos, Yurimaguas, Urcos) | C22: 21813.35 | E22: 208858 | M22: 230671.35 | N22: 0 | O22: 0
B23: Paneles de radiocomunicaciones TWR Aeropuertos no controlados | C23: 5603.65 | E23: 50432.85 | M23: 56036.5 | N23: 0 | O23: 0
B24: Multiplexores REDAP/VSAT | C24: 54925 | E24: 494325 | M24: 549250 | N24: 0 | O24: 0
B25: Equipos diversos - Nivel Nacional | C25: 66431.95 | D25: 68459 | E25: 65000 | F25: 75611 | G25: 65000 | H25: 241197 | I25: 65000 | J25: 3231.187411 | K25: 65000 | L25: 13442.74611 | M25: 326431.95 | N25: 401940.9335 | O25: 1.231316155
B26: Sistemas de grabación - Nivel nacional | C26: 0 | E26: 478263.5 | I26: 434785 | J26: 1689300.715 | M26: 913048.5 | N26: 1689300.715 | O26: 1.850176322
B27: Terminales AMHS | C27: 0 | E27: 10400 | G27: 93600 | M27: 104000 | N27: 0 | O27: 0
B28: Interfase para sistemas AMHS | C28: 0 | E28: 75624.9 | M28: 75624.9 | N28: 0 | O28: 0
B29: Reposición del sistema de mensajería aeronáutica AMHS | C29: 0 | E29: 260000 | G29: 1040000 | M29: 1300000 | N29: 0 | O29: 0
B30: Sistemas UPS para Torres de Control de arptos. controlados Nivel nacional | C30: 210749.5 | D30: 255700 | E30: 142890.15 | M30: 353639.65 | N30: 255700 | O30: 0.7230524066
B31: Renovación luces de aproximación y letreros de señalización vertical Arpto. Jorge Chávez | C31: 70363.15 | D31: 310562 | E31: 633268.35 | F31: 1261071 | L31: 259558.8083 | M31: 703631.5 | N31: 1831191.808 | O31: 2.602486967
B32: Sistema PAPI Jaén y Mazamari | C32: 104306.8 | D32: 197870 | E32: 0 | M32: 104306.8 | N32: 197870 | O32: 1.897000004
B33: Estudios, equipos diversos, obras e instalación - Nivel nacional | C33: 413589.15 | D33: 257261 | E33: 188991.4 | F33: 541025 | G33: 180439 | H33: 171842 | I33: 682500 | J33: 1299.570815 | K33: 682500 | L33: 14424.87047 | M33: 2148019.55 | N33: 985852.4413 | O33: 0.4589587843
B34: Instalación de sistemas APAPI (Chachapoyas) | C34: 0 | E34: 24895.65 | F34: 40776 | M34: 24895.65 | N34: 40776 | O34: 1.637876496
B35: Sistemas UPS para equipos de comunicaciones a nivel nacional | C35: 0 | E35: 27977.95 | F35: 132310 | G35: =167431+97923 -> 265354 | M35: 293331.95 | N35: 132310 | O35: 0.4510589453
B36: Equipos de aire acondicionado para estaciones - Nivel nacional | C36: 0 | D36: 54992 | E36: 146430.7 | G36: 270514 | H36: =1203452/3.31 -> 363580.6647 | I36: 180000 | K36: 396500 | L36: 327564.7668 | M36: 993444.7 | N36: 746137.4315 | O36: 0.7510608608
B37: Luces de borde de calle de rodaje de Jorge Chávez | C37: 0 | E37: 0 | G37: 304498 | M37: 304498 | N37: 0 | O37: 0
B38: Sistema APAPI (Anta Huaraz, Ilo) | C38: 0 | E38: 0 | G38: 145237 | H38: =997406/3.31 -> 301331.1178 | M38: 145237 | N38: 301331.1178 | O38: 2.07475449
B39: Instalación Sistemas de Radioayudas | C39: 476113.3 | D39: 294883 | E39: 0 | F39: 352346 | M39: 476113.3 | N39: 647229 | O39: 1.359401218
B40: Reposición Sistema DVOR/DME - Jorge Chávez | C40: 497429.4 | D40: 727285 | E40: 0 | L40: 269730.5699 | M40: 497429.4 | N40: 997015.5699 | O40: 2.004335831
B41: Equipos diversos, obras e instalación - Nivel nacional | C41: 17744.35 | D41: 37643 | E41: 154728.6 | F41: 31228 | G41: 130000 | H41: 81280 | I41: 65000 | J41: 1229.470672 | K41: 65000 | L41: 237215.285 | M41: 432472.95 | N41: 388595.7556 | O41: 0.8985434942
B42: Renovación de Sistemas de Radioayudas (Grupo 1) | C42: 0 | E42: 567417.5 | G42: 5183862 | I42: 693931 | M42: 6445210.5 | N42: 0 | O42: 0
B43: Sistema radioayudas - Rioja (saldo 90%) | C43: 0 | E43: 66569.1 | G43: 599122 | K43: 585000 | M43: 1250691.1 | N43: 0 | O43: 0
B44: Sistema VOR/DME portátil | C44: 0 | E44: 0 | G44: 84500 | I44: 760500 | M44: 845000 | N44: 0 | O44: 0
B45: Unidad móvil integrada para ensayos de tierra de sistemas de aeronavegación | C45: 0 | E45: 0 | G45: 70125 | I45: 631123 | M45: 701248 | N45: 0 | O45: 0
B46: Grupos electrógenos - uso continuo Nivel nacional | C46: 19345.3 | D46: 239705 | E46: 367561.35 | H46: =755811/3.31 -> 228341.6918 | J46: 195875.2504 | M46: 386906.65 | N46: 663921.9422 | O46: 1.715974492
B47: Equipos diversos y gastos de instalación | C47: 42386.5 | D47: 64379 | E47: 201500 | F47: 34186 | G47: 164450 | H47: =137355/3.31 -> 41496.97885 | I47: 89050 | J47: 1384.835479 | K47: 151450 | L47: 695.5958549 | M47: 648836.5 | N47: 142142.4102 | O47: 0.2190727713
B48: Construcción y/o remodelacion casa de fuerza - Nivel nacional | C48: 0 | E48: 32500 | I48: 32500 | M48: 65000 | N48: 0 | O48: 0
B49: Obras e instalación | C49: 2241.2 | D49: 2894 | E49: 32500 | G49: 32500 | H49: =14001/3.31 -> 4229.909366 | I49: 32500 | J49: 8317.02432 | K49: 32500 | M49: 132241.2 | N49: 15440.93369 | O49: 0.1167634118
B50: Renovación de REDAP y RED de VHF-AA del ACC (Sectorización PROESA) Incluye VHF-AA frecuencia Emergencia 121.5Mhz | C50: 0 | E50: 167916.45 | G50: 1511250 | M50: 1679166.45 | N50: 0 | O50: 0
B51: Renovación sistema AWOS de Cusco, Arequipa, Iquitos y Trujillo (*) | C51: 715000 | E51: 260000 | M51: 975000 | N51: 0 | O51: 0
B52: Equipos diversos de meteorología y gastos de instalación - Nivel nacional | C52: 47329.75 | D52: 74692 | E52: 65000 | F52: 44761 | G52: 65000 | H52: =39110/3.31 -> 11815.70997 | I52: 113750 | J52: 224327.3247 | K52: 568750 | L52: 54024.87047 | M52: 859829.75 | N52: 409620.9052 | O52: 0.4763976882
B53: Renovación sistema GVAR (Lima) | C53: 0 | E53: 41241.2 | G53: 96230 | M53: 137471.2 | N53: 0 | O53: 0
B54: Equipos diversos (Estación Radar y Centro de Control) | C54: 25102.35 | D54: 18918 | E54: 74389.9 | F54: 200151 | G54: 83678 | H54: =1057063/3.31 -> 319354.3807 | I54: 97500 | J54: 102861.5165 | K54: 877500 | L54: 1989916.062 | M54: 1158170.25 | N54: 2631200.959 | O54: 2.271860255
B55: Radomo | C55: 0 | E55: 54988.7 | G55: 494896 | M55: 549884.7 | N55: 0 | O55: 0
B56: Adquisición de equipos, hardware y software | C56: 569459.15 | D56: 137806 | E56: 1711815.95 | F56: 1661593 | G56: 1358126 | H56: =10428798/3.31 -> 3150694.26 | I56: 1666391 | J56: 1205079.828 | K56: 1666391 | L56: 519837.8238 | M56: 6972183.1 | N56: 6675010.912 | O56: 0.957377455
B57: Modernización de Estaciones de Trabajo de Torres de Control en los Aeropuertos Controlados - Nivel nacional | C57: 773498.7 | D57: 1357068 | E57: 0 | M57: 773498.7 | N57: 1357068 | O57: 1.754454145
B58: Sistema radar primario | C58: 1579514.95 | D58: =8345824/3.255 -> 2564001.229 | E58: 0 | M58: 1579514.95 | N58: 2564001.229 | O58: 1.623283926
B59: Actualización del Centro de Control ACC Lima | C59: 351078 | D59: 1746398 | E59: 1320722 | M59: 1671800 | N59: 1746398 | O59: 1.044621366
B60: Torres de control Móvil | C60: 637000 | D60: 992276 | E60: 845135.2 | F60: 591923 | H60: =46674/3.31 -> 14100.90634 | I60: 1212497 | J60: 1374474.964 | M60: 2694632.2 | N60: 2972774.871 | O60: 1.103221015
B61: Investigación, capacitación y actualización tecnológica GREPECAS | C61: 112069.1 | D61: 12975 | E61: 204534.2 | G61: 216464 | H61: =209656/3.31 -> 63340.18127 | I61: 215554 | K61: 201904 | L61: 9897.668394 | M61: 950525.3 | N61: 86212.84966 | O61: 0.09070021562
B62: Inversiones varias a nivel nacional | C62: 717757.95 | D62: 385405 | E62: 162998.55 | G62: 141549 | H62: =1961243/3.31 -> 592520.5438 | I62: 159306 | J62: 285658.9413 | K62: 630961 | L62: 12733.93782 | M62: 1812572.5 | N62: 1276318.423 | O62: 0.7041475157
B63: Up Grade VCS TWR/APP- Cusco | C63: 0 | D63: 173000 | E63: 0 | G63: 0 | M63: 0 | N63: 173000 | O63: 1
B64: Renovación y modernización de enlaces de interconexión entre estaciones de comunicaciones aeropuertos de provincias | C64: 0 | E64: 292500 | G64: 0 | I64: 292500 | K64: 321750 | M64: 906750 | N64: 0 | O64: 0
B65: Sistema de Gestión Administrativa de mantenimiento de equipos | C65: 0 | E65: 0 | G65: 49155 | I65: 442395 | M65: =C65+E65+G65+I65+K65 -> 491550 | N65: =D65+F65+H65+J65+L65 -> 0 | O65: 0
B66: Luces de balizamiento portátil de emergencia | C66: 0 | E66: 0 | G66: 117000 | I66: 1053000 | J66: 1515482.117 | M66: 1170000 | N66: 1515482.117 | O66: 1.295283861
B67: Renovación y acondicionamiento sistema electrico sede Central y Cusco | E67: 0 | F67: 11304492 | G67: 0 | H67: =35747288/3.31 -> 10799784.89 | M67: 0 | N67: 22104276.89 | O67: 1
B68: Repotenciación de la Red de Radares secundarios | E68: 0 | F68: 2380806 | G68: 0 | H68: =3632295/3.31 -> 1097370.091 | J68: 1107484.406 | L68: 3291095.078 | M68: 0 | N68: 7876755.575 | O68: 1
B69: Modernización de sistemas Conmutación oral ATS para 15 aeródromos no controlados | K69: 156000 | M69: 156000 | N69: 0 | O69: 0
B70: Total | C70: =SUM(C6:C69) -> 8851203.4 | D70: =SUM(D6:D69) -> 10490645.23 | E70: =+SUM(E6:E69) -> 19742022.95 | F70: 19481459 | G70: 24426472 | H70: 17846717.49 | I70: 27647074 | J70: 8293783.119 | K70: 25671921 | L70: 9862454.404 | M70: =SUM(M6:M69) -> 106338693.4 | N70: =+SUM(N6:N69) -> 65975059.24 | O70: 0.6204238285
B71: (*) En ejecución contractual
C73: 2017 | D73: 2018 | E73: 2019 | F73: 2020 | G73: 2021 | H73: Promedio
B74: Programado para el año | C74: =+C70 -> 8851203.4 | D74: =+E70 -> 19742022.95 | E74: =+G70 -> 24426472 | F74: =+I70 -> 27647074 | G74: =+K70 -> 25671921
B75: Ejecución en el año | C75: =+D70 -> 10490645.23 | D75: =+F70 -> 19481459 | E75: =+H70 -> 17846717.49 | F75: =+J70 -> 8293783.119 | G75: =+L70 -> 9862454.404
B76: % de ejecución | C76: =+C75/C74 -> 1.185222478 | D76: 0.9868015577 | E76: 0.7306301741 | F76: 0.2999877354 | G76: 0.3841728246
B77: % de ejecución ajustado | C77: =+IF(C76>100%,100%,C76) -> 1 | D77: 0.9868015577 | E77: 0.7306301741 | F77: 0.2999877354 | G77: 0.3841728246 | H77: =AVERAGE(C77:G77) -> 0.6803184584

Sheet 5.4. BD-AERONAV2020
B1: 5.4. BASE DE ACTIVOS DE AERONAVEGACIÓN AL CIERRE DEL EJERCICIO 2020: AERONAVEGACIÓN Y MIXTOS | U1: Índice
B2: Fuente: CORPAC S.A.
B3: (Expresado en soles)
B4: Servicio | C4: DESCRIPCIÓN DEL ACTIVO | D4: TIPO DE ACTIVO | E4: Fecha de adquisición | F4: Fecha de puesta en uso | G4: Valor histórico del activo fijo al 31.12.2020 | H4: Depreciación acumulada al cierre del ejercicio anterior | I4: Depreciación del ejercicio 2020 | J4: Depreciación del ejercicio relacionada con retiros y/o bajas | K4: Deterioro del ejercicio 2020 | L4: DETERIORO al 31.12.2020 | M4: VALOR NETO al 31.12.2020 | N4: Driver de asignación a aeronavegación | O4: VALOR NETO al 31.12.2020 (asignado a aeronavegación) | P4: Depreciación + deterioro del ejercicio asignada a eronavegación | Q4: Depreciación: | R4: 2021 | S4: 2022 | T4: 2023 | U4: 2024
B5: AERONAVEGACIÓN/AEROPORTUARIO | C5: TERRENOS INSCRITOS | D5: Terrenos | E5: 1950-12-01 | F5: 1950-12-01 | G5: 20572005.46 | H5: 0 | I5: 0 | J5: 0 | K5: 0 | L5: 0 | M5: =+G5-H5-I5+J5-L5 -> 20572005.46 | N5: 0.33 | O5: =+M5*N5 -> 6788761.802 | P5: =(I5+K5)*N5 -> 0 | R5: =IF($O5<=0,0,IF(($O5-SUM($Q5:Q5))<$P5,$O5-SUM($Q5:Q5),IF(SUM($Q5:Q5)<$O5,$P5,0))) -> 0 | S5: =IF($O5<=0,0,IF(($O5-SUM($Q5:R5))<$P5,$O5-SUM($Q5:R5),IF(SUM($Q5:R5)<$O5,$P5,0))) -> 0 | T5: =IF($O5<=0,0,IF(($O5-SUM($Q5:S5))<$P5,$O5-SUM($Q5:S5),IF(SUM($Q5:S5)<$O5,$P5,0))) -> 0 | U5: =IF($O5<=0,0,IF(($O5-SUM($Q5:T5))<$P5,$O5-SUM($Q5:T5),IF(SUM($Q5:T5)<$O5,$P5,0))) -> 0
B6: AERONAVEGACIÓN/AEROPORTUARIO | C6: TERRENOS INSCRITOS | D6: Terrenos | E6: 1950-12-01 | F6: 1950-12-01 | G6: 21227574.21 | H6: 0 | I6: 0 | J6: 0 | K6: 0 | L6: 0 | M6: =+G6-H6-I6+J6-L6 -> 21227574.21 | N6: 0.33 | O6: =+M6*N6 -> 7005099.489 | P6: =(I6+K6)*N6 -> 0 | R6: =IF($O6<=0,0,IF(($O6-SUM($Q6:Q6))<$P6,$O6-SUM($Q6:Q6),IF(SUM($Q6:Q6)<$O6,$P6,0))) -> 0 | S6: =IF($O6<=0,0,IF(($O6-SUM($Q6:R6))<$P6,$O6-SUM($Q6:R6),IF(SUM($Q6:R6)<$O6,$P6,0))) -> 0 | T6: =IF($O6<=0,0,IF(($O6-SUM($Q6:S6))<$P6,$O6-SUM($Q6:S6),IF(SUM($Q6:S6)<$O6,$P6,0))) -> 0 | U6: =IF($O6<=0,0,IF(($O6-SUM($Q6:T6))<$P6,$O6-SUM($Q6:T6),IF(SUM($Q6:T6)<$O6,$P6,0))) -> 0
B7: AERONAVEGACIÓN | C7: TERRENOS INSCRITOS | D7: Terrenos | E7: 1950-12-01 | F7: 1950-12-01 | G7: 70326.13 | H7: 0 | I7: 0 | J7: 0 | K7: 0 | L7: 0 | M7: 70326.13 | N7: 1 | O7: 70326.13 | P7: 0 | R7: =IF($O7<=0,0,IF(($O7-SUM($Q7:Q7))<$P7,$O7-SUM($Q7:Q7),IF(SUM($Q7:Q7)<$O7,$P7,0))) -> 0 | S7: =IF($O7<=0,0,IF(($O7-SUM($Q7:R7))<$P7,$O7-SUM($Q7:R7),IF(SUM($Q7:R7)<$O7,$P7,0))) -> 0 | T7: =IF($O7<=0,0,IF(($O7-SUM($Q7:S7))<$P7,$O7-SUM($Q7:S7),IF(SUM($Q7:S7)<$O7,$P7,0))) -> 0 | U7: =IF($O7<=0,0,IF(($O7-SUM($Q7:T7))<$P7,$O7-SUM($Q7:T7),IF(SUM($Q7:T7)<$O7,$P7,0))) -> 0
B8: AERONAVEGACIÓN | C8: TERRENOS INSCRITOS | D8: Terrenos | E8: 1950-12-01 | F8: 1950-12-01 | G8: 514235.74 | H8: 0 | I8: 0 | J8: 0 | K8: 0 | L8: 0 | M8: 514235.74 | N8: 1 | O8: 514235.74 | P8: 0 | R8: =IF($O8<=0,0,IF(($O8-SUM($Q8:Q8))<$P8,$O8-SUM($Q8:Q8),IF(SUM($Q8:Q8)<$O8,$P8,0))) -> 0 | S8: =IF($O8<=0,0,IF(($O8-SUM($Q8:R8))<$P8,$O8-SUM($Q8:R8),IF(SUM($Q8:R8)<$O8,$P8,0))) -> 0 | T8: =IF($O8<=0,0,IF(($O8-SUM($Q8:S8))<$P8,$O8-SUM($Q8:S8),IF(SUM($Q8:S8)<$O8,$P8,0))) -> 0 | U8: =IF($O8<=0,0,IF(($O8-SUM($Q8:T8))<$P8,$O8-SUM($Q8:T8),IF(SUM($Q8:T8)<$O8,$P8,0))) -> 0
B9: AERONAVEGACIÓN | C9: TERRENOS INSCRITOS | D9: Terrenos | E9: 1950-12-01 | F9: 1950-12-01 | G9: 518837.1 | H9: 0 | I9: 0 | J9: 0 | K9: 0 | L9: 0 | M9: 518837.1 | N9: 1 | O9: 518837.1 | P9: 0 | R9: =IF($O9<=0,0,IF(($O9-SUM($Q9:Q9))<$P9,$O9-SUM($Q9:Q9),IF(SUM($Q9:Q9)<$O9,$P9,0))) -> 0 | S9: =IF($O9<=0,0,IF(($O9-SUM($Q9:R9))<$P9,$O9-SUM($Q9:R9),IF(SUM($Q9:R9)<$O9,$P9,0))) -> 0 | T9: =IF($O9<=0,0,IF(($O9-SUM($Q9:S9))<$P9,$O9-SUM($Q9:S9),IF(SUM($Q9:S9)<$O9,$P9,0))) -> 0 | U9: =IF($O9<=0,0,IF(($O9-SUM($Q9:T9))<$P9,$O9-SUM($Q9:T9),IF(SUM($Q9:T9)<$O9,$P9,0))) -> 0
B10: AERONAVEGACIÓN/AEROPORTUARIO | C10: TERRENOS INSCRITOS | D10: Terrenos | E10: 1950-12-01 | F10: 1950-12-01 | G10: 371378.25 | H10: 0 | I10: 0 | J10: 0 | K10: 0 | L10: 0 | M10: 371378.25 | N10: 0.5 | O10: 185689.125 | P10: 0 | R10: =IF($O10<=0,0,IF(($O10-SUM($Q10:Q10))<$P10,$O10-SUM($Q10:Q10),IF(SUM($Q10:Q10)<$O10,$P10,0))) -> 0 | S10: =IF($O10<=0,0,IF(($O10-SUM($Q10:R10))<$P10,$O10-SUM($Q10:R10),IF(SUM($Q10:R10)<$O10,$P10,0))) -> 0 | T10: =IF($O10<=0,0,IF(($O10-SUM($Q10:S10))<$P10,$O10-SUM($Q10:S10),IF(SUM($Q10:S10)<$O10,$P10,0))) -> 0 | U10: =IF($O10<=0,0,IF(($O10-SUM($Q10:T10))<$P10,$O10-SUM($Q10:T10),IF(SUM($Q10:T10)<$O10,$P10,0))) -> 0
B11: AERONAVEGACIÓN | C11: TERRENOS INSCRITOS | D11: Terrenos | E11: 1950-12-01 | F11: 1950-12-01 | G11: 41687.71 | H11: 0 | I11: 0 | J11: 0 | K11: 0 | L11: 0 | M11: 41687.71 | N11: 1 | O11: 41687.71 | P11: 0 | R11: =IF($O11<=0,0,IF(($O11-SUM($Q11:Q11))<$P11,$O11-SUM($Q11:Q11),IF(SUM($Q11:Q11)<$O11,$P11,0))) -> 0 | S11: =IF($O11<=0,0,IF(($O11-SUM($Q11:R11))<$P11,$O11-SUM($Q11:R11),IF(SUM($Q11:R11)<$O11,$P11,0))) -> 0 | T11: =IF($O11<=0,0,IF(($O11-SUM($Q11:S11))<$P11,$O11-SUM($Q11:S11),IF(SUM($Q11:S11)<$O11,$P11,0))) -> 0 | U11: =IF($O11<=0,0,IF(($O11-SUM($Q11:T11))<$P11,$O11-SUM($Q11:T11),IF(SUM($Q11:T11)<$O11,$P11,0))) -> 0
B12: AERONAVEGACIÓN | C12: TERRENOS INSCRITOS | D12: Terrenos | E12: 1950-12-01 | F12: 1950-12-01 | G12: 4736906.04 | H12: 0 | I12: 0 | J12: 0 | K12: 0 | L12: 0 | M12: 4736906.04 | N12: 1 | O12: 4736906.04 | P12: 0 | R12: =IF($O12<=0,0,IF(($O12-SUM($Q12:Q12))<$P12,$O12-SUM($Q12:Q12),IF(SUM($Q12:Q12)<$O12,$P12,0))) -> 0 | S12: =IF($O12<=0,0,IF(($O12-SUM($Q12:R12))<$P12,$O12-SUM($Q12:R12),IF(SUM($Q12:R12)<$O12,$P12,0))) -> 0 | T12: =IF($O12<=0,0,IF(($O12-SUM($Q12:S12))<$P12,$O12-SUM($Q12:S12),IF(SUM($Q12:S12)<$O12,$P12,0))) -> 0 | U12: =IF($O12<=0,0,IF(($O12-SUM($Q12:T12))<$P12,$O12-SUM($Q12:T12),IF(SUM($Q12:T12)<$O12,$P12,0))) -> 0
B13: AERONAVEGACIÓN/AEROPORTUARIO | C13: TERRENOS INSCRITOS | D13: Terrenos | E13: 1950-12-01 | F13: 1950-12-01 | G13: 1102643 | H13: 0 | I13: 0 | J13: 0 | K13: 0 | L13: 0 | M13: 1102643 | N13: 0.5 | O13: 551321.5 | P13: 0 | R13: =IF($O13<=0,0,IF(($O13-SUM($Q13:Q13))<$P13,$O13-SUM($Q13:Q13),IF(SUM($Q13:Q13)<$O13,$P13,0))) -> 0 | S13: =IF($O13<=0,0,IF(($O13-SUM($Q13:R13))<$P13,$O13-SUM($Q13:R13),IF(SUM($Q13:R13)<$O13,$P13,0))) -> 0 | T13: =IF($O13<=0,0,IF(($O13-SUM($Q13:S13))<$P13,$O13-SUM($Q13:S13),IF(SUM($Q13:S13)<$O13,$P13,0))) -> 0 | U13: =IF($O13<=0,0,IF(($O13-SUM($Q13:T13))<$P13,$O13-SUM($Q13:T13),IF(SUM($Q13:T13)<$O13,$P13,0))) -> 0
B14: AERONAVEGACIÓN/AEROPORTUARIO | C14: TERRENOS INSCRITOS | D14: Terrenos | E14: 1950-12-01 | F14: 1950-12-01 | G14: 478694.35 | H14: 0 | I14: 0 | J14: 0 | K14: 0 | L14: 0 | M14: 478694.35 | N14: 0.11 | O14: 52656.3785 | P14: 0 | R14: =IF($O14<=0,0,IF(($O14-SUM($Q14:Q14))<$P14,$O14-SUM($Q14:Q14),IF(SUM($Q14:Q14)<$O14,$P14,0))) -> 0 | S14: =IF($O14<=0,0,IF(($O14-SUM($Q14:R14))<$P14,$O14-SUM($Q14:R14),IF(SUM($Q14:R14)<$O14,$P14,0))) -> 0 | T14: =IF($O14<=0,0,IF(($O14-SUM($Q14:S14))<$P14,$O14-SUM($Q14:S14),IF(SUM($Q14:S14)<$O14,$P14,0))) -> 0 | U14: =IF($O14<=0,0,IF(($O14-SUM($Q14:T14))<$P14,$O14-SUM($Q14:T14),IF(SUM($Q14:T14)<$O14,$P14,0))) -> 0
B15: AERONAVEGACIÓN/AEROPORTUARIO | C15: TERRENOS INSCRITOS | D15: Terrenos | E15: 1950-12-01 | F15: 1950-12-01 | G15: 879.46 | H15: 0 | I15: 0 | J15: 0 | K15: 0 | L15: 0 | M15: 879.46 | N15: 0.11 | O15: 96.7406 | P15: 0 | R15: =IF($O15<=0,0,IF(($O15-SUM($Q15:Q15))<$P15,$O15-SUM($Q15:Q15),IF(SUM($Q15:Q15)<$O15,$P15,0))) -> 0 | S15: =IF($O15<=0,0,IF(($O15-SUM($Q15:R15))<$P15,$O15-SUM($Q15:R15),IF(SUM($Q15:R15)<$O15,$P15,0))) -> 0 | T15: =IF($O15<=0,0,IF(($O15-SUM($Q15:S15))<$P15,$O15-SUM($Q15:S15),IF(SUM($Q15:S15)<$O15,$P15,0))) -> 0 | U15: =IF($O15<=0,0,IF(($O15-SUM($Q15:T15))<$P15,$O15-SUM($Q15:T15),IF(SUM($Q15:T15)<$O15,$P15,0))) -> 0
B16: AERONAVEGACIÓN | C16: TERRENOS INSCRITOS | D16: Terrenos | E16: 1950-12-01 | F16: 1950-12-01 | G16: 1219781.77 | H16: 0 | I16: 0 | J16: 0 | K16: 0 | L16: 0 | M16: 1219781.77 | N16: 1 | O16: 1219781.77 | P16: 0 | R16: =IF($O16<=0,0,IF(($O16-SUM($Q16:Q16))<$P16,$O16-SUM($Q16:Q16),IF(SUM($Q16:Q16)<$O16,$P16,0))) -> 0 | S16: =IF($O16<=0,0,IF(($O16-SUM($Q16:R16))<$P16,$O16-SUM($Q16:R16),IF(SUM($Q16:R16)<$O16,$P16,0))) -> 0 | T16: =IF($O16<=0,0,IF(($O16-SUM($Q16:S16))<$P16,$O16-SUM($Q16:S16),IF(SUM($Q16:S16)<$O16,$P16,0))) -> 0 | U16: =IF($O16<=0,0,IF(($O16-SUM($Q16:T16))<$P16,$O16-SUM($Q16:T16),IF(SUM($Q16:T16)<$O16,$P16,0))) -> 0
B17: AERONAVEGACIÓN | C17: TERRENOS INSCRITOS | D17: Terrenos | E17: 1950-12-01 | F17: 1950-12-01 | G17: 592125.47 | H17: 0 | I17: 0 | J17: 0 | K17: 0 | L17: 0 | M17: 592125.47 | N17: 1 | O17: 592125.47 | P17: 0 | R17: =IF($O17<=0,0,IF(($O17-SUM($Q17:Q17))<$P17,$O17-SUM($Q17:Q17),IF(SUM($Q17:Q17)<$O17,$P17,0))) -> 0 | S17: =IF($O17<=0,0,IF(($O17-SUM($Q17:R17))<$P17,$O17-SUM($Q17:R17),IF(SUM($Q17:R17)<$O17,$P17,0))) -> 0 | T17: =IF($O17<=0,0,IF(($O17-SUM($Q17:S17))<$P17,$O17-SUM($Q17:S17),IF(SUM($Q17:S17)<$O17,$P17,0))) -> 0 | U17: =IF($O17<=0,0,IF(($O17-SUM($Q17:T17))<$P17,$O17-SUM($Q17:T17),IF(SUM($Q17:T17)<$O17,$P17,0))) -> 0
B18: AERONAVEGACIÓN/AEROPORTUARIO | C18: TERRENOS INSCRITOS | D18: Terrenos | E18: 1950-12-01 | F18: 1950-12-01 | G18: 390734.32 | H18: 0 | I18: 0 | J18: 0 | K18: 0 | L18: 0 | M18: 390734.32 | N18: 0.5 | O18: 195367.16 | P18: 0 | R18: =IF($O18<=0,0,IF(($O18-SUM($Q18:Q18))<$P18,$O18-SUM($Q18:Q18),IF(SUM($Q18:Q18)<$O18,$P18,0))) -> 0 | S18: =IF($O18<=0,0,IF(($O18-SUM($Q18:R18))<$P18,$O18-SUM($Q18:R18),IF(SUM($Q18:R18)<$O18,$P18,0))) -> 0 | T18: =IF($O18<=0,0,IF(($O18-SUM($Q18:S18))<$P18,$O18-SUM($Q18:S18),IF(SUM($Q18:S18)<$O18,$P18,0))) -> 0 | U18: =IF($O18<=0,0,IF(($O18-SUM($Q18:T18))<$P18,$O18-SUM($Q18:T18),IF(SUM($Q18:T18)<$O18,$P18,0))) -> 0
B19: AERONAVEGACIÓN/AEROPORTUARIO | C19: TERRENOS INSCRITOS | D19: Terrenos | E19: 1950-12-01 | F19: 1950-12-01 | G19: 3946.81 | H19: 0 | I19: 0 | J19: 0 | K19: 0 | L19: 0 | M19: 3946.81 | N19: 0.5 | O19: 1973.405 | P19: 0 | R19: =IF($O19<=0,0,IF(($O19-SUM($Q19:Q19))<$P19,$O19-SUM($Q19:Q19),IF(SUM($Q19:Q19)<$O19,$P19,0))) -> 0 | S19: =IF($O19<=0,0,IF(($O19-SUM($Q19:R19))<$P19,$O19-SUM($Q19:R19),IF(SUM($Q19:R19)<$O19,$P19,0))) -> 0 | T19: =IF($O19<=0,0,IF(($O19-SUM($Q19:S19))<$P19,$O19-SUM($Q19:S19),IF(SUM($Q19:S19)<$O19,$P19,0))) -> 0 | U19: =IF($O19<=0,0,IF(($O19-SUM($Q19:T19))<$P19,$O19-SUM($Q19:T19),IF(SUM($Q19:T19)<$O19,$P19,0))) -> 0
B20: AERONAVEGACIÓN | C20: TERRENOS INSCRITOS | D20: Terrenos | E20: 1950-12-01 | F20: 1950-12-01 | G20: 570025.3 | H20: 0 | I20: 0 | J20: 0 | K20: 0 | L20: 0 | M20: 570025.3 | N20: 1 | O20: 570025.3 | P20: 0 | R20: =IF($O20<=0,0,IF(($O20-SUM($Q20:Q20))<$P20,$O20-SUM($Q20:Q20),IF(SUM($Q20:Q20)<$O20,$P20,0))) -> 0 | S20: =IF($O20<=0,0,IF(($O20-SUM($Q20:R20))<$P20,$O20-SUM($Q20:R20),IF(SUM($Q20:R20)<$O20,$P20,0))) -> 0 | T20: =IF($O20<=0,0,IF(($O20-SUM($Q20:S20))<$P20,$O20-SUM($Q20:S20),IF(SUM($Q20:S20)<$O20,$P20,0))) -> 0 | U20: =IF($O20<=0,0,IF(($O20-SUM($Q20:T20))<$P20,$O20-SUM($Q20:T20),IF(SUM($Q20:T20)<$O20,$P20,0))) -> 0
B21: AERONAVEGACIÓN/AEROPORTUARIO | C21: TERRENOS INSCRITOS | D21: Terrenos | E21: 1950-12-01 | F21: 1950-12-01 | G21: 101290471.8 | H21: 0 | I21: 0 | J21: 0 | K21: 0 | L21: 0 | M21: 101290471.8 | N21: 0.51 | O21: 51658140.64 | P21: 0 | R21: =IF($O21<=0,0,IF(($O21-SUM($Q21:Q21))<$P21,$O21-SUM($Q21:Q21),IF(SUM($Q21:Q21)<$O21,$P21,0))) -> 0 | S21: =IF($O21<=0,0,IF(($O21-SUM($Q21:R21))<$P21,$O21-SUM($Q21:R21),IF(SUM($Q21:R21)<$O21,$P21,0))) -> 0 | T21: =IF($O21<=0,0,IF(($O21-SUM($Q21:S21))<$P21,$O21-SUM($Q21:S21),IF(SUM($Q21:S21)<$O21,$P21,0))) -> 0 | U21: =IF($O21<=0,0,IF(($O21-SUM($Q21:T21))<$P21,$O21-SUM($Q21:T21),IF(SUM($Q21:T21)<$O21,$P21,0))) -> 0
B22: AERONAVEGACIÓN/AEROPORTUARIO | C22: TERRENOS INSCRITOS | D22: Terrenos | E22: 1950-12-01 | F22: 1950-12-01 | G22: 19758.09 | H22: 0 | I22: 0 | J22: 0 | K22: 0 | L22: 0 | M22: 19758.09 | N22: 0.51 | O22: 10076.6259 | P22: 0 | R22: =IF($O22<=0,0,IF(($O22-SUM($Q22:Q22))<$P22,$O22-SUM($Q22:Q22),IF(SUM($Q22:Q22)<$O22,$P22,0))) -> 0 | S22: =IF($O22<=0,0,IF(($O22-SUM($Q22:R22))<$P22,$O22-SUM($Q22:R22),IF(SUM($Q22:R22)<$O22,$P22,0))) -> 0 | T22: =IF($O22<=0,0,IF(($O22-SUM($Q22:S22))<$P22,$O22-SUM($Q22:S22),IF(SUM($Q22:S22)<$O22,$P22,0))) -> 0 | U22: =IF($O22<=0,0,IF(($O22-SUM($Q22:T22))<$P22,$O22-SUM($Q22:T22),IF(SUM($Q22:T22)<$O22,$P22,0))) -> 0
B23: AERONAVEGACIÓN/AEROPORTUARIO | C23: TERRENOS INSCRITOS | D23: Terrenos | E23: 1950-12-01 | F23: 1950-12-01 | G23: 17479.95 | H23: 0 | I23: 0 | J23: 0 | K23: 0 | L23: 0 | M23: 17479.95 | N23: 0.5 | O23: 8739.975 | P23: 0 | R23: =IF($O23<=0,0,IF(($O23-SUM($Q23:Q23))<$P23,$O23-SUM($Q23:Q23),IF(SUM($Q23:Q23)<$O23,$P23,0))) -> 0 | S23: =IF($O23<=0,0,IF(($O23-SUM($Q23:R23))<$P23,$O23-SUM($Q23:R23),IF(SUM($Q23:R23)<$O23,$P23,0))) -> 0 | T23: =IF($O23<=0,0,IF(($O23-SUM($Q23:S23))<$P23,$O23-SUM($Q23:S23),IF(SUM($Q23:S23)<$O23,$P23,0))) -> 0 | U23: =IF($O23<=0,0,IF(($O23-SUM($Q23:T23))<$P23,$O23-SUM($Q23:T23),IF(SUM($Q23:T23)<$O23,$P23,0))) -> 0
B24: AERONAVEGACIÓN | C24: TERRENOS INSCRITOS | D24: Terrenos | E24: 1950-12-01 | F24: 1950-12-01 | G24: 327648.44 | H24: 0 | I24: 0 | J24: 0 | K24: 0 | L24: 0 | M24: 327648.44 | N24: 1 | O24: 327648.44 | P24: 0 | R24: =IF($O24<=0,0,IF(($O24-SUM($Q24:Q24))<$P24,$O24-SUM($Q24:Q24),IF(SUM($Q24:Q24)<$O24,$P24,0))) -> 0 | S24: =IF($O24<=0,0,IF(($O24-SUM($Q24:R24))<$P24,$O24-SUM($Q24:R24),IF(SUM($Q24:R24)<$O24,$P24,0))) -> 0 | T24: =IF($O24<=0,0,IF(($O24-SUM($Q24:S24))<$P24,$O24-SUM($Q24:S24),IF(SUM($Q24:S24)<$O24,$P24,0))) -> 0 | U24: =IF($O24<=0,0,IF(($O24-SUM($Q24:T24))<$P24,$O24-SUM($Q24:T24),IF(SUM($Q24:T24)<$O24,$P24,0))) -> 0
B25: AERONAVEGACIÓN/AEROPORTUARIO | C25: TERRENOS INSCRITOS | D25: Terrenos | E25: 1950-12-01 | F25: 1950-12-01 | G25: 859588.23 | H25: 0 | I25: 0 | J25: 0 | K25: 0 | L25: 0 | M25: 859588.23 | N25: 0.76 | O25: 653287.0548 | P25: 0 | R25: =IF($O25<=0,0,IF(($O25-SUM($Q25:Q25))<$P25,$O25-SUM($Q25:Q25),IF(SUM($Q25:Q25)<$O25,$P25,0))) -> 0 | S25: =IF($O25<=0,0,IF(($O25-SUM($Q25:R25))<$P25,$O25-SUM($Q25:R25),IF(SUM($Q25:R25)<$O25,$P25,0))) -> 0 | T25: =IF($O25<=0,0,IF(($O25-SUM($Q25:S25))<$P25,$O25-SUM($Q25:S25),IF(SUM($Q25:S25)<$O25,$P25,0))) -> 0 | U25: =IF($O25<=0,0,IF(($O25-SUM($Q25:T25))<$P25,$O25-SUM($Q25:T25),IF(SUM($Q25:T25)<$O25,$P25,0))) -> 0
B26: AERONAVEGACIÓN/AEROPORTUARIO | C26: TERRENOS INSCRITOS | D26: Terrenos | E26: 1950-12-01 | F26: 1950-12-01 | G26: 167.85 | H26: 0 | I26: 0 | J26: 0 | K26: 0 | L26: 0 | M26: 167.85 | N26: 0.76 | O26: 127.566 | P26: 0 | R26: =IF($O26<=0,0,IF(($O26-SUM($Q26:Q26))<$P26,$O26-SUM($Q26:Q26),IF(SUM($Q26:Q26)<$O26,$P26,0))) -> 0 | S26: =IF($O26<=0,0,IF(($O26-SUM($Q26:R26))<$P26,$O26-SUM($Q26:R26),IF(SUM($Q26:R26)<$O26,$P26,0))) -> 0 | T26: =IF($O26<=0,0,IF(($O26-SUM($Q26:S26))<$P26,$O26-SUM($Q26:S26),IF(SUM($Q26:S26)<$O26,$P26,0))) -> 0 | U26: =IF($O26<=0,0,IF(($O26-SUM($Q26:T26))<$P26,$O26-SUM($Q26:T26),IF(SUM($Q26:T26)<$O26,$P26,0))) -> 0
B27: AERONAVEGACIÓN | C27: TERRENOS INSCRITOS | D27: Terrenos | E27: 1950-12-01 | F27: 1950-12-01 | G27: 28184.7 | H27: 0 | I27: 0 | J27: 0 | K27: 0 | L27: 0 | M27: 28184.7 | N27: 1 | O27: 28184.7 | P27: 0 | R27: =IF($O27<=0,0,IF(($O27-SUM($Q27:Q27))<$P27,$O27-SUM($Q27:Q27),IF(SUM($Q27:Q27)<$O27,$P27,0))) -> 0 | S27: =IF($O27<=0,0,IF(($O27-SUM($Q27:R27))<$P27,$O27-SUM($Q27:R27),IF(SUM($Q27:R27)<$O27,$P27,0))) -> 0 | T27: =IF($O27<=0,0,IF(($O27-SUM($Q27:S27))<$P27,$O27-SUM($Q27:S27),IF(SUM($Q27:S27)<$O27,$P27,0))) -> 0 | U27: =IF($O27<=0,0,IF(($O27-SUM($Q27:T27))<$P27,$O27-SUM($Q27:T27),IF(SUM($Q27:T27)<$O27,$P27,0))) -> 0
B28: AERONAVEGACIÓN | C28: TERRENOS INSCRITOS | D28: Terrenos | E28: 1950-12-01 | F28: 1950-12-01 | G28: 19700.44 | H28: 0 | I28: 0 | J28: 0 | K28: 0 | L28: 0 | M28: 19700.44 | N28: 1 | O28: 19700.44 | P28: 0 | R28: =IF($O28<=0,0,IF(($O28-SUM($Q28:Q28))<$P28,$O28-SUM($Q28:Q28),IF(SUM($Q28:Q28)<$O28,$P28,0))) -> 0 | S28: =IF($O28<=0,0,IF(($O28-SUM($Q28:R28))<$P28,$O28-SUM($Q28:R28),IF(SUM($Q28:R28)<$O28,$P28,0))) -> 0 | T28: =IF($O28<=0,0,IF(($O28-SUM($Q28:S28))<$P28,$O28-SUM($Q28:S28),IF(SUM($Q28:S28)<$O28,$P28,0))) -> 0 | U28: =IF($O28<=0,0,IF(($O28-SUM($Q28:T28))<$P28,$O28-SUM($Q28:T28),IF(SUM($Q28:T28)<$O28,$P28,0))) -> 0
B29: AERONAVEGACIÓN | C29: TERRENOS INSCRITOS | D29: Terrenos | E29: 1950-12-01 | F29: 1950-12-01 | G29: 144927.02 | H29: 0 | I29: 0 | J29: 0 | K29: 0 | L29: 0 | M29: 144927.02 | N29: 1 | O29: 144927.02 | P29: 0 | R29: =IF($O29<=0,0,IF(($O29-SUM($Q29:Q29))<$P29,$O29-SUM($Q29:Q29),IF(SUM($Q29:Q29)<$O29,$P29,0))) -> 0 | S29: =IF($O29<=0,0,IF(($O29-SUM($Q29:R29))<$P29,$O29-SUM($Q29:R29),IF(SUM($Q29:R29)<$O29,$P29,0))) -> 0 | T29: =IF($O29<=0,0,IF(($O29-SUM($Q29:S29))<$P29,$O29-SUM($Q29:S29),IF(SUM($Q29:S29)<$O29,$P29,0))) -> 0 | U29: =IF($O29<=0,0,IF(($O29-SUM($Q29:T29))<$P29,$O29-SUM($Q29:T29),IF(SUM($Q29:T29)<$O29,$P29,0))) -> 0
B30: AERONAVEGACIÓN/AEROPORTUARIO | C30: TERRENOS INSCRITOS | D30: Terrenos | E30: 1950-12-01 | F30: 1950-12-01 | G30: 728892.89 | H30: 0 | I30: 0 | J30: 0 | K30: 0 | L30: 0 | M30: 728892.89 | N30: 0.5 | O30: 364446.445 | P30: 0 | R30: =IF($O30<=0,0,IF(($O30-SUM($Q30:Q30))<$P30,$O30-SUM($Q30:Q30),IF(SUM($Q30:Q30)<$O30,$P30,0))) -> 0 | S30: =IF($O30<=0,0,IF(($O30-SUM($Q30:R30))<$P30,$O30-SUM($Q30:R30),IF(SUM($Q30:R30)<$O30,$P30,0))) -> 0 | T30: =IF($O30<=0,0,IF(($O30-SUM($Q30:S30))<$P30,$O30-SUM($Q30:S30),IF(SUM($Q30:S30)<$O30,$P30,0))) -> 0 | U30: =IF($O30<=0,0,IF(($O30-SUM($Q30:T30))<$P30,$O30-SUM($Q30:T30),IF(SUM($Q30:T30)<$O30,$P30,0))) -> 0
B31: AERONAVEGACIÓN/AEROPORTUARIO | C31: TERRENOS INSCRITOS | D31: Terrenos | E31: 1950-12-01 | F31: 1950-12-01 | G31: 40990.62 | H31: 0 | I31: 0 | J31: 0 | K31: 0 | L31: 0 | M31: 40990.62 | N31: 0.5 | O31: 20495.31 | P31: 0 | R31: =IF($O31<=0,0,IF(($O31-SUM($Q31:Q31))<$P31,$O31-SUM($Q31:Q31),IF(SUM($Q31:Q31)<$O31,$P31,0))) -> 0 | S31: =IF($O31<=0,0,IF(($O31-SUM($Q31:R31))<$P31,$O31-SUM($Q31:R31),IF(SUM($Q31:R31)<$O31,$P31,0))) -> 0 | T31: =IF($O31<=0,0,IF(($O31-SUM($Q31:S31))<$P31,$O31-SUM($Q31:S31),IF(SUM($Q31:S31)<$O31,$P31,0))) -> 0 | U31: =IF($O31<=0,0,IF(($O31-SUM($Q31:T31))<$P31,$O31-SUM($Q31:T31),IF(SUM($Q31:T31)<$O31,$P31,0))) -> 0
B32: AERONAVEGACIÓN | C32: TERRENOS INSCRITOS | D32: Terrenos | E32: 1950-12-01 | F32: 1950-12-01 | G32: 2521.76 | H32: 0 | I32: 0 | J32: 0 | K32: 0 | L32: 0 | M32: 2521.76 | N32: 1 | O32: 2521.76 | P32: 0 | R32: =IF($O32<=0,0,IF(($O32-SUM($Q32:Q32))<$P32,$O32-SUM($Q32:Q32),IF(SUM($Q32:Q32)<$O32,$P32,0))) -> 0 | S32: =IF($O32<=0,0,IF(($O32-SUM($Q32:R32))<$P32,$O32-SUM($Q32:R32),IF(SUM($Q32:R32)<$O32,$P32,0))) -> 0 | T32: =IF($O32<=0,0,IF(($O32-SUM($Q32:S32))<$P32,$O32-SUM($Q32:S32),IF(SUM($Q32:S32)<$O32,$P32,0))) -> 0 | U32: =IF($O32<=0,0,IF(($O32-SUM($Q32:T32))<$P32,$O32-SUM($Q32:T32),IF(SUM($Q32:T32)<$O32,$P32,0))) -> 0
B33: AERONAVEGACIÓN/AEROPORTUARIO | C33: TERRENOS INSCRITOS | D33: Terrenos | E33: 1950-12-01 | F33: 1950-12-01 | G33: 8749544.36 | H33: 0 | I33: 0 | J33: 0 | K33: 0 | L33: 0 | M33: 8749544.36 | N33: 0.42 | O33: 3674808.631 | P33: 0 | R33: =IF($O33<=0,0,IF(($O33-SUM($Q33:Q33))<$P33,$O33-SUM($Q33:Q33),IF(SUM($Q33:Q33)<$O33,$P33,0))) -> 0 | S33: =IF($O33<=0,0,IF(($O33-SUM($Q33:R33))<$P33,$O33-SUM($Q33:R33),IF(SUM($Q33:R33)<$O33,$P33,0))) -> 0 | T33: =IF($O33<=0,0,IF(($O33-SUM($Q33:S33))<$P33,$O33-SUM($Q33:S33),IF(SUM($Q33:S33)<$O33,$P33,0))) -> 0 | U33: =IF($O33<=0,0,IF(($O33-SUM($Q33:T33))<$P33,$O33-SUM($Q33:T33),IF(SUM($Q33:T33)<$O33,$P33,0))) -> 0
B34: AERONAVEGACIÓN/AEROPORTUARIO | C34: TERRENOS INSCRITOS | D34: Terrenos | E34: 1950-12-01 | F34: 1950-12-01 | G34: 1893.23 | H34: 0 | I34: 0 | J34: 0 | K34: 0 | L34: 0 | M34: 1893.23 | N34: 0.42 | O34: 795.1566 | P34: 0 | R34: =IF($O34<=0,0,IF(($O34-SUM($Q34:Q34))<$P34,$O34-SUM($Q34:Q34),IF(SUM($Q34:Q34)<$O34,$P34,0))) -> 0 | S34: =IF($O34<=0,0,IF(($O34-SUM($Q34:R34))<$P34,$O34-SUM($Q34:R34),IF(SUM($Q34:R34)<$O34,$P34,0))) -> 0 | T34: =IF($O34<=0,0,IF(($O34-SUM($Q34:S34))<$P34,$O34-SUM($Q34:S34),IF(SUM($Q34:S34)<$O34,$P34,0))) -> 0 | U34: =IF($O34<=0,0,IF(($O34-SUM($Q34:T34))<$P34,$O34-SUM($Q34:T34),IF(SUM($Q34:T34)<$O34,$P34,0))) -> 0
B35: AERONAVEGACIÓN | C35: TERRENOS INSCRITOS | D35: Terrenos | E35: 1950-12-01 | F35: 1950-12-01 | G35: 411322.9 | H35: 0 | I35: 0 | J35: 0 | K35: 0 | L35: 0 | M35: 411322.9 | N35: 1 | O35: 411322.9 | P35: 0 | R35: =IF($O35<=0,0,IF(($O35-SUM($Q35:Q35))<$P35,$O35-SUM($Q35:Q35),IF(SUM($Q35:Q35)<$O35,$P35,0))) -> 0 | S35: =IF($O35<=0,0,IF(($O35-SUM($Q35:R35))<$P35,$O35-SUM($Q35:R35),IF(SUM($Q35:R35)<$O35,$P35,0))) -> 0 | T35: =IF($O35<=0,0,IF(($O35-SUM($Q35:S35))<$P35,$O35-SUM($Q35:S35),IF(SUM($Q35:S35)<$O35,$P35,0))) -> 0 | U35: =IF($O35<=0,0,IF(($O35-SUM($Q35:T35))<$P35,$O35-SUM($Q35:T35),IF(SUM($Q35:T35)<$O35,$P35,0))) -> 0
B36: AERONAVEGACIÓN/AEROPORTUARIO | C36: TERRENOS INSCRITOS | D36: Terrenos | E36: 1950-12-01 | F36: 1950-12-01 | G36: 29888887.53 | H36: 0 | I36: 0 | J36: 0 | K36: 0 | L36: 0 | M36: 29888887.53 | N36: 0.27 | O36: 8069999.633 | P36: 0 | R36: =IF($O36<=0,0,IF(($O36-SUM($Q36:Q36))<$P36,$O36-SUM($Q36:Q36),IF(SUM($Q36:Q36)<$O36,$P36,0))) -> 0 | S36: =IF($O36<=0,0,IF(($O36-SUM($Q36:R36))<$P36,$O36-SUM($Q36:R36),IF(SUM($Q36:R36)<$O36,$P36,0))) -> 0 | T36: =IF($O36<=0,0,IF(($O36-SUM($Q36:S36))<$P36,$O36-SUM($Q36:S36),IF(SUM($Q36:S36)<$O36,$P36,0))) -> 0 | U36: =IF($O36<=0,0,IF(($O36-SUM($Q36:T36))<$P36,$O36-SUM($Q36:T36),IF(SUM($Q36:T36)<$O36,$P36,0))) -> 0
B37: AERONAVEGACIÓN/AEROPORTUARIO | C37: TERRENOS INSCRITOS | D37: Terrenos | E37: 1950-12-01 | F37: 1950-12-01 | G37: 5245.33 | H37: 0 | I37: 0 | J37: 0 | K37: 0 | L37: 0 | M37: 5245.33 | N37: 0.27 | O37: 1416.2391 | P37: 0 | R37: =IF($O37<=0,0,IF(($O37-SUM($Q37:Q37))<$P37,$O37-SUM($Q37:Q37),IF(SUM($Q37:Q37)<$O37,$P37,0))) -> 0 | S37: =IF($O37<=0,0,IF(($O37-SUM($Q37:R37))<$P37,$O37-SUM($Q37:R37),IF(SUM($Q37:R37)<$O37,$P37,0))) -> 0 | T37: =IF($O37<=0,0,IF(($O37-SUM($Q37:S37))<$P37,$O37-SUM($Q37:S37),IF(SUM($Q37:S37)<$O37,$P37,0))) -> 0 | U37: =IF($O37<=0,0,IF(($O37-SUM($Q37:T37))<$P37,$O37-SUM($Q37:T37),IF(SUM($Q37:T37)<$O37,$P37,0))) -> 0
B38: AERONAVEGACIÓN/AEROPORTUARIO | C38: TERRENOS INSCRITOS | D38: Terrenos | E38: 1950-12-01 | F38: 1950-12-01 | G38: 2864563.56 | H38: 0 | I38: 0 | J38: 0 | K38: 0 | L38: 0 | M38: 2864563.56 | N38: 0.23 | O38: 658849.6188 | P38: 0 | R38: =IF($O38<=0,0,IF(($O38-SUM($Q38:Q38))<$P38,$O38-SUM($Q38:Q38),IF(SUM($Q38:Q38)<$O38,$P38,0))) -> 0 | S38: =IF($O38<=0,0,IF(($O38-SUM($Q38:R38))<$P38,$O38-SUM($Q38:R38),IF(SUM($Q38:R38)<$O38,$P38,0))) -> 0 | T38: =IF($O38<=0,0,IF(($O38-SUM($Q38:S38))<$P38,$O38-SUM($Q38:S38),IF(SUM($Q38:S38)<$O38,$P38,0))) -> 0 | U38: =IF($O38<=0,0,IF(($O38-SUM($Q38:T38))<$P38,$O38-SUM($Q38:T38),IF(SUM($Q38:T38)<$O38,$P38,0))) -> 0
B39: AERONAVEGACIÓN/AEROPORTUARIO | C39: TERRENOS INSCRITOS | D39: Terrenos | E39: 1950-12-01 | F39: 1950-12-01 | G39: 2280.88 | H39: 0 | I39: 0 | J39: 0 | K39: 0 | L39: 0 | M39: 2280.88 | N39: 0.23 | O39: 524.6024 | P39: 0 | R39: =IF($O39<=0,0,IF(($O39-SUM($Q39:Q39))<$P39,$O39-SUM($Q39:Q39),IF(SUM($Q39:Q39)<$O39,$P39,0))) -> 0 | S39: =IF($O39<=0,0,IF(($O39-SUM($Q39:R39))<$P39,$O39-SUM($Q39:R39),IF(SUM($Q39:R39)<$O39,$P39,0))) -> 0 | T39: =IF($O39<=0,0,IF(($O39-SUM($Q39:S39))<$P39,$O39-SUM($Q39:S39),IF(SUM($Q39:S39)<$O39,$P39,0))) -> 0 | U39: =IF($O39<=0,0,IF(($O39-SUM($Q39:T39))<$P39,$O39-SUM($Q39:T39),IF(SUM($Q39:T39)<$O39,$P39,0))) -> 0
B40: AERONAVEGACIÓN/AEROPORTUARIO | C40: TERRENOS INSCRITOS | D40: Terrenos | E40: 1950-12-01 | F40: 1950-12-01 | G40: 3989529.7 | H40: 0 | I40: 0 | J40: 0 | K40: 0 | L40: 0 | M40: 3989529.7 | N40: 0.5 | O40: 1994764.85 | P40: 0 | R40: =IF($O40<=0,0,IF(($O40-SUM($Q40:Q40))<$P40,$O40-SUM($Q40:Q40),IF(SUM($Q40:Q40)<$O40,$P40,0))) -> 0 | S40: =IF($O40<=0,0,IF(($O40-SUM($Q40:R40))<$P40,$O40-SUM($Q40:R40),IF(SUM($Q40:R40)<$O40,$P40,0))) -> 0 | T40: =IF($O40<=0,0,IF(($O40-SUM($Q40:S40))<$P40,$O40-SUM($Q40:S40),IF(SUM($Q40:S40)<$O40,$P40,0))) -> 0 | U40: =IF($O40<=0,0,IF(($O40-SUM($Q40:T40))<$P40,$O40-SUM($Q40:T40),IF(SUM($Q40:T40)<$O40,$P40,0))) -> 0
B41: AERONAVEGACIÓN/AEROPORTUARIO | C41: TERRENOS INSCRITOS | D41: Terrenos | E41: 1950-12-01 | F41: 1950-12-01 | G41: 52419.49 | H41: 0 | I41: 0 | J41: 0 | K41: 0 | L41: 0 | M41: 52419.49 | N41: 0.5 | O41: 26209.745 | P41: 0 | R41: =IF($O41<=0,0,IF(($O41-SUM($Q41:Q41))<$P41,$O41-SUM($Q41:Q41),IF(SUM($Q41:Q41)<$O41,$P41,0))) -> 0 | S41: =IF($O41<=0,0,IF(($O41-SUM($Q41:R41))<$P41,$O41-SUM($Q41:R41),IF(SUM($Q41:R41)<$O41,$P41,0))) -> 0 | T41: =IF($O41<=0,0,IF(($O41-SUM($Q41:S41))<$P41,$O41-SUM($Q41:S41),IF(SUM($Q41:S41)<$O41,$P41,0))) -> 0 | U41: =IF($O41<=0,0,IF(($O41-SUM($Q41:T41))<$P41,$O41-SUM($Q41:T41),IF(SUM($Q41:T41)<$O41,$P41,0))) -> 0
B42: AERONAVEGACIÓN/AEROPORTUARIO | C42: TERRENOS INSCRITOS | D42: Terrenos | E42: 1950-12-01 | F42: 1950-12-01 | G42: 6592926.05 | H42: 0 | I42: 0 | J42: 0 | K42: 0 | L42: 0 | M42: 6592926.05 | N42: 0.52 | O42: 3428321.546 | P42: 0 | R42: =IF($O42<=0,0,IF(($O42-SUM($Q42:Q42))<$P42,$O42-SUM($Q42:Q42),IF(SUM($Q42:Q42)<$O42,$P42,0))) -> 0 | S42: =IF($O42<=0,0,IF(($O42-SUM($Q42:R42))<$P42,$O42-SUM($Q42:R42),IF(SUM($Q42:R42)<$O42,$P42,0))) -> 0 | T42: =IF($O42<=0,0,IF(($O42-SUM($Q42:S42))<$P42,$O42-SUM($Q42:S42),IF(SUM($Q42:S42)<$O42,$P42,0))) -> 0 | U42: =IF($O42<=0,0,IF(($O42-SUM($Q42:T42))<$P42,$O42-SUM($Q42:T42),IF(SUM($Q42:T42)<$O42,$P42,0))) -> 0
B43: AERONAVEGACIÓN/AEROPORTUARIO | C43: TERRENOS INSCRITOS | D43: Terrenos | E43: 1950-12-01 | F43: 1950-12-01 | G43: 306655.17 | H43: 0 | I43: 0 | J43: 0 | K43: 0 | L43: 0 | M43: 306655.17 | N43: 0.52 | O43: 159460.6884 | P43: 0 | R43: =IF($O43<=0,0,IF(($O43-SUM($Q43:Q43))<$P43,$O43-SUM($Q43:Q43),IF(SUM($Q43:Q43)<$O43,$P43,0))) -> 0 | S43: =IF($O43<=0,0,IF(($O43-SUM($Q43:R43))<$P43,$O43-SUM($Q43:R43),IF(SUM($Q43:R43)<$O43,$P43,0))) -> 0 | T43: =IF($O43<=0,0,IF(($O43-SUM($Q43:S43))<$P43,$O43-SUM($Q43:S43),IF(SUM($Q43:S43)<$O43,$P43,0))) -> 0 | U43: =IF($O43<=0,0,IF(($O43-SUM($Q43:T43))<$P43,$O43-SUM($Q43:T43),IF(SUM($Q43:T43)<$O43,$P43,0))) -> 0
B44: AERONAVEGACIÓN | C44: TERRENOS INSCRITOS | D44: Terrenos | E44: 1950-12-01 | F44: 1950-12-01 | G44: 338204.35 | H44: 0 | I44: 0 | J44: 0 | K44: 0 | L44: 0 | M44: 338204.35 | N44: 1 | O44: 338204.35 | P44: 0 | R44: =IF($O44<=0,0,IF(($O44-SUM($Q44:Q44))<$P44,$O44-SUM($Q44:Q44),IF(SUM($Q44:Q44)<$O44,$P44,0))) -> 0 | S44: =IF($O44<=0,0,IF(($O44-SUM($Q44:R44))<$P44,$O44-SUM($Q44:R44),IF(SUM($Q44:R44)<$O44,$P44,0))) -> 0 | T44: =IF($O44<=0,0,IF(($O44-SUM($Q44:S44))<$P44,$O44-SUM($Q44:S44),IF(SUM($Q44:S44)<$O44,$P44,0))) -> 0 | U44: =IF($O44<=0,0,IF(($O44-SUM($Q44:T44))<$P44,$O44-SUM($Q44:T44),IF(SUM($Q44:T44)<$O44,$P44,0))) -> 0
B45: AERONAVEGACIÓN/AEROPORTUARIO | C45: TERRENOS INSCRITOS | D45: Terrenos | E45: 1950-12-01 | F45: 1950-12-01 | G45: 628773.19 | H45: 0 | I45: 0 | J45: 0 | K45: 0 | L45: 0 | M45: 628773.19 | N45: 0.51 | O45: 320674.3269 | P45: 0 | R45: =IF($O45<=0,0,IF(($O45-SUM($Q45:Q45))<$P45,$O45-SUM($Q45:Q45),IF(SUM($Q45:Q45)<$O45,$P45,0))) -> 0 | S45: =IF($O45<=0,0,IF(($O45-SUM($Q45:R45))<$P45,$O45-SUM($Q45:R45),IF(SUM($Q45:R45)<$O45,$P45,0))) -> 0 | T45: =IF($O45<=0,0,IF(($O45-SUM($Q45:S45))<$P45,$O45-SUM($Q45:S45),IF(SUM($Q45:S45)<$O45,$P45,0))) -> 0 | U45: =IF($O45<=0,0,IF(($O45-SUM($Q45:T45))<$P45,$O45-SUM($Q45:T45),IF(SUM($Q45:T45)<$O45,$P45,0))) -> 0
B46: AERONAVEGACIÓN/AEROPORTUARIO | C46: TERRENOS INSCRITOS | D46: Terrenos | E46: 1950-12-01 | F46: 1950-12-01 | G46: 582109.81 | H46: 0 | I46: 0 | J46: 0 | K46: 0 | L46: 0 | M46: 582109.81 | N46: 0.53 | O46: 308518.1993 | P46: 0 | R46: =IF($O46<=0,0,IF(($O46-SUM($Q46:Q46))<$P46,$O46-SUM($Q46:Q46),IF(SUM($Q46:Q46)<$O46,$P46,0))) -> 0 | S46: =IF($O46<=0,0,IF(($O46-SUM($Q46:R46))<$P46,$O46-SUM($Q46:R46),IF(SUM($Q46:R46)<$O46,$P46,0))) -> 0 | T46: =IF($O46<=0,0,IF(($O46-SUM($Q46:S46))<$P46,$O46-SUM($Q46:S46),IF(SUM($Q46:S46)<$O46,$P46,0))) -> 0 | U46: =IF($O46<=0,0,IF(($O46-SUM($Q46:T46))<$P46,$O46-SUM($Q46:T46),IF(SUM($Q46:T46)<$O46,$P46,0))) -> 0
B47: AERONAVEGACIÓN/AEROPORTUARIO | C47: TERRENOS INSCRITOS | D47: Terrenos | E47: 1950-12-01 | F47: 1950-12-01 | G47: 44197.09 | H47: 0 | I47: 0 | J47: 0 | K47: 0 | L47: 0 | M47: 44197.09 | N47: 0.53 | O47: 23424.4577 | P47: 0 | R47: =IF($O47<=0,0,IF(($O47-SUM($Q47:Q47))<$P47,$O47-SUM($Q47:Q47),IF(SUM($Q47:Q47)<$O47,$P47,0))) -> 0 | S47: =IF($O47<=0,0,IF(($O47-SUM($Q47:R47))<$P47,$O47-SUM($Q47:R47),IF(SUM($Q47:R47)<$O47,$P47,0))) -> 0 | T47: =IF($O47<=0,0,IF(($O47-SUM($Q47:S47))<$P47,$O47-SUM($Q47:S47),IF(SUM($Q47:S47)<$O47,$P47,0))) -> 0 | U47: =IF($O47<=0,0,IF(($O47-SUM($Q47:T47))<$P47,$O47-SUM($Q47:T47),IF(SUM($Q47:T47)<$O47,$P47,0))) -> 0
B48: AERONAVEGACIÓN | C48: TERRENOS INSCRITOS | D48: Terrenos | E48: 1950-12-01 | F48: 1950-12-01 | G48: 307631.24 | H48: 0 | I48: 0 | J48: 0 | K48: 0 | L48: 0 | M48: 307631.24 | N48: 1 | O48: 307631.24 | P48: 0 | R48: =IF($O48<=0,0,IF(($O48-SUM($Q48:Q48))<$P48,$O48-SUM($Q48:Q48),IF(SUM($Q48:Q48)<$O48,$P48,0))) -> 0 | S48: =IF($O48<=0,0,IF(($O48-SUM($Q48:R48))<$P48,$O48-SUM($Q48:R48),IF(SUM($Q48:R48)<$O48,$P48,0))) -> 0 | T48: =IF($O48<=0,0,IF(($O48-SUM($Q48:S48))<$P48,$O48-SUM($Q48:S48),IF(SUM($Q48:S48)<$O48,$P48,0))) -> 0 | U48: =IF($O48<=0,0,IF(($O48-SUM($Q48:T48))<$P48,$O48-SUM($Q48:T48),IF(SUM($Q48:T48)<$O48,$P48,0))) -> 0
B49: AERONAVEGACIÓN/AEROPORTUARIO | C49: TERRENOS INSCRITOS | D49: Terrenos | E49: 1950-12-01 | F49: 1950-12-01 | G49: 6976642.46 | H49: 0 | I49: 0 | J49: 0 | K49: 0 | L49: 0 | M49: 6976642.46 | N49: 0.46 | O49: 3209255.532 | P49: 0 | R49: =IF($O49<=0,0,IF(($O49-SUM($Q49:Q49))<$P49,$O49-SUM($Q49:Q49),IF(SUM($Q49:Q49)<$O49,$P49,0))) -> 0 | S49: =IF($O49<=0,0,IF(($O49-SUM($Q49:R49))<$P49,$O49-SUM($Q49:R49),IF(SUM($Q49:R49)<$O49,$P49,0))) -> 0 | T49: =IF($O49<=0,0,IF(($O49-SUM($Q49:S49))<$P49,$O49-SUM($Q49:S49),IF(SUM($Q49:S49)<$O49,$P49,0))) -> 0 | U49: =IF($O49<=0,0,IF(($O49-SUM($Q49:T49))<$P49,$O49-SUM($Q49:T49),IF(SUM($Q49:T49)<$O49,$P49,0))) -> 0
B50: AERONAVEGACIÓN/AEROPORTUARIO | C50: TERRENOS INSCRITOS | D50: Terrenos | E50: 1950-12-01 | F50: 1950-12-01 | G50: 571.37 | H50: 0 | I50: 0 | J50: 0 | K50: 0 | L50: 0 | M50: 571.37 | N50: 0.46 | O50: 262.8302 | P50: 0 | R50: =IF($O50<=0,0,IF(($O50-SUM($Q50:Q50))<$P50,$O50-SUM($Q50:Q50),IF(SUM($Q50:Q50)<$O50,$P50,0))) -> 0 | S50: =IF($O50<=0,0,IF(($O50-SUM($Q50:R50))<$P50,$O50-SUM($Q50:R50),IF(SUM($Q50:R50)<$O50,$P50,0))) -> 0 | T50: =IF($O50<=0,0,IF(($O50-SUM($Q50:S50))<$P50,$O50-SUM($Q50:S50),IF(SUM($Q50:S50)<$O50,$P50,0))) -> 0 | U50: =IF($O50<=0,0,IF(($O50-SUM($Q50:T50))<$P50,$O50-SUM($Q50:T50),IF(SUM($Q50:T50)<$O50,$P50,0))) -> 0
B51: AERONAVEGACIÓN/AEROPORTUARIO | C51: TERRENOS INSCRITOS | D51: Terrenos | E51: 1950-12-01 | F51: 1950-12-01 | G51: 10811591.84 | H51: 0 | I51: 0 | J51: 0 | K51: 0 | L51: 0 | M51: 10811591.84 | N51: 0.51 | O51: 5513911.838 | P51: 0 | R51: =IF($O51<=0,0,IF(($O51-SUM($Q51:Q51))<$P51,$O51-SUM($Q51:Q51),IF(SUM($Q51:Q51)<$O51,$P51,0))) -> 0 | S51: =IF($O51<=0,0,IF(($O51-SUM($Q51:R51))<$P51,$O51-SUM($Q51:R51),IF(SUM($Q51:R51)<$O51,$P51,0))) -> 0 | T51: =IF($O51<=0,0,IF(($O51-SUM($Q51:S51))<$P51,$O51-SUM($Q51:S51),IF(SUM($Q51:S51)<$O51,$P51,0))) -> 0 | U51: =IF($O51<=0,0,IF(($O51-SUM($Q51:T51))<$P51,$O51-SUM($Q51:T51),IF(SUM($Q51:T51)<$O51,$P51,0))) -> 0
B52: AERONAVEGACIÓN/AEROPORTUARIO | C52: TERRENOS INSCRITOS | D52: Terrenos | E52: 1950-12-01 | F52: 1950-12-01 | G52: 12473.9 | H52: 0 | I52: 0 | J52: 0 | K52: 0 | L52: 0 | M52: 12473.9 | N52: 0.51 | O52: 6361.689 | P52: 0 | R52: =IF($O52<=0,0,IF(($O52-SUM($Q52:Q52))<$P52,$O52-SUM($Q52:Q52),IF(SUM($Q52:Q52)<$O52,$P52,0))) -> 0 | S52: =IF($O52<=0,0,IF(($O52-SUM($Q52:R52))<$P52,$O52-SUM($Q52:R52),IF(SUM($Q52:R52)<$O52,$P52,0))) -> 0 | T52: =IF($O52<=0,0,IF(($O52-SUM($Q52:S52))<$P52,$O52-SUM($Q52:S52),IF(SUM($Q52:S52)<$O52,$P52,0))) -> 0 | U52: =IF($O52<=0,0,IF(($O52-SUM($Q52:T52))<$P52,$O52-SUM($Q52:T52),IF(SUM($Q52:T52)<$O52,$P52,0))) -> 0
B53: AERONAVEGACIÓN | C53: TERRENOS INSCRITOS | D53: Terrenos | E53: 1950-12-01 | F53: 1950-12-01 | G53: 45228.39 | H53: 0 | I53: 0 | J53: 0 | K53: 0 | L53: 0 | M53: 45228.39 | N53: 1 | O53: 45228.39 | P53: 0 | R53: =IF($O53<=0,0,IF(($O53-SUM($Q53:Q53))<$P53,$O53-SUM($Q53:Q53),IF(SUM($Q53:Q53)<$O53,$P53,0))) -> 0 | S53: =IF($O53<=0,0,IF(($O53-SUM($Q53:R53))<$P53,$O53-SUM($Q53:R53),IF(SUM($Q53:R53)<$O53,$P53,0))) -> 0 | T53: =IF($O53<=0,0,IF(($O53-SUM($Q53:S53))<$P53,$O53-SUM($Q53:S53),IF(SUM($Q53:S53)<$O53,$P53,0))) -> 0 | U53: =IF($O53<=0,0,IF(($O53-SUM($Q53:T53))<$P53,$O53-SUM($Q53:T53),IF(SUM($Q53:T53)<$O53,$P53,0))) -> 0
B54: AERONAVEGACIÓN | C54: TERRENOS INSCRITOS | D54: Terrenos | E54: 1950-12-01 | F54: 1950-12-01 | G54: 2543.5 | H54: 0 | I54: 0 | J54: 0 | K54: 0 | L54: 0 | M54: 2543.5 | N54: 1 | O54: 2543.5 | P54: 0 | R54: =IF($O54<=0,0,IF(($O54-SUM($Q54:Q54))<$P54,$O54-SUM($Q54:Q54),IF(SUM($Q54:Q54)<$O54,$P54,0))) -> 0 | S54: =IF($O54<=0,0,IF(($O54-SUM($Q54:R54))<$P54,$O54-SUM($Q54:R54),IF(SUM($Q54:R54)<$O54,$P54,0))) -> 0 | T54: =IF($O54<=0,0,IF(($O54-SUM($Q54:S54))<$P54,$O54-SUM($Q54:S54),IF(SUM($Q54:S54)<$O54,$P54,0))) -> 0 | U54: =IF($O54<=0,0,IF(($O54-SUM($Q54:T54))<$P54,$O54-SUM($Q54:T54),IF(SUM($Q54:T54)<$O54,$P54,0))) -> 0
B55: AERONAVEGACIÓN | C55: TERRENOS INSCRITOS | D55: Terrenos | E55: 1950-12-01 | F55: 1950-12-01 | G55: 32412.03 | H55: 0 | I55: 0 | J55: 0 | K55: 0 | L55: 0 | M55: 32412.03 | N55: 1 | O55: 32412.03 | P55: 0 | R55: =IF($O55<=0,0,IF(($O55-SUM($Q55:Q55))<$P55,$O55-SUM($Q55:Q55),IF(SUM($Q55:Q55)<$O55,$P55,0))) -> 0 | S55: =IF($O55<=0,0,IF(($O55-SUM($Q55:R55))<$P55,$O55-SUM($Q55:R55),IF(SUM($Q55:R55)<$O55,$P55,0))) -> 0 | T55: =IF($O55<=0,0,IF(($O55-SUM($Q55:S55))<$P55,$O55-SUM($Q55:S55),IF(SUM($Q55:S55)<$O55,$P55,0))) -> 0 | U55: =IF($O55<=0,0,IF(($O55-SUM($Q55:T55))<$P55,$O55-SUM($Q55:T55),IF(SUM($Q55:T55)<$O55,$P55,0))) -> 0
B56: AERONAVEGACIÓN | C56: TERRENOS INSCRITOS | D56: Terrenos | E56: 1950-12-01 | F56: 1950-12-01 | G56: 1822.75 | H56: 0 | I56: 0 | J56: 0 | K56: 0 | L56: 0 | M56: 1822.75 | N56: 1 | O56: 1822.75 | P56: 0 | R56: =IF($O56<=0,0,IF(($O56-SUM($Q56:Q56))<$P56,$O56-SUM($Q56:Q56),IF(SUM($Q56:Q56)<$O56,$P56,0))) -> 0 | S56: =IF($O56<=0,0,IF(($O56-SUM($Q56:R56))<$P56,$O56-SUM($Q56:R56),IF(SUM($Q56:R56)<$O56,$P56,0))) -> 0 | T56: =IF($O56<=0,0,IF(($O56-SUM($Q56:S56))<$P56,$O56-SUM($Q56:S56),IF(SUM($Q56:S56)<$O56,$P56,0))) -> 0 | U56: =IF($O56<=0,0,IF(($O56-SUM($Q56:T56))<$P56,$O56-SUM($Q56:T56),IF(SUM($Q56:T56)<$O56,$P56,0))) -> 0
B57: AERONAVEGACIÓN/AEROPORTUARIO | C57: TERRENOS INSCRITOS | D57: Terrenos | E57: 1950-12-01 | F57: 1950-12-01 | G57: 213244.69 | H57: 0 | I57: 0 | J57: 0 | K57: 0 | L57: 0 | M57: 213244.69 | N57: 0.5 | O57: 106622.345 | P57: 0 | R57: =IF($O57<=0,0,IF(($O57-SUM($Q57:Q57))<$P57,$O57-SUM($Q57:Q57),IF(SUM($Q57:Q57)<$O57,$P57,0))) -> 0 | S57: =IF($O57<=0,0,IF(($O57-SUM($Q57:R57))<$P57,$O57-SUM($Q57:R57),IF(SUM($Q57:R57)<$O57,$P57,0))) -> 0 | T57: =IF($O57<=0,0,IF(($O57-SUM($Q57:S57))<$P57,$O57-SUM($Q57:S57),IF(SUM($Q57:S57)<$O57,$P57,0))) -> 0 | U57: =IF($O57<=0,0,IF(($O57-SUM($Q57:T57))<$P57,$O57-SUM($Q57:T57),IF(SUM($Q57:T57)<$O57,$P57,0))) -> 0
B58: AERONAVEGACIÓN/AEROPORTUARIO | C58: TERRENOS INSCRITOS | D58: Terrenos | E58: 1950-12-01 | F58: 1950-12-01 | G58: 5228369.1 | H58: 0 | I58: 0 | J58: 0 | K58: 0 | L58: 0 | M58: 5228369.1 | N58: 0.5 | O58: 2614184.55 | P58: 0 | R58: =IF($O58<=0,0,IF(($O58-SUM($Q58:Q58))<$P58,$O58-SUM($Q58:Q58),IF(SUM($Q58:Q58)<$O58,$P58,0))) -> 0 | S58: =IF($O58<=0,0,IF(($O58-SUM($Q58:R58))<$P58,$O58-SUM($Q58:R58),IF(SUM($Q58:R58)<$O58,$P58,0))) -> 0 | T58: =IF($O58<=0,0,IF(($O58-SUM($Q58:S58))<$P58,$O58-SUM($Q58:S58),IF(SUM($Q58:S58)<$O58,$P58,0))) -> 0 | U58: =IF($O58<=0,0,IF(($O58-SUM($Q58:T58))<$P58,$O58-SUM($Q58:T58),IF(SUM($Q58:T58)<$O58,$P58,0))) -> 0
B59: AERONAVEGACIÓN/AEROPORTUARIO | C59: TERRENOS INSCRITOS | D59: Terrenos | E59: 1950-12-01 | F59: 1950-12-01 | G59: 17603.94 | H59: 0 | I59: 0 | J59: 0 | K59: 0 | L59: 0 | M59: 17603.94 | N59: 0.5 | O59: 8801.97 | P59: 0 | R59: =IF($O59<=0,0,IF(($O59-SUM($Q59:Q59))<$P59,$O59-SUM($Q59:Q59),IF(SUM($Q59:Q59)<$O59,$P59,0))) -> 0 | S59: =IF($O59<=0,0,IF(($O59-SUM($Q59:R59))<$P59,$O59-SUM($Q59:R59),IF(SUM($Q59:R59)<$O59,$P59,0))) -> 0 | T59: =IF($O59<=0,0,IF(($O59-SUM($Q59:S59))<$P59,$O59-SUM($Q59:S59),IF(SUM($Q59:S59)<$O59,$P59,0))) -> 0 | U59: =IF($O59<=0,0,IF(($O59-SUM($Q59:T59))<$P59,$O59-SUM($Q59:T59),IF(SUM($Q59:T59)<$O59,$P59,0))) -> 0
B60: AERONAVEGACIÓN | C60: TERRENOS INSCRITOS | D60: Terrenos | E60: 1950-12-01 | F60: 1950-12-01 | G60: 512640.71 | H60: 0 | I60: 0 | J60: 0 | K60: 0 | L60: 0 | M60: 512640.71 | N60: 1 | O60: 512640.71 | P60: 0 | R60: =IF($O60<=0,0,IF(($O60-SUM($Q60:Q60))<$P60,$O60-SUM($Q60:Q60),IF(SUM($Q60:Q60)<$O60,$P60,0))) -> 0 | S60: =IF($O60<=0,0,IF(($O60-SUM($Q60:R60))<$P60,$O60-SUM($Q60:R60),IF(SUM($Q60:R60)<$O60,$P60,0))) -> 0 | T60: =IF($O60<=0,0,IF(($O60-SUM($Q60:S60))<$P60,$O60-SUM($Q60:S60),IF(SUM($Q60:S60)<$O60,$P60,0))) -> 0 | U60: =IF($O60<=0,0,IF(($O60-SUM($Q60:T60))<$P60,$O60-SUM($Q60:T60),IF(SUM($Q60:T60)<$O60,$P60,0))) -> 0
B61: AERONAVEGACIÓN | C61: TERRENOS INSCRITOS | D61: Terrenos | E61: 1950-12-01 | F61: 1950-12-01 | G61: 823.85 | H61: 0 | I61: 0 | J61: 0 | K61: 0 | L61: 0 | M61: 823.85 | N61: 1 | O61: 823.85 | P61: 0 | R61: =IF($O61<=0,0,IF(($O61-SUM($Q61:Q61))<$P61,$O61-SUM($Q61:Q61),IF(SUM($Q61:Q61)<$O61,$P61,0))) -> 0 | S61: =IF($O61<=0,0,IF(($O61-SUM($Q61:R61))<$P61,$O61-SUM($Q61:R61),IF(SUM($Q61:R61)<$O61,$P61,0))) -> 0 | T61: =IF($O61<=0,0,IF(($O61-SUM($Q61:S61))<$P61,$O61-SUM($Q61:S61),IF(SUM($Q61:S61)<$O61,$P61,0))) -> 0 | U61: =IF($O61<=0,0,IF(($O61-SUM($Q61:T61))<$P61,$O61-SUM($Q61:T61),IF(SUM($Q61:T61)<$O61,$P61,0))) -> 0
B62: AERONAVEGACIÓN/AEROPORTUARIO | C62: TERRENOS INSCRITOS | D62: Terrenos | E62: 1950-12-01 | F62: 1950-12-01 | G62: 7566459.57 | H62: 0 | I62: 0 | J62: 0 | K62: 0 | L62: 0 | M62: 7566459.57 | N62: 0.33 | O62: 2496931.658 | P62: 0 | R62: =IF($O62<=0,0,IF(($O62-SUM($Q62:Q62))<$P62,$O62-SUM($Q62:Q62),IF(SUM($Q62:Q62)<$O62,$P62,0))) -> 0 | S62: =IF($O62<=0,0,IF(($O62-SUM($Q62:R62))<$P62,$O62-SUM($Q62:R62),IF(SUM($Q62:R62)<$O62,$P62,0))) -> 0 | T62: =IF($O62<=0,0,IF(($O62-SUM($Q62:S62))<$P62,$O62-SUM($Q62:S62),IF(SUM($Q62:S62)<$O62,$P62,0))) -> 0 | U62: =IF($O62<=0,0,IF(($O62-SUM($Q62:T62))<$P62,$O62-SUM($Q62:T62),IF(SUM($Q62:T62)<$O62,$P62,0))) -> 0
B63: AERONAVEGACIÓN/AEROPORTUARIO | C63: TERRENOS INSCRITOS | D63: Terrenos | E63: 1950-12-01 | F63: 1950-12-01 | G63: 777.71 | H63: 0 | I63: 0 | J63: 0 | K63: 0 | L63: 0 | M63: 777.71 | N63: 0.33 | O63: 256.6443 | P63: 0 | R63: =IF($O63<=0,0,IF(($O63-SUM($Q63:Q63))<$P63,$O63-SUM($Q63:Q63),IF(SUM($Q63:Q63)<$O63,$P63,0))) -> 0 | S63: =IF($O63<=0,0,IF(($O63-SUM($Q63:R63))<$P63,$O63-SUM($Q63:R63),IF(SUM($Q63:R63)<$O63,$P63,0))) -> 0 | T63: =IF($O63<=0,0,IF(($O63-SUM($Q63:S63))<$P63,$O63-SUM($Q63:S63),IF(SUM($Q63:S63)<$O63,$P63,0))) -> 0 | U63: =IF($O63<=0,0,IF(($O63-SUM($Q63:T63))<$P63,$O63-SUM($Q63:T63),IF(SUM($Q63:T63)<$O63,$P63,0))) -> 0
B64: AERONAVEGACIÓN/AEROPORTUARIO | C64: TERRENOS INSCRITOS | D64: Terrenos | E64: 1950-12-01 | F64: 1950-12-01 | G64: 1147758.12 | H64: 0 | I64: 0 | J64: 0 | K64: 0 | L64: 0 | M64: 1147758.12 | N64: 0.5 | O64: 573879.06 | P64: 0 | R64: =IF($O64<=0,0,IF(($O64-SUM($Q64:Q64))<$P64,$O64-SUM($Q64:Q64),IF(SUM($Q64:Q64)<$O64,$P64,0))) -> 0 | S64: =IF($O64<=0,0,IF(($O64-SUM($Q64:R64))<$P64,$O64-SUM($Q64:R64),IF(SUM($Q64:R64)<$O64,$P64,0))) -> 0 | T64: =IF($O64<=0,0,IF(($O64-SUM($Q64:S64))<$P64,$O64-SUM($Q64:S64),IF(SUM($Q64:S64)<$O64,$P64,0))) -> 0 | U64: =IF($O64<=0,0,IF(($O64-SUM($Q64:T64))<$P64,$O64-SUM($Q64:T64),IF(SUM($Q64:T64)<$O64,$P64,0))) -> 0
B65: AERONAVEGACIÓN/AEROPORTUARIO | C65: TERRENOS INSCRITOS | D65: Terrenos | E65: 1950-12-01 | F65: 1950-12-01 | G65: 60408.32 | H65: 0 | I65: 0 | J65: 0 | K65: 0 | L65: 0 | M65: 60408.32 | N65: 0.5 | O65: 30204.16 | P65: 0 | R65: =IF($O65<=0,0,IF(($O65-SUM($Q65:Q65))<$P65,$O65-SUM($Q65:Q65),IF(SUM($Q65:Q65)<$O65,$P65,0))) -> 0 | S65: =IF($O65<=0,0,IF(($O65-SUM($Q65:R65))<$P65,$O65-SUM($Q65:R65),IF(SUM($Q65:R65)<$O65,$P65,0))) -> 0 | T65: =IF($O65<=0,0,IF(($O65-SUM($Q65:S65))<$P65,$O65-SUM($Q65:S65),IF(SUM($Q65:S65)<$O65,$P65,0))) -> 0 | U65: =IF($O65<=0,0,IF(($O65-SUM($Q65:T65))<$P65,$O65-SUM($Q65:T65),IF(SUM($Q65:T65)<$O65,$P65,0))) -> 0
B66: AERONAVEGACIÓN/AEROPORTUARIO | C66: TERRENOS INSCRITOS | D66: Terrenos | E66: 1950-12-01 | F66: 1950-12-01 | G66: 260420.14 | H66: 0 | I66: 0 | J66: 0 | K66: 0 | L66: 0 | M66: 260420.14 | N66: 0.5 | O66: 130210.07 | P66: 0 | R66: =IF($O66<=0,0,IF(($O66-SUM($Q66:Q66))<$P66,$O66-SUM($Q66:Q66),IF(SUM($Q66:Q66)<$O66,$P66,0))) -> 0 | S66: =IF($O66<=0,0,IF(($O66-SUM($Q66:R66))<$P66,$O66-SUM($Q66:R66),IF(SUM($Q66:R66)<$O66,$P66,0))) -> 0 | T66: =IF($O66<=0,0,IF(($O66-SUM($Q66:S66))<$P66,$O66-SUM($Q66:S66),IF(SUM($Q66:S66)<$O66,$P66,0))) -> 0 | U66: =IF($O66<=0,0,IF(($O66-SUM($Q66:T66))<$P66,$O66-SUM($Q66:T66),IF(SUM($Q66:T66)<$O66,$P66,0))) -> 0
B67: AERONAVEGACIÓN/AEROPORTUARIO | C67: TERRENOS INSCRITOS | D67: Terrenos | E67: 1950-12-01 | F67: 1950-12-01 | G67: 2630.51 | H67: 0 | I67: 0 | J67: 0 | K67: 0 | L67: 0 | M67: 2630.51 | N67: 0.5 | O67: 1315.255 | P67: 0 | R67: =IF($O67<=0,0,IF(($O67-SUM($Q67:Q67))<$P67,$O67-SUM($Q67:Q67),IF(SUM($Q67:Q67)<$O67,$P67,0))) -> 0 | S67: =IF($O67<=0,0,IF(($O67-SUM($Q67:R67))<$P67,$O67-SUM($Q67:R67),IF(SUM($Q67:R67)<$O67,$P67,0))) -> 0 | T67: =IF($O67<=0,0,IF(($O67-SUM($Q67:S67))<$P67,$O67-SUM($Q67:S67),IF(SUM($Q67:S67)<$O67,$P67,0))) -> 0 | U67: =IF($O67<=0,0,IF(($O67-SUM($Q67:T67))<$P67,$O67-SUM($Q67:T67),IF(SUM($Q67:T67)<$O67,$P67,0))) -> 0
B68: AERONAVEGACIÓN | C68: TERRENOS INSCRITOS | D68: Terrenos | E68: 1950-12-01 | F68: 1950-12-01 | G68: 1661.87 | H68: 0 | I68: 0 | J68: 0 | K68: 0 | L68: 0 | M68: 1661.87 | N68: 1 | O68: 1661.87 | P68: 0 | R68: =IF($O68<=0,0,IF(($O68-SUM($Q68:Q68))<$P68,$O68-SUM($Q68:Q68),IF(SUM($Q68:Q68)<$O68,$P68,0))) -> 0 | S68: =IF($O68<=0,0,IF(($O68-SUM($Q68:R68))<$P68,$O68-SUM($Q68:R68),IF(SUM($Q68:R68)<$O68,$P68,0))) -> 0 | T68: =IF($O68<=0,0,IF(($O68-SUM($Q68:S68))<$P68,$O68-SUM($Q68:S68),IF(SUM($Q68:S68)<$O68,$P68,0))) -> 0 | U68: =IF($O68<=0,0,IF(($O68-SUM($Q68:T68))<$P68,$O68-SUM($Q68:T68),IF(SUM($Q68:T68)<$O68,$P68,0))) -> 0
B69: AERONAVEGACIÓN | C69: TERRENOS INSCRITOS | D69: Terrenos | E69: 1950-12-01 | F69: 1950-12-01 | G69: 93.46 | H69: 0 | I69: 0 | J69: 0 | K69: 0 | L69: 0 | M69: 93.46 | N69: 1 | O69: 93.46 | P69: 0 | R69: =IF($O69<=0,0,IF(($O69-SUM($Q69:Q69))<$P69,$O69-SUM($Q69:Q69),IF(SUM($Q69:Q69)<$O69,$P69,0))) -> 0 | S69: =IF($O69<=0,0,IF(($O69-SUM($Q69:R69))<$P69,$O69-SUM($Q69:R69),IF(SUM($Q69:R69)<$O69,$P69,0))) -> 0 | T69: =IF($O69<=0,0,IF(($O69-SUM($Q69:S69))<$P69,$O69-SUM($Q69:S69),IF(SUM($Q69:S69)<$O69,$P69,0))) -> 0 | U69: =IF($O69<=0,0,IF(($O69-SUM($Q69:T69))<$P69,$O69-SUM($Q69:T69),IF(SUM($Q69:T69)<$O69,$P69,0))) -> 0
B70: AERONAVEGACIÓN | C70: TERRENOS INSCRITOS | D70: Terrenos | E70: 1950-12-01 | F70: 1950-12-01 | G70: 42329.63 | H70: 0 | I70: 0 | J70: 0 | K70: 0 | L70: 0 | M70: =+G70-H70-I70+J70-L70 -> 42329.63 | N70: 1 | O70: =+M70*N70 -> 42329.63 | P70: =(I70+K70)*N70 -> 0 | R70: =IF($O70<=0,0,IF(($O70-SUM($Q70:Q70))<$P70,$O70-SUM($Q70:Q70),IF(SUM($Q70:Q70)<$O70,$P70,0))) -> 0 | S70: =IF($O70<=0,0,IF(($O70-SUM($Q70:R70))<$P70,$O70-SUM($Q70:R70),IF(SUM($Q70:R70)<$O70,$P70,0))) -> 0 | T70: =IF($O70<=0,0,IF(($O70-SUM($Q70:S70))<$P70,$O70-SUM($Q70:S70),IF(SUM($Q70:S70)<$O70,$P70,0))) -> 0 | U70: =IF($O70<=0,0,IF(($O70-SUM($Q70:T70))<$P70,$O70-SUM($Q70:T70),IF(SUM($Q70:T70)<$O70,$P70,0))) -> 0
B71: AERONAVEGACIÓN | C71: TERRENOS INSCRITOS | D71: Terrenos | E71: 1950-12-01 | F71: 1950-12-01 | G71: 576.73 | H71: 0 | I71: 0 | J71: 0 | K71: 0 | L71: 0 | M71: 576.73 | N71: 1 | O71: 576.73 | P71: 0 | R71: =IF($O71<=0,0,IF(($O71-SUM($Q71:Q71))<$P71,$O71-SUM($Q71:Q71),IF(SUM($Q71:Q71)<$O71,$P71,0))) -> 0 | S71: =IF($O71<=0,0,IF(($O71-SUM($Q71:R71))<$P71,$O71-SUM($Q71:R71),IF(SUM($Q71:R71)<$O71,$P71,0))) -> 0 | T71: =IF($O71<=0,0,IF(($O71-SUM($Q71:S71))<$P71,$O71-SUM($Q71:S71),IF(SUM($Q71:S71)<$O71,$P71,0))) -> 0 | U71: =IF($O71<=0,0,IF(($O71-SUM($Q71:T71))<$P71,$O71-SUM($Q71:T71),IF(SUM($Q71:T71)<$O71,$P71,0))) -> 0
B72: AERONAVEGACIÓN | C72: TERRENOS INSCRITOS | D72: Terrenos | E72: 1950-12-01 | F72: 1950-12-01 | G72: 48427.44 | H72: 0 | I72: 0 | J72: 0 | K72: 0 | L72: 0 | M72: 48427.44 | N72: 1 | O72: 48427.44 | P72: 0 | R72: =IF($O72<=0,0,IF(($O72-SUM($Q72:Q72))<$P72,$O72-SUM($Q72:Q72),IF(SUM($Q72:Q72)<$O72,$P72,0))) -> 0 | S72: =IF($O72<=0,0,IF(($O72-SUM($Q72:R72))<$P72,$O72-SUM($Q72:R72),IF(SUM($Q72:R72)<$O72,$P72,0))) -> 0 | T72: =IF($O72<=0,0,IF(($O72-SUM($Q72:S72))<$P72,$O72-SUM($Q72:S72),IF(SUM($Q72:S72)<$O72,$P72,0))) -> 0 | U72: =IF($O72<=0,0,IF(($O72-SUM($Q72:T72))<$P72,$O72-SUM($Q72:T72),IF(SUM($Q72:T72)<$O72,$P72,0))) -> 0
B73: AERONAVEGACIÓN | C73: TERRENOS INSCRITOS | D73: Terrenos | E73: 1950-12-01 | F73: 1950-12-01 | G73: 489.17 | H73: 0 | I73: 0 | J73: 0 | K73: 0 | L73: 0 | M73: 489.17 | N73: 1 | O73: 489.17 | P73: 0 | R73: =IF($O73<=0,0,IF(($O73-SUM($Q73:Q73))<$P73,$O73-SUM($Q73:Q73),IF(SUM($Q73:Q73)<$O73,$P73,0))) -> 0 | S73: =IF($O73<=0,0,IF(($O73-SUM($Q73:R73))<$P73,$O73-SUM($Q73:R73),IF(SUM($Q73:R73)<$O73,$P73,0))) -> 0 | T73: =IF($O73<=0,0,IF(($O73-SUM($Q73:S73))<$P73,$O73-SUM($Q73:S73),IF(SUM($Q73:S73)<$O73,$P73,0))) -> 0 | U73: =IF($O73<=0,0,IF(($O73-SUM($Q73:T73))<$P73,$O73-SUM($Q73:T73),IF(SUM($Q73:T73)<$O73,$P73,0))) -> 0
B74: AERONAVEGACIÓN | C74: TERRENOS INSCRITOS | D74: Terrenos | E74: 1950-12-01 | F74: 1950-12-01 | G74: 7596.65 | H74: 0 | I74: 0 | J74: 0 | K74: 0 | L74: 0 | M74: 7596.65 | N74: 1 | O74: 7596.65 | P74: 0 | R74: =IF($O74<=0,0,IF(($O74-SUM($Q74:Q74))<$P74,$O74-SUM($Q74:Q74),IF(SUM($Q74:Q74)<$O74,$P74,0))) -> 0 | S74: =IF($O74<=0,0,IF(($O74-SUM($Q74:R74))<$P74,$O74-SUM($Q74:R74),IF(SUM($Q74:R74)<$O74,$P74,0))) -> 0 | T74: =IF($O74<=0,0,IF(($O74-SUM($Q74:S74))<$P74,$O74-SUM($Q74:S74),IF(SUM($Q74:S74)<$O74,$P74,0))) -> 0 | U74: =IF($O74<=0,0,IF(($O74-SUM($Q74:T74))<$P74,$O74-SUM($Q74:T74),IF(SUM($Q74:T74)<$O74,$P74,0))) -> 0
B75: AERONAVEGACIÓN | C75: TERRENOS INSCRITOS | D75: Terrenos | E75: 1950-12-01 | F75: 1950-12-01 | G75: 427.21 | H75: 0 | I75: 0 | J75: 0 | K75: 0 | L75: 0 | M75: 427.21 | N75: 1 | O75: 427.21 | P75: 0 | R75: =IF($O75<=0,0,IF(($O75-SUM($Q75:Q75))<$P75,$O75-SUM($Q75:Q75),IF(SUM($Q75:Q75)<$O75,$P75,0))) -> 0 | S75: =IF($O75<=0,0,IF(($O75-SUM($Q75:R75))<$P75,$O75-SUM($Q75:R75),IF(SUM($Q75:R75)<$O75,$P75,0))) -> 0 | T75: =IF($O75<=0,0,IF(($O75-SUM($Q75:S75))<$P75,$O75-SUM($Q75:S75),IF(SUM($Q75:S75)<$O75,$P75,0))) -> 0 | U75: =IF($O75<=0,0,IF(($O75-SUM($Q75:T75))<$P75,$O75-SUM($Q75:T75),IF(SUM($Q75:T75)<$O75,$P75,0))) -> 0
B76: AERONAVEGACIÓN/AEROPORTUARIO | C76: TERRENOS INSCRITOS | D76: Terrenos | E76: 1950-12-01 | F76: 1950-12-01 | G76: 986886.48 | H76: 0 | I76: 0 | J76: 0 | K76: 0 | L76: 0 | M76: 986886.48 | N76: 0.5 | O76: 493443.24 | P76: 0 | R76: =IF($O76<=0,0,IF(($O76-SUM($Q76:Q76))<$P76,$O76-SUM($Q76:Q76),IF(SUM($Q76:Q76)<$O76,$P76,0))) -> 0 | S76: =IF($O76<=0,0,IF(($O76-SUM($Q76:R76))<$P76,$O76-SUM($Q76:R76),IF(SUM($Q76:R76)<$O76,$P76,0))) -> 0 | T76: =IF($O76<=0,0,IF(($O76-SUM($Q76:S76))<$P76,$O76-SUM($Q76:S76),IF(SUM($Q76:S76)<$O76,$P76,0))) -> 0 | U76: =IF($O76<=0,0,IF(($O76-SUM($Q76:T76))<$P76,$O76-SUM($Q76:T76),IF(SUM($Q76:T76)<$O76,$P76,0))) -> 0
B77: AERONAVEGACIÓN/AEROPORTUARIO | C77: TERRENOS INSCRITOS | D77: Terrenos | E77: 1950-12-01 | F77: 1950-12-01 | G77: 43612.41 | H77: 0 | I77: 0 | J77: 0 | K77: 0 | L77: 0 | M77: 43612.41 | N77: 0.5 | O77: 21806.205 | P77: 0 | R77: =IF($O77<=0,0,IF(($O77-SUM($Q77:Q77))<$P77,$O77-SUM($Q77:Q77),IF(SUM($Q77:Q77)<$O77,$P77,0))) -> 0 | S77: =IF($O77<=0,0,IF(($O77-SUM($Q77:R77))<$P77,$O77-SUM($Q77:R77),IF(SUM($Q77:R77)<$O77,$P77,0))) -> 0 | T77: =IF($O77<=0,0,IF(($O77-SUM($Q77:S77))<$P77,$O77-SUM($Q77:S77),IF(SUM($Q77:S77)<$O77,$P77,0))) -> 0 | U77: =IF($O77<=0,0,IF(($O77-SUM($Q77:T77))<$P77,$O77-SUM($Q77:T77),IF(SUM($Q77:T77)<$O77,$P77,0))) -> 0
B78: AERONAVEGACIÓN | C78: TERRENOS INSCRITOS - VALORIZACION ADICIONAL | D78: Terrenos | E78: 1950-12-01 | F78: 1950-12-01 | G78: 21681.24 | H78: 0 | I78: 0 | J78: 0 | K78: 0 | L78: 0 | M78: 21681.24 | N78: 1 | O78: 21681.24 | P78: 0 | R78: =IF($O78<=0,0,IF(($O78-SUM($Q78:Q78))<$P78,$O78-SUM($Q78:Q78),IF(SUM($Q78:Q78)<$O78,$P78,0))) -> 0 | S78: =IF($O78<=0,0,IF(($O78-SUM($Q78:R78))<$P78,$O78-SUM($Q78:R78),IF(SUM($Q78:R78)<$O78,$P78,0))) -> 0 | T78: =IF($O78<=0,0,IF(($O78-SUM($Q78:S78))<$P78,$O78-SUM($Q78:S78),IF(SUM($Q78:S78)<$O78,$P78,0))) -> 0 | U78: =IF($O78<=0,0,IF(($O78-SUM($Q78:T78))<$P78,$O78-SUM($Q78:T78),IF(SUM($Q78:T78)<$O78,$P78,0))) -> 0
B79: AERONAVEGACIÓN | C79: TERRENOS INSCRITOS | D79: Terrenos | E79: 1950-12-01 | F79: 1950-12-01 | G79: 0 | H79: 0 | I79: 0 | J79: 0 | K79: 0 | L79: 0 | M79: 0 | N79: 1 | O79: 0 | P79: 0 | R79: =IF($O79<=0,0,IF(($O79-SUM($Q79:Q79))<$P79,$O79-SUM($Q79:Q79),IF(SUM($Q79:Q79)<$O79,$P79,0))) -> 0 | S79: =IF($O79<=0,0,IF(($O79-SUM($Q79:R79))<$P79,$O79-SUM($Q79:R79),IF(SUM($Q79:R79)<$O79,$P79,0))) -> 0 | T79: =IF($O79<=0,0,IF(($O79-SUM($Q79:S79))<$P79,$O79-SUM($Q79:S79),IF(SUM($Q79:S79)<$O79,$P79,0))) -> 0 | U79: =IF($O79<=0,0,IF(($O79-SUM($Q79:T79))<$P79,$O79-SUM($Q79:T79),IF(SUM($Q79:T79)<$O79,$P79,0))) -> 0
B80: AERONAVEGACIÓN | C80: TERRENOS INSCRITOS | D80: Terrenos | E80: 1950-12-01 | F80: 1950-12-01 | G80: 228391.98 | H80: 0 | I80: 0 | J80: 0 | K80: 0 | L80: 0 | M80: 228391.98 | N80: 1 | O80: 228391.98 | P80: 0 | R80: =IF($O80<=0,0,IF(($O80-SUM($Q80:Q80))<$P80,$O80-SUM($Q80:Q80),IF(SUM($Q80:Q80)<$O80,$P80,0))) -> 0 | S80: =IF($O80<=0,0,IF(($O80-SUM($Q80:R80))<$P80,$O80-SUM($Q80:R80),IF(SUM($Q80:R80)<$O80,$P80,0))) -> 0 | T80: =IF($O80<=0,0,IF(($O80-SUM($Q80:S80))<$P80,$O80-SUM($Q80:S80),IF(SUM($Q80:S80)<$O80,$P80,0))) -> 0 | U80: =IF($O80<=0,0,IF(($O80-SUM($Q80:T80))<$P80,$O80-SUM($Q80:T80),IF(SUM($Q80:T80)<$O80,$P80,0))) -> 0
B81: AERONAVEGACIÓN/AEROPORTUARIO | C81: EDIFICIOS EN AEROPUERTOS-Administrativas | D81: Edificaciones y construcciones | E81: 1970-01-31 | F81: 1970-01-31 | G81: 1933244.4 | H81: 529665.24 | I81: 56371.09 | J81: 0 | K81: 0 | L81: 0 | M81: 1347208.07 | N81: 0.5 | O81: 673604.035 | P81: 28185.545 | R81: =IF($O81<=0,0,IF(($O81-SUM($Q81:Q81))<$P81,$O81-SUM($Q81:Q81),IF(SUM($Q81:Q81)<$O81,$P81,0))) -> 28185.545 | S81: =IF($O81<=0,0,IF(($O81-SUM($Q81:R81))<$P81,$O81-SUM($Q81:R81),IF(SUM($Q81:R81)<$O81,$P81,0))) -> 28185.545 | T81: =IF($O81<=0,0,IF(($O81-SUM($Q81:S81))<$P81,$O81-SUM($Q81:S81),IF(SUM($Q81:S81)<$O81,$P81,0))) -> 28185.545 | U81: =IF($O81<=0,0,IF(($O81-SUM($Q81:T81))<$P81,$O81-SUM($Q81:T81),IF(SUM($Q81:T81)<$O81,$P81,0))) -> 28185.545
B82: AERONAVEGACIÓN | C82: OTRAS EDIFICACIONES (NUEVO) | D82: Edificaciones y construcciones | E82: 1970-01-31 | F82: 1970-01-31 | G82: 73594.79 | H82: 41294.28 | I82: 2018.78 | J82: 0 | K82: 0 | L82: 0 | M82: 30281.73 | N82: 1 | O82: 30281.73 | P82: 2018.78 | R82: =IF($O82<=0,0,IF(($O82-SUM($Q82:Q82))<$P82,$O82-SUM($Q82:Q82),IF(SUM($Q82:Q82)<$O82,$P82,0))) -> 2018.78 | S82: =IF($O82<=0,0,IF(($O82-SUM($Q82:R82))<$P82,$O82-SUM($Q82:R82),IF(SUM($Q82:R82)<$O82,$P82,0))) -> 2018.78 | T82: =IF($O82<=0,0,IF(($O82-SUM($Q82:S82))<$P82,$O82-SUM($Q82:S82),IF(SUM($Q82:S82)<$O82,$P82,0))) -> 2018.78 | U82: =IF($O82<=0,0,IF(($O82-SUM($Q82:T82))<$P82,$O82-SUM($Q82:T82),IF(SUM($Q82:T82)<$O82,$P82,0))) -> 2018.78
B83: AERONAVEGACIÓN | C83: OTRAS EDIFICACIONES (NUEVO) | D83: Edificaciones y construcciones | E83: 1970-01-31 | F83: 1970-01-31 | G83: 73594.79 | H83: 41294.28 | I83: 2018.78 | J83: 0 | K83: 0 | L83: 0 | M83: 30281.73 | N83: 1 | O83: 30281.73 | P83: 2018.78 | R83: =IF($O83<=0,0,IF(($O83-SUM($Q83:Q83))<$P83,$O83-SUM($Q83:Q83),IF(SUM($Q83:Q83)<$O83,$P83,0))) -> 2018.78 | S83: =IF($O83<=0,0,IF(($O83-SUM($Q83:R83))<$P83,$O83-SUM($Q83:R83),IF(SUM($Q83:R83)<$O83,$P83,0))) -> 2018.78 | T83: =IF($O83<=0,0,IF(($O83-SUM($Q83:S83))<$P83,$O83-SUM($Q83:S83),IF(SUM($Q83:S83)<$O83,$P83,0))) -> 2018.78 | U83: =IF($O83<=0,0,IF(($O83-SUM($Q83:T83))<$P83,$O83-SUM($Q83:T83),IF(SUM($Q83:T83)<$O83,$P83,0))) -> 2018.78
B84: AERONAVEGACIÓN | C84: OTRAS EDIFICACIONES (NUEVO) | D84: Edificaciones y construcciones | E84: 1970-01-31 | F84: 1970-01-31 | G84: 40438.61 | H84: 22784.14 | I84: 1109.74 | J84: 0 | K84: 0 | L84: 0 | M84: 16544.73 | N84: 1 | O84: 16544.73 | P84: 1109.74 | R84: =IF($O84<=0,0,IF(($O84-SUM($Q84:Q84))<$P84,$O84-SUM($Q84:Q84),IF(SUM($Q84:Q84)<$O84,$P84,0))) -> 1109.74 | S84: =IF($O84<=0,0,IF(($O84-SUM($Q84:R84))<$P84,$O84-SUM($Q84:R84),IF(SUM($Q84:R84)<$O84,$P84,0))) -> 1109.74 | T84: =IF($O84<=0,0,IF(($O84-SUM($Q84:S84))<$P84,$O84-SUM($Q84:S84),IF(SUM($Q84:S84)<$O84,$P84,0))) -> 1109.74 | U84: =IF($O84<=0,0,IF(($O84-SUM($Q84:T84))<$P84,$O84-SUM($Q84:T84),IF(SUM($Q84:T84)<$O84,$P84,0))) -> 1109.74
B85: AERONAVEGACIÓN | C85: OTRAS EDIFICACIONES (NUEVO) | D85: Edificaciones y construcciones | E85: 1970-01-31 | F85: 1970-01-31 | G85: 40438.61 | H85: 22784.14 | I85: 1109.74 | J85: 0 | K85: 0 | L85: 0 | M85: 16544.73 | N85: 1 | O85: 16544.73 | P85: 1109.74 | R85: =IF($O85<=0,0,IF(($O85-SUM($Q85:Q85))<$P85,$O85-SUM($Q85:Q85),IF(SUM($Q85:Q85)<$O85,$P85,0))) -> 1109.74 | S85: =IF($O85<=0,0,IF(($O85-SUM($Q85:R85))<$P85,$O85-SUM($Q85:R85),IF(SUM($Q85:R85)<$O85,$P85,0))) -> 1109.74 | T85: =IF($O85<=0,0,IF(($O85-SUM($Q85:S85))<$P85,$O85-SUM($Q85:S85),IF(SUM($Q85:S85)<$O85,$P85,0))) -> 1109.74 | U85: =IF($O85<=0,0,IF(($O85-SUM($Q85:T85))<$P85,$O85-SUM($Q85:T85),IF(SUM($Q85:T85)<$O85,$P85,0))) -> 1109.74
B86: AERONAVEGACIÓN | C86: EDIFICIOS EN AEROPUERTOS-Administrativas | D86: Edificaciones y construcciones | E86: 1970-01-31 | F86: 1970-01-31 | G86: 139655.4 | H86: 38262.42 | I86: 4072.18 | J86: 0 | K86: 0 | L86: 0 | M86: 97320.8 | N86: 1 | O86: 97320.8 | P86: 4072.18 | R86: =IF($O86<=0,0,IF(($O86-SUM($Q86:Q86))<$P86,$O86-SUM($Q86:Q86),IF(SUM($Q86:Q86)<$O86,$P86,0))) -> 4072.18 | S86: =IF($O86<=0,0,IF(($O86-SUM($Q86:R86))<$P86,$O86-SUM($Q86:R86),IF(SUM($Q86:R86)<$O86,$P86,0))) -> 4072.18 | T86: =IF($O86<=0,0,IF(($O86-SUM($Q86:S86))<$P86,$O86-SUM($Q86:S86),IF(SUM($Q86:S86)<$O86,$P86,0))) -> 4072.18 | U86: =IF($O86<=0,0,IF(($O86-SUM($Q86:T86))<$P86,$O86-SUM($Q86:T86),IF(SUM($Q86:T86)<$O86,$P86,0))) -> 4072.18
B87: AERONAVEGACIÓN/AEROPORTUARIO | C87: EDIFICIOS EN AEROPUERTOS-Administrativas | D87: Edificaciones y construcciones | E87: 1970-01-31 | F87: 1970-01-31 | G87: 139655.4 | H87: 38262.42 | I87: 4072.18 | J87: 0 | K87: 0 | L87: 0 | M87: 97320.8 | N87: 0.5 | O87: 48660.4 | P87: 2036.09 | R87: =IF($O87<=0,0,IF(($O87-SUM($Q87:Q87))<$P87,$O87-SUM($Q87:Q87),IF(SUM($Q87:Q87)<$O87,$P87,0))) -> 2036.09 | S87: =IF($O87<=0,0,IF(($O87-SUM($Q87:R87))<$P87,$O87-SUM($Q87:R87),IF(SUM($Q87:R87)<$O87,$P87,0))) -> 2036.09 | T87: =IF($O87<=0,0,IF(($O87-SUM($Q87:S87))<$P87,$O87-SUM($Q87:S87),IF(SUM($Q87:S87)<$O87,$P87,0))) -> 2036.09 | U87: =IF($O87<=0,0,IF(($O87-SUM($Q87:T87))<$P87,$O87-SUM($Q87:T87),IF(SUM($Q87:T87)<$O87,$P87,0))) -> 2036.09
B88: AERONAVEGACIÓN/AEROPORTUARIO | C88: EDIFICIOS EN AEROPUERTOS-Administrativas | D88: Edificaciones y construcciones | E88: 1970-01-31 | F88: 1970-01-31 | G88: 139655.4 | H88: 38262.42 | I88: 4072.18 | J88: 0 | K88: 0 | L88: 0 | M88: 97320.8 | N88: 0.5 | O88: 48660.4 | P88: 2036.09 | R88: =IF($O88<=0,0,IF(($O88-SUM($Q88:Q88))<$P88,$O88-SUM($Q88:Q88),IF(SUM($Q88:Q88)<$O88,$P88,0))) -> 2036.09 | S88: =IF($O88<=0,0,IF(($O88-SUM($Q88:R88))<$P88,$O88-SUM($Q88:R88),IF(SUM($Q88:R88)<$O88,$P88,0))) -> 2036.09 | T88: =IF($O88<=0,0,IF(($O88-SUM($Q88:S88))<$P88,$O88-SUM($Q88:S88),IF(SUM($Q88:S88)<$O88,$P88,0))) -> 2036.09 | U88: =IF($O88<=0,0,IF(($O88-SUM($Q88:T88))<$P88,$O88-SUM($Q88:T88),IF(SUM($Q88:T88)<$O88,$P88,0))) -> 2036.09
B89: AERONAVEGACIÓN | C89: EDIFICIOS EN AEROPUERTOS-Administrativas | D89: Edificaciones y construcciones | E89: 1970-01-31 | F89: 1970-01-31 | G89: 900829.44 | H89: 900829.44 | I89: 0 | J89: 0 | K89: 0 | L89: 0 | M89: 0 | N89: 1 | O89: 0 | P89: 0 | R89: =IF($O89<=0,0,IF(($O89-SUM($Q89:Q89))<$P89,$O89-SUM($Q89:Q89),IF(SUM($Q89:Q89)<$O89,$P89,0))) -> 0 | S89: =IF($O89<=0,0,IF(($O89-SUM($Q89:R89))<$P89,$O89-SUM($Q89:R89),IF(SUM($Q89:R89)<$O89,$P89,0))) -> 0 | T89: =IF($O89<=0,0,IF(($O89-SUM($Q89:S89))<$P89,$O89-SUM($Q89:S89),IF(SUM($Q89:S89)<$O89,$P89,0))) -> 0 | U89: =IF($O89<=0,0,IF(($O89-SUM($Q89:T89))<$P89,$O89-SUM($Q89:T89),IF(SUM($Q89:T89)<$O89,$P89,0))) -> 0
B90: AERONAVEGACIÓN | C90: ACCESO AL AEROPUERTO PARA VEHICULOS | D90: Edificaciones y construcciones | E90: 1970-01-31 | F90: 1970-01-31 | G90: 233344.7 | H90: 233344.7 | I90: 0 | J90: 0 | K90: 0 | L90: 0 | M90: 0 | N90: 1 | O90: 0 | P90: 0 | R90: =IF($O90<=0,0,IF(($O90-SUM($Q90:Q90))<$P90,$O90-SUM($Q90:Q90),IF(SUM($Q90:Q90)<$O90,$P90,0))) -> 0 | S90: =IF($O90<=0,0,IF(($O90-SUM($Q90:R90))<$P90,$O90-SUM($Q90:R90),IF(SUM($Q90:R90)<$O90,$P90,0))) -> 0 | T90: =IF($O90<=0,0,IF(($O90-SUM($Q90:S90))<$P90,$O90-SUM($Q90:S90),IF(SUM($Q90:S90)<$O90,$P90,0))) -> 0 | U90: =IF($O90<=0,0,IF(($O90-SUM($Q90:T90))<$P90,$O90-SUM($Q90:T90),IF(SUM($Q90:T90)<$O90,$P90,0))) -> 0
B91: AERONAVEGACIÓN | C91: EDIFICIOS EN AEROPUERTOS-Administrativas | D91: Edificaciones y construcciones | E91: 1970-01-31 | F91: 1970-01-31 | G91: 233344.7 | H91: 233344.7 | I91: 0 | J91: 0 | K91: 0 | L91: 0 | M91: 0 | N91: 1 | O91: 0 | P91: 0 | R91: =IF($O91<=0,0,IF(($O91-SUM($Q91:Q91))<$P91,$O91-SUM($Q91:Q91),IF(SUM($Q91:Q91)<$O91,$P91,0))) -> 0 | S91: =IF($O91<=0,0,IF(($O91-SUM($Q91:R91))<$P91,$O91-SUM($Q91:R91),IF(SUM($Q91:R91)<$O91,$P91,0))) -> 0 | T91: =IF($O91<=0,0,IF(($O91-SUM($Q91:S91))<$P91,$O91-SUM($Q91:S91),IF(SUM($Q91:S91)<$O91,$P91,0))) -> 0 | U91: =IF($O91<=0,0,IF(($O91-SUM($Q91:T91))<$P91,$O91-SUM($Q91:T91),IF(SUM($Q91:T91)<$O91,$P91,0))) -> 0
B92: AERONAVEGACIÓN | C92: OTRAS EDIFICACIONES (NUEVO) | D92: Edificaciones y construcciones | E92: 1970-01-31 | F92: 1970-01-31 | G92: 233344.7 | H92: 233344.7 | I92: 0 | J92: 0 | K92: 0 | L92: 0 | M92: 0 | N92: 1 | O92: 0 | P92: 0 | R92: =IF($O92<=0,0,IF(($O92-SUM($Q92:Q92))<$P92,$O92-SUM($Q92:Q92),IF(SUM($Q92:Q92)<$O92,$P92,0))) -> 0 | S92: =IF($O92<=0,0,IF(($O92-SUM($Q92:R92))<$P92,$O92-SUM($Q92:R92),IF(SUM($Q92:R92)<$O92,$P92,0))) -> 0 | T92: =IF($O92<=0,0,IF(($O92-SUM($Q92:S92))<$P92,$O92-SUM($Q92:S92),IF(SUM($Q92:S92)<$O92,$P92,0))) -> 0 | U92: =IF($O92<=0,0,IF(($O92-SUM($Q92:T92))<$P92,$O92-SUM($Q92:T92),IF(SUM($Q92:T92)<$O92,$P92,0))) -> 0
B93: AERONAVEGACIÓN | C93: PISTAS DE ATERRIZAJE Y CALLES DE RODAJE | D93: Edificaciones y construcciones | E93: 1970-01-31 | F93: 1970-01-31 | G93: 570304.02 | H93: 570304.02 | I93: 0 | J93: 0 | K93: 0 | L93: 0 | M93: 0 | N93: 1 | O93: 0 | P93: 0 | R93: =IF($O93<=0,0,IF(($O93-SUM($Q93:Q93))<$P93,$O93-SUM($Q93:Q93),IF(SUM($Q93:Q93)<$O93,$P93,0))) -> 0 | S93: =IF($O93<=0,0,IF(($O93-SUM($Q93:R93))<$P93,$O93-SUM($Q93:R93),IF(SUM($Q93:R93)<$O93,$P93,0))) -> 0 | T93: =IF($O93<=0,0,IF(($O93-SUM($Q93:S93))<$P93,$O93-SUM($Q93:S93),IF(SUM($Q93:S93)<$O93,$P93,0))) -> 0 | U93: =IF($O93<=0,0,IF(($O93-SUM($Q93:T93))<$P93,$O93-SUM($Q93:T93),IF(SUM($Q93:T93)<$O93,$P93,0))) -> 0
B94: AERONAVEGACIÓN | C94: ACCESO AL AEROPUERTO PARA VEHICULOS | D94: Edificaciones y construcciones | E94: 1970-01-31 | F94: 1970-01-31 | G94: 89575.21 | H94: 40302.53 | I94: 1895.1 | J94: 0 | K94: 0 | L94: 0 | M94: 47377.58 | N94: 1 | O94: 47377.58 | P94: 1895.1 | R94: =IF($O94<=0,0,IF(($O94-SUM($Q94:Q94))<$P94,$O94-SUM($Q94:Q94),IF(SUM($Q94:Q94)<$O94,$P94,0))) -> 1895.1 | S94: =IF($O94<=0,0,IF(($O94-SUM($Q94:R94))<$P94,$O94-SUM($Q94:R94),IF(SUM($Q94:R94)<$O94,$P94,0))) -> 1895.1 | T94: =IF($O94<=0,0,IF(($O94-SUM($Q94:S94))<$P94,$O94-SUM($Q94:S94),IF(SUM($Q94:S94)<$O94,$P94,0))) -> 1895.1 | U94: =IF($O94<=0,0,IF(($O94-SUM($Q94:T94))<$P94,$O94-SUM($Q94:T94),IF(SUM($Q94:T94)<$O94,$P94,0))) -> 1895.1
B95: AERONAVEGACIÓN | C95: EDIFICIOS EN AEROPUERTOS-Administrativas | D95: Edificaciones y construcciones | E95: 1970-02-28 | F95: 1970-02-28 | G95: 92479.4 | H95: 41609.22 | I95: 1956.55 | J95: 0 | K95: 0 | L95: 0 | M95: 48913.63 | N95: 1 | O95: 48913.63 | P95: 1956.55 | R95: =IF($O95<=0,0,IF(($O95-SUM($Q95:Q95))<$P95,$O95-SUM($Q95:Q95),IF(SUM($Q95:Q95)<$O95,$P95,0))) -> 1956.55 | S95: =IF($O95<=0,0,IF(($O95-SUM($Q95:R95))<$P95,$O95-SUM($Q95:R95),IF(SUM($Q95:R95)<$O95,$P95,0))) -> 1956.55 | T95: =IF($O95<=0,0,IF(($O95-SUM($Q95:S95))<$P95,$O95-SUM($Q95:S95),IF(SUM($Q95:S95)<$O95,$P95,0))) -> 1956.55 | U95: =IF($O95<=0,0,IF(($O95-SUM($Q95:T95))<$P95,$O95-SUM($Q95:T95),IF(SUM($Q95:T95)<$O95,$P95,0))) -> 1956.55
B96: AERONAVEGACIÓN | C96: EDIFICIOS EN AEROPUERTOS-Administrativas | D96: Edificaciones y construcciones | E96: 1970-02-28 | F96: 1970-02-28 | G96: 236242.78 | H96: 231643.34 | I96: 4599.44 | J96: 0 | K96: 0 | L96: 0 | M96: 2.728484105e-12 | N96: 1 | O96: 2.728484105e-12 | P96: 4599.44 | R96: =IF($O96<=0,0,IF(($O96-SUM($Q96:Q96))<$P96,$O96-SUM($Q96:Q96),IF(SUM($Q96:Q96)<$O96,$P96,0))) -> 2.728484105e-12 | S96: =IF($O96<=0,0,IF(($O96-SUM($Q96:R96))<$P96,$O96-SUM($Q96:R96),IF(SUM($Q96:R96)<$O96,$P96,0))) -> 0 | T96: =IF($O96<=0,0,IF(($O96-SUM($Q96:S96))<$P96,$O96-SUM($Q96:S96),IF(SUM($Q96:S96)<$O96,$P96,0))) -> 0 | U96: =IF($O96<=0,0,IF(($O96-SUM($Q96:T96))<$P96,$O96-SUM($Q96:T96),IF(SUM($Q96:T96)<$O96,$P96,0))) -> 0
B97: AERONAVEGACIÓN | C97: EDIFICIOS EN AEROPUERTOS-Administrativas | D97: Edificaciones y construcciones | E97: 1970-02-28 | F97: 1970-02-28 | G97: 150932.82 | H97: 45518.43 | I97: 3011.84 | J97: 0 | K97: 0 | L97: 0 | M97: 102402.55 | N97: 1 | O97: 102402.55 | P97: 3011.84 | R97: =IF($O97<=0,0,IF(($O97-SUM($Q97:Q97))<$P97,$O97-SUM($Q97:Q97),IF(SUM($Q97:Q97)<$O97,$P97,0))) -> 3011.84 | S97: =IF($O97<=0,0,IF(($O97-SUM($Q97:R97))<$P97,$O97-SUM($Q97:R97),IF(SUM($Q97:R97)<$O97,$P97,0))) -> 3011.84 | T97: =IF($O97<=0,0,IF(($O97-SUM($Q97:S97))<$P97,$O97-SUM($Q97:S97),IF(SUM($Q97:S97)<$O97,$P97,0))) -> 3011.84 | U97: =IF($O97<=0,0,IF(($O97-SUM($Q97:T97))<$P97,$O97-SUM($Q97:T97),IF(SUM($Q97:T97)<$O97,$P97,0))) -> 3011.84
B98: AERONAVEGACIÓN | C98: EDIFICIOS EN AEROPUERTOS-Administrativas | D98: Edificaciones y construcciones | E98: 1970-02-28 | F98: 1970-02-28 | G98: 405999.09 | H98: 218196.52 | I98: 9390.13 | J98: 0 | K98: 0 | L98: 0 | M98: 178412.44 | N98: 1 | O98: 178412.44 | P98: 9390.13 | R98: =IF($O98<=0,0,IF(($O98-SUM($Q98:Q98))<$P98,$O98-SUM($Q98:Q98),IF(SUM($Q98:Q98)<$O98,$P98,0))) -> 9390.13 | S98: =IF($O98<=0,0,IF(($O98-SUM($Q98:R98))<$P98,$O98-SUM($Q98:R98),IF(SUM($Q98:R98)<$O98,$P98,0))) -> 9390.13 | T98: =IF($O98<=0,0,IF(($O98-SUM($Q98:S98))<$P98,$O98-SUM($Q98:S98),IF(SUM($Q98:S98)<$O98,$P98,0))) -> 9390.13 | U98: =IF($O98<=0,0,IF(($O98-SUM($Q98:T98))<$P98,$O98-SUM($Q98:T98),IF(SUM($Q98:T98)<$O98,$P98,0))) -> 9390.13
B99: AERONAVEGACIÓN | C99: ACCESO AL AEROPUERTO PARA VEHICULOS | D99: Edificaciones y construcciones | E99: 1970-12-31 | F99: 1970-12-31 | G99: 233344.7 | H99: 233344.7 | I99: 0 | J99: 0 | K99: 0 | L99: 0 | M99: 0 | N99: 1 | O99: 0 | P99: 0 | R99: =IF($O99<=0,0,IF(($O99-SUM($Q99:Q99))<$P99,$O99-SUM($Q99:Q99),IF(SUM($Q99:Q99)<$O99,$P99,0))) -> 0 | S99: =IF($O99<=0,0,IF(($O99-SUM($Q99:R99))<$P99,$O99-SUM($Q99:R99),IF(SUM($Q99:R99)<$O99,$P99,0))) -> 0 | T99: =IF($O99<=0,0,IF(($O99-SUM($Q99:S99))<$P99,$O99-SUM($Q99:S99),IF(SUM($Q99:S99)<$O99,$P99,0))) -> 0 | U99: =IF($O99<=0,0,IF(($O99-SUM($Q99:T99))<$P99,$O99-SUM($Q99:T99),IF(SUM($Q99:T99)<$O99,$P99,0))) -> 0
B100: AERONAVEGACIÓN | C100: EDIFICIOS EN AEROPUERTOS-Administrativas | D100: Edificaciones y construcciones | E100: 1971-05-30 | F100: 1971-05-30 | G100: 7996.08 | H100: 4477.81 | I100: 159.92 | J100: 0 | K100: 0 | L100: 0 | M100: 3358.35 | N100: 1 | O100: 3358.35 | P100: 159.92 | R100: =IF($O100<=0,0,IF(($O100-SUM($Q100:Q100))<$P100,$O100-SUM($Q100:Q100),IF(SUM($Q100:Q100)<$O100,$P100,0))) -> 159.92 | S100: =IF($O100<=0,0,IF(($O100-SUM($Q100:R100))<$P100,$O100-SUM($Q100:R100),IF(SUM($Q100:R100)<$O100,$P100,0))) -> 159.92 | T100: =IF($O100<=0,0,IF(($O100-SUM($Q100:S100))<$P100,$O100-SUM($Q100:S100),IF(SUM($Q100:S100)<$O100,$P100,0))) -> 159.92 | U100: =IF($O100<=0,0,IF(($O100-SUM($Q100:T100))<$P100,$O100-SUM($Q100:T100),IF(SUM($Q100:T100)<$O100,$P100,0))) -> 159.92
B101: AERONAVEGACIÓN | C101: EDIFICIOS EN AEROPUERTOS-Administrativas | D101: Edificaciones y construcciones | E101: 1972-01-31 | F101: 1972-01-31 | G101: 7996.08 | H101: 4477.81 | I101: 159.92 | J101: 0 | K101: 0 | L101: 0 | M101: 3358.35 | N101: 1 | O101: 3358.35 | P101: 159.92 | R101: =IF($O101<=0,0,IF(($O101-SUM($Q101:Q101))<$P101,$O101-SUM($Q101:Q101),IF(SUM($Q101:Q101)<$O101,$P101,0))) -> 159.92 | S101: =IF($O101<=0,0,IF(($O101-SUM($Q101:R101))<$P101,$O101-SUM($Q101:R101),IF(SUM($Q101:R101)<$O101,$P101,0))) -> 159.92 | T101: =IF($O101<=0,0,IF(($O101-SUM($Q101:S101))<$P101,$O101-SUM($Q101:S101),IF(SUM($Q101:S101)<$O101,$P101,0))) -> 159.92 | U101: =IF($O101<=0,0,IF(($O101-SUM($Q101:T101))<$P101,$O101-SUM($Q101:T101),IF(SUM($Q101:T101)<$O101,$P101,0))) -> 159.92
B102: AERONAVEGACIÓN | C102: EDIFICIOS EN AEROPUERTOS-Administrativas | D102: Edificaciones y construcciones | E102: 1972-01-31 | F102: 1972-01-31 | G102: 238011.6 | H102: 238011.6 | I102: 0 | J102: 0 | K102: 0 | L102: 0 | M102: 0 | N102: 1 | O102: 0 | P102: 0 | R102: =IF($O102<=0,0,IF(($O102-SUM($Q102:Q102))<$P102,$O102-SUM($Q102:Q102),IF(SUM($Q102:Q102)<$O102,$P102,0))) -> 0 | S102: =IF($O102<=0,0,IF(($O102-SUM($Q102:R102))<$P102,$O102-SUM($Q102:R102),IF(SUM($Q102:R102)<$O102,$P102,0))) -> 0 | T102: =IF($O102<=0,0,IF(($O102-SUM($Q102:S102))<$P102,$O102-SUM($Q102:S102),IF(SUM($Q102:S102)<$O102,$P102,0))) -> 0 | U102: =IF($O102<=0,0,IF(($O102-SUM($Q102:T102))<$P102,$O102-SUM($Q102:T102),IF(SUM($Q102:T102)<$O102,$P102,0))) -> 0
B103: AERONAVEGACIÓN | C103: PISTAS DE ATERRIZAJE Y CALLES DE RODAJE | D103: Edificaciones y construcciones | E103: 1973-01-31 | F103: 1973-01-31 | G103: 2198704.86 | H103: 2198704.86 | I103: 0 | J103: 0 | K103: 0 | L103: 0 | M103: 0 | N103: 1 | O103: 0 | P103: 0 | R103: =IF($O103<=0,0,IF(($O103-SUM($Q103:Q103))<$P103,$O103-SUM($Q103:Q103),IF(SUM($Q103:Q103)<$O103,$P103,0))) -> 0 | S103: =IF($O103<=0,0,IF(($O103-SUM($Q103:R103))<$P103,$O103-SUM($Q103:R103),IF(SUM($Q103:R103)<$O103,$P103,0))) -> 0 | T103: =IF($O103<=0,0,IF(($O103-SUM($Q103:S103))<$P103,$O103-SUM($Q103:S103),IF(SUM($Q103:S103)<$O103,$P103,0))) -> 0 | U103: =IF($O103<=0,0,IF(($O103-SUM($Q103:T103))<$P103,$O103-SUM($Q103:T103),IF(SUM($Q103:T103)<$O103,$P103,0))) -> 0
B104: AERONAVEGACIÓN/AEROPORTUARIO | C104: EDIFICIOS EN AEROPUERTOS-Administrativas | D104: Edificaciones y construcciones | E104: 1974-01-31 | F104: 1974-01-31 | G104: 149428.49 | H104: 40940.03 | I104: 4357.16 | J104: 0 | K104: 0 | L104: 0 | M104: 104131.3 | N104: 0.5 | O104: 52065.65 | P104: 2178.58 | R104: =IF($O104<=0,0,IF(($O104-SUM($Q104:Q104))<$P104,$O104-SUM($Q104:Q104),IF(SUM($Q104:Q104)<$O104,$P104,0))) -> 2178.58 | S104: =IF($O104<=0,0,IF(($O104-SUM($Q104:R104))<$P104,$O104-SUM($Q104:R104),IF(SUM($Q104:R104)<$O104,$P104,0))) -> 2178.58 | T104: =IF($O104<=0,0,IF(($O104-SUM($Q104:S104))<$P104,$O104-SUM($Q104:S104),IF(SUM($Q104:S104)<$O104,$P104,0))) -> 2178.58 | U104: =IF($O104<=0,0,IF(($O104-SUM($Q104:T104))<$P104,$O104-SUM($Q104:T104),IF(SUM($Q104:T104)<$O104,$P104,0))) -> 2178.58
B105: AERONAVEGACIÓN | C105: PISTAS DE ATERRIZAJE Y CALLES DE RODAJE | D105: Edificaciones y construcciones | E105: 1974-01-31 | F105: 1974-01-31 | G105: 8948610.84 | H105: 7457175.68 | I105: 372858.78 | J105: 0 | K105: 0 | L105: 0 | M105: 1118576.38 | N105: 1 | O105: 1118576.38 | P105: 372858.78 | R105: =IF($O105<=0,0,IF(($O105-SUM($Q105:Q105))<$P105,$O105-SUM($Q105:Q105),IF(SUM($Q105:Q105)<$O105,$P105,0))) -> 372858.78 | S105: =IF($O105<=0,0,IF(($O105-SUM($Q105:R105))<$P105,$O105-SUM($Q105:R105),IF(SUM($Q105:R105)<$O105,$P105,0))) -> 372858.78 | T105: =IF($O105<=0,0,IF(($O105-SUM($Q105:S105))<$P105,$O105-SUM($Q105:S105),IF(SUM($Q105:S105)<$O105,$P105,0))) -> 372858.78 | U105: =IF($O105<=0,0,IF(($O105-SUM($Q105:T105))<$P105,$O105-SUM($Q105:T105),IF(SUM($Q105:T105)<$O105,$P105,0))) -> 0.04000000004
B106: AERONAVEGACIÓN | C106: PISTAS DE ATERRIZAJE Y CALLES DE RODAJE | D106: Edificaciones y construcciones | E106: 1974-01-31 | F106: 1974-01-31 | G106: 117731.91 | H106: 64752.55 | I106: 2943.3 | J106: 0 | K106: 0 | L106: 0 | M106: 50036.06 | N106: 1 | O106: 50036.06 | P106: 2943.3 | R106: =IF($O106<=0,0,IF(($O106-SUM($Q106:Q106))<$P106,$O106-SUM($Q106:Q106),IF(SUM($Q106:Q106)<$O106,$P106,0))) -> 2943.3 | S106: =IF($O106<=0,0,IF(($O106-SUM($Q106:R106))<$P106,$O106-SUM($Q106:R106),IF(SUM($Q106:R106)<$O106,$P106,0))) -> 2943.3 | T106: =IF($O106<=0,0,IF(($O106-SUM($Q106:S106))<$P106,$O106-SUM($Q106:S106),IF(SUM($Q106:S106)<$O106,$P106,0))) -> 2943.3 | U106: =IF($O106<=0,0,IF(($O106-SUM($Q106:T106))<$P106,$O106-SUM($Q106:T106),IF(SUM($Q106:T106)<$O106,$P106,0))) -> 2943.3
B107: AERONAVEGACIÓN/AEROPORTUARIO | C107: EDIFICIOS EN AEROPUERTOS-Administrativas | D107: Edificaciones y construcciones | E107: 1975-01-31 | F107: 1975-01-31 | G107: 149428.49 | H107: 40940.03 | I107: 4357.16 | J107: 0 | K107: 0 | L107: 0 | M107: 104131.3 | N107: 0.5 | O107: 52065.65 | P107: 2178.58 | R107: =IF($O107<=0,0,IF(($O107-SUM($Q107:Q107))<$P107,$O107-SUM($Q107:Q107),IF(SUM($Q107:Q107)<$O107,$P107,0))) -> 2178.58 | S107: =IF($O107<=0,0,IF(($O107-SUM($Q107:R107))<$P107,$O107-SUM($Q107:R107),IF(SUM($Q107:R107)<$O107,$P107,0))) -> 2178.58 | T107: =IF($O107<=0,0,IF(($O107-SUM($Q107:S107))<$P107,$O107-SUM($Q107:S107),IF(SUM($Q107:S107)<$O107,$P107,0))) -> 2178.58 | U107: =IF($O107<=0,0,IF(($O107-SUM($Q107:T107))<$P107,$O107-SUM($Q107:T107),IF(SUM($Q107:T107)<$O107,$P107,0))) -> 2178.58
B108: AERONAVEGACIÓN | C108: PISTAS DE ATERRIZAJE Y CALLES DE RODAJE | D108: Edificaciones y construcciones | E108: 1975-12-31 | F108: 1975-12-31 | G108: 324760.14 | H108: 324552.73 | I108: 17.46 | J108: 0 | K108: 0 | L108: 0 | M108: 189.95 | N108: 1 | O108: 189.95 | P108: 17.46 | R108: =IF($O108<=0,0,IF(($O108-SUM($Q108:Q108))<$P108,$O108-SUM($Q108:Q108),IF(SUM($Q108:Q108)<$O108,$P108,0))) -> 17.46 | S108: =IF($O108<=0,0,IF(($O108-SUM($Q108:R108))<$P108,$O108-SUM($Q108:R108),IF(SUM($Q108:R108)<$O108,$P108,0))) -> 17.46 | T108: =IF($O108<=0,0,IF(($O108-SUM($Q108:S108))<$P108,$O108-SUM($Q108:S108),IF(SUM($Q108:S108)<$O108,$P108,0))) -> 17.46 | U108: =IF($O108<=0,0,IF(($O108-SUM($Q108:T108))<$P108,$O108-SUM($Q108:T108),IF(SUM($Q108:T108)<$O108,$P108,0))) -> 17.46
B109: AERONAVEGACIÓN/AEROPORTUARIO | C109: EDIFICIOS EN AEROPUERTOS-Administrativas | D109: Edificaciones y construcciones | E109: 1976-01-31 | F109: 1976-01-31 | G109: 149428.49 | H109: 40940.03 | I109: 4357.16 | J109: 0 | K109: 0 | L109: 0 | M109: 104131.3 | N109: 0.5 | O109: 52065.65 | P109: 2178.58 | R109: =IF($O109<=0,0,IF(($O109-SUM($Q109:Q109))<$P109,$O109-SUM($Q109:Q109),IF(SUM($Q109:Q109)<$O109,$P109,0))) -> 2178.58 | S109: =IF($O109<=0,0,IF(($O109-SUM($Q109:R109))<$P109,$O109-SUM($Q109:R109),IF(SUM($Q109:R109)<$O109,$P109,0))) -> 2178.58 | T109: =IF($O109<=0,0,IF(($O109-SUM($Q109:S109))<$P109,$O109-SUM($Q109:S109),IF(SUM($Q109:S109)<$O109,$P109,0))) -> 2178.58 | U109: =IF($O109<=0,0,IF(($O109-SUM($Q109:T109))<$P109,$O109-SUM($Q109:T109),IF(SUM($Q109:T109)<$O109,$P109,0))) -> 2178.58
B110: AERONAVEGACIÓN/AEROPORTUARIO | C110: EDIFICIOS EN AEROPUERTOS-Administrativas | D110: Edificaciones y construcciones | E110: 1976-01-31 | F110: 1976-01-31 | G110: 149428.49 | H110: 40940.03 | I110: 4357.16 | J110: 0 | K110: 0 | L110: 0 | M110: 104131.3 | N110: 0.5 | O110: 52065.65 | P110: 2178.58 | R110: =IF($O110<=0,0,IF(($O110-SUM($Q110:Q110))<$P110,$O110-SUM($Q110:Q110),IF(SUM($Q110:Q110)<$O110,$P110,0))) -> 2178.58 | S110: =IF($O110<=0,0,IF(($O110-SUM($Q110:R110))<$P110,$O110-SUM($Q110:R110),IF(SUM($Q110:R110)<$O110,$P110,0))) -> 2178.58 | T110: =IF($O110<=0,0,IF(($O110-SUM($Q110:S110))<$P110,$O110-SUM($Q110:S110),IF(SUM($Q110:S110)<$O110,$P110,0))) -> 2178.58 | U110: =IF($O110<=0,0,IF(($O110-SUM($Q110:T110))<$P110,$O110-SUM($Q110:T110),IF(SUM($Q110:T110)<$O110,$P110,0))) -> 2178.58
B111: AERONAVEGACIÓN/AEROPORTUARIO | C111: EDIFICIOS EN AEROPUERTOS-Administrativas | D111: Edificaciones y construcciones | E111: 1976-01-31 | F111: 1976-01-31 | G111: 149428.49 | H111: 40940.03 | I111: 4357.16 | J111: 0 | K111: 0 | L111: 0 | M111: 104131.3 | N111: 0.5 | O111: 52065.65 | P111: 2178.58 | R111: =IF($O111<=0,0,IF(($O111-SUM($Q111:Q111))<$P111,$O111-SUM($Q111:Q111),IF(SUM($Q111:Q111)<$O111,$P111,0))) -> 2178.58 | S111: =IF($O111<=0,0,IF(($O111-SUM($Q111:R111))<$P111,$O111-SUM($Q111:R111),IF(SUM($Q111:R111)<$O111,$P111,0))) -> 2178.58 | T111: =IF($O111<=0,0,IF(($O111-SUM($Q111:S111))<$P111,$O111-SUM($Q111:S111),IF(SUM($Q111:S111)<$O111,$P111,0))) -> 2178.58 | U111: =IF($O111<=0,0,IF(($O111-SUM($Q111:T111))<$P111,$O111-SUM($Q111:T111),IF(SUM($Q111:T111)<$O111,$P111,0))) -> 2178.58
B112: AERONAVEGACIÓN | C112: EDIFICIOS EN AEROPUERTOS-Administrativas | D112: Edificaciones y construcciones | E112: 1976-01-31 | F112: 1976-01-31 | G112: 463872.89 | H112: 380375.77 | I112: 6958.09 | J112: 0 | K112: 0 | L112: 0 | M112: 76539.03 | N112: 1 | O112: 76539.03 | P112: 6958.09 | R112: =IF($O112<=0,0,IF(($O112-SUM($Q112:Q112))<$P112,$O112-SUM($Q112:Q112),IF(SUM($Q112:Q112)<$O112,$P112,0))) -> 6958.09 | S112: =IF($O112<=0,0,IF(($O112-SUM($Q112:R112))<$P112,$O112-SUM($Q112:R112),IF(SUM($Q112:R112)<$O112,$P112,0))) -> 6958.09 | T112: =IF($O112<=0,0,IF(($O112-SUM($Q112:S112))<$P112,$O112-SUM($Q112:S112),IF(SUM($Q112:S112)<$O112,$P112,0))) -> 6958.09 | U112: =IF($O112<=0,0,IF(($O112-SUM($Q112:T112))<$P112,$O112-SUM($Q112:T112),IF(SUM($Q112:T112)<$O112,$P112,0))) -> 6958.09
